Workbook

Sheet dummy_database (hidden)
D1: =title67 -> Moisture content (%) | E1: Particle size (mm) | F1: C (%) | G1: H (%) | H1: O (%) | I1: N (%) | J1: S (%) | K1: HHV (MJ/KG) | L1: LHV (MJ/KG)
A2: =title2 -> barley | B2: =title22 -> straw | C2: =+A2&B2 -> barleystraw | D2: 0.11 | E2: 38 | F2: 0.468 | G2: 0.0553 | H2: 0.419 | I2: 0.0041 | J2: =100%-SUM(F2:I2) -> 0.0536 | K2: =(0.3516*$F2+1.16225*$G2-0.1109*$H2+0.0628*$I2+0.10465*$J2)*100 -> 18.8220845 | L2: =+K2-0.212*$G2*100-0.0245*$D2*100-0.008*$H2 -> 17.3768725 | M2: HHV equation | N2: http://www.sciencedirect.com/science/article/pii/S1364032111000578
A3: =title3 -> cacao | B3: =title23 -> pods | C3: cacaopods | D3: 0.08 | E3: 44 | F3: 0.5062375 | G3: 0.0671125 | H3: 0.3874125 | I3: 0.0176125 | J3: =100%-SUM(F3:I3) -> 0.021625 | K3: =(0.3516*$F3+1.16225*$G3-0.1109*$H3+0.0628*$I3+0.10465*$J3)*100 -> 21.63996831 | L3: =+K3-0.212*$G3*100-0.0245*$D3*100-0.008*$H3 -> 20.01808401 | M3: LHV CONVERSION | N3: 2006 IPCC Guidelines, Vol. II, Section 1.4.1.2, Box 1.1
A4: =title4 -> cassava | B4: =title24 -> stalk | C4: cassavastalk | D4: 0.12 | E4: 77 | F4: 0.537 | G4: 0.071 | H4: 0.379 | I4: 0.012 | J4: 0.001 | K4: 23.01561 | L4: 21.213378
A5: =title5 -> coconut | B5: =title25 -> fronds | C5: coconutfronds | D5: 0.05 | E5: 36 | F5: 0.5062375 | G5: 0.0671125 | H5: 0.3874125 | I5: 0.0176125 | J5: 0.021625 | K5: 21.63996831 | L5: 20.09158401
A6: =title5 -> coconut | B6: =title26 -> husk | C6: coconuthusk | D6: 0.0667 | E6: 56 | F6: 0.3949 | G6: 0.06068 | H6: 0.53979 | I6: 0.00399 | J6: 0.00064 | K6: 14.9827007 | L6: 13.52855138
A7: =title5 -> coconut | B7: =title27 -> shell | C7: coconutshell | D7: 0.057 | E7: 77 | F7: 0.539 | G7: 0.057 | H7: 0.3944 | I7: 0.001 | J7: 0.0002 | K7: 21.210542 | L7: 19.8593368
A8: =title6 -> coffee | B8: =title26 -> husk | C8: coffeehusk | D8: 0.0766 | E8: 56 | F8: 0.5062375 | G8: 0.0671125 | H8: 0.3874125 | I8: 0.0176125 | J8: 0.021625 | K8: 21.63996831 | L8: 20.02641401
A9: =title7 -> cotton | B9: =title28 -> hull | C9: cottonhull | D9: 0.09 | E9: 49 | F9: 0.4643 | G9: 0.0618 | H9: 0.4262 | I9: 0.008 | J9: 0.0397 | K9: 19.2466355 | L9: 17.7125659
A10: =title7 -> cotton | B10: =title24 -> stalk | C10: cottonstalk | D10: 0.0766 | E10: 40 | F10: 0.461 | G10: 0.0685 | H10: 0.4335 | I10: 0.0109 | J10: 0.0026 | K10: 19.4583185 | L10: 17.8149805
A11: =title8 -> groundnut | B11: =title27 -> shell | C11: groundnutshell | D11: 0.082 | E11: 59 | F11: 0.5062375 | G11: 0.0671125 | H11: 0.3874125 | I11: 0.0176125 | J11: 0.021625 | K11: 21.63996831 | L11: 20.01318401
A12: =title9 -> maize | B12: =title29 -> cob | C12: maizecob | D12: 0.15 | E12: 59 | F12: 0.4658 | G12: 0.0587 | H12: 0.4545 | I12: 0.0047 | J12: 0.0001 | K12: 18.190093 | L12: 16.574517
A13: =title9 -> maize | B13: =title26 -> husk | C13: maizehusk | D13: 0.1111 | E13: 38 | F13: 0.4627 | G13: 0.0669 | H13: 0.4543 | I13: 0.016 | J13: 0.0001 | K13: 19.107324 | L13: 17.4132146
A14: =title9 -> maize | B14: =title30 -> stover | C14: maizestover | D14: 0.05 | E14: 41 | F14: 0.4365 | G14: 0.0556 | H14: 0.4331 | I14: 0.0061 | J14: 0.0001 | K14: 17.0457255 | L14: 15.7410407
A15: =title10 -> millet | B15: =title22 -> straw | C15: milletstraw | D15: 0.14 | E15: 40 | F15: 0.411 | G15: 0.08 | H15: 0.411 | I15: 0.009 | J15: 0.001 | K15: 19.257755 | L15: 17.215467
A16: =title11 -> oat | B16: =title22 -> straw | C16: oatstraw | D16: 0.092 | E16: 68 | F16: 0.468 | G16: 0.0582 | H16: 0.4698 | I16: 0.0031 | J16: 0.0009 | K16: 18.0379795 | L16: 16.5749811
A17: =title12 -> oil palm | B17: =title31 -> empty bunches | C17: oil palmempty bunches | D17: 0.024 | E17: 25 | F17: 0.5378 | G17: 0.0437 | H17: 0.415 | I17: 0.0035 | J17: 0 | K17: 19.4077105 | L17: 18.4191505
A18: =title12 -> oil palm | B18: =title25 -> fronds | C18: oil palmfronds | D18: 0.0533 | E18: 80 | F18: 0.4843 | G18: 0.11 | H18: 0.40207 | I18: 0.00339 | J18: 0.00024 | K18: 25.3775825 | L18: 22.91178094
A19: =title12 -> oil palm | B19: =title27 -> shell | C19: oil palmshell | D19: 0.0811 | E19: 61 | F19: 0.4444 | G19: 0.0501 | H19: 0.347 | I19: 0.0028 | J19: 0.1557 | K19: 19.246731 | L19: 17.98314
A20: =title13 -> rice | B20: =title22 -> straw | C20: ricestraw | D20: 0.0811 | E20: 52 | F20: 0.392 | G20: 0.051 | H20: 0.358 | I20: 0.006 | J20: 0.001 | K20: 15.78812 | L20: 14.505361
A21: =title13 -> rice | B21: =title26 -> husk | C21: ricehusk | D21: 0.09 | E21: 30 | F21: 0.385 | G21: 0.057 | H21: 0.398 | I21: 0.005 | J21: 0 | K21: 15.779005 | L21: 14.346921
A22: =title14 -> rye | B22: =title22 -> straw | C22: ryestraw | D22: 0.15 | E22: 77 | F22: 0.478 | G22: 0.051 | H22: 0.389 | I22: 0.001 | J22: 0 | K22: 18.426225 | L22: 16.974413
A23: =title15 -> sorghum | B23: =title32 -> straw/stalk | C23: sorghumstraw/stalk | D23: 0.0564 | E23: 51 | F23: 0.458 | G23: 0.053 | H23: 0.423 | I23: 0.01 | J23: 0.001 | K23: 17.6454 | L23: 16.380236
A24: =title16 -> soybean | B24: =title22 -> straw | C24: soybeanstraw | D24: 0.188 | E24: 58 | F24: 0.457 | G24: 0.066 | H24: 0.47 | I24: 0.006 | J24: 0.001 | K24: 18.574815 | L24: 16.711255
A25: =title16 -> soybean | B25: =title23 -> pods | C25: soybeanpods | D25: 0.132 | E25: 38 | F25: 0.425 | G25: 0.065 | H25: 0.49 | I25: 0.016 | J25: 0.003 | K25: 17.1954 | L25: 15.49008
A26: =title17 -> sugarcane | B26: =title33 -> tops/leaves | C26: sugarcanetops/leaves | D26: 0.135 | E26: 23 | F26: 0.3975 | G26: 0.0555 | H26: 0.4682 | I26: 0.0017 | J26: 0.001 | K26: 15.2553905 | L26: 13.7442949
A27: =title17 -> sugarcane | B27: baggase | C27: sugarcanebaggase | D27: 0.15 | E27: 51 | F27: 0.449 | G27: 0.054 | H27: 0.396 | I27: 0.004 | J27: 0.0001 | K27: 17.6975165 | L27: 16.1820485
A28: =title18 -> wheat | B28: =title22 -> straw | C28: wheatstraw | D28: 0.0863 | E28: 57 | F28: 0.434 | G28: 0.06 | H28: 0.445 | I28: 0.008 | J28: 0.001 | K28: 17.358595 | L28: 15.8716
A29: =title19 -> Briquettes/Pellets | C29: Briquettes/Pellets | D29: 0.15 | E29: N/A | F29: =+AVERAGE(48.7%,51.5%,53.1%) -> 0.511 | G29: =+AVERAGE(6.2%,7.8%,8.1%) -> 0.07366666667 | H29: =+AVERAGE(26.16%,21.51%,35.75%) -> 0.2780666667 | I29: =+AVERAGE(0.71%,0.66%,0.93%) -> 0.007666666667 | J29: =+AVERAGE(0.02%,0.03%,0.02%) -> 0.0002333333333 | K29: 23.4954975 | L29: 21.56403963
A30: =title20 -> Forest Harvest. Res. | C30: Forest Harvest. Res. | D30: 0.05 | E30: 60 | F30: 0.511 | G30: 0.07366666667 | H30: 0.2780666667 | I30: 0.007666666667 | J30: 0.0002333333333 | K30: 23.4954975 | L30: =+K30-0.212*$G30*100-0.0245*$D30*100-0.008*$H30 -> 21.80903963
A31: =title21 -> Wood Proces. Res. | C31: Wood Proces. Res. | D31: 0.15 | E31: 40 | F31: 0.469 | G31: 0.052 | H31: 0.378 | I31: 0.001 | J31: 0.0004 | K31: 18.352186 | L31: 16.879262

Sheet label (hidden)
B2: Selection | C2: =VLOOKUP(START!B2,$A$3:$C$5,3,FALSE) -> 1
A3: EN | B3: English | C3: 1
A4: FR | B4: French | C4: 2
A5: ES | B5: Spanish | C5: 3
A7: ID | B7: English | C7: French | D7: Spanish | E7: Typeof | F7: Ref | G7: Name
A8: 1 | B8: 1 | C8: 2 | D8: 3
A9: 2 | B9: Combustion Process Description | C9: Description du Processus de Combustion | D9: Descripción del Proceso de Combustión | E9: label | F9: =HLOOKUP($C$2,$B$8:$D9,$A9,FALSE) -> Combustion Process Description | G9: =$E9&$A9 -> label2
A10: 3 | B10: Data Entry | C10: Saisie de Données | D10: Datos de Entrada | E10: label | F10: =HLOOKUP($C$2,$B$8:$D10,$A10,FALSE) -> Data Entry | G10: label3
A11: 4 | B11: NEXT >> Energy Demand | C11: SUIVANT >> Demande d'Énergie | D11: SIGUIENTE >> Demanda de Energía | E11: label | F11: =HLOOKUP($C$2,$B$8:$D11,$A11,FALSE) -> NEXT >> Energy Demand | G11: label4
A12: 5 | B12: << BACK Start | C12: << RETOUR Début | D12: << VOLVER Inicio | E12: label | F12: =HLOOKUP($C$2,$B$8:$D12,$A12,FALSE) -> << BACK Start | G12: label5
A13: 6 | B13: Energy Demand | C13: Demande d'Énergie | D13: Demanda de Energía | E13: label | F13: =HLOOKUP($C$2,$B$8:$D13,$A13,FALSE) -> Energy Demand | G13: label6
A14: 7 | B14: NEXT >> Data Entry | C14: SUIVANT >> Saisie de Données | D14: SIGUIENTE >> Datos de Entrada | E14: label | F14: =HLOOKUP($C$2,$B$8:$D14,$A14,FALSE) -> NEXT >> Data Entry | G14: label7
A15: 8 | B15: Clear data | C15: Effacer les données | D15: Borrar datos | E15: label | F15: =HLOOKUP($C$2,$B$8:$D15,$A15,FALSE) -> Clear data | G15: label8
A16: 9 | B16: Load Default Values | C16: Charger les Valeurs par Défaut | D16: Cargar Valores por Defecto | E16: label | F16: =HLOOKUP($C$2,$B$8:$D16,$A16,FALSE) -> Load Default Values | G16: label9
A17: 10 | B17: Production Cost 1 | C17: Coût de Production 1 | D17: Costo de Producción 1 | E17: label | F17: =HLOOKUP($C$2,$B$8:$D17,$A17,FALSE) -> Production Cost 1 | G17: label10
A18: 11 | B18: Production Cost 2 | C18: Coût de Production 2 | D18: Costo de Producción 2 | E18: label | F18: =HLOOKUP($C$2,$B$8:$D18,$A18,FALSE) -> Production Cost 2 | G18: label11
A19: 12 | B19: Production Cost 3 | C19: Coût de Production 3 | D19: Costo de Producción 3 | E19: label | F19: =HLOOKUP($C$2,$B$8:$D19,$A19,FALSE) -> Production Cost 3 | G19: label12
A20: 13 | B20: Production Cost 4 | C20: Coût de Production 4 | D20: Costo de Producción 4 | E20: label | F20: =HLOOKUP($C$2,$B$8:$D20,$A20,FALSE) -> Production Cost 4 | G20: label13
A21: 14 | B21: Storage Calculator 1 | C21: Calculateur de Stockage 1 | D21: Calculadora de Almacenamiento 1 | E21: label | F21: =HLOOKUP($C$2,$B$8:$D21,$A21,FALSE) -> Storage Calculator 1 | G21: label14
A22: 15 | B22: Storage Calculator 2 | C22: Calculateur de Stockage 2 | D22: Calculadora de Almacenamiento 2 | E22: label | F22: =HLOOKUP($C$2,$B$8:$D22,$A22,FALSE) -> Storage Calculator 2 | G22: label15
A23: 16 | B23: Storage Calculator 3 | C23: Calculateur de Stockage 3 | D23: Calculadora de Almacenamiento 3 | E23: label | F23: =HLOOKUP($C$2,$B$8:$D23,$A23,FALSE) -> Storage Calculator 3 | G23: label16
A24: 17 | B24: Storage Calculator 4 | C24: Calculateur de Stockage 4 | D24: Calculadora de Almacenamiento 4 | E24: label | F24: =HLOOKUP($C$2,$B$8:$D24,$A24,FALSE) -> Storage Calculator 4 | G24: label17
A25: 18 | B25: Price Calculator 1 | C25: Calculateur de Prix 1 | D25: Calculadora de Precio 1 | E25: label | F25: =HLOOKUP($C$2,$B$8:$D25,$A25,FALSE) -> Price Calculator 1 | G25: label18
A26: 19 | B26: Price Calculator 2 | C26: Calculateur de Prix 2 | D26: Calculadora de Precio 2 | E26: label | F26: =HLOOKUP($C$2,$B$8:$D26,$A26,FALSE) -> Price Calculator 2 | G26: label19
A27: 20 | B27: Price Calculator 3 | C27: Calculateur de Prix 3 | D27: Calculadora de Precio 3 | E27: label | F27: =HLOOKUP($C$2,$B$8:$D27,$A27,FALSE) -> Price Calculator 3 | G27: label20
A28: 21 | B28: Price Calculator 4 | C28: Calculateur de Prix 4 | D28: Calculadora de Precio 4 | E28: label | F28: =HLOOKUP($C$2,$B$8:$D28,$A28,FALSE) -> Price Calculator 4 | G28: label21
A29: 22 | B29: Electricity Price Calculator | C29: Calculateur de Prix d’Électricité | D29: Definición del precio de electricidad | E29: label | F29: =HLOOKUP($C$2,$B$8:$D29,$A29,FALSE) -> Electricity Price Calculator | G29: label22
A30: 23 | B30: NEXT >> Summary of Results Comparative | C30: SUIVANT >> Résumé des Résultats Comparatifs | D30: SIGUIENTE >> Resumen de Resultados Comparativos | E30: label | F30: =HLOOKUP($C$2,$B$8:$D30,$A30,FALSE) -> NEXT >> Summary of Results Comparative | G30: label23
A31: 24 | B31: NEXT >> Summary of Results by Feedstock | C31: SUIVANT >> Résumé des Résultats par Matière Première | D31: SIGUIENTE >> Resumen de Resultados por Materia Prima | E31: label | F31: =HLOOKUP($C$2,$B$8:$D31,$A31,FALSE) -> NEXT >> Summary of Results by Feedstock | G31: label24
A32: 25 | B32: << BACK Data Entry | C32: << RETOUR Saisie de Données | D32: << VOLVER Datos de Entrada | E32: label | F32: =HLOOKUP($C$2,$B$8:$D32,$A32,FALSE) -> << BACK Data Entry | G32: label25
A33: 26 | B33: << BACK Production Cost 1 | C33: << RETOUR Coût de Production 1 | D33: << VOLVER Costo de Producción 1 | E33: label | F33: =HLOOKUP($C$2,$B$8:$D33,$A33,FALSE) -> << BACK Production Cost 1 | G33: label26
A34: 27 | B34: Hide this sheet | C34: Cachez cette feuille | D34: Ocultar esta Hoja | E34: label | F34: =HLOOKUP($C$2,$B$8:$D34,$A34,FALSE) -> Hide this sheet | G34: label27
A35: 28 | B35: << BACK Production Cost 2 | C35: << RETOUR Coût de Production 2 | D35: << VOLVER Costo de Producción 2 | E35: label | F35: =HLOOKUP($C$2,$B$8:$D35,$A35,FALSE) -> << BACK Production Cost 2 | G35: label28
A36: 29 | B36: << BACK Production Cost 3 | C36: << RETOUR Coût de Production 3 | D36: << VOLVER Costo de Producción 3 | E36: label | F36: =HLOOKUP($C$2,$B$8:$D36,$A36,FALSE) -> << BACK Production Cost 3 | G36: label29
A37: 30 | B37: << BACK Production Cost 4 | C37: << RETOUR Coût de Production 4 | D37: << VOLVER Costo de Producción 4 | E37: label | F37: =HLOOKUP($C$2,$B$8:$D37,$A37,FALSE) -> << BACK Production Cost 4 | G37: label30
A38: 31 | B38: Create a PDF report | C38: Créer un rapport PDF | D38: Crear un Reporte en PDF | E38: label | F38: =HLOOKUP($C$2,$B$8:$D38,$A38,FALSE) -> Create a PDF report | G38: label31
A39: 32 | B39: Financial Analysis 10 kW | C39: Analyse Financière de 10 kW | D39: Análisis Financiero 10 kW | E39: label | F39: =HLOOKUP($C$2,$B$8:$D39,$A39,FALSE) -> Financial Analysis 10 kW | G39: label32
A40: 33 | B40: Financial Analysis 40 kW | C40: Analyse Financière de 40 kW | D40: Análisis Financiero 40 kW | E40: label | F40: =HLOOKUP($C$2,$B$8:$D40,$A40,FALSE) -> Financial Analysis 40 kW | G40: label33
A41: 34 | B41: Financial Analysis 100 kW | C41: Analyse Financière de 100 kW | D41: Análisis Financiero 100 kW | E41: label | F41: =HLOOKUP($C$2,$B$8:$D41,$A41,FALSE) -> Financial Analysis 100 kW | G41: label34

Sheet title (hidden)
B2: Selection | C2: =VLOOKUP(START!B2,$A$3:$C$5,3,FALSE) -> 1
A3: EN | B3: English | C3: 1
A4: FR | B4: French | C4: 2
A5: ES | B5: Spanish | C5: 3
A7: ID | B7: English | C7: French | D7: Spanish | E7: Typeof | F7: Ref | G7: Name
A8: 1 | B8: 1 | C8: 2 | D8: 3
A9: 2 | B9: barley | C9: orge | D9: cebada | E9: title | F9: =HLOOKUP($C$2,$B$8:$D9,$A9,FALSE) -> barley | G9: =$E9&$A9 -> title2
A10: 3 | B10: cacao | C10: cacao | D10: cacao | E10: title | F10: =HLOOKUP($C$2,$B$8:$D10,$A10,FALSE) -> cacao | G10: title3
A11: 4 | B11: cassava | C11: manioc | D11: yuca | E11: title | F11: =HLOOKUP($C$2,$B$8:$D11,$A11,FALSE) -> cassava | G11: title4
A12: 5 | B12: coconut | C12: noix de coco | D12: coco | E12: title | F12: =HLOOKUP($C$2,$B$8:$D12,$A12,FALSE) -> coconut | G12: title5
A13: 6 | B13: coffee | C13: café | D13: café | E13: title | F13: =HLOOKUP($C$2,$B$8:$D13,$A13,FALSE) -> coffee | G13: title6
A14: 7 | B14: cotton | C14: coton | D14: algodón | E14: title | F14: =HLOOKUP($C$2,$B$8:$D14,$A14,FALSE) -> cotton | G14: title7
A15: 8 | B15: groundnut | C15: arachide | D15: cacahuete | E15: title | F15: =HLOOKUP($C$2,$B$8:$D15,$A15,FALSE) -> groundnut | G15: title8
A16: 9 | B16: maize | C16: maïs | D16: maíz | E16: title | F16: =HLOOKUP($C$2,$B$8:$D16,$A16,FALSE) -> maize | G16: title9
A17: 10 | B17: millet | C17: millet | D17: mijo | E17: title | F17: =HLOOKUP($C$2,$B$8:$D17,$A17,FALSE) -> millet | G17: title10
A18: 11 | B18: oat | C18: avoine | D18: avena | E18: title | F18: =HLOOKUP($C$2,$B$8:$D18,$A18,FALSE) -> oat | G18: title11
A19: 12 | B19: oil palm | C19: palmier à huile | D19: palma aceitera | E19: title | F19: =HLOOKUP($C$2,$B$8:$D19,$A19,FALSE) -> oil palm | G19: title12
A20: 13 | B20: rice | C20: riz | D20: arroz | E20: title | F20: =HLOOKUP($C$2,$B$8:$D20,$A20,FALSE) -> rice | G20: title13
A21: 14 | B21: rye | C21: orge | D21: ñame | E21: title | F21: =HLOOKUP($C$2,$B$8:$D21,$A21,FALSE) -> rye | G21: title14
A22: 15 | B22: sorghum | C22: sorgho | D22: sorgo | E22: title | F22: =HLOOKUP($C$2,$B$8:$D22,$A22,FALSE) -> sorghum | G22: title15
A23: 16 | B23: soybean | C23: soja | D23: soja | E23: title | F23: =HLOOKUP($C$2,$B$8:$D23,$A23,FALSE) -> soybean | G23: title16
A24: 17 | B24: sugarcane | C24: canne à sucre | D24: caña de azúcar | E24: title | F24: =HLOOKUP($C$2,$B$8:$D24,$A24,FALSE) -> sugarcane | G24: title17
A25: 18 | B25: wheat | C25: blé | D25: trigo | E25: title | F25: =HLOOKUP($C$2,$B$8:$D25,$A25,FALSE) -> wheat | G25: title18
A26: 19 | B26: Briquettes/Pellets | C26: Briquettes/Granulés de bois | D26: Briquetas/Pellets | E26: title | F26: =HLOOKUP($C$2,$B$8:$D26,$A26,FALSE) -> Briquettes/Pellets | G26: title19
A27: 20 | B27: Forest Harvest. Res. | C27: Résidus de l'exploit. forest. | D27: Res. forestales | E27: title | F27: =HLOOKUP($C$2,$B$8:$D27,$A27,FALSE) -> Forest Harvest. Res. | G27: title20
A28: 21 | B28: Wood Proces. Res. | C28: Résidus de la transf. du bois | D28: Res. procesam. mad. | E28: title | F28: =HLOOKUP($C$2,$B$8:$D28,$A28,FALSE) -> Wood Proces. Res. | G28: title21
A29: 22 | B29: straw | C29: paille | D29: paja | E29: title | F29: =HLOOKUP($C$2,$B$8:$D29,$A29,FALSE) -> straw | G29: title22
A30: 23 | B30: pods | C30: cabosse | D30: vainas | E30: title | F30: =HLOOKUP($C$2,$B$8:$D30,$A30,FALSE) -> pods | G30: title23
A31: 24 | B31: stalk | C31: tige | D31: tallos | E31: title | F31: =HLOOKUP($C$2,$B$8:$D31,$A31,FALSE) -> stalk | G31: title24
A32: 25 | B32: fronds | C32: frondes | D32: frondas | E32: title | F32: =HLOOKUP($C$2,$B$8:$D32,$A32,FALSE) -> fronds | G32: title25
A33: 26 | B33: husk | C33: écorce | D33: cascarilla | E33: title | F33: =HLOOKUP($C$2,$B$8:$D33,$A33,FALSE) -> husk | G33: title26
A34: 27 | B34: shell | C34: coquilles | D34: concha | E34: title | F34: =HLOOKUP($C$2,$B$8:$D34,$A34,FALSE) -> shell | G34: title27
A35: 28 | B35: hull | C35: coque | D35: cáscara | E35: title | F35: =HLOOKUP($C$2,$B$8:$D35,$A35,FALSE) -> hull | G35: title28
A36: 29 | B36: cob | C36: épi | D36: mazorcas | E36: title | F36: =HLOOKUP($C$2,$B$8:$D36,$A36,FALSE) -> cob | G36: title29
A37: 30 | B37: stover | C37: canne | D37: rastrojo | E37: title | F37: =HLOOKUP($C$2,$B$8:$D37,$A37,FALSE) -> stover | G37: title30
A38: 31 | B38: empty bunches | C38: péricarpe | D38: racimos | E38: title | F38: =HLOOKUP($C$2,$B$8:$D38,$A38,FALSE) -> empty bunches | G38: title31
A39: 32 | B39: straw/stalk | C39: paille/tige | D39: paja/tallos | E39: title | F39: =HLOOKUP($C$2,$B$8:$D39,$A39,FALSE) -> straw/stalk | G39: title32
A40: 33 | B40: tops/leaves | C40: dessus/feuilles | D40: copa/hojas | E40: title | F40: =HLOOKUP($C$2,$B$8:$D40,$A40,FALSE) -> tops/leaves | G40: title33
A41: 34 | B41: bagasse | C41: bagasse | D41: bagazo | E41: title | F41: =HLOOKUP($C$2,$B$8:$D41,$A41,FALSE) -> bagasse | G41: title34
A42: 35 | B42: RAPID APPRAISAL TOOL FOR RURAL ELECTRIFICATION - COMBUSTION | C42: OUTIL D'ÉVALUATION RAPIDE POUR L’ÉLECTRIFICATION RURALE – COMBUSTION | D42: HERRAMIENTA DE EVALUACIÓN RÁPIDA PARA ELECTRIFICACIÓN RURAL – COMBUSTIÓN | E42: title | F42: =HLOOKUP($C$2,$B$8:$D42,$A42,FALSE) -> RAPID APPRAISAL TOOL FOR RURAL ELECTRIFICATION - COMBUSTION | G42: title35
A43: 36 | B43: Disclaimer | C43: Déni de responsabilité | D43: Descargo de Responsabilidad | E43: title | F43: =HLOOKUP($C$2,$B$8:$D43,$A43,FALSE) -> Disclaimer | G43: title36
A44: 37 | B44: FAO declines all responsibility for errors or deficiencies in the database or software or in the documentation accompanying it, for program maintenance and upgrading as well as for any damage that may arise from them. FAO also declines any responsibility for updating the data and assumes no responsibility for errors and omissions in the data provided. Users are, however, kindly asked to report any errors or deficiencies in this product to FAO. The choices of calculation made in this tool are those of the author(s) and do not necessarily reflect the views and choices of the Food and Agriculture Organization of the United Nations. | C44: La FAO décline toute responsabilité quant aux erreurs ou défauts des textes du présent site et des bases de données y afférentes, ainsi que pour les dommages pouvant en résulter. La FAO décline également toute responsabilité quant à la mise à jour des données et se dégage de toute responsabilité quant aux erreurs ou omissions concernant les données fournies. Les utilisateurs sont toutefois invités à signaler toute erreur ou lacune de ce produit à la FAO. Les choix des calculs faits dans le présent outil sont celles du/des auteur(s) et ne reflètent pas nécessairement les choix et opinions de l’Organisation des Nations Unies pour l’alimentation et l’agriculture (FAO). | D44: La FAO declina cualquier responsabilidad por errores u otros defectos del banco de datos, programa o de la documentación que los acompaña, o por cualquier daño derivado de ellos, así como por el mantenimiento y el mejoramiento de los programas. La FAO declina asimismo cualquier responsabilidad por la actualización de los datos, o por errores u omisiones en los datos que se han proporcionado. Se pide no obstante a los usuarios que señalen eventuales errores o defectos de este producto a la FAO. La elección de los cálculos presente en esta herramienta son las del/de los autor(es) y no reflejan necesariamente las opiniones y elecciones de la Organización de las Naciones Unidas para la Agricultura y la Alimentación. | E44: title | F44: =HLOOKUP($C$2,$B$8:$D44,$A44,FALSE) -> FAO declines all responsibility for errors or deficiencies in the database or software or in the documentation accompanying it, for program maintenance and upgrading as well as for any damage that may arise from them. FAO also declines any responsibility for updating the data and assumes no responsibility for errors and omissions in the data provided. Users are, however, kindly asked to report any errors or deficiencies in this product to FAO. The choices of calculation made in this tool are those of the author(s) and do not necessarily reflect the views and choices of the Food and Agriculture Organization of the United Nations. | G44: title37
A45: 38 | B45: BIOMASS COMBUSTION SYSTEM FOR RURAL ELECTRIFICATION | C45: SYSTEME DE COMBUSTION DE LA BIOMASSE POUR L’ÉLECTRIFICATION RURALE | D45: SISTEMA DE COMBUSTIÓN DE BIOMASA PARA ELECTRIFICACIÓN RURAL | E45: title | F45: =HLOOKUP($C$2,$B$8:$D45,$A45,FALSE) -> BIOMASS COMBUSTION SYSTEM FOR RURAL ELECTRIFICATION | G45: title38
A46: 39 | B46: Agricultural residues in the field (spread or collected) | C46: Résidus agricoles dans le champs (répartis ou collectés) | D46: Residuos agrícolas en el campo (esparcidos o recolectados) | E46: title | F46: =HLOOKUP($C$2,$B$8:$D46,$A46,FALSE) -> Agricultural residues in the field (spread or collected) | G46: title39
A47: 40 | B47: Agricultural residues from industry (processing plant) | C47: Résidus agricoles de l'industrie (usine de traitement) | D47: Residuos agrícolas de la industria (planta de procesamiento) | E47: title | F47: =HLOOKUP($C$2,$B$8:$D47,$A47,FALSE) -> Agricultural residues from industry (processing plant) | G47: title40
A48: 41 | B48: Forestry and dedicated wood energy plantation | C48: Foresterie et plantation dédiée au bois d’énergie | D48: Silvicultura y Plantaciones de madera para obtener energía | E48: title | F48: =HLOOKUP($C$2,$B$8:$D48,$A48,FALSE) -> Forestry and dedicated wood energy plantation | G48: title41
A49: 42 | B49: Forestry and plantation residues | C49: Résidus de foresterie et de plantation | D49: Residuos forestales y de plantación | E49: title | F49: =HLOOKUP($C$2,$B$8:$D49,$A49,FALSE) -> Forestry and plantation residues | G49: title42
A50: 43 | B50: Wood products industrial residues (processing plant) | C50: Produits du bois résidus industriels (usine de traitement) | D50: Residuos industriales de productos de madera (planta de procesamiento) | E50: title | F50: =HLOOKUP($C$2,$B$8:$D50,$A50,FALSE) -> Wood products industrial residues (processing plant) | G50: title43
A51: 44 | B51: Distribution line to households (isolated grid connection) | C51: Ligne de distribution aux ménages (raccordement au réseau isolé) | D51: Línea de distribución a los hogares (conexión a la red aislada) | E51: title | F51: =HLOOKUP($C$2,$B$8:$D51,$A51,FALSE) -> Distribution line to households (isolated grid connection) | G51: title44
A52: 45 | B52: Biomass residues collection & transportation | C52: Collecte des résidus de biomasse et de transport | D52: Recolección y Transporte de Residuos de Biomasa | E52: title | F52: =HLOOKUP($C$2,$B$8:$D52,$A52,FALSE) -> Biomass residues collection & transportation | G52: title45
A53: 46 | B53: Biomass stock pile | C53: Stock de biomasse | D53: Almacenamiento de Biomasa | E53: title | F53: =HLOOKUP($C$2,$B$8:$D53,$A53,FALSE) -> Biomass stock pile | G53: title46
A54: 47 | B54: Pre-treatment | C54: Pré-traitement | D54: Pre-tratamiento | E54: title | F54: =HLOOKUP($C$2,$B$8:$D54,$A54,FALSE) -> Pre-treatment | G54: title47
A55: 48 | B55: Water make-up | C55: Composition de l’eau | D55: Agua de Recuperación | E55: title | F55: =HLOOKUP($C$2,$B$8:$D55,$A55,FALSE) -> Water make-up | G55: title48
A56: 49 | B56: Stoker boiler | C56: Chaudière stoker | D56: Caldera | E56: title | F56: =HLOOKUP($C$2,$B$8:$D56,$A56,FALSE) -> Stoker boiler | G56: title49
A57: 50 | B57: Ash | C57: Cendre | D57: Ceniza | E57: title | F57: =HLOOKUP($C$2,$B$8:$D57,$A57,FALSE) -> Ash | G57: title50
A58: 51 | B58: Economizer | C58: Économiseur | D58: Economizador | E58: title | F58: =HLOOKUP($C$2,$B$8:$D58,$A58,FALSE) -> Economizer | G58: title51
A59: 52 | B59: Back-pressure turbine | C59: Retour-turbine à pression | D59: Turbina de contrapresión | E59: title | F59: =HLOOKUP($C$2,$B$8:$D59,$A59,FALSE) -> Back-pressure turbine | G59: title52
A60: 53 | B60: Generator | C60: Génératrice | D60: Generador | E60: title | F60: =HLOOKUP($C$2,$B$8:$D60,$A60,FALSE) -> Generator | G60: title53
A61: 54 | B61: MP steam | C61: MP vapeur | D61: MP vapor | E61: title | F61: =HLOOKUP($C$2,$B$8:$D61,$A61,FALSE) -> MP steam | G61: title54
A62: 55 | B62: LP steam | C62: LP vapeur | D62: BP vapor | E62: title | F62: =HLOOKUP($C$2,$B$8:$D62,$A62,FALSE) -> LP steam | G62: title55
A63: 56 | B63: ENERGY DEMAND FOR RURAL ELECTRIFICATION - COMBUSTION | C63: DEMANDE D'ÉNERGIE POUR L’ÉLECTRIFICATION RURALE - COMBUSTION | D63: DEMANDA DE ENERGÍA PARA ELECTRIFICACIÓN RURAL – COMBUSTIÓN | E63: title | F63: =HLOOKUP($C$2,$B$8:$D63,$A63,FALSE) -> ENERGY DEMAND FOR RURAL ELECTRIFICATION - COMBUSTION | G63: title56
A64: 57 | B64: Electricity Demand per Household | C64: Demande d’Électricité par Ménage | D64: Demanda de electricidad por hogar | E64: title | F64: =HLOOKUP($C$2,$B$8:$D64,$A64,FALSE) -> Electricity Demand per Household | G64: title57
A65: 58 | B65: Electricity consumption per household (kWh/month) | C65: Consommation d'électricité par ménage (kWh/mois) | D65: Consumo de electricidad por hogar (kWh/mes) | E65: title | F65: =HLOOKUP($C$2,$B$8:$D65,$A65,FALSE) -> Electricity consumption per household (kWh/month) | G65: title58
A66: 59 | B66: Value calculated in the Country Status module | C66: Valeur calculée dans le Module Situation du Pays | D66: Valor calculado en el Módulo Situación Actual del País | E66: title | F66: =HLOOKUP($C$2,$B$8:$D66,$A66,FALSE) -> Value calculated in the Country Status module | G66: title59
A67: 60 | B67: DATA ENTRY FOR RURAL ELECTRIFICATION - COMBUSTION | C67: SAISIE DE L’ÉLECTRIFICATION RURALE - COMBUSTION | D67: DATOS DE ENTRADA REQUERIDOS PARA ELECTRIFICACIÓN RURAL – COMBUSTIÓN | E67: title | F67: =HLOOKUP($C$2,$B$8:$D67,$A67,FALSE) -> DATA ENTRY FOR RURAL ELECTRIFICATION - COMBUSTION | G67: title60
A68: 61 | B68: Use white cells to input data | C68: Utilisez les cellules blanches pour entrer les données | D68: Utilice las celdas blancas para ingresar los datos | E68: title | F68: =HLOOKUP($C$2,$B$8:$D68,$A68,FALSE) -> Use white cells to input data | G68: title61
A69: 62 | B69: Grey cells are used for calculations | C69: Les cellules grises sont utilisées pour les calculs | D69: Utilice las celdas grises para los cálculos | E69: title | F69: =HLOOKUP($C$2,$B$8:$D69,$A69,FALSE) -> Grey cells are used for calculations | G69: title62
A70: 63 | B70: Feedstock Availability and Cost | C70: Disponibilité et Coût des Matières Premières | D70: Disponibilidad y costo de la materia prima | E70: title | F70: =HLOOKUP($C$2,$B$8:$D70,$A70,FALSE) -> Feedstock Availability and Cost | G70: title63
A71: 64 | B71: Feedstock | C71: Matières premières | D71: Materia prima | E71: title | F71: =HLOOKUP($C$2,$B$8:$D71,$A71,FALSE) -> Feedstock | G71: title64
A72: 65 | B72: Feedstock potential (t/year) | C72: Potentiel de matières premières (t/an) | D72: Materia prima potencial (t/año) | E72: title | F72: =HLOOKUP($C$2,$B$8:$D72,$A72,FALSE) -> Feedstock potential (t/year) | G72: title65
A73: 66 | B73: Feedstock yield (t/ha) | C73: Rendement de matières premières (t/ha) | D73: Rendimiento de la materia prima (t/ha) | E73: title | F73: =HLOOKUP($C$2,$B$8:$D73,$A73,FALSE) -> Feedstock yield (t/ha) | G73: =$E73&$A73 -> title66
A74: 67 | B74: Moisture content (%) | C74: Humidité (%) | D74: Humedad (%) | E74: title | F74: =HLOOKUP($C$2,$B$8:$D74,$A74,FALSE) -> Moisture content (%) | G74: title67
A75: 68 | B75: Size (mm) | C75: Dimensions (mm) | D75: Tamaño (mm) | E75: title | F75: =HLOOKUP($C$2,$B$8:$D75,$A75,FALSE) -> Size (mm) | G75: title68
A76: 69 | B76: Feedstock price (USD/t) | C76: Prix des matières premières (USD/t) | D76: Precio de la materia prima (USD/t) | E76: title | F76: =HLOOKUP($C$2,$B$8:$D76,$A76,FALSE) -> Feedstock price (USD/t) | G76: title69
A77: 70 | B77: Use the price definition calculator | C77: Utilisez la calculatrice de définition de prix | D77: Use la calculadora de definición de precio | E77: title | F77: =HLOOKUP($C$2,$B$8:$D77,$A77,FALSE) -> Use the price definition calculator | G77: title70
A78: 71 | B78: Market price (transport excluded) | C78: Prix du marché (transport exclu) | D78: Precio del mercado (transporte excluido) | E78: title | F78: =HLOOKUP($C$2,$B$8:$D78,$A78,FALSE) -> Market price (transport excluded) | G78: title71
A79: 72 | B79: Feedstock storage cost (USD/t) | C79: Coût de stockage des matières premières (USD/t) | D79: Costo de almacenamiento de la materia prima (USD/t) | E79: title | F79: =HLOOKUP($C$2,$B$8:$D79,$A79,FALSE) -> Feedstock storage cost (USD/t) | G79: title72
A80: 73 | B80: Please Select | C80: Sélectionnez | D80: Seleccione | E80: title | F80: =HLOOKUP($C$2,$B$8:$D80,$A80,FALSE) -> Please Select | G80: title73
A81: 74 | B81: Input data below! | C81: Entrez données ci-dessous! | D81: Ingrese los datos debajo! | E81: title | F81: =HLOOKUP($C$2,$B$8:$D81,$A81,FALSE) -> Input data below! | G81: title74
A82: 75 | B82: Input | C82: Entrez | D82: Ingrese | E82: title | F82: =HLOOKUP($C$2,$B$8:$D82,$A82,FALSE) -> Input | G82: title75
A83: 76 | B83: Electricity Price Definition | C83: Définition du Prix de l'Électricité | D83: Definición del precio de la electricidad | E83: title | F83: =HLOOKUP($C$2,$B$8:$D83,$A83,FALSE) -> Electricity Price Definition | G83: title76
A84: 77 | B84: Select a method to determine the price of electricity | C84: Sélectionnez une méthode pour déterminer le prix de l'électricité | D84: Seleccione un método para determinar el precio de la electricidad | E84: title | F84: =HLOOKUP($C$2,$B$8:$D84,$A84,FALSE) -> Select a method to determine the price of electricity | G84: title77
A85: 78 | B85: Method 1 | C85: Méthode 1 | D85: Método 1 | E85: title | F85: =HLOOKUP($C$2,$B$8:$D85,$A85,FALSE) -> Method 1 | G85: title78
A86: 79 | B86: Comparative production cost of electricity | C86: Coût comparatif de production d'électricité | D86: Costos comparativos de la producción de electricidad | E86: title | F86: =HLOOKUP($C$2,$B$8:$D86,$A86,FALSE) -> Comparative production cost of electricity | G86: title79
A87: 80 | B87: Unit | C87: Unité | D87: Unidad | E87: title | F87: =HLOOKUP($C$2,$B$8:$D87,$A87,FALSE) -> Unit | G87: title80
A88: 81 | B88: Method 1: Use a calculator to determine the production cost of electricity from diesel generator. | C88: Méthode 1: Utiliser une calculatrice pour déterminer le coût de production d'électricité à partir d'un générateur diesel. | D88: Método 1: Utilice una calculadora para determinar el costo de producción de electricidad a partir de un generador diésel. | E88: title | F88: =HLOOKUP($C$2,$B$8:$D88,$A88,FALSE) -> Method 1: Use a calculator to determine the production cost of electricity from diesel generator. | G88: title81
A89: 82 | B89: Method 2 | C89: Méthode 2 | D89: Método 2 | E89: title | F89: =HLOOKUP($C$2,$B$8:$D89,$A89,FALSE) -> Method 2 | G89: title82
A90: 83 | B90: Production Cost and Financial Parameters | C90: Coût de Production et Paramètres Financiers | D90: Costo de producción y parámetros financieros | E90: title | F90: =HLOOKUP($C$2,$B$8:$D90,$A90,FALSE) -> Production Cost and Financial Parameters | G90: title83
A91: 84 | B91: Labour | C91: Main d’oeuvre | D91: Mano de obra | E91: title | F91: =HLOOKUP($C$2,$B$8:$D91,$A91,FALSE) -> Labour | G91: title84
A92: 85 | B92: Unskilled worker | C92: Ouvrier non-qualifié | D92: Trabajadores no cualificados | E92: title | F92: =HLOOKUP($C$2,$B$8:$D92,$A92,FALSE) -> Unskilled worker | G92: title85
A93: 86 | B93: Utilities | C93: Utilitaires | D93: Servicios | E93: title | F93: =HLOOKUP($C$2,$B$8:$D93,$A93,FALSE) -> Utilities | G93: title86
A94: 87 | B94: Water | C94: Eau | D94: Agua | E94: title | F94: =HLOOKUP($C$2,$B$8:$D94,$A94,FALSE) -> Water | G94: title87
A95: 88 | B95: Feedstock collection | C95: Collecte des matières premières | D95: Recolección de la materia prima | E95: title | F95: =HLOOKUP($C$2,$B$8:$D95,$A95,FALSE) -> Feedstock collection | G95: title88
A96: 89 | B96: Working hours per day (manual) | C96: Heures de travail par jour (manuel) | D96: Horas de trabajo por día (manual) | E96: title | F96: =HLOOKUP($C$2,$B$8:$D96,$A96,FALSE) -> Working hours per day (manual) | G96: title89
A97: 90 | B97: Transportation cost | C97: Frais de transport | D97: Costo de transporte | E97: title | F97: =HLOOKUP($C$2,$B$8:$D97,$A97,FALSE) -> Transportation cost | G97: title90
A98: 91 | B98: Feedstock (collection point to plant) | C98: Matières premières (le point de collecte à la centrale) | D98: Materia prima (punto de recolección a la planta) | E98: title | F98: =HLOOKUP($C$2,$B$8:$D98,$A98,FALSE) -> Feedstock (collection point to plant) | G98: title91
A99: 92 | B99: Other costs | C99: Autres coûts | D99: Otros costos | E99: title | F99: =HLOOKUP($C$2,$B$8:$D99,$A99,FALSE) -> Other costs | G99: title92
A100: 93 | B100: General and administrative (%) | C100: Frais généraux et administratifs (%) | D100: Generales y administrativos (%) | E100: title | F100: =HLOOKUP($C$2,$B$8:$D100,$A100,FALSE) -> General and administrative (%) | G100: title93
A101: 94 | B101: Plant overhead (%) | C101: Frais généraux de l'usine (%) | D101: Gastos generales de planta (%) | E101: title | F101: =HLOOKUP($C$2,$B$8:$D101,$A101,FALSE) -> Plant overhead (%) | G101: title94
A102: 95 | B102: Financial parameters | C102: Paramètres financiers | D102: Parámetros financieros | E102: title | F102: =HLOOKUP($C$2,$B$8:$D102,$A102,FALSE) -> Financial parameters | G102: title95
A103: 96 | B103: Discount rate | C103: Taux d'escompte | D103: Tasa de descuento | E103: title | F103: =HLOOKUP($C$2,$B$8:$D103,$A103,FALSE) -> Discount rate | G103: title96
A104: 97 | B104: Loan ratio | C104: Ratio du prêt | D104: Proporción de créditos | E104: title | F104: =HLOOKUP($C$2,$B$8:$D104,$A104,FALSE) -> Loan ratio | G104: title97
A105: 98 | B105: Loan interest rate | C105: Taux d'intérêt du prêt | D105: Tasa de interés de créditos | E105: title | F105: =HLOOKUP($C$2,$B$8:$D105,$A105,FALSE) -> Loan interest rate | G105: title98
A106: 99 | B106: Loan term | C106: Durée du prêt | D106: Plazo del crédito | E106: title | F106: =HLOOKUP($C$2,$B$8:$D106,$A106,FALSE) -> Loan term | G106: title99
A107: 100 | B107: USD/person-h | C107: USD/personne-h | D107: USD/persona-h | E107: title | F107: =HLOOKUP($C$2,$B$8:$D107,$A107,FALSE) -> USD/person-h | G107: title100
A108: 101 | B108: h/day | C108: h/jour | D108: h/día | E108: title | F108: =HLOOKUP($C$2,$B$8:$D108,$A108,FALSE) -> h/day | G108: title101
A109: 102 | B109: year | C109: an | D109: año | E109: title | F109: =HLOOKUP($C$2,$B$8:$D109,$A109,FALSE) -> year | G109: title102
A110: 103 | B110: Skilled worker | C110: Ouvrier qualifié | D110: Trabajadores cualificados | E110: title | F110: =HLOOKUP($C$2,$B$8:$D110,$A110,FALSE) -> Skilled worker | G110: title103
A111: 104 | B111: Diesel | C111: Diesel | D111: Diésel | E111: title | F111: =HLOOKUP($C$2,$B$8:$D111,$A111,FALSE) -> Diesel | G111: title104
A112: 105 | B112: Working hours per day (mechanized) | C112: Heures de travail par jour (mécanisé ) | D112: Horas de trabajo por día (mecanizado) | E112: title | F112: =HLOOKUP($C$2,$B$8:$D112,$A112,FALSE) -> Working hours per day (mechanized) | G112: title105
A113: 106 | B113: Maintenance cost | C113: Coût de maintenance | D113: Costos de mantenimiento | E113: title | F113: =HLOOKUP($C$2,$B$8:$D113,$A113,FALSE) -> Maintenance cost | G113: title106
A114: 107 | B114: Miscellaneous costs | C114: Coût divers | D114: Costos varios | E114: title | F114: =HLOOKUP($C$2,$B$8:$D114,$A114,FALSE) -> Miscellaneous costs | G114: title107
A115: 108 | B115: Investment cost update | C115: Mise à jour des coûts d'investissement | D115: Actualización del costo de inversión | E115: title | F115: =HLOOKUP($C$2,$B$8:$D115,$A115,FALSE) -> Investment cost update | G115: title108
A116: 109 | B116: Plant Cost Index during | C116: Indice du coût de l'usine pendant | D116: Índice de costo de la planta durante | E116: title | F116: =HLOOKUP($C$2,$B$8:$D116,$A116,FALSE) -> Plant Cost Index during | G116: title109
A117: 110 | B117: Method 2: Use an electricity price defined by the user. In the assessment , it is important to consider that this price might include subsidies. | C117: Méthode 2: Use an electricity price defined by the user. In the assessment , it is important to consider that this price might include subsidies. | D117: Método 2: Utilizar un precio de electricidad definido por el usuario. En la evaluación, es importante tener en cuenta que este precio podría incluir subsidios. | E117: title | F117: =HLOOKUP($C$2,$B$8:$D117,$A117,FALSE) -> Method 2: Use an electricity price defined by the user. In the assessment , it is important to consider that this price might include subsidies. | G117: title110
A118: 111 | B118: Price paid by customer | C118: Prix payé par le client | D118: Precio pagado por el consumidor | E118: title | F118: =HLOOKUP($C$2,$B$8:$D118,$A118,FALSE) -> Price paid by customer | G118: title111
A119: 112 | B119: Processing costs FOR POWER GENERATION FROM | C119: Les coûts de traitement pour la PRODUCTION D'ÉLECTRICITÉ DE | D119: Costos de procesamiento para la GENERACIÓN DE ENERGÍA A PARTIR DE | E119: title | F119: =HLOOKUP($C$2,$B$8:$D119,$A119,FALSE) -> Processing costs FOR POWER GENERATION FROM | G119: title112
A120: 113 | B120: Summary of Feedstock and Storage | C120: Résumé des Matières Premières et du Stockage | D120: Resumen de materias primas y almacenamiento | E120: title | F120: =HLOOKUP($C$2,$B$8:$D120,$A120,FALSE) -> Summary of Feedstock and Storage | G120: title113
A121: 114 | B121: Summary of Operational Parameters | C121: Résumé des Paramètres Opérationnels | D121: Resumen de parámetros operacionales | E121: title | F121: =HLOOKUP($C$2,$B$8:$D121,$A121,FALSE) -> Summary of Operational Parameters | G121: title114
A122: 115 | B122: Feedstock available (t/year) | C122: Matières premières disponibles (t/an) | D122: Materia prima disponible (t/año) | E122: title | F122: =HLOOKUP($C$2,$B$8:$D122,$A122,FALSE) -> Feedstock available (t/year) | G122: title115
A123: 116 | B123: Feedstock yield (t/ha) | C123: Rendement de matières premières (t/ha) | D123: Rendimiento de la materia prima (t/ha) | E123: title | F123: =HLOOKUP($C$2,$B$8:$D123,$A123,FALSE) -> Feedstock yield (t/ha) | G123: title116
A124: 117 | B124: Boiler | C124: Chaudière | D124: Caldera | E124: title | F124: =HLOOKUP($C$2,$B$8:$D124,$A124,FALSE) -> Boiler | G124: title117
A125: 118 | B125: Turbine | C125: Turbine | D125: Turbina | E125: title | F125: =HLOOKUP($C$2,$B$8:$D125,$A125,FALSE) -> Turbine | G125: title118
A126: 119 | B126: Capacity utilization factor | C126: Facteur d'utilisation des capacités | D126: Factor de capacidad de uso | E126: title | F126: =HLOOKUP($C$2,$B$8:$D126,$A126,FALSE) -> Capacity utilization factor | G126: title119
A127: 120 | B127: Power conversion (kWh/kg feedstock) | C127: Conversion d'énergie (kWh/kg Matière Première) | D127: Conversión de potencia (kWh/kg materia prima) | E127: title | F127: =HLOOKUP($C$2,$B$8:$D127,$A127,FALSE) -> Power conversion (kWh/kg feedstock) | G127: title120
A128: 121 | B128: Boiler efficiency (%) | C128: Efficacité de la chaudière (%) | D128: Eficiencia de la caldera (%) | E128: title | F128: =HLOOKUP($C$2,$B$8:$D128,$A128,FALSE) -> Boiler efficiency (%) | G128: title121
A129: 122 | B129: Turbine efficiency (%) | C129: Efficacité de la turbine (%) | D129: Eficiencia de la turbina (%) | E129: title | F129: =HLOOKUP($C$2,$B$8:$D129,$A129,FALSE) -> Turbine efficiency (%) | G129: title122
A130: 123 | B130: Power loss due to operation (%) | C130: Perte de puissance due à aux operations (%) | D130: Pérdida de potencia por operación (%) | E130: title | F130: =HLOOKUP($C$2,$B$8:$D130,$A130,FALSE) -> Power loss due to operation (%) | G130: title123
A131: 124 | B131: Operating hours per day | C131: Heures de fonctionnement par jour | D131: Horas de operación por día | E131: title | F131: =HLOOKUP($C$2,$B$8:$D131,$A131,FALSE) -> Operating hours per day | G131: title124
A132: 125 | B132: Power loss in distribution network (%) | C132: Perte de puissance dans le réseau de distribution (%) | D132: Pérdida de potencia en la red de distribución (%) | E132: title | F132: =HLOOKUP($C$2,$B$8:$D132,$A132,FALSE) -> Power loss in distribution network (%) | G132: title125
A133: 126 | B133: Loan term (years) | C133: Durée du prêt (années) | D133: Plazo del crédito (años) | E133: title | F133: =HLOOKUP($C$2,$B$8:$D133,$A133,FALSE) -> Loan term (years) | G133: title126
A134: 127 | B134: Project lifetime | C134: Durée de vie du projet | D134: Tiempo de vida del proyecto | E134: title | F134: =HLOOKUP($C$2,$B$8:$D134,$A134,FALSE) -> Project lifetime | G134: title127
A135: 128 | B135: Price of electricity (USD/kWh) | C135: Prix de l'électricité (USD/kWh) | D135: Precio de la electricidad (USD/kWh) | E135: title | F135: =HLOOKUP($C$2,$B$8:$D135,$A135,FALSE) -> Price of electricity (USD/kWh) | G135: title128
A136: 129 | B136: Price of electricity (USD/kWh) - User defined | C136: Prix de l'électricité (USD/kWh) - Definie par lútilisateur | D136: Precio de la electricidad (USD/kWh) - Definido por el usuario | E136: title | F136: =HLOOKUP($C$2,$B$8:$D136,$A136,FALSE) -> Price of electricity (USD/kWh) - User defined | G136: title129
A137: 130 | B137: Price of electricity (USD/kWh) - Calculated | C137: Prix de l'électricité (USD/kWh) - Calculée | D137: Precio de la electricidad (USD/kWh) - Calculado | E137: title | F137: =HLOOKUP($C$2,$B$8:$D137,$A137,FALSE) -> Price of electricity (USD/kWh) - Calculated | G137: =$E137&$A137 -> title130
A138: 131 | B138: Transport Distance of Feedstock | C138: Distance de Transport des Matières Premières | D138: Distancia de transporte de la materia prima | E138: title | F138: =HLOOKUP($C$2,$B$8:$D138,$A138,FALSE) -> Transport Distance of Feedstock | G138: title131
A139: 132 | B139: Transport Quantity | C139: Quantité à Transporter | D139: Cantidad transportada | E139: title | F139: =HLOOKUP($C$2,$B$8:$D139,$A139,FALSE) -> Transport Quantity | G139: title132
A140: 133 | B140: Distance small scale production (km) | C140: Distance à la production à petite échelle (km) | D140: Distancia de producción de pequeña escala (km) | E140: title | F140: =HLOOKUP($C$2,$B$8:$D140,$A140,FALSE) -> Distance small scale production (km) | G140: title133
A141: 134 | B141: Distance medium scale production (km) | C141: Distance à la production à moyenne échelle de support (km) | D141: Distancia de producción de mediana escala (km) | E141: title | F141: =HLOOKUP($C$2,$B$8:$D141,$A141,FALSE) -> Distance medium scale production (km) | G141: title134
A142: 135 | B142: Small scale (t/year) | C142: Petite échelle (t/an) | D142: Pequeña escala (t/año) | E142: title | F142: =HLOOKUP($C$2,$B$8:$D142,$A142,FALSE) -> Small scale (t/year) | G142: title135
A143: 136 | B143: Medium scale (t/year) | C143: Moyenne échelle (t/an) | D143: Mediana escala (t/año) | E143: title | F143: =HLOOKUP($C$2,$B$8:$D143,$A143,FALSE) -> Medium scale (t/year) | G143: title136
A144: 137 | B144: Distance large scale production (km) | C144: Distance à la production à grande échelle (km) | D144: Distancia de producción de gran escala (km) | E144: title | F144: =HLOOKUP($C$2,$B$8:$D144,$A144,FALSE) -> Distance large scale production (km) | G144: title137
A145: 138 | B145: Transportation cost (USD/t/km) | C145: Frais de transport (USD/t/km) | D145: Costo de transporte (USD/t/km) | E145: title | F145: =HLOOKUP($C$2,$B$8:$D145,$A145,FALSE) -> Transportation cost (USD/t/km) | G145: title138
A146: 139 | B146: Large scale (t/year) | C146: Grande échelle (t/an) | D146: Gran escala (t/año) | E146: title | F146: =HLOOKUP($C$2,$B$8:$D146,$A146,FALSE) -> Large scale (t/year) | G146: title139
A147: 140 | B147: Production Cost Details | C147: Détails des Coûts de Production | D147: Detalles de los costos de producción | E147: title | F147: =HLOOKUP($C$2,$B$8:$D147,$A147,FALSE) -> Production Cost Details | G147: title140
A148: 141 | B148: Inputs | C148: Intrant | D148: Insumos | E148: title | F148: =HLOOKUP($C$2,$B$8:$D148,$A148,FALSE) -> Inputs | G148: title141
A149: 142 | B149: Water make-up + chemical additives | C149: Composition de l’eau + additifs chimiques | D149: Agua de recuperación + aditivos químicos | E149: title | F149: =HLOOKUP($C$2,$B$8:$D149,$A149,FALSE) -> Water make-up + chemical additives | G149: title142
A150: 143 | B150: Subtotal | C150: Sous-total | D150: Sub-total | E150: title | F150: =HLOOKUP($C$2,$B$8:$D150,$A150,FALSE) -> Subtotal | G150: title143
A151: 144 | B151: Labour and miscellaneous costs | C151: Travail et le coût divers | D151: Mano de obra y costos varios | E151: title | F151: =HLOOKUP($C$2,$B$8:$D151,$A151,FALSE) -> Labour and miscellaneous costs | G151: title144
A152: 145 | B152: Transport of feedstock | C152: Transport des matières premières | D152: Transporte de materia prima | E152: title | F152: =HLOOKUP($C$2,$B$8:$D152,$A152,FALSE) -> Transport of feedstock | G152: title145
A153: 146 | B153: Feedstock (farm to plant) | C153: Matières premières (ferme à l'usine) | D153: Materia prima (finca a la planta) | E153: title | F153: =HLOOKUP($C$2,$B$8:$D153,$A153,FALSE) -> Feedstock (farm to plant) | G153: title146
A154: 147 | B154: Storage | C154: Stockage | D154: Almacenamiento | E154: title | F154: =HLOOKUP($C$2,$B$8:$D154,$A154,FALSE) -> Storage | G154: title147
A155: 148 | B155: Investment | C155: Investissement | D155: Inversión | E155: title | F155: =HLOOKUP($C$2,$B$8:$D155,$A155,FALSE) -> Investment | G155: title148
A156: 149 | B156: Equipments | C156: Equipements | D156: Equipos | E156: title | F156: =HLOOKUP($C$2,$B$8:$D156,$A156,FALSE) -> Equipments | G156: title149
A157: 150 | B157: Building | C157: Bâtiment | D157: Construcción | E157: title | F157: =HLOOKUP($C$2,$B$8:$D157,$A157,FALSE) -> Building | G157: title150
A158: 151 | B158: Installation | C158: Installation | D158: Instalación | E158: title | F158: =HLOOKUP($C$2,$B$8:$D158,$A158,FALSE) -> Installation | G158: title151
A159: 152 | B159: Distribution network | C159: Réseau de distribution | D159: Red de distribución | E159: title | F159: =HLOOKUP($C$2,$B$8:$D159,$A159,FALSE) -> Distribution network | G159: title152
A160: 153 | B160: Total Investment | C160: Investissement total | D160: Inversión total | E160: title | F160: =HLOOKUP($C$2,$B$8:$D160,$A160,FALSE) -> Total Investment | G160: title153
A161: 154 | B161: Plant overhead | C161: Frais généraux de l'usine | D161: Gastos generales de planta | E161: title | F161: =HLOOKUP($C$2,$B$8:$D161,$A161,FALSE) -> Plant overhead | G161: title154
A162: 155 | B162: General and administrative cost | C162: Coût généraux et administratifs | D162: Costos generales y administrativos | E162: title | F162: =HLOOKUP($C$2,$B$8:$D162,$A162,FALSE) -> General and administrative cost | G162: title155 | K162: =title174&" (USD/KWh)" -> Total Production Cost + Distribution (USD/KWh)
A163: 156 | B163: Loan interest | C163: Intérêts du prêt (USD) | D163: Intereses de créditos | E163: title | F163: =HLOOKUP($C$2,$B$8:$D163,$A163,FALSE) -> Loan interest | G163: title156
A164: 157 | B164: Total operating costs | C164: Total des coûts d’opérations | D164: Costos de operación totales | E164: title | F164: =HLOOKUP($C$2,$B$8:$D164,$A164,FALSE) -> Total operating costs | G164: title157
A165: 158 | B165: Total fixed costs | C165: Total des coûts fixes | D165: Costos fijos totales | E165: title | F165: =HLOOKUP($C$2,$B$8:$D165,$A165,FALSE) -> Total fixed costs | G165: title158
A166: 159 | B166: Total other costs | C166: Total des autres charges | D166: Otros costos totales | E166: title | F166: =HLOOKUP($C$2,$B$8:$D166,$A166,FALSE) -> Total other costs | G166: title159
A167: 160 | B167: Total production costs | C167: Total des coûts de production | D167: Costos de producción totales | E167: title | F167: =HLOOKUP($C$2,$B$8:$D167,$A167,FALSE) -> Total production costs | G167: title160
A168: 161 | B168: Unit Price | C168: Prix unitaire | D168: Precio unitario | E168: title | F168: =HLOOKUP($C$2,$B$8:$D168,$A168,FALSE) -> Unit Price | G168: title161
A169: 162 | B169: (USD/unit) | C169: (USD/unité) | D169: (USD/unidad) | E169: title | F169: =HLOOKUP($C$2,$B$8:$D169,$A169,FALSE) -> (USD/unit) | G169: title162
A170: 163 | B170: Quantity | C170: Quantité | D170: Cantidad | E170: title | F170: =HLOOKUP($C$2,$B$8:$D170,$A170,FALSE) -> Quantity | G170: title163
A171: 164 | B171: (Unit/year) | C171: (Unité/an) | D171: (Unidad/año) | E171: title | F171: =HLOOKUP($C$2,$B$8:$D171,$A171,FALSE) -> (Unit/year) | G171: title164
A172: 165 | B172: (USD/year) | C172: (USD/an) | D172: (USD/año) | E172: title | F172: =HLOOKUP($C$2,$B$8:$D172,$A172,FALSE) -> (USD/year) | G172: title165
A173: 166 | B173: # employee | C173: # employé | D173: # trabajador | E173: title | F173: =HLOOKUP($C$2,$B$8:$D173,$A173,FALSE) -> # employee | G173: title166
A174: 167 | B174: Depreciation | C174: Amortissement | D174: Depreciación | E174: title | F174: =HLOOKUP($C$2,$B$8:$D174,$A174,FALSE) -> Depreciation | G174: title167
A175: 168 | B175: Total depreciation | C175: Total des amortissements | D175: Depreciación total | E175: title | F175: =HLOOKUP($C$2,$B$8:$D175,$A175,FALSE) -> Total depreciation | G175: title168
A176: 169 | B176: Share (%) | C176: Part (%) | D176: Parte (%) | E176: title | F176: =HLOOKUP($C$2,$B$8:$D176,$A176,FALSE) -> Share (%) | G176: title169
A177: 170 | B177: Power generation | C177: Production d'électricité | D177: Generación de Energía | E177: title | F177: =HLOOKUP($C$2,$B$8:$D177,$A177,FALSE) -> Power generation | G177: title170
A178: 171 | B178: Electricity - self use | C178: Électricité - utilisation autonome | D178: Electricidad-uso propio | E178: title | F178: =HLOOKUP($C$2,$B$8:$D178,$A178,FALSE) -> Electricity - self use | G178: title171
A179: 172 | B179: kWh/year | C179: kWh/an | D179: kWh/año | E179: title | F179: =HLOOKUP($C$2,$B$8:$D179,$A179,FALSE) -> kWh/year | G179: title172
A180: 173 | B180: Power loss in distribution network | C180: Perte de courant dans le réseau de distribution | D180: Pérdida de potencia en la red de distribución | E180: title | F180: =HLOOKUP($C$2,$B$8:$D180,$A180,FALSE) -> Power loss in distribution network | G180: title173
A181: 174 | B181: Total Production Cost + Distribution | C181: Coût Total de Production + Distribution | D181: Costo de producción total + Distribución | E181: title | F181: =HLOOKUP($C$2,$B$8:$D181,$A181,FALSE) -> Total Production Cost + Distribution | G181: title174
A182: 175 | B182: Unit cost of electricity (USD/kWh) | C182: Coût unitaire de l'électricité (USD/kWh) | D182: Costo unitario de la electricidad (USD/kWh) | E182: title | F182: =HLOOKUP($C$2,$B$8:$D182,$A182,FALSE) -> Unit cost of electricity (USD/kWh) | G182: title175
A183: 176 | B183: Loan amount | C183: Montant du prêt | D183: Monto del crédito | E183: title | F183: =HLOOKUP($C$2,$B$8:$D183,$A183,FALSE) -> Loan amount | G183: title176
A184: 177 | B184: Loan payment | C184: Paiement de prêt | D184: Pago del crédito | E184: title | F184: =HLOOKUP($C$2,$B$8:$D184,$A184,FALSE) -> Loan payment | G184: title177
A185: 178 | B185: Annual loan payment | C185: Paiement annuel du prêt | D185: Pago anual del crédito | E185: title | F185: =HLOOKUP($C$2,$B$8:$D185,$A185,FALSE) -> Annual loan payment | G185: title178
A186: 179 | B186: Total loan payment | C186: Paiement total du prêt | D186: Pago total del crédito | E186: title | F186: =HLOOKUP($C$2,$B$8:$D186,$A186,FALSE) -> Total loan payment | G186: title179
A187: 180 | B187: Average loan interest | C187: Intérêt moyen du prêt | D187: Interés promedio del crédito | E187: title | F187: =HLOOKUP($C$2,$B$8:$D187,$A187,FALSE) -> Average loan interest | G187: title180
A188: 181 | B188: USD/month | C188: USD/mois | D188: USD/mes | E188: title | F188: =HLOOKUP($C$2,$B$8:$D188,$A188,FALSE) -> USD/month | G188: title181
A189: 182 | B189: USD/year | C189: USD/an | D189: USD/año | E189: title | F189: =HLOOKUP($C$2,$B$8:$D189,$A189,FALSE) -> USD/year | G189: title182
A190: 183 | B190: Capacities (kW of power generation) | C190: Capacités (kW de production d'électricité) | D190: Capacidad (kW de generación de energía) | E190: title | F190: =HLOOKUP($C$2,$B$8:$D190,$A190,FALSE) -> Capacities (kW of power generation) | G190: title183
A191: 184 | B191: Years | C191: Années | D191: Años | E191: title | F191: =HLOOKUP($C$2,$B$8:$D191,$A191,FALSE) -> Years | G191: title184
A192: 185 | B192: Show Costing Details | C192: Voir les Détails des Coûts | D192: Mostrar detalles de cálculo de costos | E192: title | F192: =HLOOKUP($C$2,$B$8:$D192,$A192,FALSE) -> Show Costing Details | G192: title185
A193: 186 | B193: Hide Costing Details | C193: Cachez les Détails des Coûts | D193: Ocultar detalles de cálculo de costos | E193: title | F193: =HLOOKUP($C$2,$B$8:$D193,$A193,FALSE) -> Hide Costing Details | G193: title186
A194: 187 | B194: Operating hours per year | C194: Heures de fonctionnement par an | D194: Horas de operación por año | E194: title | F194: =HLOOKUP($C$2,$B$8:$D194,$A194,FALSE) -> Operating hours per year | G194: title187
A195: 188 | B195: Backpressure steam turbine | C195: Turbine à vapeur à contrepression | D195: Turbina de vapor a contrapresión | E195: title | F195: =HLOOKUP($C$2,$B$8:$D195,$A195,FALSE) -> Backpressure steam turbine | G195: title188
A196: 189 | B196: FINANCIAL EVALUATION OF COMBUSTION FOR POWER GENERATION 10 kW | C196: ÉVALUATION FINANCIÈRE DE LA COMBUSTION POUR LA PRODUCTION D'ÉLECTRICITÉ 10 kW | D196: EVALUACIÓN FINANCIERA DE LA COMBUSTIÓN PARA GENERACIÓN DE POTENCIA 10 kW | E196: title | F196: =HLOOKUP($C$2,$B$8:$D196,$A196,FALSE) -> FINANCIAL EVALUATION OF COMBUSTION FOR POWER GENERATION 10 kW | G196: title189
A197: 190 | B197: FINANCIAL EVALUATION OF COMBUSTION FOR POWER GENERATION 40 kW | C197: ÉVALUATION FINANCIÈRE DE LA COMBUSTION POUR LA PRODUCTION D'ÉLECTRICITÉ 40 kW | D197: EVALUACIÓN FINANCIERA DE LA COMBUSTIÓN PARA GENERACIÓN DE POTENCIA 40 kW | E197: title | F197: =HLOOKUP($C$2,$B$8:$D197,$A197,FALSE) -> FINANCIAL EVALUATION OF COMBUSTION FOR POWER GENERATION 40 kW | G197: title190
A198: 191 | B198: FINANCIAL EVALUATION OF COMBUSTION FOR POWER GENERATION 100 kW | C198: ÉVALUATION FINANCIÈRE DE LA COMBUSTION POUR LA PRODUCTION D'ÉLECTRICITÉ 100 kW | D198: EVALUACIÓN FINANCIERA DE LA COMBUSTIÓN PARA GENERACIÓN DE POTENCIA 100 kW | E198: title | F198: =HLOOKUP($C$2,$B$8:$D198,$A198,FALSE) -> FINANCIAL EVALUATION OF COMBUSTION FOR POWER GENERATION 100 kW | G198: title191
A199: 192 | B199: Revenues | C199: Le revenu | D199: Ingresos | E199: title | F199: =HLOOKUP($C$2,$B$8:$D199,$A199,FALSE) -> Revenues | G199: title192
A200: 193 | B200: Operating Year | C200: Année de Fonctionnment | D200: Año de operación | E200: title | F200: =HLOOKUP($C$2,$B$8:$D200,$A200,FALSE) -> Operating Year | G200: title193
A201: 194 | B201: Power generation capacity (kW) | C201: Capacité de production d'électricité (kW) | D201: Capacidad de generación de potencia (kW) | E201: title | F201: =HLOOKUP($C$2,$B$8:$D201,$A201,FALSE) -> Power generation capacity (kW) | G201: =$E201&$A201 -> title194
A202: 195 | B202: Turbine type | C202: Type de turbine | D202: Tipo de turbine | E202: title | F202: =HLOOKUP($C$2,$B$8:$D202,$A202,FALSE) -> Turbine type | G202: title195
... 201 more rows

Sheet START
B2: EN
C23: =title36 -> Disclaimer
C24: =title37 -> FAO declines all responsibility for errors or deficiencies in the database or software or in the documentation accompanying it, for program maintenance and upgrading as well as for any damage that may arise from them. FAO also declines any responsibility for updating the data and assumes no responsibility for errors and omissions in the data provided. Users are, however, kindly asked to report any errors or deficiencies in this product to FAO. The choices of calculation made in this tool are those of the author(s) and do not necessarily reflect the views and choices of the Food and Agriculture Organization of the United Nations.
C29: © FAO, 2014

Sheet Process Description
C3: =title38 -> BIOMASS COMBUSTION SYSTEM FOR RURAL ELECTRIFICATION
C11: =title39 -> Agricultural residues in the field (spread or collected) | H11: =title40 -> Agricultural residues from industry (processing plant)
C19: =title41 -> Forestry and dedicated wood energy plantation
T20: =title44 -> Distribution line to households (isolated grid connection)
C26: =title42 -> Forestry and plantation residues | G26: =title43 -> Wood products industrial residues (processing plant)

Sheet Energy Demand
C3: =title56 -> ENERGY DEMAND FOR RURAL ELECTRIFICATION - COMBUSTION
C6: =title57 -> Electricity Demand per Household
C8: =title58 -> Electricity consumption per household (kWh/month) | G8: =title59 -> Value calculated in the Country Status module
C11: =("Potential Revenue of electricity production from "&'Data Entry Needs'!$D$11&" "&""&'Data Entry Needs'!$D$12) -> Potential Revenue of electricity production from Please Select Please Select
C13: Price of Electricity | E13: =+COST_RES1!$N$15 -> 0 | F13: USD/kWh | G13: =title183 -> Capacities (kW of power generation)
G14: =+COST_RES1!$G$33 -> 10 | I14: =+COST_RES1!$I$33 -> 40 | K14: =+COST_RES1!$K$33 -> 100
C15: Revenue without Policy subsidy | E15: =title80 -> Unit | F15: =title161 -> Unit Price | G15: =title163 -> Quantity | H15: Total | I15: =title163 -> Quantity | J15: Total | K15: =title163 -> Quantity | L15: Total
F16: =title162 -> (USD/unit) | G16: (Units) | H16: =title165 -> (USD/year) | I16: (Units) | J16: =title165 -> (USD/year) | K16: (Units) | L16: =title165 -> (USD/year)
C17: =title170 -> Power generation | E17: =title172 -> kWh/year | F17: =+$E$13 -> 0 | G17: =+COST_RES1!$G$90 -> 0 | H17: =$F17*G17 -> 0 | I17: =+COST_RES1!$I$90 -> 0 | J17: =$F17*I17 -> 0 | K17: =+COST_RES1!$K$90 -> 0 | L17: =$F17*K17 -> 0
C18: Electricity-Self use | E18: =title172 -> kWh/year | F18: =F17 -> 0 | G18: =+COST_RES1!$G$91 -> 0 | H18: =$F18*G18 -> 0 | I18: =+COST_RES1!I$91 -> 0 | J18: 0 | K18: =+COST_RES1!$K$91 -> 0 | L18: =$F18*K18 -> 0
C19: =title173 -> Power loss in distribution network | E19: =title172 -> kWh/year | F19: =F17 -> 0 | G19: =+COST_RES1!$G$92 -> 0 | H19: 0 | I19: =+COST_RES1!I$92 -> 0 | J19: 0 | K19: =+COST_RES1!$K$92 -> 0 | L19: =$F19*K19 -> 0
C20: =title143 -> Subtotal | G20: =SUM(G17:G19) -> 0 | H20: 0 | I20: 0 | J20: 0 | K20: 0 | L20: 0
C22: =("Potential Revenue of electricity production from "&'Data Entry Needs'!$E$11&" "&""&'Data Entry Needs'!$E$12) -> Potential Revenue of electricity production from Please Select Please Select
C24: Price of Electricity | E24: =+#REF! ->  | F24: USD/kWh | G24: =title183 -> Capacities (kW of power generation)
G25: =+#REF! ->  | I25: =+#REF! ->  | K25: =+#REF! -> 
C26: Revenue without Policy subsidy | E26: =title80 -> Unit | F26: =title161 -> Unit Price | G26: =title163 -> Quantity | H26: Total | I26: =title163 -> Quantity | J26: Total | K26: =title163 -> Quantity | L26: Total
F27: =title162 -> (USD/unit) | G27: (Units) | H27: =title165 -> (USD/year) | I27: (Units) | J27: =title165 -> (USD/year) | K27: (Units) | L27: =title165 -> (USD/year)
C28: =title170 -> Power generation | E28: =title172 -> kWh/year | F28: =+$E$13 -> 0 | G28: =+#REF! ->  | H28: =$F28*G28 ->  | I28: =+#REF! ->  | J28: =$F28*I28 ->  | K28: =+#REF! ->  | L28: =$F28*K28 -> 
C29: Electricity-Self use | E29: =title172 -> kWh/year | F29: =F28 -> 0 | G29: =+#REF! ->  | H29: =$F29*G29 ->  | I29: =+#REF! ->  | J29: =$F29*I29 ->  | K29: =+#REF! ->  | L29: =$F29*K29 -> 
C30: =title173 -> Power loss in distribution network | E30: =title172 -> kWh/year | F30: =F28 -> 0 | G30: =+#REF! ->  | H30: =$F30*G30 ->  | I30: =+#REF! ->  | J30: =$F30*I30 ->  | K30: =+#REF! ->  | L30: =$F30*K30 -> 
C31: =title143 -> Subtotal | G31: =SUM(G28:G30) -> 
C33: =("Potential Revenue of electricity production from "&'Data Entry Needs'!$F$11&" "&""&'Data Entry Needs'!$F$12) -> Potential Revenue of electricity production from Please Select Please Select
C35: Price of Electricity | E35: =+#REF! ->  | F35: USD/kWh | G35: =title183 -> Capacities (kW of power generation)
G36: =+#REF! ->  | I36: =+#REF! ->  | K36: =+#REF! -> 
C37: Revenue without Policy subsidy | E37: =title80 -> Unit | F37: =title161 -> Unit Price | G37: =title163 -> Quantity | H37: Total | I37: =title163 -> Quantity | J37: Total | K37: =title163 -> Quantity | L37: Total
F38: =title162 -> (USD/unit) | G38: (Units) | H38: =title165 -> (USD/year) | I38: (Units) | J38: =title165 -> (USD/year) | K38: (Units) | L38: =title165 -> (USD/year)
C39: =title170 -> Power generation | E39: =title172 -> kWh/year | F39: =+$E$13 -> 0 | G39: =+#REF! ->  | H39: =$F39*G39 ->  | I39: =+#REF! ->  | J39: =$F39*I39 ->  | K39: =+#REF! ->  | L39: =$F39*K39 -> 
C40: Electricity-Self use | E40: =title172 -> kWh/year | F40: =F39 -> 0 | G40: =+#REF! ->  | H40: =$F40*G40 ->  | I40: =+#REF! ->  | J40: =$F40*I40 ->  | K40: =+#REF! ->  | L40: =$F40*K40 -> 
C41: =title173 -> Power loss in distribution network | E41: =title172 -> kWh/year | F41: =F39 -> 0 | G41: =+#REF! ->  | H41: =$F41*G41 ->  | I41: =+#REF! ->  | J41: =$F41*I41 ->  | K41: =+#REF! ->  | L41: =$F41*K41 -> 
C42: =title143 -> Subtotal | G42: =SUM(G39:G41) -> 
C44: =("Potential Revenue of electricity production from "&'Data Entry Needs'!$G$11&" "&""&'Data Entry Needs'!$G$12) -> Potential Revenue of electricity production from Please Select Please Select
C46: Price of Electricity | E46: =+#REF! ->  | F46: USD/kWh | G46: =title183 -> Capacities (kW of power generation)
G47: =+#REF! ->  | I47: =+#REF! ->  | K47: =+#REF! -> 
C48: Revenue without Policy subsidy | E48: =title80 -> Unit | F48: =title161 -> Unit Price | G48: =title163 -> Quantity | H48: Total | I48: =title163 -> Quantity | J48: Total | K48: =title163 -> Quantity | L48: Total
F49: =title162 -> (USD/unit) | G49: (Units) | H49: =title165 -> (USD/year) | I49: (Units) | J49: =title165 -> (USD/year) | K49: (Units) | L49: =title165 -> (USD/year)
C50: =title170 -> Power generation | E50: =title172 -> kWh/year | F50: =+$E$13 -> 0 | G50: =+#REF! ->  | H50: =$F50*G50 ->  | I50: =+#REF! ->  | J50: =$F50*I50 ->  | K50: =+#REF! ->  | L50: =$F50*K50 -> 
C51: Electricity-Self use | E51: =title172 -> kWh/year | F51: =F50 -> 0 | G51: =+#REF! ->  | H51: =$F51*G51 ->  | I51: =+#REF! ->  | J51: =$F51*I51 ->  | K51: =+#REF! ->  | L51: =$F51*K51 -> 
C52: =title173 -> Power loss in distribution network | E52: =title172 -> kWh/year | F52: =F50 -> 0 | G52: =+#REF! ->  | H52: =$F52*G52 ->  | I52: =+#REF! ->  | J52: =$F52*I52 ->  | K52: =+#REF! ->  | L52: =$F52*K52 -> 
C53: =title143 -> Subtotal | G53: =SUM(G50:G52) -> 

Sheet Rural Electricity Price (hidden)
C3: ELECTRICITY PRICE CALCULATOR FOR ISOLATED AND RURAL AREAS
C6: Instructions | F6: Use white cells to input data | J6: Grey cells are used for calculations
C8: Current Electricity Technology | J8: Costing parameters
C10: Typical diesel generator capacity | H10: kW | J10: National Diesel Price | M10: =+'Data Entry Needs'!$D$44 -> 0 | N10: USD/L
C11: Operating hours per day | H11: h | J11: Transportation Cost of diesel | N11: USD/t/km
C12: Operating days per year | H12: day | J12: Transportation Distance | N12: km
C13: Typical efficiency | H13: % | J13: Labor and Maintenance Costs | N13: USD/kWh
C14: Calculated diesel consumption | G14: =+$G$10*$G$11*($G$12/100)*G13/(42.8*0.837/3.6) -> 0 | H14: L/year | J14: Equipment Cost | N14: USD
C16: Total production cost of electricity
C18: Concept | H18: Units | J18: Comparative Production Cost of Electricity | M18: =ROUND(IFERROR($G$23/($G$10*$G$11*($G$12/100)*G13),0),2) -> 0 | N18: USD/kWh
C19: Diesel Cost | G19: =+G14*M10 -> 0 | H19: USD/year
C20: Transportation Cost | G20: =+M11*G14*0.84*M12/1000 -> 0 | H20: USD/year
C21: Labor and Maintenance Costs | G21: =+$G$10*$G$11*($G$13/100)*$G$12*$M$13 -> 0 | H21: USD/year
C22: Investment Costs | G22: =+M14 -> 0 | H22: USD/year
C23: Total production cost of electricity | G23: =SUM(G19:G22) -> 0 | H23: USD/year

Sheet STORAGE_RES1 (hidden)
C3: =UPPER("storage calculator FOR GASIFICATION+RURAL ELECTRIFICATION FROM "&'Data Entry Needs'!$G$11&" "&'Data Entry Needs'!$G$12) -> STORAGE CALCULATOR FOR GASIFICATION+RURAL ELECTRIFICATION FROM PLEASE SELECT PLEASE SELECT
C6: Biomass safety stock rate definition
F8: Electricity Production Capacities (kW)
D9: Unit | F9: 10 | I9: 40 | L9: 100
C10: Biomass consumption | D10: t/year | F10: =+COST_RES1!$G$39 ->  | I10: =+COST_RES1!$I$39 ->  | L10: =+COST_RES1!$K$39 -> 
D11: t/month | F11: =F10/12 ->  | I11: =I10/12 ->  | L11: =L10/12 -> 
D12: t/day | F12: =F10/365 ->  | I12: =I10/365 ->  | L12: =L10/365 -> 
C14: Biomass production within a specific distance | D14: t/year | F14: =+'Data Entry Needs'!$D$13 -> 0 | I14: =+'Data Entry Needs'!$D$13 -> 0 | L14: =+'Data Entry Needs'!$D$13 -> 0
C16: Biomass safety stock rate | F16: =+F17/100 -> 0.3 | I16: =+I17/100 -> 0.3 | L16: =+L17/100 -> 0.3
F17: 30 | I17: 30 | L17: 30
C18: Biomass stock pile capacity | D18: ts | F18: =+MAX(F25:F36) ->  | I18: =+MAX(I25:I36) ->  | L18: =+MAX(L25:L36) -> 
C20: Maximum storage definition
F22: Electricity Production Capacities (kW)
F23: =+F9 -> 10 | I23: =+I9 -> 40 | L23: =+L9 -> 100 | AD23: Depletion time definition
C24: Harvest Month Selection | D24: Storage Month | E24: Monthly Consumption (t/month) | F24: Biomass Stored (t) | G24: Storage Depletion (t/month) | H24: Monthly Consumption (t/month) | I24: Biomass Stored (t) | J24: Storage Depletion (t/month) | K24: Monthly Consumption (t/month) | L24: Biomass Stored (t) | M24: Storage Depletion (t/month) | AB24: Harvest Period | AC24: Harvest Period | AD24: Depletion term | AE24: Depletion month | AF24: EQ term | AG24: Depletion time | AH24: Storage term | AI24: Storage month | AJ24: EQ term | AK24: Storage time
C25: =title336 -> January | D25: =+IF($AC25=0,0,IF($AC25>$AC36,1,IF($AC25=$AC36,$D36+1,IF($AC36>$AC25,0)))) -> 0 | E25: =+F$11 ->  | F25: =+IF(AND($D$25=1,$D$36=0,$D$26=0),$F$11*$AG25+$F$11*$F$16,IF(D25>0,($AG25*$F$11/$AK25)*$D25+$F$11*$F$16,0)) -> 0 | G25: =IF(AND($D$25=1,$D$36=0,$D$26=0),$F$11*11+$G$36-E25,IF($D25>0,IFERROR(($AG25*$F$11/$AK25)*$D25,"")+$F$11*$F$16,IF($D25=0,G36-E25))) ->  | H25: =+I$11 ->  | I25: =+IF(AND($D$25=1,$D$36=0,$D$26=0),$I$11*$AG25+$I$11*$I$16,IF($D25>0,($AG25*$I$11/$AK25)*$D25+$I$11*$I$16,0)) -> 0 | J25: =IF(AND($D$25=1,$D$36=0,$D$26=0),$I$11*11+J36-H25,IF($D25>0,IFERROR(($AG25*$I$11/$AK25)*$D25,"")+$I$11*$I$16,IF($D25=0,J36-H25))) ->  | K25: =+L$11 ->  | L25: =+IF(AND($D$25=1,$D$36=0,$D$26=0),$L$11*$AG25+$L$11*$L$16,IF($D25>0,($AG25*$L$11/$AK25)*$D25+$L$11*$I$16,0)) -> 0 | M25: =IF(AND($D$25=1,$D$36=0,$D$26=0),$L$11*11+M36-K25,IF($D25>0,IFERROR(($AG25*$L$11/$AK25)*$D25,"")+$L$11*$L$16,IF($D25=0,M36-K25))) ->  | AB25: FALSE | AC25: =+N(AB25) -> 0 | AD25: =+IF(AND(AC26>AC25,AC25=0),"Last"&AF25,"") -> Last1 | AE25: =+IF($AC25=1,0,IF($AC25<$AC36,1,IF($AC25=$AC36,$AE36+1,IF($AC36>$AC25,1)))) -> 10 | AF25: 1 | AG25: =IFERROR(VLOOKUP("LAST"&AF25,$AD$25:$AE$36,2,FALSE),AK25) -> 10 | AH25: =+IF(AND(AI25>AI26,AI26=0),"Last"&AJ25,"") ->  | AI25: =+IF($AC25=0,0,IF($AC25>$AC36,1,IF($AC25=$AC36,$AI36+1,IF($AC36>$AC25,0)))) -> 0 | AJ25: 1 | AK25: =IFERROR(VLOOKUP("LAST"&AJ25,$AH$25:$AI$36,2,FALSE),VLOOKUP("LAST"&1,$AH$25:$AI$36,2,FALSE)) -> 2
C26: =title337 -> February | D26: =+IF($AC26=0,0,IF($AC26>$AC25,1,IF($AC26=$AC25,$D25+1,IF($AC25>$AC26,0)))) -> 1 | F26: =IF(D26>0,($AG26*$F$11/$AK26)*$D26+$F$11*$F$16,0) ->  | G26: =+IF($D26>0,IFERROR(($AG26*$F$11/$AK26)*$D26,"")+$F$11*$F$16,IF($D26=0,G25-E26)) ->  | I26: =IF($D26>0,($AG26*$I$11/$AK26)*$D26+$I$11*$I$16,0) ->  | J26: =+IF($D26>0,IFERROR(($AG26*$I$11/$AK26)*$D26,"")+$I$11*$I$16,IF($D26=0,J25-H26)) ->  | L26: =IF($D26>0,($AG26*$L$11/$AK26)*$D26+$L$11*$L$16,0) ->  | M26: =+IF($D26>0,IFERROR(($AG26*$L$11/$AK26)*$D26,"")+$L$11*$L$16,IF($D26=0,M25-K26)) ->  | AB26: TRUE | AC26: =+N(AB26) -> 1 | AD26: =+IF(AND(AC27>AC26,AC26=0),"Last"&AF26,"") ->  | AE26: =+IF($AC26=1,0,IF($AC26<$AC25,1,IF($AC26=$AC25,$AE25+1,IF($AC25>$AC26,1)))) -> 0 | AF26: =+IF($AE25>$AE26,$AF25+1,$AF25) -> 2 | AG26: =IFERROR(VLOOKUP("LAST"&AF26,$AD$25:$AE$36,2,FALSE),$AG$25) -> 10 | AH26: =+IF(AND(AI26>AI27,AI27=0),"Last"&AJ26,"") ->  | AI26: =+IF($AC26=0,0,IF($AC26>$AC25,1,IF($AC26=$AC25,$AI25+1,IF($AC25>$AC26,0)))) -> 1 | AJ26: =+IF($AI25>$AI26,$AJ25+1,$AJ25) -> 1 | AK26: =IFERROR(VLOOKUP("LAST"&AJ26,$AH$25:$AI$36,2,FALSE),VLOOKUP("LAST"&1,$AH$25:$AI$36,2,FALSE)) -> 2
C27: =title338 -> March | D27: 2 | I27: =IF($D27>0,($AG27*$I$11/$AK27)*$D27+$I$11*$I$16,0) ->  | L27: =IF($D27>0,($AG27*$L$11/$AK27)*$D27+$L$11*$L$16,0) ->  | AB27: TRUE | AC27: 1 | AD27: =+IF(AND(AC28>AC27,AC27=0),"Last"&AF27,"") ->  | AE27: 0 | AF27: =+IF($AE26>$AE27,$AF26+1,$AF26) -> 2 | AG27: 10 | AH27: =+IF(AND(AI27>AI28,AI28=0),"Last"&AJ27,"") -> Last1 | AI27: =+IF($AC27=0,0,IF($AC27>$AC26,1,IF($AC27=$AC26,$AI26+1,IF($AC26>$AC27,0)))) -> 2 | AJ27: =+IF($AI26>$AI27,$AJ26+1,$AJ26) -> 1 | AK27: 2
C28: =title339 -> April | D28: 0 | F28: 0 | I28: 0 | L28: 0 | AB28: FALSE | AC28: 0 | AD28: =+IF(AND(AC29>AC28,AC28=0),"Last"&AF28,"") ->  | AE28: 1 | AF28: =+IF($AE27>$AE28,$AF27+1,$AF27) -> 2 | AG28: 10 | AH28: =+IF(AND(AI28>AI29,AI29=0),"Last"&AJ28,"") ->  | AI28: 0 | AJ28: 2 | AK28: 2
C29: =title340 -> May | D29: 0 | F29: 0 | I29: 0 | L29: 0 | AB29: FALSE | AC29: 0 | AE29: 2 | AF29: 2 | AG29: 10 | AH29: =+IF(AND(AI29>AI30,AI30=0),"Last"&AJ29,"") ->  | AI29: 0 | AJ29: 2 | AK29: 2
C30: =title341 -> June | D30: 0 | F30: 0 | I30: 0 | L30: 0 | AB30: FALSE | AC30: 0 | AE30: 3 | AF30: 2 | AG30: 10 | AI30: 0 | AJ30: 2 | AK30: 2
C31: =title342 -> July | D31: 0 | F31: 0 | I31: 0 | L31: 0 | AB31: FALSE | AC31: 0 | AE31: 4 | AF31: 2 | AG31: 10 | AI31: 0 | AJ31: 2 | AK31: 2
C32: =title343 -> August | D32: 0 | F32: 0 | I32: 0 | L32: 0 | AB32: FALSE | AC32: 0 | AE32: 5 | AF32: 2 | AG32: 10 | AI32: 0 | AJ32: 2 | AK32: 2
C33: =title344 -> September | D33: 0 | F33: 0 | I33: 0 | L33: 0 | AB33: FALSE | AC33: 0 | AE33: 6 | AF33: 2 | AG33: 10 | AI33: 0 | AJ33: 2 | AK33: 2
C34: =title345 -> October | D34: 0 | F34: 0 | I34: 0 | L34: 0 | AB34: FALSE | AC34: 0 | AE34: 7 | AF34: 2 | AG34: 10 | AI34: 0 | AJ34: 2 | AK34: 2
C35: =title346 -> November | D35: 0 | F35: 0 | I35: 0 | L35: 0 | AB35: FALSE | AC35: 0 | AE35: 8 | AF35: 2 | AG35: 10 | AI35: 0 | AJ35: 2 | AK35: 2
C36: =title347 -> December | D36: 0 | F36: 0 | I36: 0 | L36: 0 | AB36: FALSE | AC36: 0 | AD36: =+IF(AND(AC25>AC36,AC36=0),"Last"&AF36,"") ->  | AE36: 9 | AF36: =+IF($AE35>$AE36,$AF35+1,$AF35) -> 2 | AG36: =IFERROR(VLOOKUP("LAST"&AF36,$AD$25:$AE$36,2,FALSE),$AG$25) -> 10 | AH36: =+IF(AND(AI36>AI25,AI25=0),"Last"&AJ36,"") ->  | AI36: =+IF($AC36=0,0,IF($AC36>$AC35,1,IF($AC36=$AC35,$AI35+1,IF($AC35>$AC36,0)))) -> 0 | AJ36: =+IF($AI35>$AI36,$AJ35+1,$AJ35) -> 2 | AK36: 2
D37: =+MAX(D25:D36)*30 -> 60
C38: Maximum Storage Capacity Required (ts) | F38: =ROUNDUP(MAX(F25:F36),0) ->  | G38: =ROUNDUP(MAX(G25:G36),0) ->  | AB38: No. Storage Months | AC38: =+COUNTIF(AC25:AC36,">0") -> 2
C39: Minimum Safety Storage (ts) | F39: =+ROUNDUP(MIN(G25:G36),0) ->  | I39: =+ROUNDUP(MIN(J25:J36),0) ->  | L39: =+ROUNDUP(MIN(M25:M36),0) ->  | AB39: Total Depletion Period | AC39: =12-AC38 -> 10
C41: Monthly Consumption of Biomass Stocked
AC43: =F23&" (kW)" -> 10 (kW) | AD43: =I23&" (kW)" -> 40 (kW) | AE43: =L23&" (kW)" -> 100 (kW)
AB44: =+LEFT(C25,3) -> Jan | AC44: =+G25 ->  | AD44: =+J25 ->  | AE44: =+M25 -> 
AB45: Feb
AB46: Mar
AB47: Apr
AB48: May
AB49: Jun
AB50: Jul | AC50: =+G31 ->  | AD50: =+J31 ->  | AE50: =+M31 -> 
AB51: =+LEFT(C32,3) -> Aug
AB52: =+LEFT(C33,3) -> Sep
AB53: =+LEFT(C34,3) -> Oct
AB54: =+LEFT(C35,3) -> Nov
AB55: =+LEFT(C36,3) -> Dec

Sheet STORAGE_RES2 (hidden)
C3: =UPPER("storage calculator FOR GASIFICATION+RURAL ELECTRIFICATION FROM "&'Data Entry Needs'!$G$11&" "&'Data Entry Needs'!$G$12) -> STORAGE CALCULATOR FOR GASIFICATION+RURAL ELECTRIFICATION FROM PLEASE SELECT PLEASE SELECT
C6: Biomass safety stock rate definition
F8: Electricity Production Capacities (kW)
D9: Unit | F9: 10 | I9: 40 | L9: 100
C10: Biomass consumption | D10: t/year | F10: =+COST_RES2!$G$39 ->  | I10: =+COST_RES2!$I$39 ->  | L10: =+COST_RES2!$K$39 -> 
D11: t/month | F11: =F10/12 ->  | I11: =I10/12 ->  | L11: =L10/12 -> 
D12: t/day | F12: =F10/365 ->  | I12: =I10/365 ->  | L12: =L10/365 -> 
C14: Biomass production within a specific distance | D14: t/year | F14: =+'Data Entry Needs'!$E$13 -> 0 | I14: =+F14 -> 0 | L14: =I14 -> 0
C16: Biomass safety stock rate | F16: =+F17/100 -> 0.3 | I16: =+I17/100 -> 0.3 | L16: =+L17/100 -> 0.3
F17: 30 | I17: 30 | L17: 30
C18: Biomass stock pile capacity | D18: ts | F18: =+MAX(F25:F36) ->  | I18: =+MAX(I25:I36) ->  | L18: =+MAX(L25:L36) -> 
C20: Maximum storage definition
F22: Electricity Production Capacities (kW)
F23: =+F9 -> 10 | I23: =+I9 -> 40 | L23: =+L9 -> 100 | AD23: Depletion time definition
C24: Harvest Month Selection | D24: Storage Month | E24: Monthly Consumption (t/month) | F24: Biomass Stored (t) | G24: Storage Depletion (t/month) | H24: Monthly Consumption (t/month) | I24: Biomass Stored (t) | J24: Storage Depletion (t/month) | K24: Monthly Consumption (t/month) | L24: Biomass Stored (t) | M24: Storage Depletion (t/month) | AB24: Harvest Period | AC24: Harvest Period | AD24: Depletion term | AE24: Depletion month | AF24: EQ term | AG24: Depletion time | AH24: Storage term | AI24: Storage month | AJ24: EQ term | AK24: Storage time
C25: =title336 -> January | D25: =+IF($AC25=0,0,IF($AC25>$AC36,1,IF($AC25=$AC36,$D36+1,IF($AC36>$AC25,0)))) -> 0 | E25: =+F$11 ->  | F25: =+IF(AND($D$25=1,$D$36=0,$D$26=0),$F$11*$AG25+$F$11*$F$16,IF(D25>0,($AG25*$F$11/$AK25)*$D25+$F$11*$F$16,0)) -> 0 | G25: =IF(AND($D$25=1,$D$36=0,$D$26=0),$F$11*11+$G$36-E25,IF($D25>0,IFERROR(($AG25*$F$11/$AK25)*$D25,"")+$F$11*$F$16,IF($D25=0,G36-E25))) ->  | H25: =+I$11 ->  | I25: =+IF(AND($D$25=1,$D$36=0,$D$26=0),$I$11*$AG25+$I$11*$I$16,IF($D25>0,($AG25*$I$11/$AK25)*$D25+$I$11*$I$16,0)) -> 0 | J25: =IF(AND($D$25=1,$D$36=0,$D$26=0),$I$11*11+J36-H25,IF($D25>0,IFERROR(($AG25*$I$11/$AK25)*$D25,"")+$I$11*$I$16,IF($D25=0,J36-H25))) ->  | K25: =+L$11 ->  | L25: =+IF(AND($D$25=1,$D$36=0,$D$26=0),$L$11*$AG25+$L$11*$L$16,IF($D25>0,($AG25*$L$11/$AK25)*$D25+$L$11*$I$16,0)) -> 0 | M25: =IF(AND($D$25=1,$D$36=0,$D$26=0),$L$11*11+M36-K25,IF($D25>0,IFERROR(($AG25*$L$11/$AK25)*$D25,"")+$L$11*$L$16,IF($D25=0,M36-K25))) ->  | AB25: FALSE | AC25: =+N(AB25) -> 0 | AD25: =+IF(AND(AC26>AC25,AC25=0),"Last"&AF25,"") ->  | AE25: =+IF($AC25=1,0,IF($AC25<$AC36,1,IF($AC25=$AC36,$AE36+1,IF($AC36>$AC25,1)))) -> 7 | AF25: 1 | AG25: =IFERROR(VLOOKUP("LAST"&AF25,$AD$25:$AE$36,2,FALSE),AK25) -> 10 | AH25: =+IF(AND(AI25>AI26,AI26=0),"Last"&AJ25,"") ->  | AI25: =+IF($AC25=0,0,IF($AC25>$AC36,1,IF($AC25=$AC36,$AI36+1,IF($AC36>$AC25,0)))) -> 0 | AJ25: 1 | AK25: =IFERROR(VLOOKUP("LAST"&AJ25,$AH$25:$AI$36,2,FALSE),VLOOKUP("LAST"&1,$AH$25:$AI$36,2,FALSE)) -> 2
C26: =title337 -> February | D26: =+IF($AC26=0,0,IF($AC26>$AC25,1,IF($AC26=$AC25,$D25+1,IF($AC25>$AC26,0)))) -> 0 | F26: =IF(D26>0,($AG26*$F$11/$AK26)*$D26+$F$11*$F$16,0) -> 0 | G26: =+IF($D26>0,IFERROR(($AG26*$F$11/$AK26)*$D26,"")+$F$11*$F$16,IF($D26=0,G25-E26)) ->  | I26: =IF($D26>0,($AG26*$I$11/$AK26)*$D26+$I$11*$I$16,0) -> 0 | J26: =+IF($D26>0,IFERROR(($AG26*$I$11/$AK26)*$D26,"")+$I$11*$I$16,IF($D26=0,J25-H26)) ->  | L26: =IF($D26>0,($AG26*$L$11/$AK26)*$D26+$L$11*$L$16,0) -> 0 | M26: =+IF($D26>0,IFERROR(($AG26*$L$11/$AK26)*$D26,"")+$L$11*$L$16,IF($D26=0,M25-K26)) ->  | AB26: FALSE | AC26: =+N(AB26) -> 0 | AD26: =+IF(AND(AC27>AC26,AC26=0),"Last"&AF26,"") ->  | AE26: =+IF($AC26=1,0,IF($AC26<$AC25,1,IF($AC26=$AC25,$AE25+1,IF($AC25>$AC26,1)))) -> 8 | AF26: =+IF($AE25>$AE26,$AF25+1,$AF25) -> 1 | AG26: =IFERROR(VLOOKUP("LAST"&AF26,$AD$25:$AE$36,2,FALSE),$AG$25) -> 10 | AH26: =+IF(AND(AI26>AI27,AI27=0),"Last"&AJ26,"") ->  | AI26: =+IF($AC26=0,0,IF($AC26>$AC25,1,IF($AC26=$AC25,$AI25+1,IF($AC25>$AC26,0)))) -> 0 | AJ26: =+IF($AI25>$AI26,$AJ25+1,$AJ25) -> 1 | AK26: =IFERROR(VLOOKUP("LAST"&AJ26,$AH$25:$AI$36,2,FALSE),VLOOKUP("LAST"&1,$AH$25:$AI$36,2,FALSE)) -> 2
C27: =title338 -> March | D27: 0 | F27: 0 | I27: =IF($D27>0,($AG27*$I$11/$AK27)*$D27+$I$11*$I$16,0) -> 0 | L27: =IF($D27>0,($AG27*$L$11/$AK27)*$D27+$L$11*$L$16,0) -> 0 | AB27: FALSE | AC27: 0 | AD27: =+IF(AND(AC28>AC27,AC27=0),"Last"&AF27,"") ->  | AE27: 9 | AF27: =+IF($AE26>$AE27,$AF26+1,$AF26) -> 1 | AG27: 10 | AH27: =+IF(AND(AI27>AI28,AI28=0),"Last"&AJ27,"") ->  | AI27: =+IF($AC27=0,0,IF($AC27>$AC26,1,IF($AC27=$AC26,$AI26+1,IF($AC26>$AC27,0)))) -> 0 | AJ27: =+IF($AI26>$AI27,$AJ26+1,$AJ26) -> 1 | AK27: 2
C28: =title339 -> April | D28: 0 | F28: 0 | I28: 0 | L28: 0 | AB28: FALSE | AC28: 0 | AD28: =+IF(AND(AC29>AC28,AC28=0),"Last"&AF28,"") -> Last1 | AE28: 10 | AF28: =+IF($AE27>$AE28,$AF27+1,$AF27) -> 1 | AG28: 10 | AH28: =+IF(AND(AI28>AI29,AI29=0),"Last"&AJ28,"") ->  | AI28: 0 | AJ28: 1 | AK28: 2
C29: =title340 -> May | D29: 1 | AB29: TRUE | AC29: 1 | AE29: 0 | AF29: 2 | AG29: 10 | AH29: =+IF(AND(AI29>AI30,AI30=0),"Last"&AJ29,"") ->  | AI29: 1 | AJ29: 1 | AK29: 2
C30: =title341 -> June | D30: 2 | AB30: TRUE | AC30: 1 | AE30: 0 | AF30: 2 | AG30: 10 | AH30: Last1 | AI30: 2 | AJ30: 1 | AK30: 2
C31: =title342 -> July | D31: 0 | F31: 0 | I31: 0 | L31: 0 | AB31: FALSE | AC31: 0 | AE31: 1 | AF31: 2 | AG31: 10 | AI31: 0 | AJ31: 2 | AK31: 2
C32: =title343 -> August | D32: 0 | F32: 0 | I32: 0 | L32: 0 | AB32: FALSE | AC32: 0 | AE32: 2 | AF32: 2 | AG32: 10 | AI32: 0 | AJ32: 2 | AK32: 2
C33: =title344 -> September | D33: 0 | F33: 0 | I33: 0 | L33: 0 | AB33: FALSE | AC33: 0 | AE33: 3 | AF33: 2 | AG33: 10 | AI33: 0 | AJ33: 2 | AK33: 2
C34: =title345 -> October | D34: 0 | F34: 0 | I34: 0 | L34: 0 | AB34: FALSE | AC34: 0 | AE34: 4 | AF34: 2 | AG34: 10 | AI34: 0 | AJ34: 2 | AK34: 2
C35: =title346 -> November | D35: 0 | F35: 0 | I35: 0 | L35: 0 | AB35: FALSE | AC35: 0 | AE35: 5 | AF35: 2 | AG35: 10 | AI35: 0 | AJ35: 2 | AK35: 2
C36: =title347 -> December | D36: 0 | F36: 0 | I36: 0 | L36: 0 | AB36: FALSE | AC36: 0 | AD36: =+IF(AND(AC25>AC36,AC36=0),"Last"&AF36,"") ->  | AE36: 6 | AF36: =+IF($AE35>$AE36,$AF35+1,$AF35) -> 2 | AG36: =IFERROR(VLOOKUP("LAST"&AF36,$AD$25:$AE$36,2,FALSE),$AG$25) -> 10 | AH36: =+IF(AND(AI36>AI25,AI25=0),"Last"&AJ36,"") ->  | AI36: =+IF($AC36=0,0,IF($AC36>$AC35,1,IF($AC36=$AC35,$AI35+1,IF($AC35>$AC36,0)))) -> 0 | AJ36: =+IF($AI35>$AI36,$AJ35+1,$AJ35) -> 2 | AK36: 2
D37: =+MAX(D25:D36)*30 -> 60
C38: Maximum Storage Capacity Required (ts) | F38: =ROUNDUP(MAX(F25:F36),0) ->  | G38: =ROUNDUP(MAX(G25:G36),0) ->  | AB38: No. Storage Months | AC38: =+COUNTIF(AC25:AC36,">0") -> 2
C39: Minimum Safety Storage (ts) | F39: =+ROUNDUP(MIN(G25:G36),0) ->  | I39: =+ROUNDUP(MIN(J25:J36),0) ->  | L39: =+ROUNDUP(MIN(M25:M36),0) ->  | AB39: Total Depletion Period | AC39: =12-AC38 -> 10
C41: Monthly Consumption of Biomass Stocked | AC41: =F23&" (kW)" -> 10 (kW) | AD41: =I23&" (kW)" -> 40 (kW) | AE41: =L23&" (kW)" -> 100 (kW)
AB42: =+LEFT(C25,3) -> Jan | AC42: =+G25 ->  | AD42: =+J25 ->  | AE42: =+M25 -> 
AB43: Feb
AB44: Mar
AB45: Apr
AB46: May
AB47: Jun
AB48: =+LEFT(C31,3) -> Jul | AC48: =+G31 ->  | AD48: =+J31 ->  | AE48: =+M31 -> 
AB49: Aug
AB50: Sep
AB51: Oct
AB52: Nov
AB53: Dec

Sheet STORAGE_RES3 (hidden)
C3: =UPPER("storage calculator FOR GASIFICATION+RURAL ELECTRIFICATION FROM "&'Data Entry Needs'!$G$11&" "&'Data Entry Needs'!$G$12) -> STORAGE CALCULATOR FOR GASIFICATION+RURAL ELECTRIFICATION FROM PLEASE SELECT PLEASE SELECT
C6: Biomass safety stock rate definition
F8: Electricity Production Capacities (kW)
D9: Unit | F9: 10 | I9: 40 | L9: 100
C10: Biomass consumption | D10: t/year | F10: =+COST_RES3!$G$39 ->  | I10: =+COST_RES3!$I$39 ->  | L10: =+COST_RES3!$K$39 -> 
D11: t/month | F11: =F10/12 ->  | I11: =I10/12 ->  | L11: =L10/12 -> 
D12: t/day | F12: =F10/365 ->  | I12: =I10/365 ->  | L12: =L10/365 -> 
C14: Biomass production within a specific distance | D14: t/year | F14: =+'Data Entry Needs'!$F$13 -> 0 | I14: =+F14 -> 0 | L14: =I14 -> 0
C16: Biomass safety stock rate | F16: =+F17/100 -> 0.3 | I16: =+I17/100 -> 0.3 | L16: =+L17/100 -> 0.3
F17: 30 | I17: 30 | L17: 30
C18: Biomass stock pile capacity | D18: ts | F18: =+MAX(F25:F36) ->  | I18: =+MAX(I25:I36) ->  | L18: =+MAX(L25:L36) -> 
C20: Maximum storage definition
F22: Electricity Production Capacities (kW)
F23: =+F9 -> 10 | I23: =+I9 -> 40 | L23: =+L9 -> 100 | AD23: Depletion time definition
C24: Harvest Month Selection | D24: Storage Month | E24: Monthly Consumption (t/month) | F24: Biomass Stored (t) | G24: Storage Depletion (t/month) | H24: Monthly Consumption (t/month) | I24: Biomass Stored (t) | J24: Storage Depletion (t/month) | K24: Monthly Consumption (t/month) | L24: Biomass Stored (t) | M24: Storage Depletion (t/month) | AB24: Harvest Period | AC24: Harvest Period | AD24: Depletion term | AE24: Depletion month | AF24: EQ term | AG24: Depletion time | AH24: Storage term | AI24: Storage month | AJ24: EQ term | AK24: Storage time
C25: =title336 -> January | D25: =+IF($AC25=0,0,IF($AC25>$AC36,1,IF($AC25=$AC36,$D36+1,IF($AC36>$AC25,0)))) -> 0 | E25: =+F$11 ->  | F25: =+IF(AND($D$25=1,$D$36=0,$D$26=0),$F$11*$AG25+$F$11*$F$16,IF(D25>0,($AG25*$F$11/$AK25)*$D25+$F$11*$F$16,0)) -> 0 | G25: =IF(AND($D$25=1,$D$36=0,$D$26=0),$F$11*11+$G$36-E25,IF($D25>0,IFERROR(($AG25*$F$11/$AK25)*$D25,"")+$F$11*$F$16,IF($D25=0,G36-E25))) ->  | H25: =+I$11 ->  | I25: =+IF(AND($D$25=1,$D$36=0,$D$26=0),$I$11*$AG25+$I$11*$I$16,IF($D25>0,($AG25*$I$11/$AK25)*$D25+$I$11*$I$16,0)) -> 0 | J25: =IF(AND($D$25=1,$D$36=0,$D$26=0),$I$11*11+J36-H25,IF($D25>0,IFERROR(($AG25*$I$11/$AK25)*$D25,"")+$I$11*$I$16,IF($D25=0,J36-H25))) ->  | K25: =+L$11 ->  | L25: =+IF(AND($D$25=1,$D$36=0,$D$26=0),$L$11*$AG25+$L$11*$L$16,IF($D25>0,($AG25*$L$11/$AK25)*$D25+$L$11*$I$16,0)) -> 0 | M25: =IF(AND($D$25=1,$D$36=0,$D$26=0),$L$11*11+M36-K25,IF($D25>0,IFERROR(($AG25*$L$11/$AK25)*$D25,"")+$L$11*$L$16,IF($D25=0,M36-K25))) ->  | AB25: FALSE | AC25: =+N(AB25) -> 0 | AD25: =+IF(AND(AC26>AC25,AC25=0),"Last"&AF25,"") ->  | AE25: =+IF($AC25=1,0,IF($AC25<$AC36,1,IF($AC25=$AC36,$AE36+1,IF($AC36>$AC25,1)))) -> 6 | AF25: 1 | AG25: =IFERROR(VLOOKUP("LAST"&AF25,$AD$25:$AE$36,2,FALSE),AK25) -> 8 | AH25: =+IF(AND(AI25>AI26,AI26=0),"Last"&AJ25,"") ->  | AI25: =+IF($AC25=0,0,IF($AC25>$AC36,1,IF($AC25=$AC36,$AI36+1,IF($AC36>$AC25,0)))) -> 0 | AJ25: 1 | AK25: =IFERROR(VLOOKUP("LAST"&AJ25,$AH$25:$AI$36,2,FALSE),VLOOKUP("LAST"&1,$AH$25:$AI$36,2,FALSE)) -> 1
C26: =title337 -> February | D26: =+IF($AC26=0,0,IF($AC26>$AC25,1,IF($AC26=$AC25,$D25+1,IF($AC25>$AC26,0)))) -> 0 | F26: =IF(D26>0,($AG26*$F$11/$AK26)*$D26+$F$11*$F$16,0) -> 0 | G26: =+IF($D26>0,IFERROR(($AG26*$F$11/$AK26)*$D26,"")+$F$11*$F$16,IF($D26=0,G25-E26)) ->  | I26: =IF($D26>0,($AG26*$I$11/$AK26)*$D26+$I$11*$I$16,0) -> 0 | J26: =+IF($D26>0,IFERROR(($AG26*$I$11/$AK26)*$D26,"")+$I$11*$I$16,IF($D26=0,J25-H26)) ->  | L26: =IF($D26>0,($AG26*$L$11/$AK26)*$D26+$L$11*$L$16,0) -> 0 | M26: =+IF($D26>0,IFERROR(($AG26*$L$11/$AK26)*$D26,"")+$L$11*$L$16,IF($D26=0,M25-K26)) ->  | AB26: FALSE | AC26: =+N(AB26) -> 0 | AD26: =+IF(AND(AC27>AC26,AC26=0),"Last"&AF26,"") ->  | AE26: =+IF($AC26=1,0,IF($AC26<$AC25,1,IF($AC26=$AC25,$AE25+1,IF($AC25>$AC26,1)))) -> 7 | AF26: =+IF($AE25>$AE26,$AF25+1,$AF25) -> 1 | AG26: =IFERROR(VLOOKUP("LAST"&AF26,$AD$25:$AE$36,2,FALSE),$AG$25) -> 8 | AH26: =+IF(AND(AI26>AI27,AI27=0),"Last"&AJ26,"") ->  | AI26: =+IF($AC26=0,0,IF($AC26>$AC25,1,IF($AC26=$AC25,$AI25+1,IF($AC25>$AC26,0)))) -> 0 | AJ26: =+IF($AI25>$AI26,$AJ25+1,$AJ25) -> 1 | AK26: =IFERROR(VLOOKUP("LAST"&AJ26,$AH$25:$AI$36,2,FALSE),VLOOKUP("LAST"&1,$AH$25:$AI$36,2,FALSE)) -> 1
C27: =title338 -> March | D27: 0 | F27: 0 | I27: =IF($D27>0,($AG27*$I$11/$AK27)*$D27+$I$11*$I$16,0) -> 0 | L27: =IF($D27>0,($AG27*$L$11/$AK27)*$D27+$L$11*$L$16,0) -> 0 | AB27: FALSE | AC27: 0 | AD27: =+IF(AND(AC28>AC27,AC27=0),"Last"&AF27,"") -> Last1 | AE27: 8 | AF27: =+IF($AE26>$AE27,$AF26+1,$AF26) -> 1 | AG27: 8 | AH27: =+IF(AND(AI27>AI28,AI28=0),"Last"&AJ27,"") ->  | AI27: =+IF($AC27=0,0,IF($AC27>$AC26,1,IF($AC27=$AC26,$AI26+1,IF($AC26>$AC27,0)))) -> 0 | AJ27: =+IF($AI26>$AI27,$AJ26+1,$AJ26) -> 1 | AK27: 1
C28: =title339 -> April | D28: 1 | AB28: TRUE | AC28: 1 | AD28: =+IF(AND(AC29>AC28,AC28=0),"Last"&AF28,"") ->  | AE28: 0 | AF28: =+IF($AE27>$AE28,$AF27+1,$AF27) -> 2 | AG28: 2 | AH28: =+IF(AND(AI28>AI29,AI29=0),"Last"&AJ28,"") -> Last1 | AI28: 1 | AJ28: 1 | AK28: 1
C29: =title340 -> May | D29: 0 | F29: 0 | I29: 0 | L29: 0 | AB29: FALSE | AC29: 0 | AE29: 1 | AF29: 2 | AG29: 2 | AH29: =+IF(AND(AI29>AI30,AI30=0),"Last"&AJ29,"") ->  | AI29: 0 | AJ29: 2 | AK29: 1
C30: =title341 -> June | D30: 0 | F30: 0 | I30: 0 | L30: 0 | AB30: FALSE | AC30: 0 | AD30: Last2 | AE30: 2 | AF30: 2 | AG30: 2 | AI30: 0 | AJ30: 2 | AK30: 1
C31: =title342 -> July | D31: 1 | AB31: TRUE | AC31: 1 | AE31: 0 | AF31: 3 | AG31: 8 | AH31: Last2 | AI31: 1 | AJ31: 2 | AK31: 1
C32: =title343 -> August | D32: 0 | F32: 0 | I32: 0 | L32: 0 | AB32: FALSE | AC32: 0 | AE32: 1 | AF32: 3 | AG32: 8 | AI32: 0 | AJ32: 3 | AK32: 1
C33: =title344 -> September | D33: 0 | F33: 0 | I33: 0 | L33: 0 | AB33: FALSE | AC33: 0 | AE33: 2 | AF33: 3 | AG33: 8 | AI33: 0 | AJ33: 3 | AK33: 1
C34: =title345 -> October | D34: 0 | F34: 0 | I34: 0 | L34: 0 | AB34: FALSE | AC34: 0 | AE34: 3 | AF34: 3 | AG34: 8 | AI34: 0 | AJ34: 3 | AK34: 1
C35: =title346 -> November | D35: 0 | F35: 0 | I35: 0 | L35: 0 | AB35: FALSE | AC35: 0 | AE35: 4 | AF35: 3 | AG35: 8 | AI35: 0 | AJ35: 3 | AK35: 1
C36: =title347 -> December | D36: 0 | F36: 0 | I36: 0 | L36: 0 | AB36: FALSE | AC36: 0 | AD36: =+IF(AND(AC25>AC36,AC36=0),"Last"&AF36,"") ->  | AE36: 5 | AF36: =+IF($AE35>$AE36,$AF35+1,$AF35) -> 3 | AG36: =IFERROR(VLOOKUP("LAST"&AF36,$AD$25:$AE$36,2,FALSE),$AG$25) -> 8 | AH36: =+IF(AND(AI36>AI25,AI25=0),"Last"&AJ36,"") ->  | AI36: =+IF($AC36=0,0,IF($AC36>$AC35,1,IF($AC36=$AC35,$AI35+1,IF($AC35>$AC36,0)))) -> 0 | AJ36: =+IF($AI35>$AI36,$AJ35+1,$AJ35) -> 3 | AK36: 1
D37: =+MAX(D25:D36)*30 -> 30
C38: Maximum Storage Capacity Required (ts) | F38: =ROUNDUP(MAX(F25:F36),0) ->  | G38: =ROUNDUP(MAX(G25:G36),0) ->  | AB38: No. Storage Months | AC38: =+COUNTIF(AC25:AC36,">0") -> 2
C39: Minimum Safety Storage (ts) | F39: =+ROUNDUP(MIN(G25:G36),0) ->  | I39: =+ROUNDUP(MIN(J25:J36),0) ->  | L39: =+ROUNDUP(MIN(M25:M36),0) ->  | AB39: Total Depletion Period | AC39: =12-AC38 -> 10
C41: Monthly Consumption of Biomass Stocked
AD42: =F23&" (kW)" -> 10 (kW) | AE42: =I23&" (kW)" -> 40 (kW) | AF42: =L23&" (kW)" -> 100 (kW)
AC43: =+LEFT(C25,3) -> Jan | AD43: =+G25 ->  | AE43: =+J25 ->  | AF43: =+M25 -> 
AC44: Feb
AC45: Mar
AC46: Apr
AC47: May
AC48: Jun
AB49: =+VLOOKUP('Data Entry Needs'!$F$11&'Data Entry Needs'!$F$12,dummy_database!$C$1:$K$28,9,FALSE) ->  | AC49: =+LEFT(C31,3) -> Jul | AD49: =+G31 ->  | AE49: =+J31 ->  | AF49: =+M31 -> 
AB50: =+VLOOKUP('Data Entry Needs'!$F$11&'Data Entry Needs'!$F$12,dummy_database!$C$1:$K$28,10,FALSE) ->  | AC50: Aug
AB51: =+VLOOKUP('Data Entry Needs'!$F$11&'Data Entry Needs'!$F$12,dummy_database!$C$1:$K$28,11,FALSE) ->  | AC51: Sep
AB52: =+VLOOKUP('Data Entry Needs'!$F$11&'Data Entry Needs'!$F$12,dummy_database!$C$1:$K$28,13,FALSE) ->  | AC52: Oct
AC53: Nov
AB54: 21 | AC54: Dec

Sheet STORAGE_RES4 (hidden)
C3: =UPPER("storage calculator FOR GASIFICATION+RURAL ELECTRIFICATION FROM "&'Data Entry Needs'!$G$11&" "&'Data Entry Needs'!$G$12) -> STORAGE CALCULATOR FOR GASIFICATION+RURAL ELECTRIFICATION FROM PLEASE SELECT PLEASE SELECT
C6: Biomass safety stock rate definition
F8: Electricity Production Capacities (kW)
D9: Unit | F9: 10 | I9: 40 | L9: 100
C10: Biomass consumption | D10: t/year | F10: =+COST_RES4!$G$39 ->  | I10: =+COST_RES4!$I$39 ->  | L10: =+COST_RES4!$K$39 -> 
D11: t/month | F11: =F10/12 ->  | I11: =I10/12 ->  | L11: =L10/12 -> 
D12: t/day | F12: =F10/365 ->  | I12: =I10/365 ->  | L12: =L10/365 -> 
C14: Biomass production within a specific distance | D14: t/year | F14: =+'Data Entry Needs'!$G$13 -> 0 | I14: =+F14 -> 0 | L14: =I14 -> 0
C16: Biomass safety stock rate | F16: =+F17/100 -> 0.3 | I16: =+I17/100 -> 0.3 | L16: =+L17/100 -> 0.3
F17: 30 | I17: 30 | L17: 30
C18: Biomass stock pile capacity | D18: ts | F18: =+MAX(F25:F36) ->  | I18: =+MAX(I25:I36) ->  | L18: =+MAX(L25:L36) -> 
C20: Maximum storage definition
F22: Electricity Production Capacities (kW)
F23: =+F9 -> 10 | I23: =+I9 -> 40 | L23: =+L9 -> 100 | AD23: Depletion time definition
C24: Harvest Month Selection | D24: Storage Month | E24: Monthly Consumption (t/month) | F24: Biomass Stored (t) | G24: Storage Depletion (t/month) | H24: Monthly Consumption (t/month) | I24: Biomass Stored (t) | J24: Storage Depletion (t/month) | K24: Monthly Consumption (t/month) | L24: Biomass Stored (t) | M24: Storage Depletion (t/month) | AB24: Harvest Period | AC24: Harvest Period | AD24: Depletion term | AE24: Depletion month | AF24: EQ term | AG24: Depletion time | AH24: Storage term | AI24: Storage month | AJ24: EQ term | AK24: Storage time
C25: =title336 -> January | D25: =+IF($AC25=0,0,IF($AC25>$AC36,1,IF($AC25=$AC36,$D36+1,IF($AC36>$AC25,0)))) -> 0 | E25: =+F$11 ->  | F25: =+IF(AND($D$25=1,$D$36=0,$D$26=0),$F$11*$AG25+$F$11*$F$16,IF(D25>0,($AG25*$F$11/$AK25)*$D25+$F$11*$F$16,0)) -> 0 | G25: =IF(AND($D$25=1,$D$36=0,$D$26=0),$F$11*11+$G$36-E25,IF($D25>0,IFERROR(($AG25*$F$11/$AK25)*$D25,"")+$F$11*$F$16,IF($D25=0,G36-E25))) ->  | H25: =+I$11 ->  | I25: =+IF(AND($D$25=1,$D$36=0,$D$26=0),$I$11*$AG25+$I$11*$I$16,IF($D25>0,($AG25*$I$11/$AK25)*$D25+$I$11*$I$16,0)) -> 0 | J25: =IF(AND($D$25=1,$D$36=0,$D$26=0),$I$11*11+J36-H25,IF($D25>0,IFERROR(($AG25*$I$11/$AK25)*$D25,"")+$I$11*$I$16,IF($D25=0,J36-H25))) ->  | K25: =+L$11 ->  | L25: =+IF(AND($D$25=1,$D$36=0,$D$26=0),$L$11*$AG25+$L$11*$L$16,IF($D25>0,($AG25*$L$11/$AK25)*$D25+$L$11*$I$16,0)) -> 0 | M25: =IF(AND($D$25=1,$D$36=0,$D$26=0),$L$11*11+M36-K25,IF($D25>0,IFERROR(($AG25*$L$11/$AK25)*$D25,"")+$L$11*$L$16,IF($D25=0,M36-K25))) ->  | AB25: FALSE | AC25: =+N(AB25) -> 0 | AD25: =+IF(AND(AC26>AC25,AC25=0),"Last"&AF25,"") ->  | AE25: =+IF($AC25=1,0,IF($AC25<$AC36,1,IF($AC25=$AC36,$AE36+1,IF($AC36>$AC25,1)))) -> 7 | AF25: 1 | AG25: =IFERROR(VLOOKUP("LAST"&AF25,$AD$25:$AE$36,2,FALSE),AK25) -> 11 | AH25: =+IF(AND(AI25>AI26,AI26=0),"Last"&AJ25,"") ->  | AI25: =+IF($AC25=0,0,IF($AC25>$AC36,1,IF($AC25=$AC36,$AI36+1,IF($AC36>$AC25,0)))) -> 0 | AJ25: 1 | AK25: =IFERROR(VLOOKUP("LAST"&AJ25,$AH$25:$AI$36,2,FALSE),VLOOKUP("LAST"&1,$AH$25:$AI$36,2,FALSE)) -> 1
C26: =title337 -> February | D26: =+IF($AC26=0,0,IF($AC26>$AC25,1,IF($AC26=$AC25,$D25+1,IF($AC25>$AC26,0)))) -> 0 | F26: =IF(D26>0,($AG26*$F$11/$AK26)*$D26+$F$11*$F$16,0) -> 0 | G26: =+IF($D26>0,IFERROR(($AG26*$F$11/$AK26)*$D26,"")+$F$11*$F$16,IF($D26=0,G25-E26)) ->  | I26: =IF($D26>0,($AG26*$I$11/$AK26)*$D26+$I$11*$I$16,0) -> 0 | J26: =+IF($D26>0,IFERROR(($AG26*$I$11/$AK26)*$D26,"")+$I$11*$I$16,IF($D26=0,J25-H26)) ->  | L26: =IF($D26>0,($AG26*$L$11/$AK26)*$D26+$L$11*$L$16,0) -> 0 | M26: =+IF($D26>0,IFERROR(($AG26*$L$11/$AK26)*$D26,"")+$L$11*$L$16,IF($D26=0,M25-K26)) ->  | AB26: FALSE | AC26: =+N(AB26) -> 0 | AD26: =+IF(AND(AC27>AC26,AC26=0),"Last"&AF26,"") ->  | AE26: =+IF($AC26=1,0,IF($AC26<$AC25,1,IF($AC26=$AC25,$AE25+1,IF($AC25>$AC26,1)))) -> 8 | AF26: =+IF($AE25>$AE26,$AF25+1,$AF25) -> 1 | AG26: =IFERROR(VLOOKUP("LAST"&AF26,$AD$25:$AE$36,2,FALSE),$AG$25) -> 11 | AH26: =+IF(AND(AI26>AI27,AI27=0),"Last"&AJ26,"") ->  | AI26: =+IF($AC26=0,0,IF($AC26>$AC25,1,IF($AC26=$AC25,$AI25+1,IF($AC25>$AC26,0)))) -> 0 | AJ26: =+IF($AI25>$AI26,$AJ25+1,$AJ25) -> 1 | AK26: =IFERROR(VLOOKUP("LAST"&AJ26,$AH$25:$AI$36,2,FALSE),VLOOKUP("LAST"&1,$AH$25:$AI$36,2,FALSE)) -> 1
C27: =title338 -> March | D27: 0 | F27: 0 | I27: =IF($D27>0,($AG27*$I$11/$AK27)*$D27+$I$11*$I$16,0) -> 0 | L27: =IF($D27>0,($AG27*$L$11/$AK27)*$D27+$L$11*$L$16,0) -> 0 | AB27: FALSE | AC27: 0 | AD27: =+IF(AND(AC28>AC27,AC27=0),"Last"&AF27,"") ->  | AE27: 9 | AF27: =+IF($AE26>$AE27,$AF26+1,$AF26) -> 1 | AG27: 11 | AH27: =+IF(AND(AI27>AI28,AI28=0),"Last"&AJ27,"") ->  | AI27: =+IF($AC27=0,0,IF($AC27>$AC26,1,IF($AC27=$AC26,$AI26+1,IF($AC26>$AC27,0)))) -> 0 | AJ27: =+IF($AI26>$AI27,$AJ26+1,$AJ26) -> 1 | AK27: 1
C28: =title339 -> April | D28: 0 | F28: 0 | I28: 0 | L28: 0 | AB28: FALSE | AC28: 0 | AD28: =+IF(AND(AC29>AC28,AC28=0),"Last"&AF28,"") ->  | AE28: 10 | AF28: =+IF($AE27>$AE28,$AF27+1,$AF27) -> 1 | AG28: 11 | AH28: =+IF(AND(AI28>AI29,AI29=0),"Last"&AJ28,"") ->  | AI28: 0 | AJ28: 1 | AK28: 1
C29: =title340 -> May | D29: 0 | F29: 0 | I29: 0 | L29: 0 | AB29: FALSE | AC29: 0 | AD29: Last1 | AE29: 11 | AF29: 1 | AG29: 11 | AH29: =+IF(AND(AI29>AI30,AI30=0),"Last"&AJ29,"") ->  | AI29: 0 | AJ29: 1 | AK29: 1
C30: =title341 -> June | D30: 1 | AB30: TRUE | AC30: 1 | AE30: 0 | AF30: 2 | AG30: 11 | AH30: Last1 | AI30: 1 | AJ30: 1 | AK30: 1
C31: =title342 -> July | D31: 0 | F31: 0 | I31: 0 | L31: 0 | AB31: FALSE | AC31: 0 | AE31: 1 | AF31: 2 | AG31: 11 | AI31: 0 | AJ31: 2 | AK31: 1
C32: =title343 -> August | D32: 0 | F32: 0 | I32: 0 | L32: 0 | AB32: FALSE | AC32: 0 | AE32: 2 | AF32: 2 | AG32: 11 | AI32: 0 | AJ32: 2 | AK32: 1
C33: =title344 -> September | D33: 0 | F33: 0 | I33: 0 | L33: 0 | AB33: FALSE | AC33: 0 | AE33: 3 | AF33: 2 | AG33: 11 | AI33: 0 | AJ33: 2 | AK33: 1
C34: =title345 -> October | D34: 0 | F34: 0 | I34: 0 | L34: 0 | AB34: FALSE | AC34: 0 | AE34: 4 | AF34: 2 | AG34: 11 | AI34: 0 | AJ34: 2 | AK34: 1
C35: =title346 -> November | D35: 0 | F35: 0 | I35: 0 | L35: 0 | AB35: FALSE | AC35: 0 | AE35: 5 | AF35: 2 | AG35: 11 | AI35: 0 | AJ35: 2 | AK35: 1
C36: =title347 -> December | D36: 0 | F36: 0 | I36: 0 | L36: 0 | AB36: FALSE | AC36: 0 | AD36: =+IF(AND(AC25>AC36,AC36=0),"Last"&AF36,"") ->  | AE36: 6 | AF36: =+IF($AE35>$AE36,$AF35+1,$AF35) -> 2 | AG36: =IFERROR(VLOOKUP("LAST"&AF36,$AD$25:$AE$36,2,FALSE),$AG$25) -> 11 | AH36: =+IF(AND(AI36>AI25,AI25=0),"Last"&AJ36,"") ->  | AI36: =+IF($AC36=0,0,IF($AC36>$AC35,1,IF($AC36=$AC35,$AI35+1,IF($AC35>$AC36,0)))) -> 0 | AJ36: =+IF($AI35>$AI36,$AJ35+1,$AJ35) -> 2 | AK36: 1
D37: =+MAX(D25:D36)*30 -> 30
C38: Maximum Storage Capacity Required (ts) | F38: =ROUNDUP(MAX(F25:F36),0) ->  | G38: =ROUNDUP(MAX(G25:G36),0) ->  | AB38: No. Storage Months | AC38: =+COUNTIF(AC25:AC36,">0") -> 1
C39: Minimum Safety Storage (ts) | F39: =+ROUNDUP(MIN(G25:G36),0) ->  | I39: =+ROUNDUP(MIN(J25:J36),0) ->  | L39: =+ROUNDUP(MIN(M25:M36),0) ->  | AB39: Total Depletion Period | AC39: =12-AC38 -> 11
C41: Monthly Consumption of Biomass Stocked
AE42: =F23&" (kW)" -> 10 (kW) | AF42: =I23&" (kW)" -> 40 (kW) | AG42: =L23&" (kW)" -> 100 (kW)
AD43: =+LEFT(C25,3) -> Jan | AE43: =+G25 ->  | AF43: =+J25 ->  | AG43: =+M25 -> 
AD44: Feb
AD45: Mar
AD46: Apr
AD47: May
AD48: Jun
AC49: =+VLOOKUP('Data Entry Needs'!$F$11&'Data Entry Needs'!$F$12,dummy_database!$C$1:$K$28,9,FALSE) ->  | AD49: =+LEFT(C31,3) -> Jul | AE49: =+G31 ->  | AF49: =+J31 ->  | AG49: =+M31 -> 
AC50: =+VLOOKUP('Data Entry Needs'!$F$11&'Data Entry Needs'!$F$12,dummy_database!$C$1:$K$28,10,FALSE) ->  | AD50: Aug
AC51: =+VLOOKUP('Data Entry Needs'!$F$11&'Data Entry Needs'!$F$12,dummy_database!$C$1:$K$28,11,FALSE) ->  | AD51: Sep
AC52: =+VLOOKUP('Data Entry Needs'!$F$11&'Data Entry Needs'!$F$12,dummy_database!$C$1:$K$28,13,FALSE) ->  | AD52: Oct
AD53: Nov
AC54: 21 | AD54: Dec

Sheet Data Entry Needs
C3: =title60 -> DATA ENTRY FOR RURAL ELECTRIFICATION - COMBUSTION
C6: =title61 -> Use white cells to input data | D6: =title62 -> Grey cells are used for calculations
C8: =title63 -> Feedstock Availability and Cost
D10: =title64&" 1" -> Feedstock 1 | E10: =title64&" 2" -> Feedstock 2 | F10: =title64&" 3" -> Feedstock 3 | G10: =title64&" 4" -> Feedstock 4
D11: Please Select | E11: Please Select | F11: Please Select | G11: Please Select
C12: =title64 -> Feedstock | D12: Please Select | E12: Please Select | F12: Please Select | G12: Please Select
C13: =title65 -> Feedstock potential (t/year)
C14: =title66 -> Feedstock yield (t/ha)
C15: =title67 -> Moisture content (%) | D15: =+IF(D$11=title73,0,IFERROR(IF(D$11=title19,VLOOKUP(D$11,dummy_database!$C$1:$E$31,2,FALSE),VLOOKUP(D$11&D$12,dummy_database!$C$1:$E$31,2,FALSE)),"")) -> 0 | E15: =+IF(E$11=title73,0,IFERROR(IF(E$11=title19,VLOOKUP(E$11,dummy_database!$C$1:$E$31,2,FALSE),VLOOKUP(E$11&E$12,dummy_database!$C$1:$E$31,2,FALSE)),"")) -> 0 | F15: =+IF(F$11=title73,0,IFERROR(IF(F$11=title19,VLOOKUP(F$11,dummy_database!$C$1:$E$31,2,FALSE),VLOOKUP(F$11&F$12,dummy_database!$C$1:$E$31,2,FALSE)),"")) -> 0 | G15: =+IF(G$11=title73,0,IFERROR(IF(G$11=title19,VLOOKUP(G$11,dummy_database!$C$1:$E$31,2,FALSE),VLOOKUP(G$11&G$12,dummy_database!$C$1:$E$31,2,FALSE)),"")) -> 0
C16: =title68 -> Size (mm) | D16: =IF(D$11=title73,0,IFERROR(IF(D$11=title19,VLOOKUP(D$11,dummy_database!$C$1:$E$31,3,FALSE),VLOOKUP(D$11&D$12,dummy_database!$C$2:$E$31,3,FALSE)),"")) -> 0 | E16: =IF(E$11=title73,0,IFERROR(IF(E$11=title19,VLOOKUP(E$11,dummy_database!$C$1:$E$31,3,FALSE),VLOOKUP(E$11&E$12,dummy_database!$C$2:$E$31,3,FALSE)),"")) -> 0 | F16: =IF(F$11=title73,0,IFERROR(IF(F$11=title19,VLOOKUP(F$11,dummy_database!$C$1:$E$31,3,FALSE),VLOOKUP(F$11&F$12,dummy_database!$C$2:$E$31,3,FALSE)),"")) -> 0 | G16: =IF(G$11=title73,0,IFERROR(IF(G$11=title19,VLOOKUP(G$11,dummy_database!$C$1:$E$31,3,FALSE),VLOOKUP(G$11&G$12,dummy_database!$C$2:$E$31,3,FALSE)),"")) -> 0
C17: =title69 -> Feedstock price (USD/t)
C18: FALSE | D18: =+IF(D$11=title73,0,IF($C$18=FALSE,PRICE_RES1!$I$26,title74)) -> 0 | E18: =+IF(E$11=title73,0,IF($C$18=FALSE,PRICE_RES2!$I$26,title74)) -> 0 | F18: =+IF(F$11=title73,0,IF($C$18=FALSE,PRICE_RES3!$I$26,title74)) -> 0 | G18: =+IF(G$11=title73,0,IF($C$18=FALSE,PRICE_RES4!$I$26,title74)) -> 0
C19: TRUE
C20: =title72 -> Feedstock storage cost (USD/t)
D22: =IF(OR(D11=title20,D11=title21),TRUE,FALSE) -> FALSE | E22: =IF(OR(E11=title20,E11=title21),TRUE,FALSE) -> FALSE | F22: =IF(OR(F11=title20,F11=title21),TRUE,FALSE) -> FALSE | G22: =IF(OR(G11=title20,G11=title21),TRUE,FALSE) -> FALSE
C23: =title76 -> Electricity Price Definition
C25: =title77 -> Select a method to determine the price of electricity
C27: =title78 -> Method 1 | E27: Units | F27: =title81 -> Method 1: Use a calculator to determine the production cost of electricity from diesel generator.
C28: =title79 -> Comparative production cost of electricity | D28: =+'Rural Electricity Price'!$M$18 -> 0 | E28: USD/kWh
C30: =title82 -> Method 2 | E30: =title80 -> Unit | F30: =title110 -> Method 2: Use an electricity price defined by the user. In the assessment , it is important to consider that this price might include subsidies.
C32: =title111 -> Price paid by customer | E32: USD/kWh
C34: =title83 -> Production Cost and Financial Parameters
C36: =title84 -> Labour | E36: =title80 -> Unit | J36: =title80 -> Unit
C37: =title85 -> Unskilled worker | E37: =title100 -> USD/person-h | F37: =title103 -> Skilled worker | J37: =title100 -> USD/person-h
C39: =title86 -> Utilities | E39: =title80 -> Unit | J39: =title80 -> Unit
C40: =title87 -> Water | E40: USD/m3
C42: =title88 -> Feedstock collection | E42: =title80 -> Unit | J42: =title80 -> Unit
C43: =title89 -> Working hours per day (manual) | E43: =title101 -> h/day | F43: =title105 -> Working hours per day (mechanized) | J43: =title101 -> h/day
C44: =title104 -> Diesel | E44: USD/litre
C45: =title90 -> Transportation cost | E45: =title80 -> Unit
C46: =title91 -> Feedstock (collection point to plant) | E46: USD/t/km
C48: =title92 -> Other costs | E48: =title80 -> Unit | J48: =title80 -> Unit
C49: =title93 -> General and administrative (%) | F49: =title106&"(%)" -> Maintenance cost(%)
C50: =title94 -> Plant overhead (%) | F50: Miscellaneous costs (%)
C52: =title95 -> Financial parameters | E52: =title80 -> Unit | F52: =title108 -> Investment cost update
C53: =title96 -> Discount rate
C54: =title97 -> Loan ratio | F54: =title109&MONTH(TODAY())&"/"&YEAR(TODAY()) -> Plant Cost Index during 5/2017
C55: =title98 -> Loan interest rate | F55: http://www.intratec.us/free-tools/intratec-construction-index
C56: =title99 -> Loan term | E56: =title102 -> year
C59: Inflation rate | D59: 0.05
AB87: =+D$11&" "&D$12 -> Please Select Please Select | AC87: =+E$11&" "&E$12 -> Please Select Please Select | AD87: =+F$11&" "&F$12 -> Please Select Please Select | AE87: =+G$11&" "&G$12 -> Please Select Please Select
AK88: Selction Binder | AN88: Change in raw material cost (%)
AE89: Crop | AF89: Crop | AG89: =title64 -> Feedstock | AH89: Options | AJ89: Feedstock 1 | AK89: =+IF($D$22="yes",AI90,"") ->  | AN89: Change in Labour cost (%)
AE90: =title73 -> Please Select | AF90: =title73 -> Please Select | AG90: =title73 -> Please Select | AH90: yes | AK90: =+IF($D$22="yes",AI91,"") ->  | AN90: Change in Investment cost (%)
AE91: =title3 -> cacao | AF91: =title2 -> barley | AG91: =title22 -> straw | AH91: no | AN91: Change in electricity price(%)
AE92: =title4 -> cassava | AF92: =title3 -> cacao | AG92: =title23 -> pods | AJ92: Feedstock 2 | AN92: Income Tax rate | AQ92: 0
W93: =title2 -> barley | AE93: =title5 -> coconut | AF93: =title4 -> cassava | AG93: =title24 -> stalk
W94: =title3 -> cacao | AE94: =title6 -> coffee | AF94: =title5 -> coconut | AG94: =title25 -> fronds | AN94: Condition
W95: =title4 -> cassava | AE95: =title7 -> cotton | AF95: coconut1 | AG95: =title26 -> husk | AJ95: Feedstock 3 | AN95: Wage1 | AO95: =IF(OR($D$37="",$D$37=" "),TRUE,FALSE) -> TRUE
W96: =title5 -> coconut | AE96: =title8 -> groundnut | AF96: coconut2 | AG96: =title27 -> shell | AK96: =+IF($D$22="yes",AI92,"") ->  | AN96: Wage2 | AO96: =IF(OR($I$37="",$I$37=" "),TRUE,FALSE) -> TRUE
W97: =title6 -> coffee | AE97: =title9 -> maize | AF97: =title6 -> coffee | AG97: =title26 -> husk | AK97: =+IF($E$22="yes",AI90,"") ->  | AN97: =title104 -> Diesel | AO97: =IF(OR($D$44="",$D$44=" "),TRUE,FALSE) -> TRUE
W98: =title7 -> cotton | AE98: =title10 -> millet | AF98: =title7 -> cotton | AG98: =title28 -> hull | AJ98: Feedstock 4 | AK98: =+IF($E$22="yes",AI91,"") ->  | AN98: Decision1 | AO98: =+OR(AO95,AO96,AO97) -> TRUE
W99: =title8 -> groundnut | AE99: =title11 -> oat | AF99: cotton1 | AG99: =title24 -> stalk | AK99: =+IF($E$22="yes",AI92,"") ->  | AN99: Decision2 | AO99: =+C18 -> FALSE
W100: =title9 -> maize | AE100: =title12 -> oil palm | AF100: =title8 -> groundnut | AG100: =title27 -> shell | AK100: =+IF($F$22="yes",AI90,"") ->  | AN100: PCI | AO100: =IF(OR($I$54="",$I$54=" "),TRUE,FALSE) -> TRUE
W101: =title10 -> millet | AE101: =title13 -> rice | AF101: =title9 -> maize | AG101: =title29 -> cob | AK101: =+IF($F$22="yes",AI91,"") -> 
W102: =title11 -> oat | AE102: =title15 -> sorghum | AF102: maize1 | AG102: =title26 -> husk | AK102: =+IF($F$22="yes",AI92,"") -> 
W103: oilpalm | AE103: =title16 -> soybean | AF103: maize2 | AG103: =title30 -> stover | AK103: =IF($G$22="yes",AI90,"") -> 
W104: =title13 -> rice | AE104: =title17 -> sugarcane | AF104: =title10 -> millet | AG104: =title22 -> straw | AK104: =IF($G$22="yes",AI91,"") -> 
W105: =title15 -> sorghum | AE105: =title18 -> wheat | AF105: =title11 -> oat | AG105: =title22 -> straw | AK105: =IF($G$22="yes",AI92,"") -> 
W106: =title16 -> soybean | AE106: =title19 -> Briquettes/Pellets | AF106: =title12 -> oil palm | AG106: =title31 -> empty bunches
W107: =title17 -> sugarcane | AE107: =title20 -> Forest Harvest. Res. | AF107: oil palm1 | AG107: =title25 -> fronds
W108: sunflower | AE108: =title21 -> Wood Proces. Res. | AF108: oil palm2 | AG108: =title27 -> shell
W109: =title18 -> wheat | AF109: =title13 -> rice | AG109: =title22 -> straw
AF110: rice1 | AG110: =title26 -> husk
AF111: =title14 -> rye | AG111: =title22 -> straw
AF112: =title15 -> sorghum | AG112: =title32 -> straw/stalk
AF113: =title16 -> soybean | AG113: =title22 -> straw
AF114: soybean1 | AG114: =title23 -> pods
AF115: =title17 -> sugarcane | AG115: =title33 -> tops/leaves
AF116: sugarcane1 | AG116: baggase | AI116: FS
AF117: =title18 -> wheat | AG117: =title22 -> straw | AI117: 1 | AJ117: =+IF($D$11=title73,TRUE,FALSE) -> TRUE
AF118: =title19 -> Briquettes/Pellets | AG118: =title2 -> barley | AI118: 2 | AJ118: =+IF($E$11=title73,TRUE,FALSE) -> TRUE
AF119: Briquettes/Pellets1 | AG119: =title3 -> cacao | AI119: 3 | AJ119: =+IF($F$11=title73,TRUE,FALSE) -> TRUE
AF120: Briquettes/Pellets2 | AG120: =title4 -> cassava | AI120: 4 | AJ120: =+IF($G$11=title73,TRUE,FALSE) -> TRUE
AF121: Briquettes/Pellets3 | AG121: =title5 -> coconut | AJ121: 0
AF122: Briquettes/Pellets4 | AG122: =title6 -> coffee | AJ122: 1
AF123: Briquettes/Pellets5 | AG123: =title7 -> cotton | AJ123: 0
AF124: Briquettes/Pellets6 | AG124: =title8 -> groundnut
AB125: Feedstock 1 | AC125: Selection Crop | AD125: Crop Feedstock | AF125: Briquettes/Pellets7 | AG125: 1 | AJ125: ElectriCity Price | AK125: 1 | AL125: =+IF($AK$125=1,$D$28,$D$32) -> 0
AC126: =$D$11 -> Please Select | AD126: =+IFERROR(VLOOKUP($AC$126&AB126,$AF$91:$AG$136,2,FALSE),title73) -> Please Select | AF126: Briquettes/Pellets8 | AG126: =title10 -> millet
AB127: 1 | AD127: =+IFERROR(VLOOKUP($AC$126&AB127,$AF$91:$AG$136,2,FALSE),"") ->  | AF127: Briquettes/Pellets9 | AG127: =title11 -> oat
AB128: 2 | AD128: =+IFERROR(VLOOKUP($AC$126&AB128,$AF$91:$AG$136,2,FALSE),"") ->  | AF128: Briquettes/Pellets10 | AG128: oilpalm
AB129: 3 | AF129: Briquettes/Pellets11 | AG129: =title13 -> rice
AB130: 4 | AF130: Briquettes/Pellets12 | AG130: =title14 -> rye
AB131: 5 | AF131: Briquettes/Pellets13 | AG131: =title15 -> sorghum
AB132: 6 | AF132: Briquettes/Pellets14 | AG132: =title16 -> soybean
AB133: 7 | AF133: Briquettes/Pellets15 | AG133: =title17 -> sugarcane
AB134: 8 | AF134: Briquettes/Pellets16 | AG134: =title18 -> wheat
AF135: =title386 -> Forest | AG135: =title388 -> Harv. Res.
AB136: 9 | AF136: =title387 -> Wood | AG136: =title389 -> Proc. Res.
AB137: 10
AB138: 11
AB139: 12
AB140: 13
AB141: 14
AB142: 15
AB143: 16
AB144: Feedstock 2
AC145: Selection Crop | AD145: Crop Feedstock
AC146: =$E$11 -> Please Select | AD146: =+IFERROR(VLOOKUP($AC$146&AB146,$AF$91:$AG$136,2,FALSE),title73) -> Please Select
AB147: 1 | AD147: =+IFERROR(VLOOKUP($AC$146&AB147,$AF$91:$AG$136,2,FALSE),"") -> 
AB148: 2 | AD148: =+IFERROR(VLOOKUP($AC$146&AB148,$AF$91:$AG$136,2,FALSE),"") -> 
AB149: 3
AB150: 4
AB151: 5
AB152: 6
AB153: 7
AB154: 8
AB155: 9
AB156: 10
AB157: 11
AB158: 12
AB159: 13
AB160: 14
AB161: 15
AB162: 16
AB163: Feedstock 3
AC164: Selection Crop | AD164: Crop Feedstock
AC165: =$F$11 -> Please Select | AD165: =+IFERROR(VLOOKUP($AC$165&AB165,$AF$91:$AG$136,2,FALSE),title73) -> Please Select
AB166: 1 | AD166: =+IFERROR(VLOOKUP($AC$165&AB166,$AF$91:$AG$136,2,FALSE),"") -> 
AB167: 2 | AD167: =+IFERROR(VLOOKUP($AC$165&AB167,$AF$91:$AG$136,2,FALSE),"") -> 
AB168: 3
AB169: 4
AB170: 5
AB171: 6
AB172: 7
AB173: 8
AB174: 9
AB175: 10
AB176: 11
AB177: 12
AB178: 13
AB179: 14
AB180: 15
AB181: 16
AB182: Feedstock 4
AC183: Selection Crop | AD183: Crop Feedstock
AC184: =$G$11 -> Please Select | AD184: =+IFERROR(VLOOKUP($AC$184&AB184,$AF$91:$AG$136,2,FALSE),title73) -> Please Select
AB185: 1 | AD185: =+IFERROR(VLOOKUP($AC$184&AB185,$AF$91:$AG$136,2,FALSE),"") -> 
AB186: 2 | AD186: =+IFERROR(VLOOKUP($AC$184&AB186,$AF$91:$AG$136,2,FALSE),"") -> 
AB187: 3
AB188: 4
AB189: 5
AB190: 6
AB191: 7
AB192: 8
AB193: 9
AB194: 10
AB195: 11
AB196: 12
AB197: 13
AB198: 14
AB199: 15
AB200: 16

Sheet PRICE_RES1 (hidden)
C3: =+title385&UPPER('Data Entry Needs'!$D$11&" "&'Data Entry Needs'!$D$12) -> COLLECTION COSTS CALCULATOR FOR PLEASE SELECT PLEASE SELECT | P3: =title370 -> Sources of biomass | Q3: No. | R3: Selection2 | S3: Number | T3: =title366 -> Mechanized | U3: =title360 -> Number of skilled workers | V3: =title391 -> person-hour/ha
P4: =title372 -> Agricultural residues spread in the field | Q4: 1 | R4: =+$F$11 -> Manual | T4: =title366&2 -> Mechanized2 | U4: =title361 -> Skilled labour wage | V4: =title390 -> USD/person-hour
P5: =title373 -> Agricultural residues collected from field | Q5: 2 | R5: Selection1 | S5: 1 | T5: =title366&4 -> Mechanized4 | U5: =title362 -> Average fuel economy | V5: l/h
C6: =title61 -> Use white cells to input data | E6: =title62 -> Grey cells are used for calculations | P6: =title374 -> Agricultural residues from food processing plant | Q6: 3 | R6: =+VLOOKUP($C$11,$P$3:$Q$10,2,FALSE) -> 1 | S6: 2 | T6: =title366&5 -> Mechanized5 | U6: =title363 -> Fuel price | V6: USD/l
P7: =title375 -> Forestry | Q7: 4 | S7: 3 | T7: =title367 -> Semi-mechanized | U7: =title360 -> Number of skilled workers | V7: =title391 -> person-hour/ha
C8: =title369 -> Biomass Collection Definition | P8: Forestry and plantation residues | Q8: 5 | S8: 4 | T8: =title367&1 -> Semi-mechanized1 | U8: =title364 -> Number of unskilled workers | V8: =title391 -> person-hour/ha
P9: =title376 -> Residues from wood industry | Q9: 6 | S9: 5 | T9: =title367&2 -> Semi-mechanized2 | U9: =title361 -> Skilled labour wage | V9: =title390 -> USD/person-hour
C10: =title370 -> Sources of biomass | F10: =title370 -> Sources of biomass | P10: =title377 -> Dedicated wood energy plantation | Q10: 7 | T10: =title367&3 -> Semi-mechanized3 | U10: =title365 -> Unskilled labour wage | V10: =title390 -> USD/person-hour
C11: Agricultural residues spread in the field | F11: Manual | P11: Collection Method | T11: =title367&4 -> Semi-mechanized4 | U11: =title362 -> Average fuel economy | V11: l/h
P12: =title366 -> Mechanized | T12: =title367&5 -> Semi-mechanized5 | U12: =title363 -> Fuel price | V12: USD/l
C13: =IF($R$6=7,title378,IF(OR($R$6=1,$R$6=5,$R$6=4),title369,title379)) -> Biomass Collection Definition | P13: =title367 -> Semi-mechanized | T13: =title368 -> Manual | U13: =title364 -> Number of unskilled workers | V13: =title391 -> person-hour/ha
P14: =title368 -> Manual | T14: =title368&2 -> Manual2 | U14: =title365 -> Unskilled labour wage | V14: =title390 -> USD/person-hour
C16: =title380 -> Biomass price definition
C17: =title381 -> Labour cost | D17: =title163 -> Quantity | E17: =title80 -> Unit | F17: =title163 -> Quantity | H17: =title80 -> Unit | I17: Total | J17: =title80 -> Unit
C18: =+IF(OR($R$6=1,$R$6=4,$R$6=5),IFERROR(VLOOKUP($R$4&$S4,$T$3:$V$14,2,FALSE),""),"") -> Number of unskilled workers | E18: =IF(OR(entry1=title20,entry1=title21),title396,IF(OR($R$6=1,$R$6=4,$R$6=5),IFERROR(VLOOKUP($R$4&$S4,$T$3:$V$23,3,FALSE),""),"")) -> person-hour/ha | F18: =IF(OR($R$6=1,$R$6=4,$R$6=5),IFERROR(VLOOKUP($R$4&$S6,$T$3:$V$14,2,FALSE),""),"") -> Unskilled labour wage | G18: =IF(F18="","",IF(F18=title365,'Data Entry Needs'!$D$37,IF(F18=title361,'Data Entry Needs'!$I$37))) -> 0 | H18: =IF(OR($R$6=1,$R$6=4,$R$6=5),IFERROR(VLOOKUP($R$4&$S6,$T$3:$V$20,3,FALSE),""),"") -> USD/person-hour | I18: =+IFERROR(G18*D18*(COST_RES1!$E$10/created1),"") ->  | J18: =+IF(OR($R$6=1,$R$6=4,$R$6=5),title182,"") -> USD/year | K18: =IF(OR(entry1=title20,entry1=title21),1,COST_RES1!$E$11) -> 0
C19: =IF(OR($R$6=1,$R$6=4,$R$6=5),IFERROR(VLOOKUP($R$4&$S5,$T$3:$V$14,2,FALSE),""),"") ->  | E19: =IF(AND(selection1=title367,OR(entry1=title20,entry1=title21)),title396,IF(OR($R$6=1,$R$6=4,$R$6=5),IFERROR(VLOOKUP($R$4&$S5,$T$3:$V$23,3,FALSE),""),"")) ->  | F19: =IF(OR($R$6=1,$R$6=4,$R$6=5),IFERROR(VLOOKUP($R$4&$S7,$T$3:$V$14,2,FALSE),""),"") ->  | G19: =IF(F19="","",'Data Entry Needs'!$D$37) ->  | H19: =IF(OR($R$6=1,$R$6=4,$R$6=5),IFERROR(VLOOKUP($R$4&$S7,$T$3:$V$27,3,FALSE),""),"") ->  | I19: =+IFERROR(G19*D19*(COST_RES1!$E$10/created1),"") ->  | J19: =+IF(OR($R$6=1,$R$6=4,$R$6=5),title182,"") -> USD/year
D20: =+IF(AND(C18="",C19=""),0,IF(C18="",D19,IF(C19="",D18,D18+D19))) -> 0 | H20: =+IF(OR($R$6=1,$R$6=4,$R$6=5),title143,"") -> Subtotal | I20: =+SUMIF($I$18:$I$19,">0") -> 0 | J20: =+IF(OR($R$6=1,$R$6=4,$R$6=5),title182,"") -> USD/year
C21: =title382 -> Machinery and operating cost | D21: =title163 -> Quantity | E21: =title80 -> Unit | F21: =title163 -> Quantity | H21: =title80 -> Unit | I21: Total | J21: =title80 -> Unit
C22: =IF(OR($R$6=1,$R$6=4,$R$6=5),IFERROR(VLOOKUP($R$4&$S8,$T$3:$V$14,2,FALSE),""),"") ->  | E22: =IF(OR($R$6=1,$R$6=4,$R$6=5),IFERROR(VLOOKUP($R$4&$S8,$T$3:$V$27,3,FALSE),""),"") ->  | F22: =IF(OR($R$6=1,$R$6=4,$R$6=5),IFERROR(VLOOKUP($R$4&$S9,$T$3:$V$14,2,FALSE),""),"") ->  | G22: =IF(F22="","",'Data Entry Needs'!$D$44) ->  | H22: =+IFERROR(VLOOKUP($R$4&$S9,$T$3:$V$14,3,FALSE),"") ->  | I22: =+IFERROR(G22*D22*IF($F$11=title368,0,$D$18*COST_RES1!$E$10/COST_RES1!$E$11),"") ->  | J22: =+IF(OR($R$6=1,$R$6=4,$R$6=5),title182,"") -> USD/year
H23: =+IF(OR($R$6=1,$R$6=4,$R$6=5),title143,"") -> Subtotal | I23: =+I22 ->  | J23: =+IF(OR($R$6=1,$R$6=4,$R$6=5),title182,"") -> USD/year
H24: =+IF(OR($R$6=1,$R$6=4,$R$6=5),"Total","") -> Total | I24: =IFERROR(I20+I23,I20) -> 0 | J24: =+IF(OR($R$6=1,$R$6=4,$R$6=5),title182,"") -> USD/year
F26: =IF($R$6=7,title383,title384)&'Data Entry Needs'!$D$11&" "&'Data Entry Needs'!$D$12 -> Collection price of Please Select Please Select | I26: =I24/COST_RES1!E10 ->  | J26: USD/t

Sheet PRICE_RES2 (hidden)
C3: =+UPPER(title385&'Data Entry Needs'!$E$11&" "&'Data Entry Needs'!$E$12) -> COLLECTION COSTS CALCULATOR FOR PLEASE SELECT PLEASE SELECT | P3: =title370 -> Sources of biomass | Q3: No. | R3: Selection2 | S3: Number | T3: =title366 -> Mechanized | U3: =title360 -> Number of skilled workers | V3: =title391 -> person-hour/ha
P4: =title372 -> Agricultural residues spread in the field | Q4: 1 | R4: =+$F$11 -> Manual | T4: =title366&2 -> Mechanized2 | U4: =title361 -> Skilled labour wage | V4: =title390 -> USD/person-hour
P5: =title373 -> Agricultural residues collected from field | Q5: 2 | R5: Selection1 | S5: 1 | T5: =title366&4 -> Mechanized4 | U5: =title362 -> Average fuel economy | V5: l/h
C6: =title61 -> Use white cells to input data | E6: =title62 -> Grey cells are used for calculations | P6: =title374 -> Agricultural residues from food processing plant | Q6: 3 | R6: =+VLOOKUP($C$11,$P$3:$Q$10,2,FALSE) -> 1 | S6: 2 | T6: =title366&5 -> Mechanized5 | U6: =title363 -> Fuel price | V6: USD/l
P7: =title375 -> Forestry | Q7: 4 | S7: 3 | T7: =title367 -> Semi-mechanized | U7: =title360 -> Number of skilled workers | V7: =title391 -> person-hour/ha
C8: =title369 -> Biomass Collection Definition | P8: Forestry and plantation residues | Q8: 5 | S8: 4 | T8: =title367&1 -> Semi-mechanized1 | U8: =title364 -> Number of unskilled workers | V8: =title391 -> person-hour/ha
P9: =title376 -> Residues from wood industry | Q9: 6 | S9: 5 | T9: =title367&2 -> Semi-mechanized2 | U9: =title361 -> Skilled labour wage | V9: =title390 -> USD/person-hour
C10: =title370 -> Sources of biomass | F10: =title370 -> Sources of biomass | P10: =title377 -> Dedicated wood energy plantation | Q10: 7 | T10: =title367&3 -> Semi-mechanized3 | U10: =title365 -> Unskilled labour wage | V10: =title390 -> USD/person-hour
C11: Agricultural residues spread in the field | F11: Manual | P11: Collection method | T11: =title367&4 -> Semi-mechanized4 | U11: =title362 -> Average fuel economy | V11: l/h
P12: =title366 -> Mechanized | T12: =title367&5 -> Semi-mechanized5 | U12: =title363 -> Fuel price | V12: USD/l
C13: =IF($R$6=7,title378,IF(OR($R$6=1,$R$6=5,$R$6=4),title369,title379)) -> Biomass Collection Definition | P13: =title367 -> Semi-mechanized | T13: =title368 -> Manual | U13: =title364 -> Number of unskilled workers | V13: =title391 -> person-hour/ha
P14: =title368 -> Manual | T14: =title368&2 -> Manual2 | U14: =title365 -> Unskilled labour wage | V14: =title390 -> USD/person-hour
C16: =title380 -> Biomass price definition
C17: =title381 -> Labour cost | D17: =title163 -> Quantity | E17: =title80 -> Unit | F17: =title163 -> Quantity | H17: =title80 -> Unit | I17: Total | J17: =title80 -> Unit
C18: =+IF(OR($R$6=1,$R$6=4,$R$6=5),IFERROR(VLOOKUP($R$4&$S4,$T$3:$V$14,2,FALSE),""),"") -> Number of unskilled workers | E18: =IF(OR(entry2=title20,entry2=title21),title396,IF(OR($R$6=1,$R$6=4,$R$6=5),IFERROR(VLOOKUP($R$4&$S4,$T$3:$V$23,3,FALSE),""),"")) -> person-hour/ha | F18: =IF(OR($R$6=1,$R$6=4,$R$6=5),IFERROR(VLOOKUP($R$4&$S6,$T$3:$V$14,2,FALSE),""),"") -> Unskilled labour wage | G18: =IF(F18="","",IF(F18=title365,'Data Entry Needs'!$D$37,IF(F18=title361,'Data Entry Needs'!$I$37))) -> 0 | H18: =IF(OR($R$6=1,$R$6=4,$R$6=5),IFERROR(VLOOKUP($R$4&$S6,$T$3:$V$20,3,FALSE),""),"") -> USD/person-hour | I18: =+IFERROR(G18*D18*(COST_RES2!$E$10/created2),"") ->  | J18: =+IF(OR($R$6=1,$R$6=4,$R$6=5),title182,"") -> USD/year | K18: =IF(OR(entry2=title20,entry2=title21),1,COST_RES2!$E$11) -> 0
C19: =IF(OR($R$6=1,$R$6=4,$R$6=5),IFERROR(VLOOKUP($R$4&$S5,$T$3:$V$14,2,FALSE),""),"") ->  | E19: =IF(AND(selection2=title367,OR(entry2=title20,entry2=title21)),title396,IF(OR($R$6=1,$R$6=4,$R$6=5),IFERROR(VLOOKUP($R$4&$S5,$T$3:$V$23,3,FALSE),""),"")) ->  | F19: =IF(OR($R$6=1,$R$6=4,$R$6=5),IFERROR(VLOOKUP($R$4&$S7,$T$3:$V$14,2,FALSE),""),"") ->  | G19: =IF(F19="","",'Data Entry Needs'!$D$37) ->  | H19: =IF(OR($R$6=1,$R$6=4,$R$6=5),IFERROR(VLOOKUP($R$4&$S7,$T$3:$V$27,3,FALSE),""),"") ->  | I19: =+IFERROR(G19*D19*(COST_RES2!$E$10/created2),"") ->  | J19: =+IF(OR($R$6=1,$R$6=4,$R$6=5),title182,"") -> USD/year
D20: =+IF(AND(C18="",C19=""),0,IF(C18="",D19,IF(C19="",D18,D18+D19))) -> 0 | H20: =+IF(OR($R$6=1,$R$6=4,$R$6=5),title143,"") -> Subtotal | I20: =+SUMIF($I$18:$I$19,">0") -> 0 | J20: =+IF(OR($R$6=1,$R$6=4,$R$6=5),title182,"") -> USD/year
C21: =title382 -> Machinery and operating cost | D21: =title163 -> Quantity | E21: =title80 -> Unit | F21: =title163 -> Quantity | H21: =title80 -> Unit | I21: Total | J21: =title80 -> Unit
C22: =IF(OR($R$6=1,$R$6=4,$R$6=5),IFERROR(VLOOKUP($R$4&$S8,$T$3:$V$14,2,FALSE),""),"") ->  | E22: =IF(OR($R$6=1,$R$6=4,$R$6=5),IFERROR(VLOOKUP($R$4&$S8,$T$3:$V$27,3,FALSE),""),"") ->  | F22: =IF(OR($R$6=1,$R$6=4,$R$6=5),IFERROR(VLOOKUP($R$4&$S9,$T$3:$V$14,2,FALSE),""),"") ->  | G22: =IF(F22="","",'Data Entry Needs'!$D$44) ->  | H22: =+IFERROR(VLOOKUP($R$4&$S9,$T$3:$V$14,3,FALSE),"") ->  | I22: =+IFERROR(G22*D22*IF($F$11=title368,0,$D$18*COST_RES2!$E$10/COST_RES2!$E$11),"") ->  | J22: =+IF(OR($R$6=1,$R$6=4,$R$6=5),title182,"") -> USD/year
H23: =+IF(OR($R$6=1,$R$6=4,$R$6=5),title143,"") -> Subtotal | I23: =+I22 ->  | J23: =+IF(OR($R$6=1,$R$6=4,$R$6=5),title182,"") -> USD/year
H24: =+IF(OR($R$6=1,$R$6=4,$R$6=5),"Total","") -> Total | I24: =IFERROR(I20+I23,I20) -> 0 | J24: =+IF(OR($R$6=1,$R$6=4,$R$6=5),title182,"") -> USD/year
F26: =IF($R$6=7,title383,title384)&'Data Entry Needs'!$E$11&" "&'Data Entry Needs'!$E$12 -> Collection price of Please Select Please Select | I26: =I24/COST_RES2!E10 ->  | J26: USD/t

Sheet PRICE_RES3 (hidden)
C3: =+UPPER(title385&'Data Entry Needs'!$F$11&" "&'Data Entry Needs'!$F$12) -> COLLECTION COSTS CALCULATOR FOR PLEASE SELECT PLEASE SELECT | P3: =title370 -> Sources of biomass | Q3: No. | R3: Selection2 | S3: Number | T3: =title366 -> Mechanized | U3: =title360 -> Number of skilled workers | V3: =title391 -> person-hour/ha
P4: =title372 -> Agricultural residues spread in the field | Q4: 1 | R4: =+$F$11 -> Manual | T4: =title366&2 -> Mechanized2 | U4: =title361 -> Skilled labour wage | V4: =title390 -> USD/person-hour
P5: =title373 -> Agricultural residues collected from field | Q5: 2 | R5: Selection1 | S5: 1 | T5: =title366&4 -> Mechanized4 | U5: =title362 -> Average fuel economy | V5: l/h
C6: =title61 -> Use white cells to input data | E6: =title62 -> Grey cells are used for calculations | P6: =title374 -> Agricultural residues from food processing plant | Q6: 3 | R6: =+VLOOKUP($C$11,$P$3:$Q$10,2,FALSE) -> 1 | S6: 2 | T6: =title366&5 -> Mechanized5 | U6: =title363 -> Fuel price | V6: USD/l
P7: =title375 -> Forestry | Q7: 4 | S7: 3 | T7: =title367 -> Semi-mechanized | U7: =title360 -> Number of skilled workers | V7: =title391 -> person-hour/ha
C8: =title369 -> Biomass Collection Definition | P8: Forestry and plantation residues | Q8: 5 | S8: 4 | T8: =title367&1 -> Semi-mechanized1 | U8: =title364 -> Number of unskilled workers | V8: =title391 -> person-hour/ha
P9: =title376 -> Residues from wood industry | Q9: 6 | S9: 5 | T9: =title367&2 -> Semi-mechanized2 | U9: =title361 -> Skilled labour wage | V9: =title390 -> USD/person-hour
C10: =title370 -> Sources of biomass | F10: =title370 -> Sources of biomass | P10: =title377 -> Dedicated wood energy plantation | Q10: 7 | T10: =title367&3 -> Semi-mechanized3 | U10: =title365 -> Unskilled labour wage | V10: =title390 -> USD/person-hour
C11: Agricultural residues spread in the field | F11: Manual | P11: Collection method | T11: =title367&4 -> Semi-mechanized4 | U11: =title362 -> Average fuel economy | V11: l/h
P12: =title366 -> Mechanized | T12: =title367&5 -> Semi-mechanized5 | U12: =title363 -> Fuel price | V12: USD/l
C13: =IF($R$6=7,title378,IF(OR($R$6=1,$R$6=5,$R$6=4),title369,title379)) -> Biomass Collection Definition | P13: =title367 -> Semi-mechanized | T13: =title368 -> Manual | U13: =title364 -> Number of unskilled workers | V13: =title391 -> person-hour/ha
P14: =title368 -> Manual | T14: =title368&2 -> Manual2 | U14: =title365 -> Unskilled labour wage | V14: =title390 -> USD/person-hour
C16: =title380 -> Biomass price definition
C17: =title381 -> Labour cost | D17: =title163 -> Quantity | E17: =title80 -> Unit | F17: =title163 -> Quantity | H17: =title80 -> Unit | J17: =title80 -> Unit
C18: =+IF(OR($R$6=1,$R$6=4,$R$6=5),IFERROR(VLOOKUP($R$4&$S4,$T$3:$V$14,2,FALSE),""),"") -> Number of unskilled workers | E18: =IF(OR(entry3=title20,entry3=title21),title396,IF(OR($R$6=1,$R$6=4,$R$6=5),IFERROR(VLOOKUP($R$4&$S4,$T$3:$V$23,3,FALSE),""),"")) -> person-hour/ha | F18: =IF(OR($R$6=1,$R$6=4,$R$6=5),IFERROR(VLOOKUP($R$4&$S6,$T$3:$V$14,2,FALSE),""),"") -> Unskilled labour wage | G18: =IF(F18="","",IF(F18=title365,'Data Entry Needs'!$D$37,IF(F18=title361,'Data Entry Needs'!$I$37))) -> 0 | H18: =IF(OR($R$6=1,$R$6=4,$R$6=5),IFERROR(VLOOKUP($R$4&$S6,$T$3:$V$20,3,FALSE),""),"") -> USD/person-hour | I18: =+IFERROR(G18*D18*(COST_RES3!$E$10/created3),"") ->  | J18: =+IF(OR($R$6=1,$R$6=4,$R$6=5),title182,"") -> USD/year | K18: =IF(OR(entry3=title20,entry3=title21),1,COST_RES3!$E$11) -> 0
C19: =IF(OR($R$6=1,$R$6=4,$R$6=5),IFERROR(VLOOKUP($R$4&$S5,$T$3:$V$14,2,FALSE),""),"") ->  | E19: =IF(AND(selection3=title367,OR(entry3=title20,entry3=title21)),title396,IF(OR($R$6=1,$R$6=4,$R$6=5),IFERROR(VLOOKUP($R$4&$S5,$T$3:$V$23,3,FALSE),""),"")) ->  | F19: =IF(OR($R$6=1,$R$6=4,$R$6=5),IFERROR(VLOOKUP($R$4&$S7,$T$3:$V$14,2,FALSE),""),"") ->  | G19: =IF(F19="","",'Data Entry Needs'!$D$37) ->  | H19: =IF(OR($R$6=1,$R$6=4,$R$6=5),IFERROR(VLOOKUP($R$4&$S7,$T$3:$V$27,3,FALSE),""),"") ->  | I19: =+IFERROR(G19*D19*(COST_RES3!$E$10/created3),"") ->  | J19: =+IF(OR($R$6=1,$R$6=4,$R$6=5),title182,"") -> USD/year
D20: =+IF(AND(C18="",C19=""),0,IF(C18="",D19,IF(C19="",D18,D18+D19))) -> 0 | H20: =+IF(OR($R$6=1,$R$6=4,$R$6=5),title143,"") -> Subtotal | I20: =+SUMIF($I$18:$I$19,">0") -> 0 | J20: =+IF(OR($R$6=1,$R$6=4,$R$6=5),title182,"") -> USD/year
C21: =title382 -> Machinery and operating cost | D21: =title163 -> Quantity | E21: =title80 -> Unit | F21: =title163 -> Quantity | H21: =title80 -> Unit | I21: Total | J21: =title80 -> Unit
C22: =IF(OR($R$6=1,$R$6=4,$R$6=5),IFERROR(VLOOKUP($R$4&$S8,$T$3:$V$14,2,FALSE),""),"") ->  | E22: =IF(OR($R$6=1,$R$6=4,$R$6=5),IFERROR(VLOOKUP($R$4&$S8,$T$3:$V$27,3,FALSE),""),"") ->  | F22: =IF(OR($R$6=1,$R$6=4,$R$6=5),IFERROR(VLOOKUP($R$4&$S9,$T$3:$V$14,2,FALSE),""),"") ->  | G22: =IF(F22="","",'Data Entry Needs'!$D$44) ->  | H22: =+IFERROR(VLOOKUP($R$4&$S9,$T$3:$V$14,3,FALSE),"") ->  | I22: =+IFERROR(G22*D22*IF($F$11=title368,0,$D$18*COST_RES3!$E$10/COST_RES3!$E$11),"") ->  | J22: =+IF(OR($R$6=1,$R$6=4,$R$6=5),title182,"") -> USD/year
H23: =+IF(OR($R$6=1,$R$6=4,$R$6=5),title143,"") -> Subtotal | I23: =+I22 ->  | J23: =+IF(OR($R$6=1,$R$6=4,$R$6=5),title182,"") -> USD/year
H24: =+IF(OR($R$6=1,$R$6=4,$R$6=5),"Total","") -> Total | I24: =IFERROR(I20+I23,I20) -> 0 | J24: =+IF(OR($R$6=1,$R$6=4,$R$6=5),title182,"") -> USD/year
F26: =IF($R$6=7,title383,title384)&'Data Entry Needs'!$F$11&" "&'Data Entry Needs'!$F$12 -> Collection price of Please Select Please Select | I26: =I24/COST_RES3!E10 ->  | J26: USD/t

Sheet PRICE_RES4 (hidden)
C3: =+UPPER(title385&'Data Entry Needs'!$G$11&" "&'Data Entry Needs'!$G$12) -> COLLECTION COSTS CALCULATOR FOR PLEASE SELECT PLEASE SELECT | P3: =title370 -> Sources of biomass | Q3: No. | R3: Selection2 | S3: Number | T3: =title366 -> Mechanized | U3: =title360 -> Number of skilled workers | V3: =title391 -> person-hour/ha
P4: =title372 -> Agricultural residues spread in the field | Q4: 1 | R4: =+$F$11 -> Manual | T4: =title366&2 -> Mechanized2 | U4: =title361 -> Skilled labour wage | V4: =title390 -> USD/person-hour
P5: =title373 -> Agricultural residues collected from field | Q5: 2 | R5: Selection1 | S5: 1 | T5: =title366&4 -> Mechanized4 | U5: =title362 -> Average fuel economy | V5: l/h
C6: =title61 -> Use white cells to input data | E6: =title62 -> Grey cells are used for calculations | P6: =title374 -> Agricultural residues from food processing plant | Q6: 3 | R6: =+VLOOKUP($C$11,$P$3:$Q$10,2,FALSE) -> 1 | S6: 2 | T6: =title366&5 -> Mechanized5 | U6: =title363 -> Fuel price | V6: USD/l
P7: =title375 -> Forestry | Q7: 4 | S7: 3 | T7: =title367 -> Semi-mechanized | U7: =title360 -> Number of skilled workers | V7: =title391 -> person-hour/ha
C8: =title369 -> Biomass Collection Definition | P8: Forestry and plantation residues | Q8: 5 | S8: 4 | T8: =title367&1 -> Semi-mechanized1 | U8: =title364 -> Number of unskilled workers | V8: =title391 -> person-hour/ha
P9: =title376 -> Residues from wood industry | Q9: 6 | S9: 5 | T9: =title367&2 -> Semi-mechanized2 | U9: =title361 -> Skilled labour wage | V9: =title390 -> USD/person-hour
C10: =title370 -> Sources of biomass | F10: =title370 -> Sources of biomass | P10: =title377 -> Dedicated wood energy plantation | Q10: 7 | T10: =title367&3 -> Semi-mechanized3 | U10: =title365 -> Unskilled labour wage | V10: =title390 -> USD/person-hour
C11: Agricultural residues spread in the field | F11: Manual | P11: Collection method | T11: =title367&4 -> Semi-mechanized4 | U11: =title362 -> Average fuel economy | V11: l/h
P12: =title366 -> Mechanized | T12: =title367&5 -> Semi-mechanized5 | U12: =title363 -> Fuel price | V12: USD/l
C13: =IF($R$6=7,title378,IF(OR($R$6=1,$R$6=5,$R$6=4),title369,title379)) -> Biomass Collection Definition | P13: =title367 -> Semi-mechanized | T13: =title368 -> Manual | U13: =title364 -> Number of unskilled workers | V13: =title391 -> person-hour/ha
P14: =title368 -> Manual | T14: =title368&2 -> Manual2 | U14: =title365 -> Unskilled labour wage | V14: =title390 -> USD/person-hour
C16: =title380 -> Biomass price definition
C17: =title381 -> Labour cost | D17: =title163 -> Quantity | E17: =title80 -> Unit | F17: =title163 -> Quantity | H17: =title80 -> Unit | J17: =title80 -> Unit
C18: =+IF(OR($R$6=1,$R$6=4,$R$6=5),IFERROR(VLOOKUP($R$4&$S4,$T$3:$V$14,2,FALSE),""),"") -> Number of unskilled workers | E18: =IF(OR(entry4=title20,entry4=title21),title396,IF(OR($R$6=1,$R$6=4,$R$6=5),IFERROR(VLOOKUP($R$4&$S4,$T$3:$V$23,3,FALSE),""),"")) -> person-hour/ha | F18: =IF(OR($R$6=1,$R$6=4,$R$6=5),IFERROR(VLOOKUP($R$4&$S6,$T$3:$V$14,2,FALSE),""),"") -> Unskilled labour wage | G18: =IF(F18="","",IF(F18=title365,'Data Entry Needs'!$D$37,IF(F18=title361,'Data Entry Needs'!$I$37))) -> 0 | H18: =IF(OR($R$6=1,$R$6=4,$R$6=5),IFERROR(VLOOKUP($R$4&$S6,$T$3:$V$20,3,FALSE),""),"") -> USD/person-hour | I18: =+IFERROR(G18*D18*(COST_RES4!$E$10/created4),"") ->  | J18: =+IF(OR($R$6=1,$R$6=4,$R$6=5),title182,"") -> USD/year | K18: =IF(OR(entry4=title20,entry4=title21),1,COST_RES4!$E$11) -> 0
C19: =IF(OR($R$6=1,$R$6=4,$R$6=5),IFERROR(VLOOKUP($R$4&$S5,$T$3:$V$14,2,FALSE),""),"") ->  | E19: =IF(AND(selection4=title367,OR(entry4=title20,entry4=title21)),title396,IF(OR($R$6=1,$R$6=4,$R$6=5),IFERROR(VLOOKUP($R$4&$S5,$T$3:$V$23,3,FALSE),""),"")) ->  | F19: =IF(OR($R$6=1,$R$6=4,$R$6=5),IFERROR(VLOOKUP($R$4&$S7,$T$3:$V$14,2,FALSE),""),"") ->  | G19: =IF(F19="","",'Data Entry Needs'!$D$37) ->  | H19: =IF(OR($R$6=1,$R$6=4,$R$6=5),IFERROR(VLOOKUP($R$4&$S7,$T$3:$V$27,3,FALSE),""),"") ->  | I19: =+IFERROR(G19*D19*(COST_RES4!$E$10/created4),"") ->  | J19: =+IF(OR($R$6=1,$R$6=4,$R$6=5),title182,"") -> USD/year
D20: =+IF(AND(C18="",C19=""),0,IF(C18="",D19,IF(C19="",D18,D18+D19))) -> 0 | H20: =+IF(OR($R$6=1,$R$6=4,$R$6=5),title143,"") -> Subtotal | I20: =+SUMIF($I$18:$I$19,">0") -> 0 | J20: =+IF(OR($R$6=1,$R$6=4,$R$6=5),title182,"") -> USD/year
C21: =title382 -> Machinery and operating cost | D21: =title163 -> Quantity | E21: =title80 -> Unit | F21: =title163 -> Quantity | H21: =title80 -> Unit | I21: Total | J21: =title80 -> Unit
C22: =IF(OR($R$6=1,$R$6=4,$R$6=5),IFERROR(VLOOKUP($R$4&$S8,$T$3:$V$14,2,FALSE),""),"") ->  | E22: =IF(OR($R$6=1,$R$6=4,$R$6=5),IFERROR(VLOOKUP($R$4&$S8,$T$3:$V$27,3,FALSE),""),"") ->  | F22: =IF(OR($R$6=1,$R$6=4,$R$6=5),IFERROR(VLOOKUP($R$4&$S9,$T$3:$V$14,2,FALSE),""),"") ->  | G22: =IF(F22="","",'Data Entry Needs'!$D$44) ->  | H22: =+IFERROR(VLOOKUP($R$4&$S9,$T$3:$V$14,3,FALSE),"") ->  | I22: =+IFERROR(G22*D22*IF($F$11=title368,0,$D$18*COST_RES4!$E$10/COST_RES4!$E$11),"") ->  | J22: =+IF(OR($R$6=1,$R$6=4,$R$6=5),title182,"") -> USD/year
H23: =+IF(OR($R$6=1,$R$6=4,$R$6=5),title143,"") -> Subtotal | I23: =+I22 ->  | J23: =+IF(OR($R$6=1,$R$6=4,$R$6=5),title182,"") -> USD/year
H24: =+IF(OR($R$6=1,$R$6=4,$R$6=5),"Total","") -> Total | I24: =IFERROR(I20+I23,I20) -> 0 | J24: =+IF(OR($R$6=1,$R$6=4,$R$6=5),title182,"") -> USD/year
F26: =IF($R$6=7,title383,title384)&'Data Entry Needs'!$G$11&" "&'Data Entry Needs'!$G$12 -> Collection price of Please Select Please Select | I26: =I24/COST_RES4!E10 ->  | J26: USD/t

Sheet COST_RES1
C3: =+UPPER(title112&'Data Entry Needs'!$D$11&" "&'Data Entry Needs'!$D$12) -> PROCESSING COSTS FOR POWER GENERATION FROM PLEASE SELECT PLEASE SELECT
C6: =title61 -> Use white cells to input data | E6: =title62 -> Grey cells are used for calculations
C8: =title113 -> Summary of Feedstock and Storage | G8: =title114 -> Summary of Operational Parameters | K8: =title95 -> Financial parameters
C10: =title115 -> Feedstock available (t/year) | E10: =+'Data Entry Needs'!$D$13 -> 0 | G10: =title117 -> Boiler | I10: =+"Stoker @"&Steam_Calculator!$C$3 -> Stoker @20 bar | K10: =title231 -> Loan interest rate (%) | N10: =+'Data Entry Needs'!$D$55 -> 0
C11: =title116 -> Feedstock yield (t/ha) | E11: =+'Data Entry Needs'!$D$14 -> 0 | G11: =title118 -> Turbine | I11: =+Steam_Calculator!$C$2 -> Backpressure steam turbine | K11: =title97&" (%)" -> Loan ratio (%) | N11: =+'Data Entry Needs'!$D$54 -> 0
C12: =title67 -> Moisture content (%) | E12: =+'Data Entry Needs'!$D$15 -> 0 | K12: =title126 -> Loan term (years) | N12: =+'Data Entry Needs'!$D$56 -> 0
C13: =title68 -> Size (mm) | E13: =+'Data Entry Needs'!$D$16 -> 0 | G13: =title119 -> Capacity utilization factor | I13: =H34/8760 -> 0 | K13: =title96&" (%)" -> Discount rate (%) | N13: =+'Data Entry Needs'!$D$53 -> 0
C14: =title72 -> Feedstock storage cost (USD/t) | E14: =+'Data Entry Needs'!$D$20 -> 0 | G14: =title120 -> Power conversion (kWh/kg feedstock) | I14: =VLOOKUP(IF('Data Entry Needs'!$D$11=title19,'Data Entry Needs'!$D$11,'Data Entry Needs'!$D$11&'Data Entry Needs'!$D$12),dummy_database!$C$1:$L$31,10,FALSE)/(3.6) ->  | K14: =+'Data Entry Needs'!F54 -> Plant Cost Index during 5/2017 | N14: =+'Data Entry Needs'!I54 -> 0
G15: =title121 -> Boiler efficiency (%) | I15: =+Steam_Calculator!$C$4 -> 0.63 | K15: =IF('Data Entry Needs'!$AK$125=0,title129,title130) -> Price of electricity (USD/kWh) - Calculated | N15: =+'Data Entry Needs'!$AL$125 -> 0
G16: =title122 -> Turbine efficiency (%) | I16: =+Steam_Calculator!$C$5 -> 0.17 | K16: =title127 -> Project lifetime | N16: 20
G17: =title123 -> Power loss due to operation (%)
G18: =title124 -> Operating hours per day
G19: =title125 -> Power loss in distribution network (%)
C23: =title131 -> Transport Distance of Feedstock | F23: =title132 -> Transport Quantity | I23: =title131 -> Transport Distance of Feedstock | L23: =title132 -> Transport Quantity
C25: =title133 -> Distance small scale production (km) | F25: =title135 -> Small scale (t/year) | H25: =+$G$39 ->  | I25: =title137 -> Distance large scale production (km) | L25: =title139 -> Large scale (t/year) | N25: =+$K$39 -> 
C26: =title134 -> Distance medium scale production (km) | F26: =title136 -> Medium scale (t/year) | H26: =+$I$39 ->  | I26: =title138 -> Transportation cost (USD/t/km) | N26: =+'Data Entry Needs'!$D$46 -> 0
C30: =title140 -> Production Cost Details
G32: =title183 -> Capacities (kW of power generation)
G33: 10 | I33: 40 | K33: 100
G34: =title187 -> Operating hours per year | H34: =$I$18*365 -> 0 | I34: =title187 -> Operating hours per year | J34: =$I$18*365 -> 0 | K34: =title187 -> Operating hours per year | L34: =$I$18*365 -> 0
D37: =title140 -> Production Cost Details | E37: =title80 -> Unit | F37: =title161 -> Unit Price | G37: =title163 -> Quantity | H37: Total | I37: =title163 -> Quantity | J37: Total | K37: =title163 -> Quantity | L37: Total
F38: =title162 -> (USD/unit) | G38: =title164 -> (Unit/year) | H38: =title165 -> (USD/year) | I38: =title164 -> (Unit/year) | J38: =title165 -> (USD/year) | K38: =title164 -> (Unit/year) | L38: =title165 -> (USD/year)
D39: =title64 -> Feedstock | E39: t | F39: =+IF('Data Entry Needs'!$C$18=FALSE,'Data Entry Needs'!D$18,'Data Entry Needs'!D$19) -> 0 | G39: =+Steam_Calculator!$C$8*'COST(ADJUSTED)_RES1'!F8*H34*Steam_Calculator!$F$2/(Steam_Calculator!$C$4*COST_RES1!$I$14*3.6*1000000)/(1-$I$17) ->  | H39: =+G39*$F39 ->  | I39: =+Steam_Calculator!$C$8*'COST(ADJUSTED)_RES1'!G8*J34*Steam_Calculator!$F$2/(Steam_Calculator!$C$4*COST_RES1!$I$14*3.6*1000000)/(1-$I$17) ->  | J39: =+I39*$F39 ->  | K39: =+Steam_Calculator!$C$8*'COST(ADJUSTED)_RES1'!H8*J34*Steam_Calculator!$F$2/(Steam_Calculator!$C$4*COST_RES1!$I$14*3.6*1000000)/(1-$I$17) ->  | L39: =+K39*$F39 -> 
D40: =title142 -> Water make-up + chemical additives | E40: m3 | F40: =+'Data Entry Needs'!$D$40+0.002*1000/4.56 -> 0.4385964912 | G40: =+Steam_Calculator!$C$9*'COST(ADJUSTED)_RES1'!F8*H34/1000 ->  | H40: =+G40*$F40 ->  | I40: =+Steam_Calculator!$C$9*'COST(ADJUSTED)_RES1'!G8*J34/1000 ->  | J40: =+I40*$F40 ->  | K40: =+Steam_Calculator!$C$9*'COST(ADJUSTED)_RES1'!H8*L34/1000 ->  | L40: =+K40*$F40 -> 
D41: =title143 -> Subtotal | H41: =SUM(H39:H40) ->  | J41: =SUM(J39:J40) ->  | L41: =SUM(L39:L40) -> 
D43: =title144 -> Labour and miscellaneous costs | E43: =title80 -> Unit | F43: =title161 -> Unit Price | G43: =title163 -> Quantity | H43: Total | I43: =title163 -> Quantity | J43: Total | K43: =title163 -> Quantity | L43: Total
F44: ="("&title390&")" -> (USD/person-hour) | G44: ="("&title80&")" -> (Unit) | H44: =title165 -> (USD/year) | I44: ="("&title80&")" -> (Unit) | J44: =title165 -> (USD/year) | K44: ="("&title80&")" -> (Unit) | L44: =title165 -> (USD/year)
D45: =title85 -> Unskilled worker | E45: =title166 -> # employee | F45: =+'Data Entry Needs'!$D$37 -> 0 | G45: 1 | H45: =+F45*G45*H34 -> 0 | I45: 3 | J45: =+$F45*I45*$H$34 -> 0 | K45: 6 | L45: =+$F45*K45*$H$34 -> 0
D46: =title103 -> Skilled worker | E46: =title166 -> # employee | F46: =+'Data Entry Needs'!I$37 -> 0 | G46: 1 | H46: =+F46*G46*H34 -> 0 | I46: =+ROUND(I45/4,0) -> 1 | J46: =+$F46*I46*$H$34 -> 0 | K46: =+ROUND(K45/3,0) -> 2 | L46: =+$F46*K46*$H$34 -> 0
D47: =title107 -> Miscellaneous costs | G47: =+'Data Entry Needs'!$I$50 -> 0 | H47: =+G47*SUM(H45:H46) -> 0 | I47: =+G47 -> 0 | J47: =+I47*SUM(J45:J46) -> 0 | K47: =+G47 -> 0 | L47: =+K47*SUM(L45:L46) -> 0
D48: =title143 -> Subtotal | H48: =+H45+H46+H47 -> 0 | J48: =+J45+J46+J47 -> 0 | L48: =+L45+L46+L47 -> 0
G49: =+SUM(G45:G46) -> 2 | I49: =+SUM(I45:I46) -> 4 | K49: =+SUM(K45:K46) -> 8
D50: =title145 -> Transport of feedstock | E50: =title80 -> Unit | F50: =title161 -> Unit Price | G50: =title163 -> Quantity | H50: Total | I50: =title163 -> Quantity | J50: Total | K50: =title163 -> Quantity | L50: Total
F51: (USD/t/km) | G51: ="("&title80&")" -> (Unit) | H51: =title165 -> (USD/year) | I51: ="("&title80&")" -> (Unit) | J51: =title165 -> (USD/year) | K51: ="("&title80&")" -> (Unit) | L51: =title165 -> (USD/year)
D52: =title146 -> Feedstock (farm to plant) | E52: km | F52: =+'Data Entry Needs'!$D$46 -> 0 | G52: =+$E$25 -> 0 | H52: =+G52*F52*G39 ->  | I52: =+$E$26 -> 0 | J52: =+I52*$F52*I$39 ->  | K52: =+$K$25 -> 0 | L52: =+K52*$F52*K$39 -> 
D53: =title143 -> Subtotal | H53: =+H52 ->  | J53: =+J52 ->  | L53: =+L52 -> 
D55: =title147 -> Storage | E55: =title80 -> Unit | F55: =title161 -> Unit Price | G55: =title163 -> Quantity | H55: Total | I55: =title163 -> Quantity | J55: Total | K55: =title163 -> Quantity | L55: Total
F56: (USD/t/year) | G56: ="("&title80&")" -> (Unit) | H56: =title165 -> (USD/year) | I56: ="("&title80&")" -> (Unit) | J56: =title165 -> (USD/year) | K56: ="("&title80&")" -> (Unit) | L56: =title165 -> (USD/year)
D57: =title64 -> Feedstock | E57: t | F57: =+$E$14 -> 0 | G57: =+STORAGE_RES1!$F$38 ->  | H57: =+F57*G57 ->  | I57: =+STORAGE_RES1!$I$38 ->  | J57: =I57*F57 ->  | K57: =+STORAGE_RES1!$L$38 ->  | L57: =F57*K57 -> 
D58: =title143 -> Subtotal | H58: =SUM(H57) ->  | J58: =SUM(J57) ->  | L58: =SUM(L57) -> 
D60: =title148 -> Investment | E60: =title80 -> Unit | F60: =title184 -> Years | G60: Total | H60: =title167 -> Depreciation | I60: Total | J60: =title167 -> Depreciation | K60: Total | L60: =title167 -> Depreciation
G61: (USD) | H61: =title165 -> (USD/year) | I61: (USD) | J61: =title165 -> (USD/year) | K61: (USD) | L61: =title165 -> (USD/year)
D62: =title149 -> Equipments | E62: USD | F62: =+$N$16 -> 20 | G62: =('COST(ADJUSTED)_RES1'!$F$22)*('Data Entry Needs'!$I$54/141) ->  | H62: =+G62/F62 ->  | I62: =('COST(ADJUSTED)_RES1'!$G$22)*('Data Entry Needs'!$I$54/141) ->  | J62: =+I62/F62 ->  | K62: =('COST(ADJUSTED)_RES1'!$H$22)*('Data Entry Needs'!$I$54/141) ->  | L62: =+K62/F62 -> 
D63: =title150 -> Building | E63: USD | F63: =+$N$16 -> 20 | G63: =+'COST(ADJUSTED)_RES1'!$F$25 -> 1909.96 | H63: =+G63/F63 -> 95.498 | I63: =+'COST(ADJUSTED)_RES1'!$G$25 -> 2499.64 | J63: =+I63/F63 -> 124.982 | K63: =+'COST(ADJUSTED)_RES1'!$H$25 -> 3679 | L63: =+K63/F63 -> 183.95
D64: =title151 -> Installation | E64: USD | F64: =+$N$16 -> 20 | G64: =+'COST(ADJUSTED)_RES1'!$F$28 -> 271.4285714 | H64: =+G64/F64 -> 13.57142857 | I64: =+'COST(ADJUSTED)_RES1'!$G$28 -> 1085.714286 | J64: =+I64/F64 -> 54.28571429 | K64: =+'COST(ADJUSTED)_RES1'!$H$28 -> 2714.285714 | L64: =+K64/F64 -> 135.7142857
D65: =title152 -> Distribution network | E65: USD | F65: =+$N$16 -> 20 | G65: =('COST(ADJUSTED)_RES1'!$F$32)*('Data Entry Needs'!$I$54/141) ->  | H65: =+G65/F65 ->  | I65: =('COST(ADJUSTED)_RES1'!$G32)*('Data Entry Needs'!$I$54/141) ->  | J65: =+I65/F65 ->  | K65: =('COST(ADJUSTED)_RES1'!$H32)*('Data Entry Needs'!$I$54/141) ->  | L65: =+K65/F65 -> 
D66: =title153 -> Total Investment | G66: =SUM(G62:G65) ->  | I66: =SUM(I62:I65) ->  | K66: =SUM(K62:K65) -> 
G67: =title168 -> Total depreciation | H67: =SUM(H62:H66) ->  | I67: =title168 -> Total depreciation | J67: =SUM(J62:J66) ->  | K67: =title168 -> Total depreciation | L67: =SUM(L62:L66) -> 
D68: =title106 -> Maintenance cost | F68: =+'Data Entry Needs'!$I$49 -> 0 | H68: =+F68*H67 ->  | J68: =+F68*$J$67 ->  | L68: =+$F$68*L67 -> 
D69: =title143 -> Subtotal | H69: =SUM(H67:H68) ->  | J69: =SUM(J67:J68) ->  | L69: =SUM(L67:L68) -> 
D71: =title92 -> Other costs | E71: =title80 -> Unit | F71: Rate (%) | H71: Total | J71: Total | L71: Total
H72: =title165 -> (USD/year) | J72: =title165 -> (USD/year) | L72: =title165 -> (USD/year)
D73: =title154 -> Plant overhead | E73: USD | F73: =+'Data Entry Needs'!$D$50 -> 0 | H73: =+(H45+H46+H68)*$F$73 ->  | J73: =+(J45+J46+J68)*$F$73 ->  | L73: =+(L45+L46+L68)*$F$73 -> 
D74: =title155 -> General and administrative cost | E74: USD | F74: =+'Data Entry Needs'!$D$49 -> 0 | H74: =+(H41+H48+H73+H68)*$F$74 ->  | J74: =+(J41+J48+J73+J68)*$F$74 ->  | L74: =+(L41+L48+L73+L68)*$F$74 -> 
D75: =title156 -> Loan interest | E75: USD | F75: =+'Data Entry Needs'!$D$55 -> 0 | H75: =-FA10kW_RES1!G84 ->  | J75: =-FA40kW_RES1!G84 ->  | L75: =-FA100kW_RES1!G84 -> 
D77: =title143 -> Subtotal | H77: =SUM(H73:H75) ->  | J77: =SUM(J73:J75) ->  | L77: =SUM(L73:L75) -> 
G79: Total | H79: =title169 -> Share (%) | I79: Total | J79: =title169 -> Share (%) | K79: Total | L79: =title169 -> Share (%)
G80: =title165 -> (USD/year) | I80: =title165 -> (USD/year) | K80: =title165 -> (USD/year)
D81: =title157 -> Total operating costs | G81: =+H41+H48+H53+H58 ->  | H81: =+G81/$G$84 ->  | I81: =+J41+J48+J53+J58 ->  | J81: =+I81/$I$84 ->  | K81: =+L41+L48+L53+L58 ->  | L81: =+K81/$K$84 -> 
D82: =title158 -> Total fixed costs | G82: =+H69 ->  | H82: =+G82/$G$84 ->  | I82: =+J69 ->  | J82: =+I82/$I$84 ->  | K82: =+L69 ->  | L82: =+K82/$K$84 -> 
D83: =title159 -> Total other costs | G83: =+H77 ->  | H83: =+G83/$G$84 ->  | I83: =+J77 ->  | J83: =+I83/$I$84 ->  | K83: =+L77 ->  | L83: =+K83/$K$84 -> 
D84: =title160 -> Total production costs | G84: =SUM(G81:G83) ->  | I84: =SUM(I81:I83) ->  | K84: =SUM(K81:K83) -> 
C86: =title170 -> Power generation
E88: =title80 -> Unit | G88: =title163 -> Quantity | I88: =title163 -> Quantity | K88: =title163 -> Quantity
G89: ="("&title80&")" -> (Unit) | I89: ="("&title80&")" -> (Unit) | K89: ="("&title80&")" -> (Unit)
D90: =title170 -> Power generation | E90: =title172 -> kWh/year | G90: =+G33*H34*(1-$I$17) -> 0 | I90: =+I33*J34*(1-$I$17) -> 0 | K90: =+K33*L34*(1-$I$17) -> 0
D91: =title171 -> Electricity - self use | E91: =title172 -> kWh/year | G91: =-G90*10% -> 0 | I91: =-I90*10% -> 0 | K91: =-K90*10% -> 0
D92: =title173 -> Power loss in distribution network | E92: =title172 -> kWh/year | G92: =-G90*$I$19 -> 0 | I92: =-I90*$I$19 -> 0 | K92: =-K90*$I$19 -> 0
D93: =title143 -> Subtotal | G93: =SUM(G90:H92) -> 0 | I93: =SUM(I90:J92) -> 0 | K93: =SUM(K90:L92) -> 0
C95: =title174 -> Total Production Cost + Distribution
G97: =$G$32 -> Capacities (kW of power generation)
G98: =+G33 -> 10 | I98: =+I33 -> 40 | K98: =+K33 -> 100
D99: =title175 -> Unit cost of electricity (USD/kWh) | G99: =G84/G93 ->  | I99: =I84/I93 ->  | K99: =K84/K93 -> 
D101: =title180 -> Average loan interest | E101: =title80 -> Unit | F101: =title97&" (%)" -> Loan ratio (%) | G101: =title153 -> Total Investment | H101: =title176 -> Loan amount | I101: =title153 -> Total Investment | J101: =title176 -> Loan amount | K101: =title153 -> Total Investment | L101: =title176 -> Loan amount
G102: (USD) | H102: (USD) | I102: (USD) | J102: (USD) | K102: (USD) | L102: (USD)
D103: =title176 -> Loan amount | E103: USD | F103: =+$N$11 -> 0 | G103: =G66 ->  | H103: =$F$103*G103 ->  | I103: =I66 ->  | J103: =$F$103*I103 ->  | K103: =K66 ->  | L103: =$F$103*K103 -> 
D104: =title98 -> Loan interest rate | E104: % | H104: =+$N$10 -> 0 | J104: =+$N$10 -> 0 | L104: =+$N$10 -> 0
D105: =title177 -> Loan payment | E105: =title181 -> USD/month | H105: =PMT(H104/12,H107*12,H103,0) ->  | J105: =PMT(J104/12,J107*12,J103,0) ->  | L105: =PMT(L104/12,L107*12,L103,0) -> 
D106: =title178 -> Annual loan payment | E106: =title182 -> USD/year | H106: =H105*12 ->  | J106: =J105*12 ->  | L106: =L105*12 -> 
D107: =title99 -> Loan term | E107: =title102 -> year | H107: =+$N$12 -> 0 | J107: =+$N$12 -> 0 | L107: =+$N$12 -> 0
D108: =title179 -> Total loan payment | E108: USD | H108: =H106*H107 ->  | J108: =J106*J107 ->  | L108: =L106*L107 -> 
D109: =title156 -> Loan interest | E109: USD | H109: =H108+H103 ->  | J109: =J108+J103 ->  | L109: =L108+L103 -> 
D110: =title180 -> Average loan interest | E110: =title182 -> USD/year | H110: =H109/$N$16 ->  | J110: =J109/$N$16 ->  | L110: =L109/$N$16 -> 

Sheet Steam_Calculator (hidden)
B2: Selection turbine | C2: =title188 -> Backpressure steam turbine | E2: Escalation Factor | F2: 10
B3: Steam pressure | C3: 20 bar
B4: Boiler efficiency | C4: 0.63 | D4: biomass wet
B5: =title118 -> Turbine | C5: 0.17
B6: ΔH Turbine P2 (latent) | C6: =+E14 -> 1888.65 | D6: kJ/kg
B7: ΔH Turbine P2 ==>P1 (saturated) | C7: =+F14*(D14-D11) -> 521.9862 | D7: kJ/kg
B8: ΔH Boiler P0 ==>P2 (MP steam) | C8: =+F14*(D14-25) -> 867.5231 | D8: kJ/kg
B9: Water make-up | C9: 0.35 | G9: http://www1.eere.energy.gov/manufacturing/tech_assistance/pdfs/steam8_boiler.pdf
B10: Steam Data | C10: P (Bar) | D10: T Boiling (°C) | E10: Latent heat of vaporization (kJ/kg) | F10: Specific heat liq (kJ/kg.K) | G10: http://www.engineeringtoolbox.com/saturated-steam-properties-d_457.html
B11: =+"Steam@"&C11 -> Steam@1 bar | C11: 1 bar | D11: 99.63 | E11: 2257.92 | F11: 4.219
B12: =+"Steam@"&C12 -> Steam@5 bar | C12: 5 bar | D12: 151.85 | E12: 2107.42 | F12: 4.32
B13: =+"Steam@"&C13 -> Steam@10 bar | C13: 10 bar | D13: 179.88 | E13: 2013.56 | F13: 4.42
B14: =+"Steam@"&C14 -> Steam@20 bar | C14: 20 bar | D14: 212.37 | E14: 1888.65 | F14: 4.63
B16: Equipment | C16: Efficiency (%) | D16: Excess Air (%) | E16: T exhaust Gas/steam (C) | F16: P output (Bar)
B17: Boiler stoker | C17: 0.8 | D17: 0.5 | E17: 177 | F17: N/A | G17: http://www1.eere.energy.gov/manufacturing/tech_assistance/pdfs/steam22_backpressure.pdf
B18: Microturbine | C18: 0.7 | D18: N/A | E18: =+D12 -> 151.85 | F18: 5 bar
B19: Backpreassure steam turbine | C19: 0.55 | D19: N/A | E19: =+D12 -> 151.85 | F19: 5 bar | G19: http://www.massengineers.com/turbines%20CPH/steam_turbines_used_for_chp.htm
B20: Condesing steam turbine | C20: 0.5 | D20: N/A | E20: =+D11 -> 99.63 | F20: 1 bar
B22: Steam pressure bar | C22: Boiler cost factor (BCF)
B23: 10 bar | C23: 1
B24: 20 bar | C24: 1.15
B25: 50 bar | C25: 1.25
B26: 75 bar | C26: 1.5
B27: 100 bar | C27: 2
B29: Equipment | C29: Cost (USD/kg steam)
B30: Boiler stoker | C30: 111.1652237 | D30: USD/kg steam
B31: Other equipment and installation (condenser, cyclone, water pump,cooling tower) | C31: 110.4624285 | D31: USD/kg steam
B32: Condesing steam turbine | C32: 337.5536481 | D32: USD/kW
B33: Back pressure steam turbine | C33: 561.1111111 | D33: USD/kW
B34: Generator | C34: 400 | D34: USD/kW | E34: Mainteinance | F34: 2% investement
B35: Microturbine | C35: 700 | D35: USD/kW

Sheet COST(ADJUSTED)_RES1 (hidden)
C3: DETAILED INVESTMENT OF BIOMASS COMBUSTION FOR RURAL ELECTRIFICATION
F5: Capacities (kW of power generation)
F6: 10 | G6: 40 | H6: 100
D7: Operating period | E7: h/year | F7: =+COST_RES1!$H$34 -> 0 | G7: =+COST_RES1!$J$34 -> 0 | H7: =+COST_RES1!$L$34 -> 0
D8: Steam | E8: kg/h | F8: =+COST_RES1!$G$90*3600/(COST_RES1!$I$16*(Steam_Calculator!$C$6+Steam_Calculator!$C$7)*'COST(ADJUSTED)_RES1'!F7) ->  | G8: =+COST_RES1!$I$90*3600/(COST_RES1!$I$16*(Steam_Calculator!$C$6+Steam_Calculator!$C$7)*'COST(ADJUSTED)_RES1'!G7) ->  | H8: =+COST_RES1!$K$90*3600/(COST_RES1!$I$16*(Steam_Calculator!$C$6+Steam_Calculator!$C$7)*'COST(ADJUSTED)_RES1'!H7) -> 
D9: Households | E9: Household | F9: =+COST_RES1!G93/('Energy Demand'!$F$8*12) ->  | G9: =+COST_RES1!I93/('Energy Demand'!$F$8*12) ->  | H9: =+COST_RES1!K93/('Energy Demand'!$F$8*12) -> 
C10: Estimated distance covered (m) | D10: m/household | E10: 10 | F10: =+F9*$E$10 ->  | G10: =+G9*$E$10 ->  | H10: =+H9*$E$10 -> 
C11: Equipments
C12: Boiler | D12: USDh/kg steam | E12: 127.8400072 | F12: =+$E$12*F8 ->  | G12: =+$E$12*G8 ->  | H12: =+$E$12*H8 -> 
C13: Condenser, cyclone, water pump, cooling tower | D13: USDh/kg steam | E13: 127.0317928 | F13: =+$E$13*F8 ->  | G13: =+$E$13*G8 ->  | H13: =+$E$13*H8 -> 
C14: Back pressure steam turbine | D14: USD/kW | E14: 561.1111111 | F14: =+F6*700 -> 7000 | G14: =+$E$14*G6 -> 22444.44444 | H14: =+$E$14*H6 -> 56111.11111
C15: Biomass cutter | D15: USD | F15: 146.161969 | G15: 146.161969 | H15: 17500
C16: Biomass dryer | D16: USD | F16: 194.8826253 | G16: 682.0891885
C17: Moisture meter | D17: USD | F17: 97.44131265 | G17: 97.44131265
C18: Chain pulley block | D18: USD | F18: 58.46478759 | G18: 126.6737064
C19: Water cooling system | D19: USD | F19: 0 | G19: 584.6478759
C20: Other accessories | D20: USD | F20: 974.4131265 | G20: 1753.943628
C21: Generator | D21: USD/kW | E21: 400 | F21: =+$E$21*F6 -> 4000 | G21: =+$E$21*G6 -> 16000 | H21: =+$E$21*H6 -> 40000
E22: Subtotal | F22: =SUM(F12:F21) ->  | G22: =SUM(G12:G21) ->  | H22: =SUM(H12:H21) -> 
C23: Building
C24: Civil work (building, generator platform etc.) | D24: USD | F24: =19.656* F6+ 1713.4 -> 1909.96 | G24: =19.656* G6+ 1713.4 -> 2499.64 | H24: =19.656* H6+ 1713.4 -> 3679
E25: Subtotal | F25: =SUM(F24) -> 1909.96 | G25: =SUM(G24) -> 2499.64 | H25: =SUM(H24) -> 3679
C26: Installation
C27: Connection and earthing | D27: USD/kW | E27: 27.14285714 | F27: =($E$27*F6) -> 271.4285714 | G27: =($E$27*G6) -> 1085.714286 | H27: =($E$27*H6) -> 2714.285714
E28: Subtotal | F28: =SUM(F27) -> 271.4285714 | G28: =SUM(G27) -> 1085.714286 | H28: =SUM(H27) -> 2714.285714
C29: Distribution network
C30: Primary electricity cable | D30: USD/m | E30: 7.454 | F30: =+F$10*$E30 ->  | G30: =+G$10*$E30 ->  | H30: =+H$10*$E30 -> 
C31: Secondary cable, installation and meter | D31: USD/household | E31: 164 | F31: =+F$9*$E31 ->  | G31: =+G$9*$E31 ->  | H31: =+H$9*$E31 -> 
E32: Subtotal | F32: =SUM(F30:F31) ->  | G32: =SUM(G30:G31) ->  | H32: =SUM(H30:H31) -> 

Sheet FA10kW_RES1 (hidden)
B1: =title189 -> FINANCIAL EVALUATION OF COMBUSTION FOR POWER GENERATION 10 kW
A4: =title192 -> Revenues
B6: =title193 -> Operating Year | C6: 0 | D6: 1 | E6: 2 | F6: 3 | G6: 4 | H6: 5 | I6: 6 | J6: 7 | K6: 8 | L6: 9 | M6: 10 | N6: 11 | O6: 12 | P6: 13 | Q6: 14 | R6: 15 | S6: 16 | T6: 17 | U6: 18 | V6: 19 | W6: 20
B8: =title194 -> Power generation capacity (kW) | C8: 10 | D8: =C8 -> 10 | E8: =D8 -> 10 | F8: 10 | G8: 10 | H8: 10 | I8: 10 | J8: 10 | K8: 10 | L8: 10 | M8: 10 | N8: 10 | O8: 10 | P8: 10 | Q8: 10 | R8: 10 | S8: 10 | T8: 10 | U8: 10 | V8: 10 | W8: 10
B10: =title195 -> Turbine type | C10: =+COST_RES1!$I$11 -> Backpressure steam turbine
B12: =title125 -> Power loss in distribution network (%) | C12: =+COST_RES1!$I$17 -> 0 | D12: =+C12 -> 0 | E12: =+D12 -> 0 | F12: 0 | G12: 0 | H12: 0 | I12: 0 | J12: 0 | K12: 0 | L12: 0 | M12: 0 | N12: 0 | O12: 0 | P12: 0 | Q12: 0 | R12: 0 | S12: 0 | T12: 0 | U12: 0 | V12: 0 | W12: 0
B14: =title187 -> Operating hours per year | C14: =+COST_RES1!$H$34 -> 0 | D14: =C14 -> 0 | E14: =D14 -> 0 | F14: 0 | G14: 0 | H14: 0 | I14: 0 | J14: 0 | K14: 0 | L14: 0 | M14: 0 | N14: 0 | O14: 0 | P14: 0 | Q14: 0 | R14: 0 | S14: 0 | T14: 0 | U14: 0 | V14: 0 | W14: 0
B15: =title119 -> Capacity utilization factor | C15: =C14/8760 -> 0 | D15: =D14/8760 -> 0 | E15: 0 | F15: 0 | G15: 0 | H15: 0 | I15: 0 | J15: 0 | K15: 0 | L15: 0 | M15: 0 | N15: 0 | O15: 0 | P15: 0 | Q15: 0 | R15: 0 | S15: 0 | T15: 0 | U15: 0 | V15: 0 | W15: 0
B17: =title196 -> Electricity generation (kWh per year) | C17: =C8*C14*(1-C12) -> 0 | D17: =D8*D14*(1-D12) -> 0 | E17: 0 | F17: 0 | G17: 0 | H17: 0 | I17: 0 | J17: 0 | K17: 0 | L17: 0 | M17: 0 | N17: 0 | O17: 0 | P17: 0 | Q17: 0 | R17: 0 | S17: 0 | T17: 0 | U17: 0 | V17: 0 | W17: 0
B18: =title197 -> Electricity - self use (kWh per year) | C18: =C17*10% -> 0 | D18: =D17*10% -> 0 | E18: 0 | F18: 0 | G18: 0 | H18: 0 | I18: 0 | J18: 0 | K18: 0 | L18: 0 | M18: 0 | N18: 0 | O18: 0 | P18: 0 | Q18: 0 | R18: 0 | S18: 0 | T18: 0 | U18: 0 | V18: 0 | W18: 0
B19: =title198 -> Power loss in distribution network (kWh per year) | C19: =C17*COST_RES1!$I$19 -> 0 | D19: =C19 -> 0 | E19: =D19 -> 0 | F19: 0 | G19: 0 | H19: 0 | I19: 0 | J19: 0 | K19: 0 | L19: 0 | M19: 0 | N19: 0 | O19: 0 | P19: 0 | Q19: 0 | R19: 0 | S19: 0 | T19: 0 | U19: 0 | V19: 0 | W19: 0
B20: =title199 -> Total power sold to the customers (kWh per year) | C20: =C17-C18-C19 -> 0 | D20: =D17-D18-D19 -> 0 | E20: 0 | F20: 0 | G20: 0 | H20: 0 | I20: 0 | J20: 0 | K20: 0 | L20: 0 | M20: 0 | N20: 0 | O20: 0 | P20: 0 | Q20: 0 | R20: 0 | S20: 0 | T20: 0 | U20: 0 | V20: 0 | W20: 0
B22: =title128 -> Price of electricity (USD/kWh) | C22: =+COST_RES1!$N$15 -> 0 | D22: =+COST_RES1!$N$15 -> 0 | E22: =+COST_RES1!$N$15 -> 0 | F22: =+COST_RES1!$N$15 -> 0 | G22: =+COST_RES1!$N$15 -> 0 | H22: =+COST_RES1!$N$15 -> 0 | I22: =+COST_RES1!$N$15 -> 0 | J22: =+COST_RES1!$N$15 -> 0 | K22: =+COST_RES1!$N$15 -> 0 | L22: =+COST_RES1!$N$15 -> 0 | M22: =+COST_RES1!$N$15 -> 0 | N22: =+COST_RES1!$N$15 -> 0 | O22: =+COST_RES1!$N$15 -> 0 | P22: =+COST_RES1!$N$15 -> 0 | Q22: =+COST_RES1!$N$15 -> 0 | R22: =+COST_RES1!$N$15 -> 0 | S22: =+COST_RES1!$N$15 -> 0 | T22: =+COST_RES1!$N$15 -> 0 | U22: =+COST_RES1!$N$15 -> 0 | V22: =+COST_RES1!$N$15 -> 0 | W22: =+COST_RES1!$N$15 -> 0
B23: =title200 -> Total income (USD/year) | C23: =C20*C22 -> 0 | D23: =D20*D22 -> 0 | E23: 0 | F23: 0 | G23: 0 | H23: 0 | I23: 0 | J23: 0 | K23: 0 | L23: 0 | M23: 0 | N23: 0 | O23: 0 | P23: 0 | Q23: 0 | R23: 0 | S23: 0 | T23: 0 | U23: 0 | V23: 0 | W23: 0
B25: =title201 -> Project lifetime (years) | C25: =+COST_RES1!$N$16 -> 20
B26: =title202 -> Lifespan of civil work (years) | C26: =20 -> 20
B27: =title203 -> Lifespan of combustion system (years) | C27: =20 -> 20
B28: =title204 -> Lifespan of engine generator system (years) | C28: =20 -> 20
B29: =title205 -> Lifespan of electrical distribution system (years) | C29: =20 -> 20
A32: =title206 -> Capital and operating cost
B34: =title193 -> Operating Year | C34: =title238 -> Appraisal | D34: 1 | E34: 2 | F34: 3 | G34: 4 | H34: 5 | I34: 6 | J34: 7 | K34: 8 | L34: 9 | M34: 10 | N34: 11 | O34: 12 | P34: 13 | Q34: 14 | R34: 15 | S34: 16 | T34: 17 | U34: 18 | V34: 19 | W34: 20
B35: =title207 -> Direct capital cost (USD)
B36: =title149 -> Equipments | C36: =COST_RES1!G62 -> 
B37: =title150 -> Building | C37: =COST_RES1!G63 -> 1909.96
B38: =title151 -> Installation | C38: =COST_RES1!G64 -> 271.4285714
B39: =title152 -> Distribution network | C39: =COST_RES1!G65 -> 
B40: =title208 -> Total capital cost (USD) | C40: =SUM(C36:C39) ->  | D40: =D36+D37+D38 -> 0 | E40: 0 | F40: 0 | G40: 0 | H40: 0 | I40: 0 | J40: 0 | K40: 0 | L40: 0 | M40: 0 | N40: 0 | O40: 0 | P40: 0 | Q40: 0 | R40: 0 | S40: 0 | T40: 0 | U40: 0 | V40: 0 | W40: 0
B41: =title209 -> Capital cost (USD/kW) | C41: =C40/C8 -> 
B44: =title193 -> Operating Year | C44: =title238 -> Appraisal | D44: 1 | E44: 2 | F44: 3 | G44: 4 | H44: 5 | I44: 6 | J44: 7 | K44: 8 | L44: 9 | M44: 10 | N44: 11 | O44: 12 | P44: 13 | Q44: 14 | R44: 15 | S44: 16 | T44: 17 | U44: 18 | V44: 19 | W44: 20
B45: =title210 -> Annual operating and maintenance cost
B46: =title211 -> Sub-total material cost (USD) | C46: =C47+C55 ->  | D46: =D47+D55 -> 
B47: =title212 -> Biomass cost (USD/year) | C47: =C48*C49 ->  | D47: =D48*D49 ->  | E47: =E48*E49 -> 
B48: =title213 -> Biomass consumption (tne per year) | C48: =+COST_RES1!$G$39 ->  | D48: =+C48 ->  | E48: =+D48 -> 
B49: =title214 -> Biomass total price (USD/t) | C49: =SUM(C50:C51) -> 0 | D49: =SUM(D50:D51) -> 0 | E49: 0 | F49: 0 | G49: 0 | H49: 0 | I49: 0 | J49: 0 | K49: 0 | L49: 0 | M49: 0 | N49: 0 | O49: 0 | P49: 0 | Q49: 0 | R49: 0 | S49: 0 | T49: 0 | U49: 0 | V49: 0 | W49: 0
B50: =title215 -> Biomass price (USD/t) | C50: =+COST_RES1!$F$39 -> 0 | D50: =C50 -> 0 | E50: =D50 -> 0 | F50: 0 | G50: 0 | H50: 0 | I50: 0 | J50: 0 | K50: 0 | L50: 0 | M50: 0 | N50: 0 | O50: 0 | P50: 0 | Q50: 0 | R50: 0 | S50: 0 | T50: 0 | U50: 0 | V50: 0 | W50: 0
B51: =title216 -> Biomass transportation cost (USD/t) | C51: =+C52*C53 -> 0 | D51: =C51 -> 0 | E51: =D51 -> 0 | F51: 0 | G51: 0 | H51: 0 | I51: 0 | J51: 0 | K51: 0 | L51: 0 | M51: 0 | N51: 0 | O51: 0 | P51: 0 | Q51: 0 | R51: 0 | S51: 0 | T51: 0 | U51: 0 | V51: 0 | W51: 0
B52: =title217 -> Biomass from farm to plant (USD/t/km) | C52: =+COST_RES1!$F$52 -> 0
B53: =title218 -> Transportation distant (km) | C53: =+COST_RES1!$G$52 -> 0
B55: =title219 -> Water cost (USD/year) | C55: =C56*C57 ->  | D55: =D56*D57 -> 
B56: =title220 -> Water consumption (m3 per year) | C56: =+COST_RES1!$G$40 ->  | D56: =+C56 ->  | E56: =+D56 -> 
B57: =title221 -> Water + chemical additives cost (USD/m3) | C57: =+COST_RES1!$F$40 -> 0.4385964912 | D57: =C57 -> 0.4385964912 | E57: =D57 -> 0.4385964912 | F57: 0.4385964912 | G57: 0.4385964912 | H57: 0.4385964912 | I57: 0.4385964912 | J57: 0.4385964912 | K57: 0.4385964912 | L57: 0.4385964912 | M57: 0.4385964912 | N57: 0.4385964912 | O57: 0.4385964912 | P57: 0.4385964912 | Q57: 0.4385964912 | R57: 0.4385964912 | S57: 0.4385964912 | T57: 0.4385964912 | U57: 0.4385964912 | V57: 0.4385964912 | W57: 0.4385964912
B59: =title222 -> Sub-total operating cost (USD) | C59: =C60+C61+C62 -> 
B60: =title223 -> Labour cost (USD) | C60: =COST_RES1!H48 -> 0 | D60: =C60 -> 0 | E60: =D60 -> 0 | F60: 0 | G60: 0 | H60: 0 | I60: 0 | J60: 0 | K60: 0 | L60: 0 | M60: 0 | N60: 0 | O60: 0 | P60: 0 | Q60: 0 | R60: 0 | S60: 0 | T60: 0 | U60: 0 | V60: 0 | W60: 0
B61: =title154 -> Plant overhead | C61: =COST_RES1!H73 ->  | D61: =C61 ->  | E61: =D61 -> 
B62: =title155 -> General and administrative cost | C62: =COST_RES1!H74 ->  | D62: =C62 ->  | E62: =D62 -> 
B63: =title224 -> Sub-total maintenance cost (USD) | C63: =COST_RES1!H68 ->  | D63: =C63 ->  | E63: =D63 -> 
B65: =title225 -> Sub-total of annual fixed cost | C65: =COST_RES1!H67 ->  | D65: =C65 ->  | E65: =D65 -> 
B67: =title226 -> Sub-total of storage capacity | C67: =+COST_RES1!H58 ->  | D67: =C67 ->  | E67: =D67 -> 
B69: =title227 -> Total operation and maintenance cost (USD) | C69: =C46+C59+C63+C65+C67 -> 
B70: =title228 -> Operation and maintenance cost (USD/kWh) without loan interest | C70: =C69/C20 -> 
A72: =title95 -> Financial parameters
B73: =title193 -> Operating Year | C73: =title238 -> Appraisal | D73: 1 | E73: 2 | F73: 3 | G73: 4 | H73: 5 | I73: 6 | J73: 7 | K73: 8 | L73: 9 | M73: 10 | N73: 11 | O73: 12 | P73: 13 | Q73: 14 | R73: 15 | S73: 16 | T73: 17 | U73: 18 | V73: 19 | W73: 20
B74: =title96&" (%)" -> Discount rate (%) | C74: =+COST_RES1!$N$13 -> 0
B75: =title97&" (%)" -> Loan ratio (%) | C75: =+COST_RES1!$N$11 -> 0
B77: =title229 -> Loans | D77: 1 | E77: 2 | F77: 3 | G77: 4 | H77: 5 | I77: 6 | J77: 7 | K77: 8 | L77: 9 | M77: 10 | N77: 11 | O77: 12 | P77: 13 | Q77: 14 | R77: 15 | S77: 16 | T77: 17 | U77: 18 | V77: 19 | W77: 20
B78: =title230 -> Loan amount (USD ) | C78: =C75*C40 -> 
B79: =title231 -> Loan interest rate (%) | C79: =+COST_RES1!$N$10 -> 0
B80: =title126 -> Loan term (years) | C80: =+COST_RES1!$N$12 -> 0
B81: =title232 -> Loan payment (USD/month) | C81: =(PMT(C79/12,(12*C80),C78)) -> 
B82: =title233 -> Loan payment (USD/year) | D82: =IF(D73<=$C$80,$C$81*12,0) -> 0 | E82: =IF(E73<=$C$80,$C$81*12,0) -> 0 | F82: 0 | G82: 0 | H82: 0 | I82: 0 | J82: 0 | K82: 0 | L82: 0 | M82: 0 | N82: 0 | O82: 0 | P82: 0 | Q82: 0 | R82: 0 | S82: 0 | T82: 0 | U82: 0 | V82: 0 | W82: 0
B83: =title234 -> Total loan payment (USD) | C83: =SUM(D82:W82) -> 0
B84: =title235 -> Loan interest payment (USD) | C84: =C83+C78 ->  | D84: =title240 -> Average loan interest payment for project lifetime | G84: =C84/C25 ->  | H84: =title241 -> USD per year
A86: =title167 -> Depreciation
B87: =title193 -> Operating Year | C87: =title238 -> Appraisal | D87: 1 | E87: 2 | F87: 3 | G87: 4 | H87: 5 | I87: 6 | J87: 7 | K87: 8 | L87: 9 | M87: 10 | N87: 11 | O87: 12 | P87: 13 | Q87: 14 | R87: 15 | S87: 16 | T87: 17 | U87: 18 | V87: 19 | W87: 20
B88: =title236 -> Depreciation method | C88: =title239 -> Straight-line
B89: =title237 -> Total depreciation (USD) | D89: =COST_RES1!H67 ->  | E89: =D89 ->  | F89: =E89 -> 
A92: =title242 -> Base case project
A93: =title243 -> Summary of this project - before tax
B94: =title193 -> Operating Year | C94: =title238 -> Appraisal | D94: 1 | E94: 2 | F94: 3 | G94: 4 | H94: 5 | I94: 6 | J94: 7 | K94: 8 | L94: 9 | M94: 10 | N94: 11 | O94: 12 | P94: 13 | Q94: 14 | R94: 15 | S94: 16 | T94: 17 | U94: 18 | V94: 19 | W94: 20
B95: =title244 -> Total revenue (USD) | D95: =D23 -> 0 | E95: =E23 -> 0 | F95: 0 | G95: 0 | H95: 0 | I95: 0 | J95: 0 | K95: 0 | L95: 0 | M95: 0 | N95: 0 | O95: 0 | P95: 0 | Q95: 0 | R95: 0 | S95: 0 | T95: 0 | U95: 0 | V95: 0 | W95: 0
B96: =title208 -> Total capital cost (USD) | C96: =-(C40-C78) -> 
B97: =title245 -> Total operating and maintenance cost (USD) | D97: =-D69+D65 -> 
B98: =title246 -> Loan payment (USD) | D98: =D82 -> 0 | E98: =E82 -> 0 | F98: 0 | G98: 0 | H98: 0 | I98: 0 | J98: 0 | K98: 0 | L98: 0 | M98: 0 | N98: 0 | O98: 0 | P98: 0 | Q98: 0 | R98: 0 | S98: 0 | T98: 0 | U98: 0 | V98: 0 | W98: 0
B99: =title247 -> Cash flow - before tax (USD) | C99: =SUM(C95:C98) ->  | D99: =SUM(D95:D98) -> 
A101: =title248 -> Financial analysis result
B103: =title249 -> Net Present Value (NPV) (USD) - before tax | C103: =NPV(C74,D99:W99)+C99 -> 
B104: =title250 -> Internal Rate of Return (IRR) (%) - before tax | C104: =IF(C103<0,title392,IRR(C99:W99,0.001)) -> 
B105: =title251 -> Payback period (years) | C105: =title252 -> Please see Figure of the cumulative value of Net Profit - before tax

Sheet FA40kW_RES1 (hidden)
B1: =title190 -> FINANCIAL EVALUATION OF COMBUSTION FOR POWER GENERATION 40 kW
A4: =title192 -> Revenues
B6: =title193 -> Operating Year | C6: 0 | D6: 1 | E6: 2 | F6: 3 | G6: 4 | H6: 5 | I6: 6 | J6: 7 | K6: 8 | L6: 9 | M6: 10 | N6: 11 | O6: 12 | P6: 13 | Q6: 14 | R6: 15 | S6: 16 | T6: 17 | U6: 18 | V6: 19 | W6: 20
B8: =title194 -> Power generation capacity (kW) | C8: 40 | D8: =C8 -> 40 | E8: =D8 -> 40 | F8: 40 | G8: 40 | H8: 40 | I8: 40 | J8: 40 | K8: 40 | L8: 40 | M8: 40 | N8: 40 | O8: 40 | P8: 40 | Q8: 40 | R8: 40 | S8: 40 | T8: 40 | U8: 40 | V8: 40 | W8: 40
B10: =title195 -> Turbine type | C10: =+COST_RES1!$I$11 -> Backpressure steam turbine
B12: =title125 -> Power loss in distribution network (%) | C12: =+COST_RES1!$I$17 -> 0 | D12: =+C12 -> 0 | E12: =+D12 -> 0 | F12: 0 | G12: 0 | H12: 0 | I12: 0 | J12: 0 | K12: 0 | L12: 0 | M12: 0 | N12: 0 | O12: 0 | P12: 0 | Q12: 0 | R12: 0 | S12: 0 | T12: 0 | U12: 0 | V12: 0 | W12: 0
B14: =title187 -> Operating hours per year | C14: =+COST_RES1!$J$34 -> 0 | D14: =C14 -> 0 | E14: =D14 -> 0 | F14: 0 | G14: 0 | H14: 0 | I14: 0 | J14: 0 | K14: 0 | L14: 0 | M14: 0 | N14: 0 | O14: 0 | P14: 0 | Q14: 0 | R14: 0 | S14: 0 | T14: 0 | U14: 0 | V14: 0 | W14: 0
B15: =title119 -> Capacity utilization factor | C15: =C14/8760 -> 0 | D15: =D14/8760 -> 0 | E15: 0 | F15: 0 | G15: 0 | H15: 0 | I15: 0 | J15: 0 | K15: 0 | L15: 0 | M15: 0 | N15: 0 | O15: 0 | P15: 0 | Q15: 0 | R15: 0 | S15: 0 | T15: 0 | U15: 0 | V15: 0 | W15: 0
B17: =title196 -> Electricity generation (kWh per year) | C17: =C8*C14*(1-C12) -> 0 | D17: =D8*D14*(1-D12) -> 0 | E17: 0 | F17: 0 | G17: 0 | H17: 0 | I17: 0 | J17: 0 | K17: 0 | L17: 0 | M17: 0 | N17: 0 | O17: 0 | P17: 0 | Q17: 0 | R17: 0 | S17: 0 | T17: 0 | U17: 0 | V17: 0 | W17: 0
B18: =title197 -> Electricity - self use (kWh per year) | C18: =C17*10% -> 0 | D18: =D17*10% -> 0 | E18: 0 | F18: 0 | G18: 0 | H18: 0 | I18: 0 | J18: 0 | K18: 0 | L18: 0 | M18: 0 | N18: 0 | O18: 0 | P18: 0 | Q18: 0 | R18: 0 | S18: 0 | T18: 0 | U18: 0 | V18: 0 | W18: 0
B19: =title198 -> Power loss in distribution network (kWh per year) | C19: =C17*COST_RES1!$I$19 -> 0 | D19: =C19 -> 0 | E19: =D19 -> 0 | F19: 0 | G19: 0 | H19: 0 | I19: 0 | J19: 0 | K19: 0 | L19: 0 | M19: 0 | N19: 0 | O19: 0 | P19: 0 | Q19: 0 | R19: 0 | S19: 0 | T19: 0 | U19: 0 | V19: 0 | W19: 0
B20: =title199 -> Total power sold to the customers (kWh per year) | C20: =C17-C18-C19 -> 0 | D20: =D17-D18-D19 -> 0 | E20: 0 | F20: 0 | G20: 0 | H20: 0 | I20: 0 | J20: 0 | K20: 0 | L20: 0 | M20: 0 | N20: 0 | O20: 0 | P20: 0 | Q20: 0 | R20: 0 | S20: 0 | T20: 0 | U20: 0 | V20: 0 | W20: 0
B22: =title128 -> Price of electricity (USD/kWh) | C22: =+COST_RES1!$N$15 -> 0 | D22: =+COST_RES1!$N$15 -> 0 | E22: =+COST_RES1!$N$15 -> 0 | F22: =+COST_RES1!$N$15 -> 0 | G22: =+COST_RES1!$N$15 -> 0 | H22: =+COST_RES1!$N$15 -> 0 | I22: =+COST_RES1!$N$15 -> 0 | J22: =+COST_RES1!$N$15 -> 0 | K22: =+COST_RES1!$N$15 -> 0 | L22: =+COST_RES1!$N$15 -> 0 | M22: =+COST_RES1!$N$15 -> 0 | N22: =+COST_RES1!$N$15 -> 0 | O22: =+COST_RES1!$N$15 -> 0 | P22: =+COST_RES1!$N$15 -> 0 | Q22: =+COST_RES1!$N$15 -> 0 | R22: =+COST_RES1!$N$15 -> 0 | S22: =+COST_RES1!$N$15 -> 0 | T22: =+COST_RES1!$N$15 -> 0 | U22: =+COST_RES1!$N$15 -> 0 | V22: =+COST_RES1!$N$15 -> 0 | W22: =+COST_RES1!$N$15 -> 0
B23: =title200 -> Total income (USD/year) | C23: =C20*C22 -> 0 | D23: =D20*D22 -> 0 | E23: 0 | F23: 0 | G23: 0 | H23: 0 | I23: 0 | J23: 0 | K23: 0 | L23: 0 | M23: 0 | N23: 0 | O23: 0 | P23: 0 | Q23: 0 | R23: 0 | S23: 0 | T23: 0 | U23: 0 | V23: 0 | W23: 0
B25: =title201 -> Project lifetime (years) | C25: =+COST_RES1!$N$16 -> 20
B26: =title202 -> Lifespan of civil work (years) | C26: =20 -> 20
B27: =title203 -> Lifespan of combustion system (years) | C27: =20 -> 20
B28: =title204 -> Lifespan of engine generator system (years) | C28: =20 -> 20
B29: =title205 -> Lifespan of electrical distribution system (years) | C29: =20 -> 20
A32: =title206 -> Capital and operating cost
B34: =title193 -> Operating Year | C34: =title238 -> Appraisal | D34: 1 | E34: 2 | F34: 3 | G34: 4 | H34: 5 | I34: 6 | J34: 7 | K34: 8 | L34: 9 | M34: 10 | N34: 11 | O34: 12 | P34: 13 | Q34: 14 | R34: 15 | S34: 16 | T34: 17 | U34: 18 | V34: 19 | W34: 20
B35: =title207 -> Direct capital cost (USD)
B36: =title149 -> Equipments | C36: =COST_RES1!I62 -> 
B37: =title150 -> Building | C37: =COST_RES1!I63 -> 2499.64
B38: =title151 -> Installation | C38: =COST_RES1!I64 -> 1085.714286
B39: =title152 -> Distribution network | C39: =COST_RES1!I65 -> 
B40: =title208 -> Total capital cost (USD) | C40: =SUM(C36:C39) ->  | D40: =D36+D37+D38 -> 0 | E40: 0 | F40: 0 | G40: 0 | H40: 0 | I40: 0 | J40: 0 | K40: 0 | L40: 0 | M40: 0 | N40: 0 | O40: 0 | P40: 0 | Q40: 0 | R40: 0 | S40: 0 | T40: 0 | U40: 0 | V40: 0 | W40: 0
B41: =title209 -> Capital cost (USD/kW) | C41: =C40/C8 -> 
B44: =title193 -> Operating Year | C44: =title238 -> Appraisal | D44: 1 | E44: 2 | F44: 3 | G44: 4 | H44: 5 | I44: 6 | J44: 7 | K44: 8 | L44: 9 | M44: 10 | N44: 11 | O44: 12 | P44: 13 | Q44: 14 | R44: 15 | S44: 16 | T44: 17 | U44: 18 | V44: 19 | W44: 20
B45: =title210 -> Annual operating and maintenance cost
B46: =title211 -> Sub-total material cost (USD) | C46: =C47+C55 ->  | D46: =D47+D55 -> 
B47: =title212 -> Biomass cost (USD/year) | C47: =C48*C49 ->  | D47: =D48*D49 ->  | E47: =E48*E49 -> 
B48: =title213 -> Biomass consumption (tne per year) | C48: =+COST_RES1!$I$39 ->  | D48: =+C48 ->  | E48: =+D48 -> 
B49: =title214 -> Biomass total price (USD/t) | C49: =SUM(C50:C51) -> 0 | D49: =SUM(D50:D51) -> 0 | E49: 0 | F49: 0 | G49: 0 | H49: 0 | I49: 0 | J49: 0 | K49: 0 | L49: 0 | M49: 0 | N49: 0 | O49: 0 | P49: 0 | Q49: 0 | R49: 0 | S49: 0 | T49: 0 | U49: 0 | V49: 0 | W49: 0
B50: =title215 -> Biomass price (USD/t) | C50: =+COST_RES1!$F$39 -> 0 | D50: =C50 -> 0 | E50: =D50 -> 0 | F50: 0 | G50: 0 | H50: 0 | I50: 0 | J50: 0 | K50: 0 | L50: 0 | M50: 0 | N50: 0 | O50: 0 | P50: 0 | Q50: 0 | R50: 0 | S50: 0 | T50: 0 | U50: 0 | V50: 0 | W50: 0
B51: =title216 -> Biomass transportation cost (USD/t) | C51: =+C52*C53 -> 0 | D51: =+C51 -> 0 | E51: =+D51 -> 0 | F51: 0 | G51: 0 | H51: 0 | I51: 0 | J51: 0 | K51: 0 | L51: 0 | M51: 0 | N51: 0 | O51: 0 | P51: 0 | Q51: 0 | R51: 0 | S51: 0 | T51: 0 | U51: 0 | V51: 0 | W51: 0
B52: =title217 -> Biomass from farm to plant (USD/t/km) | C52: =+COST_RES1!$F$52 -> 0
B53: =title218 -> Transportation distant (km) | C53: =+COST_RES1!$I$52 -> 0
B55: =title219 -> Water cost (USD/year) | C55: =C56*C57 ->  | D55: =D56*D57 -> 
B56: =title220 -> Water consumption (m3 per year) | C56: =+COST_RES1!$I$40 ->  | D56: =+C56 ->  | E56: =+D56 -> 
B57: =title221 -> Water + chemical additives cost (USD/m3) | C57: =+COST_RES1!$F$40 -> 0.4385964912 | D57: =C57 -> 0.4385964912 | E57: =D57 -> 0.4385964912 | F57: 0.4385964912 | G57: 0.4385964912 | H57: 0.4385964912 | I57: 0.4385964912 | J57: 0.4385964912 | K57: 0.4385964912 | L57: 0.4385964912 | M57: 0.4385964912 | N57: 0.4385964912 | O57: 0.4385964912 | P57: 0.4385964912 | Q57: 0.4385964912 | R57: 0.4385964912 | S57: 0.4385964912 | T57: 0.4385964912 | U57: 0.4385964912 | V57: 0.4385964912 | W57: 0.4385964912
B59: =title222 -> Sub-total operating cost (USD) | C59: =C60+C61+C62 -> 
B60: =title223 -> Labour cost (USD) | C60: =COST_RES1!J48 -> 0 | D60: =C60 -> 0 | E60: =D60 -> 0 | F60: 0 | G60: 0 | H60: 0 | I60: 0 | J60: 0 | K60: 0 | L60: 0 | M60: 0 | N60: 0 | O60: 0 | P60: 0 | Q60: 0 | R60: 0 | S60: 0 | T60: 0 | U60: 0 | V60: 0 | W60: 0
B61: =title154 -> Plant overhead | C61: =COST_RES1!J73 ->  | D61: =C61 ->  | E61: =D61 -> 
B62: =title155 -> General and administrative cost | C62: =COST_RES1!J74 ->  | D62: =C62 -> 
B63: =title224 -> Sub-total maintenance cost (USD) | C63: =COST_RES1!J68 ->  | D63: =C63 -> 
B65: =title225 -> Sub-total of annual fixed cost | C65: =COST_RES1!J67 ->  | D65: =C65 ->  | E65: =D65 -> 
B67: =title226 -> Sub-total of storage capacity | C67: =+COST_RES1!J58 ->  | D67: =C67 ->  | E67: =D67 -> 
B69: =title227 -> Total operation and maintenance cost (USD) | C69: =C46+C59+C63+C65+C67 -> 
B70: =title228 -> Operation and maintenance cost (USD/kWh) without loan interest | C70: =C69/C20 -> 
A72: =title95 -> Financial parameters
B73: =title193 -> Operating Year | C73: =title238 -> Appraisal | D73: 1 | E73: 2 | F73: 3 | G73: 4 | H73: 5 | I73: 6 | J73: 7 | K73: 8 | L73: 9 | M73: 10 | N73: 11 | O73: 12 | P73: 13 | Q73: 14 | R73: 15 | S73: 16 | T73: 17 | U73: 18 | V73: 19 | W73: 20
B74: =title96&" (%)" -> Discount rate (%) | C74: =+COST_RES1!$N$13 -> 0
B75: =title97&" (%)" -> Loan ratio (%) | C75: =+COST_RES1!$N$11 -> 0
B77: =title229 -> Loans | D77: 1 | E77: 2 | F77: 3 | G77: 4 | H77: 5 | I77: 6 | J77: 7 | K77: 8 | L77: 9 | M77: 10 | N77: 11 | O77: 12 | P77: 13 | Q77: 14 | R77: 15 | S77: 16 | T77: 17 | U77: 18 | V77: 19 | W77: 20
B78: =title230 -> Loan amount (USD ) | C78: =C75*C40 -> 
B79: =title231 -> Loan interest rate (%) | C79: =+COST_RES1!$N$10 -> 0
B80: =title126 -> Loan term (years) | C80: =+COST_RES1!$N$12 -> 0
B81: =title232 -> Loan payment (USD/month) | C81: =(PMT(C79/12,(12*C80),C78)) -> 
B82: =title233 -> Loan payment (USD/year) | D82: =IF(D73<=$C$80,$C$81*12,0) -> 0 | E82: =IF(E73<=$C$80,$C$81*12,0) -> 0 | F82: 0 | G82: 0 | H82: 0 | I82: 0 | J82: 0 | K82: 0 | L82: 0 | M82: 0 | N82: 0 | O82: 0 | P82: 0 | Q82: 0 | R82: 0 | S82: 0 | T82: 0 | U82: 0 | V82: 0 | W82: 0
B83: =title234 -> Total loan payment (USD) | C83: =SUM(D82:W82) -> 0
B84: =title235 -> Loan interest payment (USD) | C84: =C83+C78 ->  | D84: =title240 -> Average loan interest payment for project lifetime | G84: =C84/C25 ->  | H84: =title241 -> USD per year
A86: =title167 -> Depreciation
B87: =title193 -> Operating Year | C87: =title238 -> Appraisal | D87: 1 | E87: 2 | F87: 3 | G87: 4 | H87: 5 | I87: 6 | J87: 7 | K87: 8 | L87: 9 | M87: 10 | N87: 11 | O87: 12 | P87: 13 | Q87: 14 | R87: 15 | S87: 16 | T87: 17 | U87: 18 | V87: 19 | W87: 20
B88: =title236 -> Depreciation method | C88: =title239 -> Straight-line
B89: =title237 -> Total depreciation (USD) | D89: =COST_RES1!H67 ->  | E89: =D89 ->  | F89: =E89 -> 
A92: =title242 -> Base case project
A93: =title243 -> Summary of this project - before tax
B94: =title193 -> Operating Year | C94: =title238 -> Appraisal | D94: 1 | E94: 2 | F94: 3 | G94: 4 | H94: 5 | I94: 6 | J94: 7 | K94: 8 | L94: 9 | M94: 10 | N94: 11 | O94: 12 | P94: 13 | Q94: 14 | R94: 15 | S94: 16 | T94: 17 | U94: 18 | V94: 19 | W94: 20
B95: =title244 -> Total revenue (USD) | D95: =D23 -> 0 | E95: =E23 -> 0 | F95: 0 | G95: 0 | H95: 0 | I95: 0 | J95: 0 | K95: 0 | L95: 0 | M95: 0 | N95: 0 | O95: 0 | P95: 0 | Q95: 0 | R95: 0 | S95: 0 | T95: 0 | U95: 0 | V95: 0 | W95: 0
B96: =title208 -> Total capital cost (USD) | C96: =-(C40-C78) -> 
B97: =title245 -> Total operating and maintenance cost (USD) | D97: =-D69+D65 -> 
B98: =title246 -> Loan payment (USD) | D98: =D82 -> 0 | E98: =E82 -> 0 | F98: 0 | G98: 0 | H98: 0 | I98: 0 | J98: 0 | K98: 0 | L98: 0 | M98: 0 | N98: 0 | O98: 0 | P98: 0 | Q98: 0 | R98: 0 | S98: 0 | T98: 0 | U98: 0 | V98: 0 | W98: 0
B99: =title247 -> Cash flow - before tax (USD) | C99: =SUM(C95:C98) ->  | D99: =SUM(D95:D98) -> 
A101: =title248 -> Financial analysis result
B103: =title249 -> Net Present Value (NPV) (USD) - before tax | C103: =NPV(C74,D99:W99)+C99 -> 
B104: =title250 -> Internal Rate of Return (IRR) (%) - before tax | C104: =IF(C103<0,title392,IRR(C99:W99,0.001)) -> 
B105: =title251 -> Payback period (years) | C105: =title252 -> Please see Figure of the cumulative value of Net Profit - before tax

Sheet FA100kW_RES1 (hidden)
B1: =title191 -> FINANCIAL EVALUATION OF COMBUSTION FOR POWER GENERATION 100 kW
A4: =title192 -> Revenues
B6: =title193 -> Operating Year | C6: 0 | D6: 1 | E6: 2 | F6: 3 | G6: 4 | H6: 5 | I6: 6 | J6: 7 | K6: 8 | L6: 9 | M6: 10 | N6: 11 | O6: 12 | P6: 13 | Q6: 14 | R6: 15 | S6: 16 | T6: 17 | U6: 18 | V6: 19 | W6: 20
B8: =title194 -> Power generation capacity (kW) | C8: 100 | D8: =C8 -> 100 | E8: =D8 -> 100 | F8: 100 | G8: 100 | H8: 100 | I8: 100 | J8: 100 | K8: 100 | L8: 100 | M8: 100 | N8: 100 | O8: 100 | P8: 100 | Q8: 100 | R8: 100 | S8: 100 | T8: 100 | U8: 100 | V8: 100 | W8: 100
B10: =title195 -> Turbine type | C10: =+COST_RES1!$I$11 -> Backpressure steam turbine
B12: =title125 -> Power loss in distribution network (%) | C12: =+COST_RES1!$I$17 -> 0 | D12: =+C12 -> 0 | E12: =+D12 -> 0 | F12: 0 | G12: 0 | H12: 0 | I12: 0 | J12: 0 | K12: 0 | L12: 0 | M12: 0 | N12: 0 | O12: 0 | P12: 0 | Q12: 0 | R12: 0 | S12: 0 | T12: 0 | U12: 0 | V12: 0 | W12: 0
B14: =title187 -> Operating hours per year | C14: =+COST_RES1!$L$34 -> 0 | D14: =C14 -> 0 | E14: =D14 -> 0 | F14: 0 | G14: 0 | H14: 0 | I14: 0 | J14: 0 | K14: 0 | L14: 0 | M14: 0 | N14: 0 | O14: 0 | P14: 0 | Q14: 0 | R14: 0 | S14: 0 | T14: 0 | U14: 0 | V14: 0 | W14: 0
B15: =title119 -> Capacity utilization factor | C15: =C14/8760 -> 0 | D15: =D14/8760 -> 0 | E15: 0 | F15: 0 | G15: 0 | H15: 0 | I15: 0 | J15: 0 | K15: 0 | L15: 0 | M15: 0 | N15: 0 | O15: 0 | P15: 0 | Q15: 0 | R15: 0 | S15: 0 | T15: 0 | U15: 0 | V15: 0 | W15: 0
B17: =title196 -> Electricity generation (kWh per year) | C17: =C8*C14*(1-C12) -> 0 | D17: =D8*D14*(1-D12) -> 0 | E17: 0 | F17: 0 | G17: 0 | H17: 0 | I17: 0 | J17: 0 | K17: 0 | L17: 0 | M17: 0 | N17: 0 | O17: 0 | P17: 0 | Q17: 0 | R17: 0 | S17: 0 | T17: 0 | U17: 0 | V17: 0 | W17: 0
B18: =title197 -> Electricity - self use (kWh per year) | C18: =C17*10% -> 0 | D18: =D17*10% -> 0 | E18: 0 | F18: 0 | G18: 0 | H18: 0 | I18: 0 | J18: 0 | K18: 0 | L18: 0 | M18: 0 | N18: 0 | O18: 0 | P18: 0 | Q18: 0 | R18: 0 | S18: 0 | T18: 0 | U18: 0 | V18: 0 | W18: 0
B19: =title198 -> Power loss in distribution network (kWh per year) | C19: =C17*COST_RES1!$I$19 -> 0 | D19: =C19 -> 0 | E19: =D19 -> 0 | F19: 0 | G19: 0 | H19: 0 | I19: 0 | J19: 0 | K19: 0 | L19: 0 | M19: 0 | N19: 0 | O19: 0 | P19: 0 | Q19: 0 | R19: 0 | S19: 0 | T19: 0 | U19: 0 | V19: 0 | W19: 0
B20: =title199 -> Total power sold to the customers (kWh per year) | C20: =C17-C18-C19 -> 0 | D20: =D17-D18-D19 -> 0 | E20: 0 | F20: 0 | G20: 0 | H20: 0 | I20: 0 | J20: 0 | K20: 0 | L20: 0 | M20: 0 | N20: 0 | O20: 0 | P20: 0 | Q20: 0 | R20: 0 | S20: 0 | T20: 0 | U20: 0 | V20: 0 | W20: 0
B22: =title128 -> Price of electricity (USD/kWh) | C22: =+COST_RES1!$N$15 -> 0 | D22: =+COST_RES1!$N$15 -> 0 | E22: =+COST_RES1!$N$15 -> 0 | F22: =+COST_RES1!$N$15 -> 0 | G22: =+COST_RES1!$N$15 -> 0 | H22: =+COST_RES1!$N$15 -> 0 | I22: =+COST_RES1!$N$15 -> 0 | J22: =+COST_RES1!$N$15 -> 0 | K22: =+COST_RES1!$N$15 -> 0 | L22: =+COST_RES1!$N$15 -> 0 | M22: =+COST_RES1!$N$15 -> 0 | N22: =+COST_RES1!$N$15 -> 0 | O22: =+COST_RES1!$N$15 -> 0 | P22: =+COST_RES1!$N$15 -> 0 | Q22: =+COST_RES1!$N$15 -> 0 | R22: =+COST_RES1!$N$15 -> 0 | S22: =+COST_RES1!$N$15 -> 0 | T22: =+COST_RES1!$N$15 -> 0 | U22: =+COST_RES1!$N$15 -> 0 | V22: =+COST_RES1!$N$15 -> 0 | W22: =+COST_RES1!$N$15 -> 0
B23: =title200 -> Total income (USD/year) | C23: =C20*C22 -> 0 | D23: =D20*D22 -> 0 | E23: 0 | F23: 0 | G23: 0 | H23: 0 | I23: 0 | J23: 0 | K23: 0 | L23: 0 | M23: 0 | N23: 0 | O23: 0 | P23: 0 | Q23: 0 | R23: 0 | S23: 0 | T23: 0 | U23: 0 | V23: 0 | W23: 0
B25: =title201 -> Project lifetime (years) | C25: =+COST_RES1!$N$16 -> 20
B26: =title202 -> Lifespan of civil work (years) | C26: =20 -> 20
B27: =title203 -> Lifespan of combustion system (years) | C27: =20 -> 20
B28: =title204 -> Lifespan of engine generator system (years) | C28: =20 -> 20
B29: =title205 -> Lifespan of electrical distribution system (years) | C29: =20 -> 20
A32: =title206 -> Capital and operating cost
B34: =title193 -> Operating Year | C34: =title238 -> Appraisal | D34: 1 | E34: 2 | F34: 3 | G34: 4 | H34: 5 | I34: 6 | J34: 7 | K34: 8 | L34: 9 | M34: 10 | N34: 11 | O34: 12 | P34: 13 | Q34: 14 | R34: 15 | S34: 16 | T34: 17 | U34: 18 | V34: 19 | W34: 20
B35: =title207 -> Direct capital cost (USD)
B36: =title149 -> Equipments | C36: =COST_RES1!K62 -> 
B37: =title150 -> Building | C37: =COST_RES1!K63 -> 3679
B38: =title151 -> Installation | C38: =COST_RES1!K64 -> 2714.285714
B39: =title152 -> Distribution network | C39: =COST_RES1!K65 -> 
B40: =title208 -> Total capital cost (USD) | C40: =SUM(C36:C39) ->  | D40: =D36+D37+D38 -> 0 | E40: 0 | F40: 0 | G40: 0 | H40: 0 | I40: 0 | J40: 0 | K40: 0 | L40: 0 | M40: 0 | N40: 0 | O40: 0 | P40: 0 | Q40: 0 | R40: 0 | S40: 0 | T40: 0 | U40: 0 | V40: 0 | W40: 0
B41: =title209 -> Capital cost (USD/kW) | C41: =C40/C8 -> 
B44: =title193 -> Operating Year | C44: =title238 -> Appraisal | D44: 1 | E44: 2 | F44: 3 | G44: 4 | H44: 5 | I44: 6 | J44: 7 | K44: 8 | L44: 9 | M44: 10 | N44: 11 | O44: 12 | P44: 13 | Q44: 14 | R44: 15 | S44: 16 | T44: 17 | U44: 18 | V44: 19 | W44: 20
B45: =title210 -> Annual operating and maintenance cost
B46: =title211 -> Sub-total material cost (USD) | C46: =C47+C55 ->  | D46: =D47+D55 -> 
B47: =title212 -> Biomass cost (USD/year) | C47: =C48*C49 ->  | D47: =D48*D49 ->  | E47: =E48*E49 -> 
B48: =title213 -> Biomass consumption (tne per year) | C48: =+COST_RES1!$K$39 ->  | D48: =+C48 ->  | E48: =+D48 -> 
B49: =title214 -> Biomass total price (USD/t) | C49: =SUM(C50:C51) -> 0 | D49: =SUM(D50:D51) -> 0 | E49: =SUM(E50:E51) -> 0 | F49: 0 | G49: 0 | H49: 0 | I49: 0 | J49: 0 | K49: 0 | L49: 0 | M49: 0 | N49: 0 | O49: 0 | P49: 0 | Q49: 0 | R49: 0 | S49: 0 | T49: 0 | U49: 0 | V49: 0 | W49: 0
B50: =title215 -> Biomass price (USD/t) | C50: =+COST_RES1!$F$39 -> 0 | D50: =C50 -> 0 | E50: =D50 -> 0 | F50: 0 | G50: 0 | H50: 0 | I50: 0 | J50: 0 | K50: 0 | L50: 0 | M50: 0 | N50: 0 | O50: 0 | P50: 0 | Q50: 0 | R50: 0 | S50: 0 | T50: 0 | U50: 0 | V50: 0 | W50: 0
B51: =title216 -> Biomass transportation cost (USD/t) | C51: =+C52*C53 -> 0 | D51: =+C51 -> 0 | E51: =+D51 -> 0 | F51: 0 | G51: 0 | H51: 0 | I51: 0 | J51: 0 | K51: 0 | L51: 0 | M51: 0 | N51: 0 | O51: 0 | P51: 0 | Q51: 0 | R51: 0 | S51: 0 | T51: 0 | U51: 0 | V51: 0 | W51: 0
B52: =title217 -> Biomass from farm to plant (USD/t/km) | C52: =+COST_RES1!$F$52 -> 0
B53: =title218 -> Transportation distant (km) | C53: =+COST_RES1!$K$52 -> 0
B55: =title219 -> Water cost (USD/year) | C55: =C56*C57 ->  | D55: =D56*D57 -> 
B56: =title220 -> Water consumption (m3 per year) | C56: =+COST_RES1!$K$40 ->  | D56: =+C56 ->  | E56: =+D56 -> 
B57: =title221 -> Water + chemical additives cost (USD/m3) | C57: =+COST_RES1!$F$40 -> 0.4385964912 | D57: =C57 -> 0.4385964912 | E57: =D57 -> 0.4385964912 | F57: 0.4385964912 | G57: 0.4385964912 | H57: 0.4385964912 | I57: 0.4385964912 | J57: 0.4385964912 | K57: 0.4385964912 | L57: 0.4385964912 | M57: 0.4385964912 | N57: 0.4385964912 | O57: 0.4385964912 | P57: 0.4385964912 | Q57: 0.4385964912 | R57: 0.4385964912 | S57: 0.4385964912 | T57: 0.4385964912 | U57: 0.4385964912 | V57: 0.4385964912 | W57: 0.4385964912
B59: =title222 -> Sub-total operating cost (USD) | C59: =C60+C61+C62 -> 
B60: =title223 -> Labour cost (USD) | C60: =COST_RES1!L48 -> 0 | D60: =C60 -> 0 | E60: =D60 -> 0 | F60: 0 | G60: 0 | H60: 0 | I60: 0 | J60: 0 | K60: 0 | L60: 0 | M60: 0 | N60: 0 | O60: 0 | P60: 0 | Q60: 0 | R60: 0 | S60: 0 | T60: 0 | U60: 0 | V60: 0 | W60: 0
B61: =title154 -> Plant overhead | C61: =COST_RES1!L73 ->  | D61: =C61 ->  | E61: =D61 ->  | U61: =T61 -> 
B62: =title155 -> General and administrative cost | C62: =COST_RES1!L74 ->  | D62: =C62 -> 
B63: =title224 -> Sub-total maintenance cost (USD) | C63: =COST_RES1!L68 ->  | D63: =C63 -> 
B65: =title225 -> Sub-total of annual fixed cost | C65: =COST_RES1!L67 ->  | D65: =C65 ->  | E65: =D65 -> 
B67: =title226 -> Sub-total of storage capacity | C67: =+COST_RES1!L58 ->  | D67: =C67 ->  | E67: =D67 -> 
B69: =title227 -> Total operation and maintenance cost (USD) | C69: =C46+C59+C63+C65+C67 -> 
B70: =title228 -> Operation and maintenance cost (USD/kWh) without loan interest | C70: =C69/C20 -> 
A72: =title95 -> Financial parameters
B73: =title193 -> Operating Year | C73: =title238 -> Appraisal | D73: 1 | E73: 2 | F73: 3 | G73: 4 | H73: 5 | I73: 6 | J73: 7 | K73: 8 | L73: 9 | M73: 10 | N73: 11 | O73: 12 | P73: 13 | Q73: 14 | R73: 15 | S73: 16 | T73: 17 | U73: 18 | V73: 19 | W73: 20
B74: =title96&" (%)" -> Discount rate (%) | C74: =+COST_RES1!$N$13 -> 0
B75: Debt ratio (%) | C75: =+COST_RES1!$N$11 -> 0
B77: =title229 -> Loans | D77: 1 | E77: 2 | F77: 3 | G77: 4 | H77: 5 | I77: 6 | J77: 7 | K77: 8 | L77: 9 | M77: 10 | N77: 11 | O77: 12 | P77: 13 | Q77: 14 | R77: 15 | S77: 16 | T77: 17 | U77: 18 | V77: 19 | W77: 20
B78: =title230 -> Loan amount (USD ) | C78: =C75*C40 -> 
B79: =title231 -> Loan interest rate (%) | C79: =+COST_RES1!$N$10 -> 0
B80: =title126 -> Loan term (years) | C80: =+COST_RES1!$N$12 -> 0
B81: =title232 -> Loan payment (USD/month) | C81: =(PMT(C79/12,(12*C80),C78)) -> 
B82: =title233 -> Loan payment (USD/year) | D82: =IF(D73<=$C$80,$C$81*12,0) -> 0 | E82: =IF(E73<=$C$80,$C$81*12,0) -> 0 | F82: 0 | G82: 0 | H82: 0 | I82: 0 | J82: 0 | K82: 0 | L82: 0 | M82: 0 | N82: 0 | O82: 0 | P82: 0 | Q82: 0 | R82: 0 | S82: 0 | T82: 0 | U82: 0 | V82: 0 | W82: 0
B83: =title234 -> Total loan payment (USD) | C83: =SUM(D82:W82) -> 0
B84: =title235 -> Loan interest payment (USD) | C84: =C83+C78 ->  | D84: =title240 -> Average loan interest payment for project lifetime | G84: =C84/C25 ->  | H84: =title241 -> USD per year
A86: =title167 -> Depreciation
B87: =title193 -> Operating Year | C87: =title238 -> Appraisal | D87: 1 | E87: 2 | F87: 3 | G87: 4 | H87: 5 | I87: 6 | J87: 7 | K87: 8 | L87: 9 | M87: 10 | N87: 11 | O87: 12 | P87: 13 | Q87: 14 | R87: 15 | S87: 16 | T87: 17 | U87: 18 | V87: 19 | W87: 20
B88: =title236 -> Depreciation method | C88: =title239 -> Straight-line
B89: =title237 -> Total depreciation (USD) | D89: =COST_RES1!H67 ->  | E89: =D89 ->  | F89: =E89 -> 
A92: =title242 -> Base case project
A93: =title243 -> Summary of this project - before tax
B94: =title193 -> Operating Year | C94: =title238 -> Appraisal | D94: 1 | E94: 2 | F94: 3 | G94: 4 | H94: 5 | I94: 6 | J94: 7 | K94: 8 | L94: 9 | M94: 10 | N94: 11 | O94: 12 | P94: 13 | Q94: 14 | R94: 15 | S94: 16 | T94: 17 | U94: 18 | V94: 19 | W94: 20
B95: =title244 -> Total revenue (USD) | D95: =D23 -> 0 | E95: =E23 -> 0 | F95: 0 | G95: 0 | H95: 0 | I95: 0 | J95: 0 | K95: 0 | L95: 0 | M95: 0 | N95: 0 | O95: 0 | P95: 0 | Q95: 0 | R95: 0 | S95: 0 | T95: 0 | U95: 0 | V95: 0 | W95: 0
B96: =title208 -> Total capital cost (USD) | C96: =-(C40-C78) -> 
B97: =title245 -> Total operating and maintenance cost (USD) | D97: =-D69+D65 ->  | E97: =-E69+E65 -> 
B98: =title246 -> Loan payment (USD) | D98: =D82 -> 0 | E98: =E82 -> 0 | F98: 0 | G98: 0 | H98: 0 | I98: 0 | J98: 0 | K98: 0 | L98: 0 | M98: 0 | N98: 0 | O98: 0 | P98: 0 | Q98: 0 | R98: 0 | S98: 0 | T98: 0 | U98: 0 | V98: 0 | W98: 0
B99: =title247 -> Cash flow - before tax (USD) | C99: =SUM(C95:C98) ->  | D99: =SUM(D95:D98) -> 
A101: =title248 -> Financial analysis result
B103: =title249 -> Net Present Value (NPV) (USD) - before tax | C103: =NPV(C74,D99:W99)+C99 -> 
B104: =title250 -> Internal Rate of Return (IRR) (%) - before tax | C104: =IF(C103<0,title392,IRR(C99:W99,0.001)) -> 
B105: =title251 -> Payback period (years) | C105: =title252 -> Please see Figure of the cumulative value of Net Profit - before tax

Sheet COST_RES2
C3: =+UPPER(title112&'Data Entry Needs'!$E$11&" "&'Data Entry Needs'!$E$12) -> PROCESSING COSTS FOR POWER GENERATION FROM PLEASE SELECT PLEASE SELECT
C6: =title61 -> Use white cells to input data | E6: =title62 -> Grey cells are used for calculations
C8: =title113 -> Summary of Feedstock and Storage | G8: =title114 -> Summary of Operational Parameters | K8: =title95 -> Financial parameters
C10: =title115 -> Feedstock available (t/year) | E10: =+'Data Entry Needs'!$E$13 -> 0 | G10: =title117 -> Boiler | I10: =+"Stoker @"&Steam_Calculator!$C$3 -> Stoker @20 bar | K10: =title231 -> Loan interest rate (%) | N10: =+'Data Entry Needs'!$D$55 -> 0
C11: =title116 -> Feedstock yield (t/ha) | E11: =+'Data Entry Needs'!$E$14 -> 0 | G11: =title118 -> Turbine | I11: =+Steam_Calculator!$C$2 -> Backpressure steam turbine | K11: =title97&" (%)" -> Loan ratio (%) | N11: =+'Data Entry Needs'!$D$54 -> 0
C12: =title67 -> Moisture content (%) | E12: =+'Data Entry Needs'!$E$15 -> 0 | K12: =title126 -> Loan term (years) | N12: =+'Data Entry Needs'!$D$56 -> 0
C13: =title68 -> Size (mm) | E13: =+'Data Entry Needs'!$E$16 -> 0 | G13: =title119 -> Capacity utilization factor | I13: =H34/8760 -> 0 | K13: =title96&" (%)" -> Discount rate (%) | N13: =+'Data Entry Needs'!$D$53 -> 0
C14: =title72 -> Feedstock storage cost (USD/t) | E14: =+'Data Entry Needs'!$E$20 -> 0 | G14: =title120 -> Power conversion (kWh/kg feedstock) | I14: =+VLOOKUP(IF('Data Entry Needs'!$E$11=title19,'Data Entry Needs'!$E$11,'Data Entry Needs'!$E$11&'Data Entry Needs'!$E$12),dummy_database!$C$1:$L$31,10,FALSE)/(3.6) ->  | K14: =+'Data Entry Needs'!F54 -> Plant Cost Index during 5/2017 | N14: =+'Data Entry Needs'!I54 -> 0
G15: =title121 -> Boiler efficiency (%) | I15: =+Steam_Calculator!$C$4 -> 0.63 | K15: =IF('Data Entry Needs'!$AK$125=0,title129,title130) -> Price of electricity (USD/kWh) - Calculated | N15: =+'Data Entry Needs'!$AL$125 -> 0
G16: =title122 -> Turbine efficiency (%) | I16: =+Steam_Calculator!$C$5 -> 0.17 | K16: =title127 -> Project lifetime | N16: 20
G17: =title123 -> Power loss due to operation (%)
G18: =title124 -> Operating hours per day
G19: =title125 -> Power loss in distribution network (%)
C23: =title131 -> Transport Distance of Feedstock | F23: =title132 -> Transport Quantity | I23: =title131 -> Transport Distance of Feedstock | L23: =title132 -> Transport Quantity
C25: =title133 -> Distance small scale production (km) | F25: =title135 -> Small scale (t/year) | H25: =+$G$39 ->  | I25: =title137 -> Distance large scale production (km) | L25: =title139 -> Large scale (t/year) | N25: =+$K$39 -> 
C26: =title134 -> Distance medium scale production (km) | F26: =title136 -> Medium scale (t/year) | H26: =+$I$39 ->  | I26: =title138 -> Transportation cost (USD/t/km) | N26: =+'Data Entry Needs'!$D$46 -> 0
C30: =title140 -> Production Cost Details
G32: =title183 -> Capacities (kW of power generation)
G33: 10 | I33: 40 | K33: 100
G34: =title187 -> Operating hours per year | H34: =$I$18*365 -> 0 | I34: =title187 -> Operating hours per year | J34: =$I$18*365 -> 0 | K34: =title187 -> Operating hours per year | L34: =$I$18*365 -> 0
D37: =title140 -> Production Cost Details | E37: =title80 -> Unit | F37: =title161 -> Unit Price | G37: =title163 -> Quantity | H37: Total | I37: =title163 -> Quantity | J37: Total | K37: =title163 -> Quantity | L37: Total
F38: =title162 -> (USD/unit) | G38: =title164 -> (Unit/year) | H38: =title165 -> (USD/year) | I38: =title164 -> (Unit/year) | J38: =title165 -> (USD/year) | K38: =title164 -> (Unit/year) | L38: =title165 -> (USD/year)
D39: =title64 -> Feedstock | E39: t | F39: =+IF('Data Entry Needs'!$C$18=FALSE,'Data Entry Needs'!E$18,'Data Entry Needs'!E$19) -> 0 | G39: =+Steam_Calculator!$C$8*'COST(ADJUSTED)_RES2'!F8*H34*Steam_Calculator!$F$2/(Steam_Calculator!$C$4*COST_RES2!$I$14*3.6*1000000)/(1-$I$17) ->  | H39: =+G39*$F39 ->  | I39: =+Steam_Calculator!$C$8*'COST(ADJUSTED)_RES2'!G8*J34*Steam_Calculator!$F$2/(Steam_Calculator!$C$4*COST_RES2!$I$14*3.6*1000000)/(1-$I$17) ->  | J39: =+I39*$F39 ->  | K39: =+Steam_Calculator!$C$8*'COST(ADJUSTED)_RES2'!H8*J34*Steam_Calculator!$F$2/(Steam_Calculator!$C$4*COST_RES2!$I$14*3.6*1000000)/(1-$I$17) ->  | L39: =+K39*$F39 -> 
D40: =title142 -> Water make-up + chemical additives | E40: m3 | F40: =+'Data Entry Needs'!$D$40+0.002*1000/4.56 -> 0.4385964912 | G40: =+Steam_Calculator!$C$9*'COST(ADJUSTED)_RES2'!F8*H34/1000 ->  | H40: =+G40*$F40 ->  | I40: =+Steam_Calculator!$C$9*'COST(ADJUSTED)_RES2'!G8*J34/1000 ->  | J40: =+I40*$F40 ->  | K40: =+Steam_Calculator!$C$9*'COST(ADJUSTED)_RES2'!H8*L34/1000 ->  | L40: =+K40*$F40 -> 
D41: =title143 -> Subtotal | H41: =SUM(H39:H40) ->  | J41: =SUM(J39:J40) ->  | L41: =SUM(L39:L40) -> 
D43: =title144 -> Labour and miscellaneous costs | E43: =title80 -> Unit | F43: =title161 -> Unit Price | G43: =title163 -> Quantity | H43: Total | I43: =title163 -> Quantity | J43: Total | K43: =title163 -> Quantity | L43: Total
F44: ="("&title390&")" -> (USD/person-hour) | G44: ="("&title80&")" -> (Unit) | H44: =title165 -> (USD/year) | I44: ="("&title80&")" -> (Unit) | J44: =title165 -> (USD/year) | K44: ="("&title80&")" -> (Unit) | L44: =title165 -> (USD/year)
D45: =title85 -> Unskilled worker | E45: =title166 -> # employee | F45: =+'Data Entry Needs'!$D$37 -> 0 | G45: 1 | H45: =+F45*G45*H34 -> 0 | I45: 3 | J45: =+$F45*I45*$H$34 -> 0 | K45: 6 | L45: =+$F45*K45*$H$34 -> 0
D46: =title103 -> Skilled worker | E46: =title166 -> # employee | F46: =+'Data Entry Needs'!I$37 -> 0 | G46: 1 | H46: =+F46*G46*H34 -> 0 | I46: =+ROUND(I45/4,0) -> 1 | J46: =+$F46*I46*$H$34 -> 0 | K46: =+ROUND(K45/3,0) -> 2 | L46: =+$F46*K46*$H$34 -> 0
D47: =title107 -> Miscellaneous costs | G47: =+'Data Entry Needs'!$I$50 -> 0 | H47: =+G47*SUM(H45:H46) -> 0 | I47: =+G47 -> 0 | J47: =+I47*SUM(J45:J46) -> 0 | K47: =+G47 -> 0 | L47: =+K47*SUM(L45:L46) -> 0
D48: =title143 -> Subtotal | H48: =+H45+H46+H47 -> 0 | J48: =+J45+J46+J47 -> 0 | L48: =+L45+L46+L47 -> 0
G49: =+SUM(G45:G46) -> 2 | I49: =+SUM(I45:I46) -> 4 | K49: =+SUM(K45:K46) -> 8
D50: =title145 -> Transport of feedstock | E50: =title80 -> Unit | F50: =title161 -> Unit Price | G50: =title163 -> Quantity | H50: Total | I50: =title163 -> Quantity | J50: Total | K50: =title163 -> Quantity | L50: Total
F51: (USD/t/km) | G51: ="("&title80&")" -> (Unit) | H51: =title165 -> (USD/year) | I51: ="("&title80&")" -> (Unit) | J51: =title165 -> (USD/year) | K51: ="("&title80&")" -> (Unit) | L51: =title165 -> (USD/year)
D52: =title146 -> Feedstock (farm to plant) | E52: km | F52: =+'Data Entry Needs'!$D$46 -> 0 | G52: =+$E$25 -> 0 | H52: =+G52*F52*G39 ->  | I52: =+$E$26 -> 0 | J52: =+I52*$F52*I$39 ->  | K52: =+$K$25 -> 0 | L52: =+K52*$F52*K$39 -> 
D53: =title143 -> Subtotal | H53: =+H52 ->  | J53: =+J52 ->  | L53: =+L52 -> 
D55: =title147 -> Storage | E55: =title80 -> Unit | F55: =title161 -> Unit Price | G55: =title163 -> Quantity | H55: Total | I55: =title163 -> Quantity | J55: Total | K55: =title163 -> Quantity | L55: Total
F56: (USD/t/year) | G56: ="("&title80&")" -> (Unit) | H56: =title165 -> (USD/year) | I56: ="("&title80&")" -> (Unit) | J56: =title165 -> (USD/year) | K56: ="("&title80&")" -> (Unit) | L56: =title165 -> (USD/year)
D57: =title64 -> Feedstock | E57: t | F57: =+$E$14 -> 0 | G57: =+STORAGE_RES2!$F$38 ->  | H57: =+F57*G57 ->  | I57: =+STORAGE_RES2!$I$38 ->  | J57: =I57*F57 ->  | K57: =+STORAGE_RES2!$L$38 ->  | L57: =F57*K57 -> 
D58: =title143 -> Subtotal | H58: =SUM(H57) ->  | J58: =SUM(J57) ->  | L58: =SUM(L57) -> 
D60: =title148 -> Investment | E60: =title80 -> Unit | F60: Years | G60: Total | H60: =title167 -> Depreciation | I60: Total | J60: =title167 -> Depreciation | K60: Total | L60: =title167 -> Depreciation
G61: (USD) | H61: =title165 -> (USD/year) | I61: (USD) | J61: =title165 -> (USD/year) | K61: (USD) | L61: =title165 -> (USD/year)
D62: =title149 -> Equipments | E62: USD | F62: =+$N$16 -> 20 | G62: =('COST(ADJUSTED)_RES2'!$F$22)*('Data Entry Needs'!$I$54/141) ->  | H62: =+G62/F62 ->  | I62: =('COST(ADJUSTED)_RES2'!$G$22)*('Data Entry Needs'!$I$54/141) ->  | J62: =+I62/F62 ->  | K62: =('COST(ADJUSTED)_RES2'!$H$22)*('Data Entry Needs'!$I$54/141) ->  | L62: =+K62/F62 -> 
D63: =title150 -> Building | E63: USD | F63: =+$N$16 -> 20 | G63: =+'COST(ADJUSTED)_RES2'!$F$25 -> 1909.96 | H63: =+G63/F63 -> 95.498 | I63: =+'COST(ADJUSTED)_RES2'!$G$25 -> 2499.64 | J63: =+I63/F63 -> 124.982 | K63: =+'COST(ADJUSTED)_RES2'!$H$25 -> 3679 | L63: =+K63/F63 -> 183.95
D64: =title151 -> Installation | E64: USD | F64: =+$N$16 -> 20 | G64: =+'COST(ADJUSTED)_RES2'!$F$28 -> 271.4285714 | H64: =+G64/F64 -> 13.57142857 | I64: =+'COST(ADJUSTED)_RES2'!$G$28 -> 1085.714286 | J64: =+I64/F64 -> 54.28571429 | K64: =+'COST(ADJUSTED)_RES2'!$H$28 -> 2714.285714 | L64: =+K64/F64 -> 135.7142857
D65: =title152 -> Distribution network | E65: USD | F65: =+$N$16 -> 20 | G65: =('COST(ADJUSTED)_RES2'!$F$32)*('Data Entry Needs'!$I$54/141) ->  | H65: =+G65/F65 ->  | I65: =('COST(ADJUSTED)_RES2'!$G32)*('Data Entry Needs'!$I$54/141) ->  | J65: =+I65/F65 ->  | K65: =('COST(ADJUSTED)_RES2'!$H32)*('Data Entry Needs'!$I$54/141) ->  | L65: =+K65/F65 -> 
D66: =title153 -> Total Investment | G66: =SUM(G62:G65) ->  | I66: =SUM(I62:I65) ->  | K66: =SUM(K62:K65) -> 
G67: =title168 -> Total depreciation | H67: =SUM(H62:H66) ->  | I67: =title168 -> Total depreciation | J67: =SUM(J62:J66) ->  | K67: =title168 -> Total depreciation | L67: =SUM(L62:L66) -> 
D68: =title106 -> Maintenance cost | F68: =+'Data Entry Needs'!$I$49 -> 0 | H68: =+F68*H67 ->  | J68: =+F68*$J$67 ->  | L68: =+$F$68*L67 -> 
D69: =title143 -> Subtotal | H69: =SUM(H67:H68) ->  | J69: =SUM(J67:J68) ->  | L69: =SUM(L67:L68) -> 
D71: =title92 -> Other costs | E71: =title80 -> Unit | F71: Rate (%) | H71: Total | J71: Total | L71: Total
H72: =title165 -> (USD/year) | J72: =title165 -> (USD/year) | L72: =title165 -> (USD/year)
D73: =title154 -> Plant overhead | E73: USD | F73: =+'Data Entry Needs'!$D$50 -> 0 | H73: =+(H45+H46+H68)*$F$73 ->  | J73: =+(J45+J46+J68)*$F$73 ->  | L73: =+(L45+L46+L68)*$F$73 -> 
D74: =title155 -> General and administrative cost | E74: USD | F74: =+'Data Entry Needs'!$D$49 -> 0 | H74: =+(H41+H48+H73+H68)*$F$74 ->  | J74: =+(J41+J48+J73+J68)*$F$74 ->  | L74: =+(L41+L48+L73+L68)*$F$74 -> 
D75: =title156 -> Loan interest | E75: USD | F75: =+'Data Entry Needs'!$D$55 -> 0 | H75: =-FA10kW_RES2!G84 ->  | J75: =-FA40kW_RES2!G84 ->  | L75: =-FA100kW_RES2!G84 -> 
D77: =title143 -> Subtotal | H77: =SUM(H73:H75) ->  | J77: =SUM(J73:J75) ->  | L77: =SUM(L73:L75) -> 
G79: Total | H79: =title169 -> Share (%) | I79: Total | J79: =title169 -> Share (%) | K79: Total | L79: =title169 -> Share (%)
G80: =title165 -> (USD/year) | I80: =title165 -> (USD/year) | K80: =title165 -> (USD/year)
D81: =title157 -> Total operating costs | G81: =+H41+H48+H53+H58 ->  | H81: =+G81/$G$84 ->  | I81: =+J41+J48+J53+J58 ->  | J81: =+I81/$I$84 ->  | K81: =+L41+L48+L53+L58 ->  | L81: =+K81/$K$84 -> 
D82: =title158 -> Total fixed costs | G82: =+H69 ->  | H82: =+G82/$G$84 ->  | I82: =+J69 ->  | J82: =+I82/$I$84 ->  | K82: =+L69 ->  | L82: =+K82/$K$84 -> 
D83: =title159 -> Total other costs | G83: =+H77 ->  | H83: =+G83/$G$84 ->  | I83: =+J77 ->  | J83: =+I83/$I$84 ->  | K83: =+L77 ->  | L83: =+K83/$K$84 -> 
D84: =title160 -> Total production costs | G84: =SUM(G81:G83) ->  | I84: =SUM(I81:I83) ->  | K84: =SUM(K81:K83) -> 
C86: =title170 -> Power generation
E88: =title80 -> Unit | G88: =title163 -> Quantity | I88: =title163 -> Quantity | K88: =title163 -> Quantity
G89: ="("&title80&")" -> (Unit) | I89: ="("&title80&")" -> (Unit) | K89: ="("&title80&")" -> (Unit)
D90: =title170 -> Power generation | E90: =title172 -> kWh/year | G90: =+G33*H34*(1-$I$17) -> 0 | I90: =+I33*J34*(1-$I$17) -> 0 | K90: =+K33*L34*(1-$I$17) -> 0
D91: =title171 -> Electricity - self use | E91: =title172 -> kWh/year | G91: =-G90*10% -> 0 | I91: =-I90*10% -> 0 | K91: =-K90*10% -> 0
D92: =title173 -> Power loss in distribution network | E92: =title172 -> kWh/year | G92: =-G90*$I$19 -> 0 | I92: =-I90*$I$19 -> 0 | K92: =-K90*$I$19 -> 0
D93: =title143 -> Subtotal | G93: =SUM(G90:H92) -> 0 | I93: =SUM(I90:J92) -> 0 | K93: =SUM(K90:L92) -> 0
C95: =title174 -> Total Production Cost + Distribution
G97: =$G$32 -> Capacities (kW of power generation)
G98: =+G33 -> 10 | I98: =+I33 -> 40 | K98: =+K33 -> 100
D99: =title175 -> Unit cost of electricity (USD/kWh) | G99: =G84/G93 ->  | I99: =I84/I93 ->  | K99: =K84/K93 -> 
D101: =title180 -> Average loan interest | E101: =title80 -> Unit | F101: =title97&" (%)" -> Loan ratio (%) | G101: =title153 -> Total Investment | H101: =title176 -> Loan amount | I101: =title153 -> Total Investment | J101: =title176 -> Loan amount | K101: =title153 -> Total Investment | L101: =title176 -> Loan amount
G102: (USD) | H102: (USD) | I102: (USD) | J102: (USD) | K102: (USD) | L102: (USD)
D103: =title176 -> Loan amount | E103: USD | F103: =+$N$11 -> 0 | G103: =G66 ->  | H103: =$F$103*G103 ->  | I103: =I66 ->  | J103: =$F$103*I103 ->  | K103: =K66 ->  | L103: =$F$103*K103 -> 
D104: =title98 -> Loan interest rate | E104: % | H104: =+$N$10 -> 0 | J104: =+$N$10 -> 0 | L104: =+$N$10 -> 0
D105: =title177 -> Loan payment | E105: =title181 -> USD/month | H105: =PMT(H104/12,H107*12,H103,0) ->  | J105: =PMT(J104/12,J107*12,J103,0) ->  | L105: =PMT(L104/12,L107*12,L103,0) -> 
D106: =title178 -> Annual loan payment | E106: =title182 -> USD/year | H106: =H105*12 ->  | J106: =J105*12 ->  | L106: =L105*12 -> 
D107: =title99 -> Loan term | E107: =title102 -> year | H107: =+$N$12 -> 0 | J107: =+$N$12 -> 0 | L107: =+$N$12 -> 0
D108: =title179 -> Total loan payment | E108: USD | H108: =H106*H107 ->  | J108: =J106*J107 ->  | L108: =L106*L107 -> 
D109: =title156 -> Loan interest | E109: USD | H109: =H108+H103 ->  | J109: =J108+J103 ->  | L109: =L108+L103 -> 
D110: =title180 -> Average loan interest | E110: =title182 -> USD/year | H110: =H109/$N$16 ->  | J110: =J109/$N$16 ->  | L110: =L109/$N$16 -> 

Sheet COST(ADJUSTED)_RES2 (hidden)
C3: DETAILED INVESTMENT OF BIOMASS COMBUSTION FOR RURAL ELECTRIFICATION
F5: Capacities (kW of power generation)
F6: 10 | G6: 40 | H6: 100
D7: Operating period | E7: h/year | F7: =+COST_RES2!$H$34 -> 0 | G7: =+COST_RES2!$J$34 -> 0 | H7: =+COST_RES2!$L$34 -> 0
D8: Steam | E8: kg/h | F8: =+COST_RES2!$G$90*3600/(COST_RES2!$I$16*(Steam_Calculator!$C$6+Steam_Calculator!$C$7)*'COST(ADJUSTED)_RES2'!F7) ->  | G8: =+COST_RES2!$I$90*3600/(COST_RES2!$I$16*(Steam_Calculator!$C$6+Steam_Calculator!$C$7)*'COST(ADJUSTED)_RES2'!G7) ->  | H8: =+COST_RES2!$K$90*3600/(COST_RES2!$I$16*(Steam_Calculator!$C$6+Steam_Calculator!$C$7)*'COST(ADJUSTED)_RES2'!H7) -> 
D9: Households | E9: Household | F9: =+COST_RES2!G93/('Energy Demand'!$F$8*12) ->  | G9: =+COST_RES2!I93/('Energy Demand'!$F$8*12) ->  | H9: =+COST_RES2!K93/('Energy Demand'!$F$8*12) -> 
C10: Estimated distance covered (m) | D10: m/household | E10: 10 | F10: =+F9*$E$10 ->  | G10: =+G9*$E$10 ->  | H10: =+H9*$E$10 -> 
C11: Equipments
C12: Boiler | D12: USDh/kg steam | E12: 127.8400072 | F12: =+$E$12*F8 ->  | G12: =+$E$12*G8 ->  | H12: =+$E$12*H8 -> 
C13: Condenser, cyclone, water pump, cooling tower | D13: USDh/kg steam | E13: 127.0317928 | F13: =+$E$13*F8 ->  | G13: =+$E$13*G8 ->  | H13: =+$E$13*H8 -> 
C14: Back pressure steam turbine | D14: USD/kW | E14: 561.1111111 | F14: =+F6*700 -> 7000 | G14: =+$E$14*G6 -> 22444.44444 | H14: =+$E$14*H6 -> 56111.11111
C15: Biomass cutter | D15: USD | F15: 146.161969 | G15: 146.161969 | H15: 17500
C16: Biomass dryer | D16: USD | F16: 194.8826253 | G16: 682.0891885
C17: Moisture meter | D17: USD | F17: 97.44131265 | G17: 97.44131265
C18: Chain pulley block | D18: USD | F18: 58.46478759 | G18: 126.6737064
C19: Water cooling system | D19: USD | F19: 0 | G19: 584.6478759
C20: Other accessories | D20: USD | F20: 974.4131265 | G20: 1753.943628
C21: Generator | D21: USD/kW | E21: 400 | F21: =+$E$21*F6 -> 4000 | G21: =+$E$21*G6 -> 16000 | H21: =+$E$21*H6 -> 40000
E22: Subtotal | F22: =SUM(F12:F21) ->  | G22: =SUM(G12:G21) ->  | H22: =SUM(H12:H21) -> 
C23: Building
C24: Civil work (building, generator platform etc.) | D24: USD | F24: =19.656* F6+ 1713.4 -> 1909.96 | G24: =19.656* G6+ 1713.4 -> 2499.64 | H24: =19.656* H6+ 1713.4 -> 3679
E25: Subtotal | F25: =SUM(F24) -> 1909.96 | G25: =SUM(G24) -> 2499.64 | H25: =SUM(H24) -> 3679
C26: Installation
C27: Connection and earthing | D27: USD/kW | E27: 27.14285714 | F27: =($E$27*F6) -> 271.4285714 | G27: =($E$27*G6) -> 1085.714286 | H27: =($E$27*H6) -> 2714.285714
E28: Subtotal | F28: =SUM(F27) -> 271.4285714 | G28: =SUM(G27) -> 1085.714286 | H28: =SUM(H27) -> 2714.285714
C29: Distribution network
C30: Primary electricity cable | D30: USD/m | E30: 7.454 | F30: =+F$10*$E30 ->  | G30: =+G$10*$E30 ->  | H30: =+H$10*$E30 -> 
C31: Secondary cable, installation and meter | D31: USD/household | E31: 164 | F31: =+F$9*$E31 ->  | G31: =+G$9*$E31 ->  | H31: =+H$9*$E31 -> 
E32: Subtotal | F32: =SUM(F30:F31) ->  | G32: =SUM(G30:G31) ->  | H32: =SUM(H30:H31) -> 

Sheet FA10kW_RES2 (hidden)
B1: =title189 -> FINANCIAL EVALUATION OF COMBUSTION FOR POWER GENERATION 10 kW
A4: =title192 -> Revenues
B6: =title193 -> Operating Year | C6: 0 | D6: 1 | E6: 2 | F6: 3 | G6: 4 | H6: 5 | I6: 6 | J6: 7 | K6: 8 | L6: 9 | M6: 10 | N6: 11 | O6: 12 | P6: 13 | Q6: 14 | R6: 15 | S6: 16 | T6: 17 | U6: 18 | V6: 19 | W6: 20
B8: =title194 -> Power generation capacity (kW) | C8: 10 | D8: =C8 -> 10 | E8: =D8 -> 10 | F8: 10 | G8: 10 | H8: 10 | I8: 10 | J8: 10 | K8: 10 | L8: 10 | M8: 10 | N8: 10 | O8: 10 | P8: 10 | Q8: 10 | R8: 10 | S8: 10 | T8: 10 | U8: 10 | V8: 10 | W8: 10
B10: =title195 -> Turbine type | C10: =+COST_RES2!$I$11 -> Backpressure steam turbine
B12: =title125 -> Power loss in distribution network (%) | C12: =+COST_RES2!$I$17 -> 0 | D12: =+C12 -> 0 | E12: =+D12 -> 0 | F12: 0 | G12: 0 | H12: 0 | I12: 0 | J12: 0 | K12: 0 | L12: 0 | M12: 0 | N12: 0 | O12: 0 | P12: 0 | Q12: 0 | R12: 0 | S12: 0 | T12: 0 | U12: 0 | V12: 0 | W12: 0
B14: =title187 -> Operating hours per year | C14: =+COST_RES2!$H$34 -> 0 | D14: =C14 -> 0 | E14: =D14 -> 0 | F14: 0 | G14: 0 | H14: 0 | I14: 0 | J14: 0 | K14: 0 | L14: 0 | M14: 0 | N14: 0 | O14: 0 | P14: 0 | Q14: 0 | R14: 0 | S14: 0 | T14: 0 | U14: 0 | V14: 0 | W14: 0
B15: =title119 -> Capacity utilization factor | C15: =C14/8760 -> 0 | D15: =D14/8760 -> 0 | E15: 0 | F15: 0 | G15: 0 | H15: 0 | I15: 0 | J15: 0 | K15: 0 | L15: 0 | M15: 0 | N15: 0 | O15: 0 | P15: 0 | Q15: 0 | R15: 0 | S15: 0 | T15: 0 | U15: 0 | V15: 0 | W15: 0
B17: =title196 -> Electricity generation (kWh per year) | C17: =C8*C14*(1-C12) -> 0 | D17: =D8*D14*(1-D12) -> 0 | E17: 0 | F17: 0 | G17: 0 | H17: 0 | I17: 0 | J17: 0 | K17: 0 | L17: 0 | M17: 0 | N17: 0 | O17: 0 | P17: 0 | Q17: 0 | R17: 0 | S17: 0 | T17: 0 | U17: 0 | V17: 0 | W17: 0
B18: =title197 -> Electricity - self use (kWh per year) | C18: =C17*10% -> 0 | D18: =D17*10% -> 0 | E18: 0 | F18: 0 | G18: 0 | H18: 0 | I18: 0 | J18: 0 | K18: 0 | L18: 0 | M18: 0 | N18: 0 | O18: 0 | P18: 0 | Q18: 0 | R18: 0 | S18: 0 | T18: 0 | U18: 0 | V18: 0 | W18: 0
B19: =title198 -> Power loss in distribution network (kWh per year) | C19: =C17*COST_RES2!$I$19 -> 0 | D19: =C19 -> 0 | E19: =D19 -> 0 | F19: 0 | G19: 0 | H19: 0 | I19: 0 | J19: 0 | K19: 0 | L19: 0 | M19: 0 | N19: 0 | O19: 0 | P19: 0 | Q19: 0 | R19: 0 | S19: 0 | T19: 0 | U19: 0 | V19: 0 | W19: 0
B20: =title199 -> Total power sold to the customers (kWh per year) | C20: =C17-C18-C19 -> 0 | D20: =D17-D18-D19 -> 0 | E20: 0 | F20: 0 | G20: 0 | H20: 0 | I20: 0 | J20: 0 | K20: 0 | L20: 0 | M20: 0 | N20: 0 | O20: 0 | P20: 0 | Q20: 0 | R20: 0 | S20: 0 | T20: 0 | U20: 0 | V20: 0 | W20: 0
B22: =title128 -> Price of electricity (USD/kWh) | C22: =+COST_RES2!$N$15 -> 0 | D22: =+COST_RES2!$N$15 -> 0 | E22: =+COST_RES2!$N$15 -> 0 | F22: =+COST_RES2!$N$15 -> 0 | G22: =+COST_RES2!$N$15 -> 0 | H22: =+COST_RES2!$N$15 -> 0 | I22: =+COST_RES2!$N$15 -> 0 | J22: =+COST_RES2!$N$15 -> 0 | K22: =+COST_RES2!$N$15 -> 0 | L22: =+COST_RES2!$N$15 -> 0 | M22: =+COST_RES2!$N$15 -> 0 | N22: =+COST_RES2!$N$15 -> 0 | O22: =+COST_RES2!$N$15 -> 0 | P22: =+COST_RES2!$N$15 -> 0 | Q22: =+COST_RES2!$N$15 -> 0 | R22: =+COST_RES2!$N$15 -> 0 | S22: =+COST_RES2!$N$15 -> 0 | T22: =+COST_RES2!$N$15 -> 0 | U22: =+COST_RES2!$N$15 -> 0 | V22: =+COST_RES2!$N$15 -> 0 | W22: =+COST_RES2!$N$15 -> 0
B23: =title200 -> Total income (USD/year) | C23: =C20*C22 -> 0 | D23: =D20*D22 -> 0 | E23: 0 | F23: 0 | G23: 0 | H23: 0 | I23: 0 | J23: 0 | K23: 0 | L23: 0 | M23: 0 | N23: 0 | O23: 0 | P23: 0 | Q23: 0 | R23: 0 | S23: 0 | T23: 0 | U23: 0 | V23: 0 | W23: 0
B25: =title201 -> Project lifetime (years) | C25: =+COST_RES2!$N$16 -> 20
B26: =title202 -> Lifespan of civil work (years) | C26: =20 -> 20
B27: =title203 -> Lifespan of combustion system (years) | C27: =20 -> 20
B28: =title204 -> Lifespan of engine generator system (years) | C28: =20 -> 20
B29: =title205 -> Lifespan of electrical distribution system (years) | C29: =20 -> 20
A32: =title206 -> Capital and operating cost
B34: =title193 -> Operating Year | C34: =title238 -> Appraisal | D34: 1 | E34: 2 | F34: 3 | G34: 4 | H34: 5 | I34: 6 | J34: 7 | K34: 8 | L34: 9 | M34: 10 | N34: 11 | O34: 12 | P34: 13 | Q34: 14 | R34: 15 | S34: 16 | T34: 17 | U34: 18 | V34: 19 | W34: 20
B35: =title207 -> Direct capital cost (USD)
B36: =title149 -> Equipments | C36: =COST_RES2!G62 -> 
B37: =title150 -> Building | C37: =COST_RES2!G63 -> 1909.96
B38: =title151 -> Installation | C38: =COST_RES2!G64 -> 271.4285714
B39: =title152 -> Distribution network | C39: =COST_RES2!G65 -> 
B40: =title208 -> Total capital cost (USD) | C40: =SUM(C36:C39) ->  | D40: =D36+D37+D38 -> 0 | E40: 0 | F40: 0 | G40: 0 | H40: 0 | I40: 0 | J40: 0 | K40: 0 | L40: 0 | M40: 0 | N40: 0 | O40: 0 | P40: 0 | Q40: 0 | R40: 0 | S40: 0 | T40: 0 | U40: 0 | V40: 0 | W40: 0
B41: =title209 -> Capital cost (USD/kW) | C41: =C40/C8 -> 
B44: =title193 -> Operating Year | C44: =title238 -> Appraisal | D44: 1 | E44: 2 | F44: 3 | G44: 4 | H44: 5 | I44: 6 | J44: 7 | K44: 8 | L44: 9 | M44: 10 | N44: 11 | O44: 12 | P44: 13 | Q44: 14 | R44: 15 | S44: 16 | T44: 17 | U44: 18 | V44: 19 | W44: 20
B45: =title210 -> Annual operating and maintenance cost
B46: =title211 -> Sub-total material cost (USD) | C46: =C47+C55 ->  | D46: =D47+D55 -> 
B47: =title212 -> Biomass cost (USD/year) | C47: =C48*C49 ->  | D47: =D48*D49 ->  | E47: =E48*E49 -> 
B48: =title213 -> Biomass consumption (tne per year) | C48: =+COST_RES2!$G$39 ->  | D48: =+C48 ->  | E48: =+D48 -> 
B49: =title214 -> Biomass total price (USD/t) | C49: =SUM(C50:C51) -> 0 | D49: =SUM(D50:D51) -> 0 | E49: 0 | F49: 0 | G49: 0 | H49: 0 | I49: 0 | J49: 0 | K49: 0 | L49: 0 | M49: 0 | N49: 0 | O49: 0 | P49: 0 | Q49: 0 | R49: 0 | S49: 0 | T49: 0 | U49: 0 | V49: 0 | W49: 0
B50: =title215 -> Biomass price (USD/t) | C50: =+COST_RES2!$F$39 -> 0 | D50: =C50 -> 0 | E50: =D50 -> 0 | F50: 0 | G50: 0 | H50: 0 | I50: 0 | J50: 0 | K50: 0 | L50: 0 | M50: 0 | N50: 0 | O50: 0 | P50: 0 | Q50: 0 | R50: 0 | S50: 0 | T50: 0 | U50: 0 | V50: 0 | W50: 0
B51: =title216 -> Biomass transportation cost (USD/t) | C51: =+C52*C53 -> 0 | D51: =C51 -> 0 | E51: 0 | F51: 0 | G51: 0 | H51: 0 | I51: 0 | J51: 0 | K51: 0 | L51: 0 | M51: 0 | N51: 0 | O51: 0 | P51: 0 | Q51: 0 | R51: 0 | S51: 0 | T51: 0 | U51: 0 | V51: 0 | W51: 0
B52: =title217 -> Biomass from farm to plant (USD/t/km) | C52: =+COST_RES2!$F$52 -> 0
B53: =title218 -> Transportation distant (km) | C53: =+COST_RES2!$G$52 -> 0
B55: =title219 -> Water cost (USD/year) | C55: =C56*C57 ->  | D55: =D56*D57 -> 
B56: =title220 -> Water consumption (m3 per year) | C56: =+COST_RES2!$G$40 ->  | D56: =+C56 ->  | E56: =+D56 -> 
B57: =title221 -> Water + chemical additives cost (USD/m3) | C57: =+COST_RES2!$F$40 -> 0.4385964912 | D57: =C57 -> 0.4385964912 | E57: =D57 -> 0.4385964912 | F57: 0.4385964912 | G57: 0.4385964912 | H57: 0.4385964912 | I57: 0.4385964912 | J57: 0.4385964912 | K57: 0.4385964912 | L57: 0.4385964912 | M57: 0.4385964912 | N57: 0.4385964912 | O57: 0.4385964912 | P57: 0.4385964912 | Q57: 0.4385964912 | R57: 0.4385964912 | S57: 0.4385964912 | T57: 0.4385964912 | U57: 0.4385964912 | V57: 0.4385964912 | W57: 0.4385964912
B59: =title222 -> Sub-total operating cost (USD) | C59: =C60+C61+C62 -> 
B60: =title223 -> Labour cost (USD) | C60: =COST_RES2!H48 -> 0 | D60: =C60 -> 0 | E60: =D60 -> 0 | F60: 0 | G60: 0 | H60: 0 | I60: 0 | J60: 0 | K60: 0 | L60: 0 | M60: 0 | N60: 0 | O60: 0 | P60: 0 | Q60: 0 | R60: 0 | S60: 0 | T60: 0 | U60: 0 | V60: 0 | W60: 0
B61: =title154 -> Plant overhead | C61: =COST_RES2!H73 ->  | D61: =C61 -> 
B62: =title155 -> General and administrative cost | C62: =COST_RES2!H74 ->  | D62: =C62 -> 
B63: =title224 -> Sub-total maintenance cost (USD) | C63: =COST_RES2!H68 ->  | D63: =C63 -> 
B65: =title225 -> Sub-total of annual fixed cost | C65: =COST_RES2!H67 ->  | D65: =C65 ->  | E65: =D65 -> 
B67: =title226 -> Sub-total of storage capacity | C67: =+COST_RES2!H58 ->  | D67: =C67 ->  | E67: =D67 -> 
B69: =title227 -> Total operation and maintenance cost (USD) | C69: =C46+C59+C63+C65+C67 -> 
B70: =title228 -> Operation and maintenance cost (USD/kWh) without loan interest | C70: =C69/C20 -> 
A72: =title95 -> Financial parameters
B73: =title193 -> Operating Year | C73: =title238 -> Appraisal | D73: 1 | E73: 2 | F73: 3 | G73: 4 | H73: 5 | I73: 6 | J73: 7 | K73: 8 | L73: 9 | M73: 10 | N73: 11 | O73: 12 | P73: 13 | Q73: 14 | R73: 15 | S73: 16 | T73: 17 | U73: 18 | V73: 19 | W73: 20
B74: =title96&" (%)" -> Discount rate (%) | C74: =+COST_RES2!$N$13 -> 0
B75: =title97&" (%)" -> Loan ratio (%) | C75: =+COST_RES2!$N$11 -> 0
B77: =title229 -> Loans | D77: 1 | E77: 2 | F77: 3 | G77: 4 | H77: 5 | I77: 6 | J77: 7 | K77: 8 | L77: 9 | M77: 10 | N77: 11 | O77: 12 | P77: 13 | Q77: 14 | R77: 15 | S77: 16 | T77: 17 | U77: 18 | V77: 19 | W77: 20
B78: =title230 -> Loan amount (USD ) | C78: =C75*C40 -> 
B79: =title231 -> Loan interest rate (%) | C79: =+COST_RES2!$N$10 -> 0
B80: =title126 -> Loan term (years) | C80: =+COST_RES2!$N$12 -> 0
B81: =title232 -> Loan payment (USD/month) | C81: =(PMT(C79/12,(12*C80),C78)) -> 
B82: =title233 -> Loan payment (USD/year) | D82: =IF(D73<=$C$80,$C$81*12,0) -> 0 | E82: =IF(E73<=$C$80,$C$81*12,0) -> 0 | F82: 0 | G82: 0 | H82: 0 | I82: 0 | J82: 0 | K82: 0 | L82: 0 | M82: 0 | N82: 0 | O82: 0 | P82: 0 | Q82: 0 | R82: 0 | S82: 0 | T82: 0 | U82: 0 | V82: 0 | W82: 0
B83: =title234 -> Total loan payment (USD) | C83: =SUM(D82:W82) -> 0
B84: =title235 -> Loan interest payment (USD) | C84: =C83+C78 ->  | D84: =title240 -> Average loan interest payment for project lifetime | G84: =C84/C25 ->  | H84: =title241 -> USD per year
A86: =title167 -> Depreciation
B87: =title193 -> Operating Year | C87: =title238 -> Appraisal | D87: 1 | E87: 2 | F87: 3 | G87: 4 | H87: 5 | I87: 6 | J87: 7 | K87: 8 | L87: 9 | M87: 10 | N87: 11 | O87: 12 | P87: 13 | Q87: 14 | R87: 15 | S87: 16 | T87: 17 | U87: 18 | V87: 19 | W87: 20
B88: =title236 -> Depreciation method | C88: =title239 -> Straight-line
B89: =title237 -> Total depreciation (USD) | D89: =COST_RES2!H67 ->  | E89: =D89 ->  | F89: =E89 -> 
A92: =title242 -> Base case project
A93: =title243 -> Summary of this project - before tax
B94: =title193 -> Operating Year | C94: =title238 -> Appraisal | D94: 1 | E94: 2 | F94: 3 | G94: 4 | H94: 5 | I94: 6 | J94: 7 | K94: 8 | L94: 9 | M94: 10 | N94: 11 | O94: 12 | P94: 13 | Q94: 14 | R94: 15 | S94: 16 | T94: 17 | U94: 18 | V94: 19 | W94: 20
B95: =title244 -> Total revenue (USD) | D95: =D23 -> 0 | E95: =E23 -> 0 | F95: 0 | G95: 0 | H95: 0 | I95: 0 | J95: 0 | K95: 0 | L95: 0 | M95: 0 | N95: 0 | O95: 0 | P95: 0 | Q95: 0 | R95: 0 | S95: 0 | T95: 0 | U95: 0 | V95: 0 | W95: 0
B96: =title208 -> Total capital cost (USD) | C96: =-(C40-C78) -> 
B97: =title245 -> Total operating and maintenance cost (USD) | D97: =-D69+D65 -> 
B98: =title246 -> Loan payment (USD) | D98: =D82 -> 0 | E98: =E82 -> 0 | F98: 0 | G98: 0 | H98: 0 | I98: 0 | J98: 0 | K98: 0 | L98: 0 | M98: 0 | N98: 0 | O98: 0 | P98: 0 | Q98: 0 | R98: 0 | S98: 0 | T98: 0 | U98: 0 | V98: 0 | W98: 0
B99: =title247 -> Cash flow - before tax (USD) | C99: =SUM(C95:C98) ->  | D99: =SUM(D95:D98) -> 
A101: =title248 -> Financial analysis result
B103: =title249 -> Net Present Value (NPV) (USD) - before tax | C103: =NPV(C74,D99:W99)+C99 -> 
B104: =title250 -> Internal Rate of Return (IRR) (%) - before tax | C104: =IF(C103<0,title392,IRR(C99:W99,0.001)) -> 
B105: =title251 -> Payback period (years) | C105: =title252 -> Please see Figure of the cumulative value of Net Profit - before tax

Sheet FA40kW_RES2 (hidden)
B1: =title190 -> FINANCIAL EVALUATION OF COMBUSTION FOR POWER GENERATION 40 kW
A4: =title192 -> Revenues
B6: =title193 -> Operating Year | C6: 0 | D6: 1 | E6: 2 | F6: 3 | G6: 4 | H6: 5 | I6: 6 | J6: 7 | K6: 8 | L6: 9 | M6: 10 | N6: 11 | O6: 12 | P6: 13 | Q6: 14 | R6: 15 | S6: 16 | T6: 17 | U6: 18 | V6: 19 | W6: 20
B8: =title194 -> Power generation capacity (kW) | C8: 40 | D8: =C8 -> 40 | E8: =D8 -> 40 | F8: 40 | G8: 40 | H8: 40 | I8: 40 | J8: 40 | K8: 40 | L8: 40 | M8: 40 | N8: 40 | O8: 40 | P8: 40 | Q8: 40 | R8: 40 | S8: 40 | T8: 40 | U8: 40 | V8: 40 | W8: 40
B10: =title195 -> Turbine type | C10: =+COST_RES2!$I$11 -> Backpressure steam turbine
B12: =title125 -> Power loss in distribution network (%) | C12: =+COST_RES2!$I$17 -> 0 | D12: =+C12 -> 0 | E12: =+D12 -> 0 | F12: 0 | G12: 0 | H12: 0 | I12: 0 | J12: 0 | K12: 0 | L12: 0 | M12: 0 | N12: 0 | O12: 0 | P12: 0 | Q12: 0 | R12: 0 | S12: 0 | T12: 0 | U12: 0 | V12: 0 | W12: 0
B14: =title187 -> Operating hours per year | C14: =+COST_RES2!$J$34 -> 0 | D14: =C14 -> 0 | E14: =D14 -> 0 | F14: 0 | G14: 0 | H14: 0 | I14: 0 | J14: 0 | K14: 0 | L14: 0 | M14: 0 | N14: 0 | O14: 0 | P14: 0 | Q14: 0 | R14: 0 | S14: 0 | T14: 0 | U14: 0 | V14: 0 | W14: 0
B15: =title119 -> Capacity utilization factor | C15: =C14/8760 -> 0 | D15: =D14/8760 -> 0 | E15: 0 | F15: 0 | G15: 0 | H15: 0 | I15: 0 | J15: 0 | K15: 0 | L15: 0 | M15: 0 | N15: 0 | O15: 0 | P15: 0 | Q15: 0 | R15: 0 | S15: 0 | T15: 0 | U15: 0 | V15: 0 | W15: 0
B17: =title196 -> Electricity generation (kWh per year) | C17: =C8*C14*(1-C12) -> 0 | D17: =D8*D14*(1-D12) -> 0 | E17: 0 | F17: 0 | G17: 0 | H17: 0 | I17: 0 | J17: 0 | K17: 0 | L17: 0 | M17: 0 | N17: 0 | O17: 0 | P17: 0 | Q17: 0 | R17: 0 | S17: 0 | T17: 0 | U17: 0 | V17: 0 | W17: 0
B18: =title197 -> Electricity - self use (kWh per year) | C18: =C17*10% -> 0 | D18: =D17*10% -> 0 | E18: 0 | F18: 0 | G18: 0 | H18: 0 | I18: 0 | J18: 0 | K18: 0 | L18: 0 | M18: 0 | N18: 0 | O18: 0 | P18: 0 | Q18: 0 | R18: 0 | S18: 0 | T18: 0 | U18: 0 | V18: 0 | W18: 0
B19: =title198 -> Power loss in distribution network (kWh per year) | C19: =C17*COST_RES2!$I$19 -> 0 | D19: =C19 -> 0 | E19: =D19 -> 0 | F19: 0 | G19: 0 | H19: 0 | I19: 0 | J19: 0 | K19: 0 | L19: 0 | M19: 0 | N19: 0 | O19: 0 | P19: 0 | Q19: 0 | R19: 0 | S19: 0 | T19: 0 | U19: 0 | V19: 0 | W19: 0
B20: =title199 -> Total power sold to the customers (kWh per year) | C20: =C17-C18-C19 -> 0 | D20: =D17-D18-D19 -> 0 | E20: 0 | F20: 0 | G20: 0 | H20: 0 | I20: 0 | J20: 0 | K20: 0 | L20: 0 | M20: 0 | N20: 0 | O20: 0 | P20: 0 | Q20: 0 | R20: 0 | S20: 0 | T20: 0 | U20: 0 | V20: 0 | W20: 0
B22: =title128 -> Price of electricity (USD/kWh) | C22: =+COST_RES2!$N$15 -> 0 | D22: =+COST_RES2!$N$15 -> 0 | E22: =+COST_RES2!$N$15 -> 0 | F22: =+COST_RES2!$N$15 -> 0 | G22: =+COST_RES2!$N$15 -> 0 | H22: =+COST_RES2!$N$15 -> 0 | I22: =+COST_RES2!$N$15 -> 0 | J22: =+COST_RES2!$N$15 -> 0 | K22: =+COST_RES2!$N$15 -> 0 | L22: =+COST_RES2!$N$15 -> 0 | M22: =+COST_RES2!$N$15 -> 0 | N22: =+COST_RES2!$N$15 -> 0 | O22: =+COST_RES2!$N$15 -> 0 | P22: =+COST_RES2!$N$15 -> 0 | Q22: =+COST_RES2!$N$15 -> 0 | R22: =+COST_RES2!$N$15 -> 0 | S22: =+COST_RES2!$N$15 -> 0 | T22: =+COST_RES2!$N$15 -> 0 | U22: =+COST_RES2!$N$15 -> 0 | V22: =+COST_RES2!$N$15 -> 0 | W22: =+COST_RES2!$N$15 -> 0
B23: =title200 -> Total income (USD/year) | C23: =C20*C22 -> 0 | D23: =D20*D22 -> 0 | E23: 0 | F23: 0 | G23: 0 | H23: 0 | I23: 0 | J23: 0 | K23: 0 | L23: 0 | M23: 0 | N23: 0 | O23: 0 | P23: 0 | Q23: 0 | R23: 0 | S23: 0 | T23: 0 | U23: 0 | V23: 0 | W23: 0
B25: =title201 -> Project lifetime (years) | C25: =+COST_RES2!$N$16 -> 20
B26: =title202 -> Lifespan of civil work (years) | C26: =20 -> 20
B27: =title203 -> Lifespan of combustion system (years) | C27: =20 -> 20
B28: =title204 -> Lifespan of engine generator system (years) | C28: =20 -> 20
B29: =title205 -> Lifespan of electrical distribution system (years) | C29: =20 -> 20
A32: =title206 -> Capital and operating cost
B34: =title193 -> Operating Year | C34: =title238 -> Appraisal | D34: 1 | E34: 2 | F34: 3 | G34: 4 | H34: 5 | I34: 6 | J34: 7 | K34: 8 | L34: 9 | M34: 10 | N34: 11 | O34: 12 | P34: 13 | Q34: 14 | R34: 15 | S34: 16 | T34: 17 | U34: 18 | V34: 19 | W34: 20
B35: =title207 -> Direct capital cost (USD)
B36: =title149 -> Equipments | C36: =COST_RES2!I62 -> 
B37: =title150 -> Building | C37: =COST_RES2!I63 -> 2499.64
B38: =title151 -> Installation | C38: =COST_RES2!I64 -> 1085.714286
B39: =title152 -> Distribution network | C39: =COST_RES2!I65 -> 
B40: =title208 -> Total capital cost (USD) | C40: =SUM(C36:C39) ->  | D40: =D36+D37+D38 -> 0 | E40: 0 | F40: 0 | G40: 0 | H40: 0 | I40: 0 | J40: 0 | K40: 0 | L40: 0 | M40: 0 | N40: 0 | O40: 0 | P40: 0 | Q40: 0 | R40: 0 | S40: 0 | T40: 0 | U40: 0 | V40: 0 | W40: 0
B41: =title209 -> Capital cost (USD/kW) | C41: =C40/C8 -> 
B44: =title193 -> Operating Year | C44: =title238 -> Appraisal | D44: 1 | E44: 2 | F44: 3 | G44: 4 | H44: 5 | I44: 6 | J44: 7 | K44: 8 | L44: 9 | M44: 10 | N44: 11 | O44: 12 | P44: 13 | Q44: 14 | R44: 15 | S44: 16 | T44: 17 | U44: 18 | V44: 19 | W44: 20
B45: =title210 -> Annual operating and maintenance cost
B46: =title211 -> Sub-total material cost (USD) | C46: =C47+C55 ->  | D46: =D47+D55 -> 
B47: =title212 -> Biomass cost (USD/year) | C47: =C48*C49 ->  | D47: =D48*D49 ->  | E47: =E48*E49 -> 
B48: =title213 -> Biomass consumption (tne per year) | C48: =+COST_RES2!$I$39 ->  | D48: =+C48 ->  | E48: =+D48 -> 
B49: =title214 -> Biomass total price (USD/t) | C49: =SUM(C50:C51) -> 0 | D49: =SUM(D50:D51) -> 0 | E49: 0 | F49: 0 | G49: 0 | H49: 0 | I49: 0 | J49: 0 | K49: 0 | L49: 0 | M49: 0 | N49: 0 | O49: 0 | P49: 0 | Q49: 0 | R49: 0 | S49: 0 | T49: 0 | U49: 0 | V49: 0 | W49: 0
B50: =title215 -> Biomass price (USD/t) | C50: =+COST_RES2!$F$39 -> 0 | D50: =C50 -> 0 | E50: =D50 -> 0 | F50: 0 | G50: 0 | H50: 0 | I50: 0 | J50: 0 | K50: 0 | L50: 0 | M50: 0 | N50: 0 | O50: 0 | P50: 0 | Q50: 0 | R50: 0 | S50: 0 | T50: 0 | U50: 0 | V50: 0 | W50: 0
B51: =title216 -> Biomass transportation cost (USD/t) | C51: =+C52*C53 -> 0 | D51: =+C51 -> 0 | E51: =+D51 -> 0 | F51: 0 | G51: 0 | H51: 0 | I51: 0 | J51: 0 | K51: 0 | L51: 0 | M51: 0 | N51: 0 | O51: 0 | P51: 0 | Q51: 0 | R51: 0 | S51: 0 | T51: 0 | U51: 0 | V51: 0 | W51: 0
B52: =title217 -> Biomass from farm to plant (USD/t/km) | C52: =+COST_RES2!$F$52 -> 0
B53: =title218 -> Transportation distant (km) | C53: =+COST_RES2!$I$52 -> 0
B55: =title219 -> Water cost (USD/year) | C55: =C56*C57 ->  | D55: =D56*D57 -> 
B56: =title220 -> Water consumption (m3 per year) | C56: =+COST_RES2!$I$40 ->  | D56: =+C56 ->  | E56: =+D56 -> 
B57: =title221 -> Water + chemical additives cost (USD/m3) | C57: =+COST_RES2!$F$40 -> 0.4385964912 | D57: =C57 -> 0.4385964912 | E57: =D57 -> 0.4385964912 | F57: 0.4385964912 | G57: 0.4385964912 | H57: 0.4385964912 | I57: 0.4385964912 | J57: 0.4385964912 | K57: 0.4385964912 | L57: 0.4385964912 | M57: 0.4385964912 | N57: 0.4385964912 | O57: 0.4385964912 | P57: 0.4385964912 | Q57: 0.4385964912 | R57: 0.4385964912 | S57: 0.4385964912 | T57: 0.4385964912 | U57: 0.4385964912 | V57: 0.4385964912 | W57: 0.4385964912
B59: =title222 -> Sub-total operating cost (USD) | C59: =C60+C61+C62 -> 
B60: =title223 -> Labour cost (USD) | C60: =COST_RES2!J48 -> 0 | D60: =C60 -> 0 | E60: =D60 -> 0 | F60: 0 | G60: 0 | H60: 0 | I60: 0 | J60: 0 | K60: 0 | L60: 0 | M60: 0 | N60: 0 | O60: 0 | P60: 0 | Q60: 0 | R60: 0 | S60: 0 | T60: 0 | U60: 0 | V60: 0 | W60: 0
B61: =title154 -> Plant overhead | C61: =COST_RES2!J73 ->  | D61: =C61 -> 
B62: =title155 -> General and administrative cost | C62: =COST_RES2!J74 ->  | D62: =C62 -> 
B63: =title224 -> Sub-total maintenance cost (USD) | C63: =COST_RES2!J68 ->  | D63: =C63 -> 
B65: =title225 -> Sub-total of annual fixed cost | C65: =COST_RES2!J67 ->  | D65: =C65 ->  | E65: =D65 -> 
B67: =title226 -> Sub-total of storage capacity | C67: =+COST_RES2!J58 ->  | D67: =C67 ->  | E67: =D67 -> 
B69: =title227 -> Total operation and maintenance cost (USD) | C69: =C46+C59+C63+C65+C67 -> 
B70: =title228 -> Operation and maintenance cost (USD/kWh) without loan interest | C70: =C69/C20 -> 
A72: =title95 -> Financial parameters
B73: =title193 -> Operating Year | C73: =title238 -> Appraisal | D73: 1 | E73: 2 | F73: 3 | G73: 4 | H73: 5 | I73: 6 | J73: 7 | K73: 8 | L73: 9 | M73: 10 | N73: 11 | O73: 12 | P73: 13 | Q73: 14 | R73: 15 | S73: 16 | T73: 17 | U73: 18 | V73: 19 | W73: 20
B74: =title96&" (%)" -> Discount rate (%) | C74: =+COST_RES2!$N$13 -> 0
B75: =title97&" (%)" -> Loan ratio (%) | C75: =+COST_RES2!$N$11 -> 0
B77: =title229 -> Loans | D77: 1 | E77: 2 | F77: 3 | G77: 4 | H77: 5 | I77: 6 | J77: 7 | K77: 8 | L77: 9 | M77: 10 | N77: 11 | O77: 12 | P77: 13 | Q77: 14 | R77: 15 | S77: 16 | T77: 17 | U77: 18 | V77: 19 | W77: 20
B78: =title230 -> Loan amount (USD ) | C78: =C75*C40 -> 
B79: =title231 -> Loan interest rate (%) | C79: =+COST_RES2!$N$10 -> 0
B80: =title126 -> Loan term (years) | C80: =+COST_RES2!$N$12 -> 0
B81: =title232 -> Loan payment (USD/month) | C81: =(PMT(C79/12,(12*C80),C78)) -> 
B82: =title233 -> Loan payment (USD/year) | D82: =IF(D73<=$C$80,$C$81*12,0) -> 0 | E82: =IF(E73<=$C$80,$C$81*12,0) -> 0 | F82: 0 | G82: 0 | H82: 0 | I82: 0 | J82: 0 | K82: 0 | L82: 0 | M82: 0 | N82: 0 | O82: 0 | P82: 0 | Q82: 0 | R82: 0 | S82: 0 | T82: 0 | U82: 0 | V82: 0 | W82: 0
B83: =title234 -> Total loan payment (USD) | C83: =SUM(D82:W82) -> 0
B84: =title235 -> Loan interest payment (USD) | C84: =C83+C78 ->  | D84: =title240 -> Average loan interest payment for project lifetime | G84: =C84/C25 ->  | H84: =title241 -> USD per year
A86: =title167 -> Depreciation
B87: =title193 -> Operating Year | C87: =title238 -> Appraisal | D87: 1 | E87: 2 | F87: 3 | G87: 4 | H87: 5 | I87: 6 | J87: 7 | K87: 8 | L87: 9 | M87: 10 | N87: 11 | O87: 12 | P87: 13 | Q87: 14 | R87: 15 | S87: 16 | T87: 17 | U87: 18 | V87: 19 | W87: 20
B88: =title236 -> Depreciation method | C88: =title239 -> Straight-line
B89: =title237 -> Total depreciation (USD) | D89: =COST_RES2!H67 ->  | E89: =D89 ->  | F89: =E89 -> 
A92: =title242 -> Base case project
A93: =title243 -> Summary of this project - before tax
B94: =title193 -> Operating Year | C94: =title238 -> Appraisal | D94: 1 | E94: 2 | F94: 3 | G94: 4 | H94: 5 | I94: 6 | J94: 7 | K94: 8 | L94: 9 | M94: 10 | N94: 11 | O94: 12 | P94: 13 | Q94: 14 | R94: 15 | S94: 16 | T94: 17 | U94: 18 | V94: 19 | W94: 20
B95: =title244 -> Total revenue (USD) | D95: =D23 -> 0 | E95: =E23 -> 0 | F95: 0 | G95: 0 | H95: 0 | I95: 0 | J95: 0 | K95: 0 | L95: 0 | M95: 0 | N95: 0 | O95: 0 | P95: 0 | Q95: 0 | R95: 0 | S95: 0 | T95: 0 | U95: 0 | V95: 0 | W95: 0
B96: =title208 -> Total capital cost (USD) | C96: =-(C40-C78) -> 
B97: =title245 -> Total operating and maintenance cost (USD) | D97: =-D69+D65 -> 
B98: =title246 -> Loan payment (USD) | D98: =D82 -> 0 | E98: =E82 -> 0 | F98: 0 | G98: 0 | H98: 0 | I98: 0 | J98: 0 | K98: 0 | L98: 0 | M98: 0 | N98: 0 | O98: 0 | P98: 0 | Q98: 0 | R98: 0 | S98: 0 | T98: 0 | U98: 0 | V98: 0 | W98: 0
B99: =title247 -> Cash flow - before tax (USD) | C99: =SUM(C95:C98) ->  | D99: =SUM(D95:D98) -> 
A101: =title248 -> Financial analysis result
B103: =title249 -> Net Present Value (NPV) (USD) - before tax | C103: =NPV(C74,D99:W99)+C99 -> 
B104: =title250 -> Internal Rate of Return (IRR) (%) - before tax | C104: =IF(C103<0,title392,IRR(C99:W99,0.001)) -> 
B105: =title251 -> Payback period (years) | C105: =title252 -> Please see Figure of the cumulative value of Net Profit - before tax

Sheet FA100kW_RES2 (hidden)
B1: =title191 -> FINANCIAL EVALUATION OF COMBUSTION FOR POWER GENERATION 100 kW
A4: =title192 -> Revenues
B6: =title193 -> Operating Year | C6: 0 | D6: 1 | E6: 2 | F6: 3 | G6: 4 | H6: 5 | I6: 6 | J6: 7 | K6: 8 | L6: 9 | M6: 10 | N6: 11 | O6: 12 | P6: 13 | Q6: 14 | R6: 15 | S6: 16 | T6: 17 | U6: 18 | V6: 19 | W6: 20
B8: =title194 -> Power generation capacity (kW) | C8: 100 | D8: =C8 -> 100 | E8: =D8 -> 100 | F8: 100 | G8: 100 | H8: 100 | I8: 100 | J8: 100 | K8: 100 | L8: 100 | M8: 100 | N8: 100 | O8: 100 | P8: 100 | Q8: 100 | R8: 100 | S8: 100 | T8: 100 | U8: 100 | V8: 100 | W8: 100
B10: =title195 -> Turbine type | C10: =+COST_RES2!$I$11 -> Backpressure steam turbine
B12: =title125 -> Power loss in distribution network (%) | C12: =+COST_RES2!$I$17 -> 0 | D12: =+C12 -> 0 | E12: =+D12 -> 0 | F12: 0 | G12: 0 | H12: 0 | I12: 0 | J12: 0 | K12: 0 | L12: 0 | M12: 0 | N12: 0 | O12: 0 | P12: 0 | Q12: 0 | R12: 0 | S12: 0 | T12: 0 | U12: 0 | V12: 0 | W12: 0
B14: =title187 -> Operating hours per year | C14: =+COST_RES2!$L$34 -> 0 | D14: =C14 -> 0 | E14: =D14 -> 0 | F14: 0 | G14: 0 | H14: 0 | I14: 0 | J14: 0 | K14: 0 | L14: 0 | M14: 0 | N14: 0 | O14: 0 | P14: 0 | Q14: 0 | R14: 0 | S14: 0 | T14: 0 | U14: 0 | V14: 0 | W14: 0
B15: =title119 -> Capacity utilization factor | C15: =C14/8760 -> 0 | D15: =D14/8760 -> 0 | E15: 0 | F15: 0 | G15: 0 | H15: 0 | I15: 0 | J15: 0 | K15: 0 | L15: 0 | M15: 0 | N15: 0 | O15: 0 | P15: 0 | Q15: 0 | R15: 0 | S15: 0 | T15: 0 | U15: 0 | V15: 0 | W15: 0
B17: =title196 -> Electricity generation (kWh per year) | C17: =C8*C14*(1-C12) -> 0 | D17: =D8*D14*(1-D12) -> 0 | E17: 0 | F17: 0 | G17: 0 | H17: 0 | I17: 0 | J17: 0 | K17: 0 | L17: 0 | M17: 0 | N17: 0 | O17: 0 | P17: 0 | Q17: 0 | R17: 0 | S17: 0 | T17: 0 | U17: 0 | V17: 0 | W17: 0
B18: =title197 -> Electricity - self use (kWh per year) | C18: =C17*10% -> 0 | D18: =D17*10% -> 0 | E18: 0 | F18: 0 | G18: 0 | H18: 0 | I18: 0 | J18: 0 | K18: 0 | L18: 0 | M18: 0 | N18: 0 | O18: 0 | P18: 0 | Q18: 0 | R18: 0 | S18: 0 | T18: 0 | U18: 0 | V18: 0 | W18: 0
B19: =title198 -> Power loss in distribution network (kWh per year) | C19: =C17*COST_RES2!$I$19 -> 0 | D19: =C19 -> 0 | E19: =D19 -> 0 | F19: 0 | G19: 0 | H19: 0 | I19: 0 | J19: 0 | K19: 0 | L19: 0 | M19: 0 | N19: 0 | O19: 0 | P19: 0 | Q19: 0 | R19: 0 | S19: 0 | T19: 0 | U19: 0 | V19: 0 | W19: 0
B20: =title199 -> Total power sold to the customers (kWh per year) | C20: =C17-C18-C19 -> 0 | D20: =D17-D18-D19 -> 0 | E20: 0 | F20: 0 | G20: 0 | H20: 0 | I20: 0 | J20: 0 | K20: 0 | L20: 0 | M20: 0 | N20: 0 | O20: 0 | P20: 0 | Q20: 0 | R20: 0 | S20: 0 | T20: 0 | U20: 0 | V20: 0 | W20: 0
B22: =title128 -> Price of electricity (USD/kWh) | C22: =+COST_RES2!$N$15 -> 0 | D22: =+COST_RES2!$N$15 -> 0 | E22: =+COST_RES2!$N$15 -> 0 | F22: =+COST_RES2!$N$15 -> 0 | G22: =+COST_RES2!$N$15 -> 0 | H22: =+COST_RES2!$N$15 -> 0 | I22: =+COST_RES2!$N$15 -> 0 | J22: =+COST_RES2!$N$15 -> 0 | K22: =+COST_RES2!$N$15 -> 0 | L22: =+COST_RES2!$N$15 -> 0 | M22: =+COST_RES2!$N$15 -> 0 | N22: =+COST_RES2!$N$15 -> 0 | O22: =+COST_RES2!$N$15 -> 0 | P22: =+COST_RES2!$N$15 -> 0 | Q22: =+COST_RES2!$N$15 -> 0 | R22: =+COST_RES2!$N$15 -> 0 | S22: =+COST_RES2!$N$15 -> 0 | T22: =+COST_RES2!$N$15 -> 0 | U22: =+COST_RES2!$N$15 -> 0 | V22: =+COST_RES2!$N$15 -> 0 | W22: =+COST_RES2!$N$15 -> 0
B23: =title200 -> Total income (USD/year) | C23: =C20*C22 -> 0 | D23: =D20*D22 -> 0 | E23: 0 | F23: 0 | G23: 0 | H23: 0 | I23: 0 | J23: 0 | K23: 0 | L23: 0 | M23: 0 | N23: 0 | O23: 0 | P23: 0 | Q23: 0 | R23: 0 | S23: 0 | T23: 0 | U23: 0 | V23: 0 | W23: 0
B25: =title201 -> Project lifetime (years) | C25: =+COST_RES2!$N$16 -> 20
B26: =title202 -> Lifespan of civil work (years) | C26: =20 -> 20
B27: =title203 -> Lifespan of combustion system (years) | C27: =20 -> 20
B28: =title204 -> Lifespan of engine generator system (years) | C28: =20 -> 20
B29: =title205 -> Lifespan of electrical distribution system (years) | C29: =20 -> 20
A32: =title206 -> Capital and operating cost
B34: =title193 -> Operating Year | C34: =title238 -> Appraisal | D34: 1 | E34: 2 | F34: 3 | G34: 4 | H34: 5 | I34: 6 | J34: 7 | K34: 8 | L34: 9 | M34: 10 | N34: 11 | O34: 12 | P34: 13 | Q34: 14 | R34: 15 | S34: 16 | T34: 17 | U34: 18 | V34: 19 | W34: 20
B35: =title207 -> Direct capital cost (USD)
B36: =title149 -> Equipments | C36: =COST_RES2!K62 -> 
B37: =title150 -> Building | C37: =COST_RES2!K63 -> 3679
B38: =title151 -> Installation | C38: =COST_RES2!K64 -> 2714.285714
B39: =title152 -> Distribution network | C39: =COST_RES2!K65 -> 
B40: =title208 -> Total capital cost (USD) | C40: =SUM(C36:C39) ->  | D40: =D36+D37+D38 -> 0 | E40: 0 | F40: 0 | G40: 0 | H40: 0 | I40: 0 | J40: 0 | K40: 0 | L40: 0 | M40: 0 | N40: 0 | O40: 0 | P40: 0 | Q40: 0 | R40: 0 | S40: 0 | T40: 0 | U40: 0 | V40: 0 | W40: 0
B41: =title209 -> Capital cost (USD/kW) | C41: =C40/C8 -> 
B44: =title193 -> Operating Year | C44: =title238 -> Appraisal | D44: 1 | E44: 2 | F44: 3 | G44: 4 | H44: 5 | I44: 6 | J44: 7 | K44: 8 | L44: 9 | M44: 10 | N44: 11 | O44: 12 | P44: 13 | Q44: 14 | R44: 15 | S44: 16 | T44: 17 | U44: 18 | V44: 19 | W44: 20
B45: =title210 -> Annual operating and maintenance cost
B46: =title211 -> Sub-total material cost (USD) | C46: =C47+C55 ->  | D46: =D47+D55 -> 
B47: =title212 -> Biomass cost (USD/year) | C47: =C48*C49 ->  | D47: =D48*D49 ->  | E47: =E48*E49 -> 
B48: =title213 -> Biomass consumption (tne per year) | C48: =+COST_RES2!$K$39 ->  | D48: =+C48 ->  | E48: =+D48 -> 
B49: =title214 -> Biomass total price (USD/t) | C49: =SUM(C50:C51) -> 0 | D49: =SUM(D50:D51) -> 0 | E49: =SUM(E50:E51) -> 0 | F49: 0 | G49: 0 | H49: 0 | I49: 0 | J49: 0 | K49: 0 | L49: 0 | M49: 0 | N49: 0 | O49: 0 | P49: 0 | Q49: 0 | R49: 0 | S49: 0 | T49: 0 | U49: 0 | V49: 0 | W49: 0
B50: =title215 -> Biomass price (USD/t) | C50: =+COST_RES2!$F$39 -> 0 | D50: =C50 -> 0 | E50: =D50 -> 0 | F50: 0 | G50: 0 | H50: 0 | I50: 0 | J50: 0 | K50: 0 | L50: 0 | M50: 0 | N50: 0 | O50: 0 | P50: 0 | Q50: 0 | R50: 0 | S50: 0 | T50: 0 | U50: 0 | V50: 0 | W50: 0
B51: =title216 -> Biomass transportation cost (USD/t) | C51: =+C52*C53 -> 0 | D51: =+C51 -> 0 | E51: =+D51 -> 0 | F51: 0 | G51: 0 | H51: 0 | I51: 0 | J51: 0 | K51: 0 | L51: 0 | M51: 0 | N51: 0 | O51: 0 | P51: 0 | Q51: 0 | R51: 0 | S51: 0 | T51: 0 | U51: 0 | V51: 0 | W51: 0
B52: =title217 -> Biomass from farm to plant (USD/t/km) | C52: =+COST_RES2!$F$52 -> 0
B53: =title218 -> Transportation distant (km) | C53: =+COST_RES2!$K$52 -> 0
B55: =title219 -> Water cost (USD/year) | C55: =C56*C57 ->  | D55: =D56*D57 -> 
B56: =title220 -> Water consumption (m3 per year) | C56: =+COST_RES2!$K$40 ->  | D56: =+C56 ->  | E56: =+D56 -> 
B57: =title221 -> Water + chemical additives cost (USD/m3) | C57: =+COST_RES2!$F$40 -> 0.4385964912 | D57: =C57 -> 0.4385964912 | E57: =D57 -> 0.4385964912 | F57: 0.4385964912 | G57: 0.4385964912 | H57: 0.4385964912 | I57: 0.4385964912 | J57: 0.4385964912 | K57: 0.4385964912 | L57: 0.4385964912 | M57: 0.4385964912 | N57: 0.4385964912 | O57: 0.4385964912 | P57: 0.4385964912 | Q57: 0.4385964912 | R57: 0.4385964912 | S57: 0.4385964912 | T57: 0.4385964912 | U57: 0.4385964912 | V57: 0.4385964912 | W57: 0.4385964912
B59: =title222 -> Sub-total operating cost (USD) | C59: =C60+C61+C62 -> 
B60: =title223 -> Labour cost (USD) | C60: =COST_RES2!L48 -> 0 | D60: =C60 -> 0 | E60: =D60 -> 0 | F60: 0 | G60: 0 | H60: 0 | I60: 0 | J60: 0 | K60: 0 | L60: 0 | M60: 0 | N60: 0 | O60: 0 | P60: 0 | Q60: 0 | R60: 0 | S60: 0 | T60: 0 | U60: 0 | V60: 0 | W60: 0
B61: =title154 -> Plant overhead | C61: =COST_RES2!L73 ->  | D61: =C61 -> 
B62: =title155 -> General and administrative cost | C62: =COST_RES2!L74 ->  | D62: =C62 -> 
B63: =title224 -> Sub-total maintenance cost (USD) | C63: =COST_RES2!L68 ->  | D63: =C63 -> 
B65: =title225 -> Sub-total of annual fixed cost | C65: =COST_RES2!L67 ->  | D65: =C65 ->  | E65: =D65 -> 
B67: =title226 -> Sub-total of storage capacity | C67: =+COST_RES2!L58 ->  | D67: =C67 ->  | E67: =D67 -> 
B69: =title227 -> Total operation and maintenance cost (USD) | C69: =C46+C59+C63+C65+C67 -> 
B70: =title228 -> Operation and maintenance cost (USD/kWh) without loan interest | C70: =C69/C20 -> 
A72: =title95 -> Financial parameters
B73: =title193 -> Operating Year | C73: =title238 -> Appraisal | D73: 1 | E73: 2 | F73: 3 | G73: 4 | H73: 5 | I73: 6 | J73: 7 | K73: 8 | L73: 9 | M73: 10 | N73: 11 | O73: 12 | P73: 13 | Q73: 14 | R73: 15 | S73: 16 | T73: 17 | U73: 18 | V73: 19 | W73: 20
B74: =title96&" (%)" -> Discount rate (%) | C74: =+COST_RES2!$N$13 -> 0
B75: Debt ratio (%) | C75: =+COST_RES2!$N$11 -> 0
B77: =title229 -> Loans | D77: 1 | E77: 2 | F77: 3 | G77: 4 | H77: 5 | I77: 6 | J77: 7 | K77: 8 | L77: 9 | M77: 10 | N77: 11 | O77: 12 | P77: 13 | Q77: 14 | R77: 15 | S77: 16 | T77: 17 | U77: 18 | V77: 19 | W77: 20
B78: =title230 -> Loan amount (USD ) | C78: =C75*C40 -> 
B79: =title231 -> Loan interest rate (%) | C79: =+COST_RES2!$N$10 -> 0
B80: =title126 -> Loan term (years) | C80: =+COST_RES2!$N$12 -> 0
B81: =title232 -> Loan payment (USD/month) | C81: =(PMT(C79/12,(12*C80),C78)) -> 
B82: =title233 -> Loan payment (USD/year) | D82: =IF(D73<=$C$80,$C$81*12,0) -> 0 | E82: =IF(E73<=$C$80,$C$81*12,0) -> 0 | F82: 0 | G82: 0 | H82: 0 | I82: 0 | J82: 0 | K82: 0 | L82: 0 | M82: 0 | N82: 0 | O82: 0 | P82: 0 | Q82: 0 | R82: 0 | S82: 0 | T82: 0 | U82: 0 | V82: 0 | W82: 0
B83: =title234 -> Total loan payment (USD) | C83: =SUM(D82:W82) -> 0
B84: =title235 -> Loan interest payment (USD) | C84: =C83+C78 ->  | D84: =title240 -> Average loan interest payment for project lifetime | G84: =C84/C25 ->  | H84: =title241 -> USD per year
A86: =title167 -> Depreciation
B87: =title193 -> Operating Year | C87: =title238 -> Appraisal | D87: 1 | E87: 2 | F87: 3 | G87: 4 | H87: 5 | I87: 6 | J87: 7 | K87: 8 | L87: 9 | M87: 10 | N87: 11 | O87: 12 | P87: 13 | Q87: 14 | R87: 15 | S87: 16 | T87: 17 | U87: 18 | V87: 19 | W87: 20
B88: =title236 -> Depreciation method | C88: =title239 -> Straight-line
B89: =title237 -> Total depreciation (USD) | D89: =COST_RES2!H67 ->  | E89: =D89 ->  | F89: =E89 -> 
A92: =title242 -> Base case project
A93: =title243 -> Summary of this project - before tax
B94: =title193 -> Operating Year | C94: =title238 -> Appraisal | D94: 1 | E94: 2 | F94: 3 | G94: 4 | H94: 5 | I94: 6 | J94: 7 | K94: 8 | L94: 9 | M94: 10 | N94: 11 | O94: 12 | P94: 13 | Q94: 14 | R94: 15 | S94: 16 | T94: 17 | U94: 18 | V94: 19 | W94: 20
B95: =title244 -> Total revenue (USD) | D95: =D23 -> 0 | E95: =E23 -> 0 | F95: 0 | G95: 0 | H95: 0 | I95: 0 | J95: 0 | K95: 0 | L95: 0 | M95: 0 | N95: 0 | O95: 0 | P95: 0 | Q95: 0 | R95: 0 | S95: 0 | T95: 0 | U95: 0 | V95: 0 | W95: 0
B96: =title208 -> Total capital cost (USD) | C96: =-(C40-C78) -> 
B97: =title245 -> Total operating and maintenance cost (USD) | D97: =-D69+D65 ->  | E97: =-E69+E65 -> 
B98: =title246 -> Loan payment (USD) | D98: =D82 -> 0 | E98: =E82 -> 0 | F98: 0 | G98: 0 | H98: 0 | I98: 0 | J98: 0 | K98: 0 | L98: 0 | M98: 0 | N98: 0 | O98: 0 | P98: 0 | Q98: 0 | R98: 0 | S98: 0 | T98: 0 | U98: 0 | V98: 0 | W98: 0
B99: =title247 -> Cash flow - before tax (USD) | C99: =SUM(C95:C98) ->  | D99: =SUM(D95:D98) -> 
A101: =title248 -> Financial analysis result
B103: =title249 -> Net Present Value (NPV) (USD) - before tax | C103: =NPV(C74,D99:W99)+C99 -> 
B104: =title250 -> Internal Rate of Return (IRR) (%) - before tax | C104: =IF(C103<0,title392,IRR(C99:W99,0.001)) -> 
B105: =title251 -> Payback period (years) | C105: =title252 -> Please see Figure of the cumulative value of Net Profit - before tax

Sheet COST_RES3
C3: =+UPPER(title112&'Data Entry Needs'!$F$11&" "&'Data Entry Needs'!$F$12) -> PROCESSING COSTS FOR POWER GENERATION FROM PLEASE SELECT PLEASE SELECT
C6: =title61 -> Use white cells to input data | E6: =title62 -> Grey cells are used for calculations
C8: =title113 -> Summary of Feedstock and Storage | G8: =title114 -> Summary of Operational Parameters | K8: =title95 -> Financial parameters
C10: =title115 -> Feedstock available (t/year) | E10: =+'Data Entry Needs'!$F$13 -> 0 | G10: =title117 -> Boiler | I10: =+"Stoker @"&Steam_Calculator!$C$3 -> Stoker @20 bar | K10: =title231 -> Loan interest rate (%) | N10: =+'Data Entry Needs'!$D$55 -> 0
C11: =title116 -> Feedstock yield (t/ha) | E11: =+'Data Entry Needs'!$F$14 -> 0 | G11: =title118 -> Turbine | I11: =+Steam_Calculator!$C$2 -> Backpressure steam turbine | K11: =title97&" (%)" -> Loan ratio (%) | N11: =+'Data Entry Needs'!$D$54 -> 0
C12: =title67 -> Moisture content (%) | E12: =+'Data Entry Needs'!$F$15 -> 0 | K12: =title126 -> Loan term (years) | N12: =+'Data Entry Needs'!$D$56 -> 0
C13: =title68 -> Size (mm) | E13: =+'Data Entry Needs'!$F$16 -> 0 | G13: =title119 -> Capacity utilization factor | I13: =H34/8760 -> 0 | K13: =title96&" (%)" -> Discount rate (%) | N13: =+'Data Entry Needs'!$D$53 -> 0
C14: =title72 -> Feedstock storage cost (USD/t) | E14: =+'Data Entry Needs'!$F$20 -> 0 | G14: =title120 -> Power conversion (kWh/kg feedstock) | I14: =+VLOOKUP(IF('Data Entry Needs'!$F$11=title19,'Data Entry Needs'!$F$11,'Data Entry Needs'!$F$11&'Data Entry Needs'!$F$12),dummy_database!$C$1:$L$31,10,FALSE)/(3.6) ->  | K14: =+'Data Entry Needs'!F54 -> Plant Cost Index during 5/2017 | N14: =+'Data Entry Needs'!I54 -> 0
G15: =title121 -> Boiler efficiency (%) | I15: =+Steam_Calculator!$C$4 -> 0.63 | K15: =IF('Data Entry Needs'!$AK$125=0,title129,title130) -> Price of electricity (USD/kWh) - Calculated | N15: =+'Data Entry Needs'!$AL$125 -> 0
G16: =title122 -> Turbine efficiency (%) | I16: =+Steam_Calculator!$C$5 -> 0.17 | K16: =title127 -> Project lifetime | N16: 20
G17: =title123 -> Power loss due to operation (%)
G18: =title124 -> Operating hours per day
G19: =title125 -> Power loss in distribution network (%)
C23: =title131 -> Transport Distance of Feedstock | F23: =title132 -> Transport Quantity | I23: =title131 -> Transport Distance of Feedstock | L23: =title132 -> Transport Quantity
C25: =title133 -> Distance small scale production (km) | F25: =title135 -> Small scale (t/year) | H25: =+$G$39 ->  | I25: =title137 -> Distance large scale production (km) | L25: =title139 -> Large scale (t/year) | N25: =+$K$39 -> 
C26: =title134 -> Distance medium scale production (km) | F26: =title136 -> Medium scale (t/year) | H26: =+$I$39 ->  | I26: =title138 -> Transportation cost (USD/t/km) | N26: =+'Data Entry Needs'!$D$46 -> 0
C30: =title140 -> Production Cost Details
G32: =title183 -> Capacities (kW of power generation)
G33: 10 | I33: 40 | K33: 100
G34: =title187 -> Operating hours per year | H34: =$I$18*365 -> 0 | I34: =title187 -> Operating hours per year | J34: =$I$18*365 -> 0 | K34: =title187 -> Operating hours per year | L34: =$I$18*365 -> 0
D37: =title140 -> Production Cost Details | E37: =title80 -> Unit | F37: =title161 -> Unit Price | G37: =title163 -> Quantity | H37: Total | I37: =title163 -> Quantity | J37: Total | K37: =title163 -> Quantity | L37: Total
F38: =title162 -> (USD/unit) | G38: =title164 -> (Unit/year) | H38: =title165 -> (USD/year) | I38: =title164 -> (Unit/year) | J38: =title165 -> (USD/year) | K38: =title164 -> (Unit/year) | L38: =title165 -> (USD/year)
D39: =title64 -> Feedstock | E39: t | F39: =+IF('Data Entry Needs'!$C$18=FALSE,'Data Entry Needs'!F$18,'Data Entry Needs'!F$19) -> 0 | G39: =+Steam_Calculator!$C$8*'COST(ADJUSTED)_RES3'!F8*H34*Steam_Calculator!$F$2/(Steam_Calculator!$C$4*COST_RES3!$I$14*3.6*1000000)/(1-$I$17) ->  | H39: =+G39*$F39 ->  | I39: =+Steam_Calculator!$C$8*'COST(ADJUSTED)_RES3'!G8*J34*Steam_Calculator!$F$2/(Steam_Calculator!$C$4*COST_RES3!$I$14*3.6*1000000)/(1-$I$17) ->  | J39: =+I39*$F39 ->  | K39: =+Steam_Calculator!$C$8*'COST(ADJUSTED)_RES3'!H8*J34*Steam_Calculator!$F$2/(Steam_Calculator!$C$4*COST_RES3!$I$14*3.6*1000000)/(1-$I$17) ->  | L39: =+K39*$F39 -> 
D40: =title142 -> Water make-up + chemical additives | E40: m3 | F40: =+'Data Entry Needs'!$D$40+0.002*1000/4.56 -> 0.4385964912 | G40: =+Steam_Calculator!$C$9*'COST(ADJUSTED)_RES3'!F8*H34/1000 ->  | H40: =+G40*$F40 ->  | I40: =+Steam_Calculator!$C$9*'COST(ADJUSTED)_RES3'!G8*J34/1000 ->  | J40: =+I40*$F40 ->  | K40: =+Steam_Calculator!$C$9*'COST(ADJUSTED)_RES3'!H8*L34/1000 ->  | L40: =+K40*$F40 -> 
D41: =title143 -> Subtotal | H41: =SUM(H39:H40) ->  | J41: =SUM(J39:J40) ->  | L41: =SUM(L39:L40) -> 
D43: =title144 -> Labour and miscellaneous costs | E43: =title80 -> Unit | F43: =title161 -> Unit Price | G43: =title163 -> Quantity | H43: Total | I43: =title163 -> Quantity | J43: Total | K43: =title163 -> Quantity | L43: Total
F44: ="("&title390&")" -> (USD/person-hour) | G44: ="("&title80&")" -> (Unit) | H44: =title165 -> (USD/year) | I44: ="("&title80&")" -> (Unit) | J44: =title165 -> (USD/year) | K44: ="("&title80&")" -> (Unit) | L44: =title165 -> (USD/year)
D45: =title85 -> Unskilled worker | E45: =title166 -> # employee | F45: =+'Data Entry Needs'!$D$37 -> 0 | G45: 1 | H45: =+F45*G45*H34 -> 0 | I45: 3 | J45: =+$F45*I45*$H$34 -> 0 | K45: 6 | L45: =+$F45*K45*$H$34 -> 0
D46: =title103 -> Skilled worker | E46: =title166 -> # employee | F46: =+'Data Entry Needs'!I$37 -> 0 | G46: 1 | H46: =+F46*G46*H34 -> 0 | I46: =+ROUND(I45/4,0) -> 1 | J46: =+$F46*I46*$H$34 -> 0 | K46: =+ROUND(K45/3,0) -> 2 | L46: =+$F46*K46*$H$34 -> 0
D47: =title107 -> Miscellaneous costs | G47: =+'Data Entry Needs'!$I$50 -> 0 | H47: =+G47*SUM(H45:H46) -> 0 | I47: =+G47 -> 0 | J47: =+I47*SUM(J45:J46) -> 0 | K47: =+G47 -> 0 | L47: =+K47*SUM(L45:L46) -> 0
D48: =title143 -> Subtotal | H48: =+H45+H46+H47 -> 0 | J48: =+J45+J46+J47 -> 0 | L48: =+L45+L46+L47 -> 0
G49: =+SUM(G45:G46) -> 2 | I49: =+SUM(I45:I46) -> 4 | K49: =+SUM(K45:K46) -> 8
D50: =title145 -> Transport of feedstock | E50: =title80 -> Unit | F50: =title161 -> Unit Price | G50: =title163 -> Quantity | H50: Total | I50: =title163 -> Quantity | J50: Total | K50: =title163 -> Quantity | L50: Total
F51: (USD/t/km) | G51: ="("&title80&")" -> (Unit) | H51: =title165 -> (USD/year) | I51: ="("&title80&")" -> (Unit) | J51: =title165 -> (USD/year) | K51: ="("&title80&")" -> (Unit) | L51: =title165 -> (USD/year)
D52: =title146 -> Feedstock (farm to plant) | E52: km | F52: =+'Data Entry Needs'!$D$46 -> 0 | G52: =+$E$25 -> 0 | H52: =+G52*F52*G39 ->  | I52: =+$E$26 -> 0 | J52: =+I52*$F52*I$39 ->  | K52: =+$K$25 -> 0 | L52: =+K52*$F52*K$39 -> 
D53: =title143 -> Subtotal | H53: =+H52 ->  | J53: =+J52 ->  | L53: =+L52 -> 
D55: =title147 -> Storage | E55: =title80 -> Unit | F55: =title161 -> Unit Price | G55: =title163 -> Quantity | H55: Total | I55: =title163 -> Quantity | J55: Total | K55: =title163 -> Quantity | L55: Total
F56: (USD/t/year) | G56: ="("&title80&")" -> (Unit) | H56: =title165 -> (USD/year) | I56: ="("&title80&")" -> (Unit) | J56: =title165 -> (USD/year) | K56: ="("&title80&")" -> (Unit) | L56: =title165 -> (USD/year)
D57: =title64 -> Feedstock | E57: t | F57: =+$E$14 -> 0 | G57: =+STORAGE_RES2!$F$38 ->  | H57: =+F57*G57 ->  | I57: =+STORAGE_RES2!$I$38 ->  | J57: =I57*F57 ->  | K57: =+STORAGE_RES2!$L$38 ->  | L57: =F57*K57 -> 
D58: =title143 -> Subtotal | H58: =SUM(H57) ->  | J58: =SUM(J57) ->  | L58: =SUM(L57) -> 
D60: =title148 -> Investment | E60: =title80 -> Unit | F60: =title184 -> Years | G60: Total | H60: =title167 -> Depreciation | I60: Total | J60: =title167 -> Depreciation | K60: Total | L60: =title167 -> Depreciation
G61: (USD) | H61: =title165 -> (USD/year) | I61: (USD) | J61: =title165 -> (USD/year) | K61: (USD) | L61: =title165 -> (USD/year)
D62: =title149 -> Equipments | E62: USD | F62: =+$N$16 -> 20 | G62: =('COST(ADJUSTED)_RES3'!$F$22)*('Data Entry Needs'!$I$54/141) ->  | H62: =+G62/F62 ->  | I62: =('COST(ADJUSTED)_RES3'!$G$22)*('Data Entry Needs'!$I$54/141) ->  | J62: =+I62/F62 ->  | K62: =('COST(ADJUSTED)_RES3'!$H$22)*('Data Entry Needs'!$I$54/141) ->  | L62: =+K62/F62 -> 
D63: =title150 -> Building | E63: USD | F63: =+$N$16 -> 20 | G63: =+'COST(ADJUSTED)_RES3'!$F$25 -> 1909.96 | H63: =+G63/F63 -> 95.498 | I63: =+'COST(ADJUSTED)_RES3'!$G$25 -> 2499.64 | J63: =+I63/F63 -> 124.982 | K63: =+'COST(ADJUSTED)_RES3'!$H$25 -> 3679 | L63: =+K63/F63 -> 183.95
D64: =title151 -> Installation | E64: USD | F64: =+$N$16 -> 20 | G64: =+'COST(ADJUSTED)_RES3'!$F$28 -> 271.4285714 | H64: =+G64/F64 -> 13.57142857 | I64: =+'COST(ADJUSTED)_RES3'!$G$28 -> 1085.714286 | J64: =+I64/F64 -> 54.28571429 | K64: =+'COST(ADJUSTED)_RES3'!$H$28 -> 2714.285714 | L64: =+K64/F64 -> 135.7142857
D65: =title152 -> Distribution network | E65: USD | F65: =+$N$16 -> 20 | G65: =('COST(ADJUSTED)_RES3'!$F$32)*('Data Entry Needs'!$I$54/141) ->  | H65: =+G65/F65 ->  | I65: =('COST(ADJUSTED)_RES3'!$G32)*('Data Entry Needs'!$I$54/141) ->  | J65: =+I65/F65 ->  | K65: =('COST(ADJUSTED)_RES3'!$H32)*('Data Entry Needs'!$I$54/141) ->  | L65: =+K65/F65 -> 
D66: =title153 -> Total Investment | G66: =SUM(G62:G65) ->  | I66: =SUM(I62:I65) ->  | K66: =SUM(K62:K65) -> 
G67: =title168 -> Total depreciation | H67: =SUM(H62:H66) ->  | I67: =title168 -> Total depreciation | J67: =SUM(J62:J66) ->  | K67: =title168 -> Total depreciation | L67: =SUM(L62:L66) -> 
D68: =title106 -> Maintenance cost | F68: =+'Data Entry Needs'!$I$49 -> 0 | H68: =+F68*H67 ->  | J68: =+F68*$J$67 ->  | L68: =+$F$68*L67 -> 
D69: =title143 -> Subtotal | H69: =SUM(H67:H68) ->  | J69: =SUM(J67:J68) ->  | L69: =SUM(L67:L68) -> 
D71: =title92 -> Other costs | E71: =title80 -> Unit | F71: Rate (%) | H71: Total | J71: Total | L71: Total
H72: =title165 -> (USD/year) | J72: =title165 -> (USD/year) | L72: =title165 -> (USD/year)
D73: =title154 -> Plant overhead | E73: USD | F73: =+'Data Entry Needs'!$D$50 -> 0 | H73: =+(H45+H46+H68)*$F$73 ->  | J73: =+(J45+J46+J68)*$F$73 ->  | L73: =+(L45+L46+L68)*$F$73 -> 
D74: =title155 -> General and administrative cost | E74: USD | F74: =+'Data Entry Needs'!$D$49 -> 0 | H74: =+(H41+H48+H73+H68)*$F$74 ->  | J74: =+(J41+J48+J73+J68)*$F$74 ->  | L74: =+(L41+L48+L73+L68)*$F$74 -> 
D75: =title156 -> Loan interest | E75: USD | F75: =+'Data Entry Needs'!$D$55 -> 0 | H75: =-FA10kW_RES3!G84 ->  | J75: =-FA40kW_RES3!G84 ->  | L75: =-FA100kW_RES3!G84 -> 
D77: =title143 -> Subtotal | H77: =SUM(H73:H75) ->  | J77: =SUM(J73:J75) ->  | L77: =SUM(L73:L75) -> 
G79: Total | H79: =title169 -> Share (%) | I79: Total | J79: =title169 -> Share (%) | K79: Total | L79: =title169 -> Share (%)
G80: =title165 -> (USD/year) | I80: =title165 -> (USD/year) | K80: =title165 -> (USD/year)
D81: =title157 -> Total operating costs | G81: =+H41+H48+H53+H58 ->  | H81: =+G81/$G$84 ->  | I81: =+J41+J48+J53+J58 ->  | J81: =+I81/$I$84 ->  | K81: =+L41+L48+L53+L58 ->  | L81: =+K81/$K$84 -> 
D82: =title158 -> Total fixed costs | G82: =+H69 ->  | H82: =+G82/$G$84 ->  | I82: =+J69 ->  | J82: =+I82/$I$84 ->  | K82: =+L69 ->  | L82: =+K82/$K$84 -> 
D83: =title159 -> Total other costs | G83: =+H77 ->  | H83: =+G83/$G$84 ->  | I83: =+J77 ->  | J83: =+I83/$I$84 ->  | K83: =+L77 ->  | L83: =+K83/$K$84 -> 
D84: =title160 -> Total production costs | G84: =SUM(G81:G83) ->  | I84: =SUM(I81:I83) ->  | K84: =SUM(K81:K83) -> 
C86: =title170 -> Power generation
E88: =title80 -> Unit | G88: =title163 -> Quantity | I88: =title163 -> Quantity | K88: =title163 -> Quantity
G89: ="("&title80&")" -> (Unit) | I89: ="("&title80&")" -> (Unit) | K89: ="("&title80&")" -> (Unit)
D90: =title170 -> Power generation | E90: =title172 -> kWh/year | G90: =+G33*H34*(1-$I$17) -> 0 | I90: =+I33*J34*(1-$I$17) -> 0 | K90: =+K33*L34*(1-$I$17) -> 0
D91: =title171 -> Electricity - self use | E91: =title172 -> kWh/year | G91: =-G90*10% -> 0 | I91: =-I90*10% -> 0 | K91: =-K90*10% -> 0
D92: =title173 -> Power loss in distribution network | E92: =title172 -> kWh/year | G92: =-G90*$I$19 -> 0 | I92: =-I90*$I$19 -> 0 | K92: =-K90*$I$19 -> 0
D93: =title143 -> Subtotal | G93: =SUM(G90:H92) -> 0 | I93: =SUM(I90:J92) -> 0 | K93: =SUM(K90:L92) -> 0
C95: =title174 -> Total Production Cost + Distribution
G97: =$G$32 -> Capacities (kW of power generation)
G98: =+G33 -> 10 | I98: =+I33 -> 40 | K98: =+K33 -> 100
D99: =title175 -> Unit cost of electricity (USD/kWh) | G99: =G84/G93 ->  | I99: =I84/I93 ->  | K99: =K84/K93 -> 
D101: =title180 -> Average loan interest | E101: =title80 -> Unit | F101: =title97&" (%)" -> Loan ratio (%) | G101: =title153 -> Total Investment | H101: =title176 -> Loan amount | I101: =title153 -> Total Investment | J101: =title176 -> Loan amount | K101: =title153 -> Total Investment | L101: =title176 -> Loan amount
G102: (USD) | H102: (USD) | I102: (USD) | J102: (USD) | K102: (USD) | L102: (USD)
D103: =title176 -> Loan amount | E103: USD | F103: =+$N$11 -> 0 | G103: =G66 ->  | H103: =$F$103*G103 ->  | I103: =I66 ->  | J103: =$F$103*I103 ->  | K103: =K66 ->  | L103: =$F$103*K103 -> 
D104: =title98 -> Loan interest rate | E104: % | H104: =+$N$10 -> 0 | J104: =+$N$10 -> 0 | L104: =+$N$10 -> 0
D105: =title177 -> Loan payment | E105: =title181 -> USD/month | H105: =PMT(H104/12,H107*12,H103,0) ->  | J105: =PMT(J104/12,J107*12,J103,0) ->  | L105: =PMT(L104/12,L107*12,L103,0) -> 
D106: =title178 -> Annual loan payment | E106: =title182 -> USD/year | H106: =H105*12 ->  | J106: =J105*12 ->  | L106: =L105*12 -> 
D107: =title99 -> Loan term | E107: =title102 -> year | H107: =+$N$12 -> 0 | J107: =+$N$12 -> 0 | L107: =+$N$12 -> 0
D108: =title179 -> Total loan payment | E108: USD | H108: =H106*H107 ->  | J108: =J106*J107 ->  | L108: =L106*L107 -> 
D109: =title156 -> Loan interest | E109: USD | H109: =H108+H103 ->  | J109: =J108+J103 ->  | L109: =L108+L103 -> 
D110: =title180 -> Average loan interest | E110: =title182 -> USD/year | H110: =H109/$N$16 ->  | J110: =J109/$N$16 ->  | L110: =L109/$N$16 -> 

Sheet COST(ADJUSTED)_RES3 (hidden)
C3: DETAILED INVESTEMET OF BIOMASS COMBUSTION FOR RURAL ELECTRIFICATION
F5: Capacities (kW of power generation)
F6: 10 | G6: 40 | H6: 100
D7: Operating period | E7: h/year | F7: =+COST_RES3!$H$34 -> 0 | G7: =+COST_RES3!$J$34 -> 0 | H7: =+COST_RES3!$L$34 -> 0
D8: Steam | E8: kg/h | F8: =+COST_RES3!$G$90*3600/(COST_RES3!$I$16*(Steam_Calculator!$C$6+Steam_Calculator!$C$7)*'COST(ADJUSTED)_RES3'!F7) ->  | G8: =+COST_RES3!$I$90*3600/(COST_RES3!$I$16*(Steam_Calculator!$C$6+Steam_Calculator!$C$7)*'COST(ADJUSTED)_RES3'!G7) ->  | H8: =+COST_RES3!$K$90*3600/(COST_RES3!$I$16*(Steam_Calculator!$C$6+Steam_Calculator!$C$7)*'COST(ADJUSTED)_RES3'!H7) -> 
D9: Households | E9: Household | F9: =+COST_RES3!G93/('Energy Demand'!$F$8*12) ->  | G9: =+COST_RES3!I93/('Energy Demand'!$F$8*12) ->  | H9: =+COST_RES3!K93/('Energy Demand'!$F$8*12) -> 
C10: Estimated distance covered (m) | D10: m/household | E10: 10 | F10: =+F9*$E$10 ->  | G10: =+G9*$E$10 ->  | H10: =+H9*$E$10 -> 
C11: Equipments
C12: Boiler | D12: USDh/kg steam | E12: 127.8400072 | F12: =+$E$12*F8 ->  | G12: =+$E$12*G8 ->  | H12: =+$E$12*H8 -> 
C13: Condenser, cyclone, water pump, cooling tower | D13: USDh/kg steam | E13: 127.0317928 | F13: =+$E$13*F8 ->  | G13: =+$E$13*G8 ->  | H13: =+$E$13*H8 -> 
C14: Back pressure steam turbine | D14: USD/kW | E14: 561.1111111 | F14: =+F6*700 -> 7000 | G14: =+$E$14*G6 -> 22444.44444 | H14: =+$E$14*H6 -> 56111.11111
C15: Biomass cutter | D15: USD | F15: 146.161969 | G15: 146.161969 | H15: 17500
C16: Biomass dryer | D16: USD | F16: 194.8826253 | G16: 682.0891885
C17: Moisture meter | D17: USD | F17: 97.44131265 | G17: 97.44131265
C18: Chain pulley block | D18: USD | F18: 58.46478759 | G18: 126.6737064
C19: Water cooling system | D19: USD | F19: 0 | G19: 584.6478759
C20: Other accessories | D20: USD | F20: 974.4131265 | G20: 1753.943628
C21: Generator | D21: USD/kW | E21: 400 | F21: =+$E$21*F6 -> 4000 | G21: =+$E$21*G6 -> 16000 | H21: =+$E$21*H6 -> 40000
E22: Subtotal | F22: =SUM(F12:F21) ->  | G22: =SUM(G12:G21) ->  | H22: =SUM(H12:H21) -> 
C23: Building
C24: Civil work (building, generator platform etc.) | D24: USD | F24: =19.656* F6+ 1713.4 -> 1909.96 | G24: =19.656* G6+ 1713.4 -> 2499.64 | H24: =19.656* H6+ 1713.4 -> 3679
E25: Subtotal | F25: =SUM(F24) -> 1909.96 | G25: =SUM(G24) -> 2499.64 | H25: =SUM(H24) -> 3679
C26: Installation
C27: Connection and earthing | D27: USD/kW | E27: 27.14285714 | F27: =($E$27*F6) -> 271.4285714 | G27: =($E$27*G6) -> 1085.714286 | H27: =($E$27*H6) -> 2714.285714
E28: Subtotal | F28: =SUM(F27) -> 271.4285714 | G28: =SUM(G27) -> 1085.714286 | H28: =SUM(H27) -> 2714.285714
C29: Distribution network
C30: Primary electricity cable | D30: USD/m | E30: 7.454 | F30: =+F$10*$E30 ->  | G30: =+G$10*$E30 ->  | H30: =+H$10*$E30 -> 
C31: Secondary cable, installation and meter | D31: USD/household | E31: 164 | F31: =+F$9*$E31 ->  | G31: =+G$9*$E31 ->  | H31: =+H$9*$E31 -> 
E32: Subtotal | F32: =SUM(F30:F31) ->  | G32: =SUM(G30:G31) ->  | H32: =SUM(H30:H31) -> 

Sheet FA10kW_RES3 (hidden)
B1: =title189 -> FINANCIAL EVALUATION OF COMBUSTION FOR POWER GENERATION 10 kW
A4: =title192 -> Revenues
B6: =title193 -> Operating Year | C6: 0 | D6: 1 | E6: 2 | F6: 3 | G6: 4 | H6: 5 | I6: 6 | J6: 7 | K6: 8 | L6: 9 | M6: 10 | N6: 11 | O6: 12 | P6: 13 | Q6: 14 | R6: 15 | S6: 16 | T6: 17 | U6: 18 | V6: 19 | W6: 20
B8: =title194 -> Power generation capacity (kW) | C8: 10 | D8: =C8 -> 10 | E8: =D8 -> 10 | F8: 10 | G8: 10 | H8: 10 | I8: 10 | J8: 10 | K8: 10 | L8: 10 | M8: 10 | N8: 10 | O8: 10 | P8: 10 | Q8: 10 | R8: 10 | S8: 10 | T8: 10 | U8: 10 | V8: 10 | W8: 10
B10: =title195 -> Turbine type | C10: =+COST_RES3!$I$11 -> Backpressure steam turbine
B12: =title125 -> Power loss in distribution network (%) | C12: =+COST_RES3!$I$17 -> 0 | D12: =+C12 -> 0 | E12: =+D12 -> 0 | F12: 0 | G12: 0 | H12: 0 | I12: 0 | J12: 0 | K12: 0 | L12: 0 | M12: 0 | N12: 0 | O12: 0 | P12: 0 | Q12: 0 | R12: 0 | S12: 0 | T12: 0 | U12: 0 | V12: 0 | W12: 0
B14: =title187 -> Operating hours per year | C14: =+COST_RES3!$H$34 -> 0 | D14: =C14 -> 0 | E14: =D14 -> 0 | F14: 0 | G14: 0 | H14: 0 | I14: 0 | J14: 0 | K14: 0 | L14: 0 | M14: 0 | N14: 0 | O14: 0 | P14: 0 | Q14: 0 | R14: 0 | S14: 0 | T14: 0 | U14: 0 | V14: 0 | W14: 0
B15: =title119 -> Capacity utilization factor | C15: =C14/8760 -> 0 | D15: =D14/8760 -> 0 | E15: 0 | F15: 0 | G15: 0 | H15: 0 | I15: 0 | J15: 0 | K15: 0 | L15: 0 | M15: 0 | N15: 0 | O15: 0 | P15: 0 | Q15: 0 | R15: 0 | S15: 0 | T15: 0 | U15: 0 | V15: 0 | W15: 0
B17: =title196 -> Electricity generation (kWh per year) | C17: =C8*C14*(1-C12) -> 0 | D17: =D8*D14*(1-D12) -> 0 | E17: 0 | F17: 0 | G17: 0 | H17: 0 | I17: 0 | J17: 0 | K17: 0 | L17: 0 | M17: 0 | N17: 0 | O17: 0 | P17: 0 | Q17: 0 | R17: 0 | S17: 0 | T17: 0 | U17: 0 | V17: 0 | W17: 0
B18: =title197 -> Electricity - self use (kWh per year) | C18: =C17*10% -> 0 | D18: =D17*10% -> 0 | E18: 0 | F18: 0 | G18: 0 | H18: 0 | I18: 0 | J18: 0 | K18: 0 | L18: 0 | M18: 0 | N18: 0 | O18: 0 | P18: 0 | Q18: 0 | R18: 0 | S18: 0 | T18: 0 | U18: 0 | V18: 0 | W18: 0
B19: =title198 -> Power loss in distribution network (kWh per year) | C19: =C17*COST_RES3!$I$19 -> 0 | D19: =C19 -> 0 | E19: =D19 -> 0 | F19: 0 | G19: 0 | H19: 0 | I19: 0 | J19: 0 | K19: 0 | L19: 0 | M19: 0 | N19: 0 | O19: 0 | P19: 0 | Q19: 0 | R19: 0 | S19: 0 | T19: 0 | U19: 0 | V19: 0 | W19: 0
B20: =title199 -> Total power sold to the customers (kWh per year) | C20: =C17-C18-C19 -> 0 | D20: =D17-D18-D19 -> 0 | E20: 0 | F20: 0 | G20: 0 | H20: 0 | I20: 0 | J20: 0 | K20: 0 | L20: 0 | M20: 0 | N20: 0 | O20: 0 | P20: 0 | Q20: 0 | R20: 0 | S20: 0 | T20: 0 | U20: 0 | V20: 0 | W20: 0
B22: =title128 -> Price of electricity (USD/kWh) | C22: =+COST_RES3!$N$15 -> 0 | D22: =+COST_RES3!$N$15 -> 0 | E22: =+COST_RES3!$N$15 -> 0 | F22: =+COST_RES3!$N$15 -> 0 | G22: =+COST_RES3!$N$15 -> 0 | H22: =+COST_RES3!$N$15 -> 0 | I22: =+COST_RES3!$N$15 -> 0 | J22: =+COST_RES3!$N$15 -> 0 | K22: =+COST_RES3!$N$15 -> 0 | L22: =+COST_RES3!$N$15 -> 0 | M22: =+COST_RES3!$N$15 -> 0 | N22: =+COST_RES3!$N$15 -> 0 | O22: =+COST_RES3!$N$15 -> 0 | P22: =+COST_RES3!$N$15 -> 0 | Q22: =+COST_RES3!$N$15 -> 0 | R22: =+COST_RES3!$N$15 -> 0 | S22: =+COST_RES3!$N$15 -> 0 | T22: =+COST_RES3!$N$15 -> 0 | U22: =+COST_RES3!$N$15 -> 0 | V22: =+COST_RES3!$N$15 -> 0 | W22: =+COST_RES3!$N$15 -> 0
B23: =title200 -> Total income (USD/year) | C23: =C20*C22 -> 0 | D23: =D20*D22 -> 0 | E23: 0 | F23: 0 | G23: 0 | H23: 0 | I23: 0 | J23: 0 | K23: 0 | L23: 0 | M23: 0 | N23: 0 | O23: 0 | P23: 0 | Q23: 0 | R23: 0 | S23: 0 | T23: 0 | U23: 0 | V23: 0 | W23: 0
B25: =title201 -> Project lifetime (years) | C25: =+COST_RES3!$N$16 -> 20
B26: =title202 -> Lifespan of civil work (years) | C26: =20 -> 20
B27: =title203 -> Lifespan of combustion system (years) | C27: =20 -> 20
B28: =title204 -> Lifespan of engine generator system (years) | C28: =20 -> 20
B29: =title205 -> Lifespan of electrical distribution system (years) | C29: =20 -> 20
A32: =title206 -> Capital and operating cost
B34: =title193 -> Operating Year | C34: =title238 -> Appraisal | D34: 1 | E34: 2 | F34: 3 | G34: 4 | H34: 5 | I34: 6 | J34: 7 | K34: 8 | L34: 9 | M34: 10 | N34: 11 | O34: 12 | P34: 13 | Q34: 14 | R34: 15 | S34: 16 | T34: 17 | U34: 18 | V34: 19 | W34: 20
B35: =title207 -> Direct capital cost (USD)
B36: =title149 -> Equipments | C36: =COST_RES3!G62 -> 
B37: =title150 -> Building | C37: =COST_RES3!G63 -> 1909.96
B38: =title151 -> Installation | C38: =COST_RES3!G64 -> 271.4285714
B39: =title152 -> Distribution network | C39: =COST_RES3!G65 -> 
B40: =title208 -> Total capital cost (USD) | C40: =SUM(C36:C39) ->  | D40: =D36+D37+D38 -> 0 | E40: 0 | F40: 0 | G40: 0 | H40: 0 | I40: 0 | J40: 0 | K40: 0 | L40: 0 | M40: 0 | N40: 0 | O40: 0 | P40: 0 | Q40: 0 | R40: 0 | S40: 0 | T40: 0 | U40: 0 | V40: 0 | W40: 0
B41: =title209 -> Capital cost (USD/kW) | C41: =C40/C8 -> 
B44: =title193 -> Operating Year | C44: =title238 -> Appraisal | D44: 1 | E44: 2 | F44: 3 | G44: 4 | H44: 5 | I44: 6 | J44: 7 | K44: 8 | L44: 9 | M44: 10 | N44: 11 | O44: 12 | P44: 13 | Q44: 14 | R44: 15 | S44: 16 | T44: 17 | U44: 18 | V44: 19 | W44: 20
B45: =title210 -> Annual operating and maintenance cost
B46: =title211 -> Sub-total material cost (USD) | C46: =C47+C55 ->  | D46: =D47+D55 -> 
B47: =title212 -> Biomass cost (USD/year) | C47: =C48*C49 ->  | D47: =D48*D49 ->  | E47: =E48*E49 -> 
B48: =title213 -> Biomass consumption (tne per year) | C48: =+COST_RES3!$G$39 ->  | D48: =+C48 ->  | E48: =+D48 -> 
B49: =title214 -> Biomass total price (USD/t) | C49: =SUM(C50:C51) -> 0 | D49: =SUM(D50:D51) -> 0 | E49: 0 | F49: 0 | G49: 0 | H49: 0 | I49: 0 | J49: 0 | K49: 0 | L49: 0 | M49: 0 | N49: 0 | O49: 0 | P49: 0 | Q49: 0 | R49: 0 | S49: 0 | T49: 0 | U49: 0 | V49: 0 | W49: 0
B50: =title215 -> Biomass price (USD/t) | C50: =+COST_RES3!$F$39 -> 0 | D50: =C50 -> 0 | E50: =D50 -> 0 | F50: 0 | G50: 0 | H50: 0 | I50: 0 | J50: 0 | K50: 0 | L50: 0 | M50: 0 | N50: 0 | O50: 0 | P50: 0 | Q50: 0 | R50: 0 | S50: 0 | T50: 0 | U50: 0 | V50: 0 | W50: 0
B51: =title216 -> Biomass transportation cost (USD/t) | C51: =+C52*C53 -> 0 | D51: =C51 -> 0 | E51: 0 | F51: 0 | G51: 0 | H51: 0 | I51: 0 | J51: 0 | K51: 0 | L51: 0 | M51: 0 | N51: 0 | O51: 0 | P51: 0 | Q51: 0 | R51: 0 | S51: 0 | T51: 0 | U51: 0 | V51: 0 | W51: 0
B52: =title217 -> Biomass from farm to plant (USD/t/km) | C52: =+COST_RES3!$F$52 -> 0
B53: =title218 -> Transportation distant (km) | C53: =+COST_RES3!$G$52 -> 0
B55: =title219 -> Water cost (USD/year) | C55: =C56*C57 ->  | D55: =D56*D57 -> 
B56: =title220 -> Water consumption (m3 per year) | C56: =+COST_RES3!$G$40 ->  | D56: =+C56 ->  | E56: =+D56 -> 
B57: =title221 -> Water + chemical additives cost (USD/m3) | C57: =+COST_RES3!$F$40 -> 0.4385964912 | D57: =C57 -> 0.4385964912 | E57: =D57 -> 0.4385964912 | F57: 0.4385964912 | G57: 0.4385964912 | H57: 0.4385964912 | I57: 0.4385964912 | J57: 0.4385964912 | K57: 0.4385964912 | L57: 0.4385964912 | M57: 0.4385964912 | N57: 0.4385964912 | O57: 0.4385964912 | P57: 0.4385964912 | Q57: 0.4385964912 | R57: 0.4385964912 | S57: 0.4385964912 | T57: 0.4385964912 | U57: 0.4385964912 | V57: 0.4385964912 | W57: 0.4385964912
B59: =title222 -> Sub-total operating cost (USD) | C59: =C60+C61+C62 -> 
B60: =title223 -> Labour cost (USD) | C60: =COST_RES3!H48 -> 0 | D60: =C60 -> 0 | E60: =D60 -> 0 | F60: 0 | G60: 0 | H60: 0 | I60: 0 | J60: 0 | K60: 0 | L60: 0 | M60: 0 | N60: 0 | O60: 0 | P60: 0 | Q60: 0 | R60: 0 | S60: 0 | T60: 0 | U60: 0 | V60: 0 | W60: 0
B61: =title154 -> Plant overhead | C61: =COST_RES3!H73 ->  | D61: =C61 -> 
B62: =title155 -> General and administrative cost | C62: =COST_RES3!H74 ->  | D62: =C62 -> 
B63: =title224 -> Sub-total maintenance cost (USD) | C63: =COST_RES3!H68 ->  | D63: =C63 -> 
B65: =title225 -> Sub-total of annual fixed cost | C65: =COST_RES3!H67 ->  | D65: =C65 ->  | E65: =D65 -> 
B67: =title226 -> Sub-total of storage capacity | C67: =+COST_RES3!H58 ->  | D67: =C67 ->  | E67: =D67 -> 
B69: =title227 -> Total operation and maintenance cost (USD) | C69: =C46+C59+C63+C65+C67 -> 
B70: =title228 -> Operation and maintenance cost (USD/kWh) without loan interest | C70: =C69/C20 -> 
A72: =title95 -> Financial parameters
B73: =title193 -> Operating Year | C73: =title238 -> Appraisal | D73: 1 | E73: 2 | F73: 3 | G73: 4 | H73: 5 | I73: 6 | J73: 7 | K73: 8 | L73: 9 | M73: 10 | N73: 11 | O73: 12 | P73: 13 | Q73: 14 | R73: 15 | S73: 16 | T73: 17 | U73: 18 | V73: 19 | W73: 20
B74: =title96&" (%)" -> Discount rate (%) | C74: =+COST_RES3!$N$13 -> 0
B75: =title97&" (%)" -> Loan ratio (%) | C75: =+COST_RES3!$N$11 -> 0
B77: =title229 -> Loans | D77: 1 | E77: 2 | F77: 3 | G77: 4 | H77: 5 | I77: 6 | J77: 7 | K77: 8 | L77: 9 | M77: 10 | N77: 11 | O77: 12 | P77: 13 | Q77: 14 | R77: 15 | S77: 16 | T77: 17 | U77: 18 | V77: 19 | W77: 20
B78: =title230 -> Loan amount (USD ) | C78: =C75*C40 -> 
B79: =title231 -> Loan interest rate (%) | C79: =+COST_RES3!$N$10 -> 0
B80: =title126 -> Loan term (years) | C80: =+COST_RES3!$N$12 -> 0
B81: =title232 -> Loan payment (USD/month) | C81: =(PMT(C79/12,(12*C80),C78)) -> 
B82: =title233 -> Loan payment (USD/year) | D82: =IF(D73<=$C$80,$C$81*12,0) -> 0 | E82: =IF(E73<=$C$80,$C$81*12,0) -> 0 | F82: 0 | G82: 0 | H82: 0 | I82: 0 | J82: 0 | K82: 0 | L82: 0 | M82: 0 | N82: 0 | O82: 0 | P82: 0 | Q82: 0 | R82: 0 | S82: 0 | T82: 0 | U82: 0 | V82: 0 | W82: 0
B83: =title234 -> Total loan payment (USD) | C83: =SUM(D82:W82) -> 0
B84: =title235 -> Loan interest payment (USD) | C84: =C83+C78 ->  | D84: =title240 -> Average loan interest payment for project lifetime | G84: =C84/C25 ->  | H84: =title241 -> USD per year
A86: =title167 -> Depreciation
B87: =title193 -> Operating Year | C87: =title238 -> Appraisal | D87: 1 | E87: 2 | F87: 3 | G87: 4 | H87: 5 | I87: 6 | J87: 7 | K87: 8 | L87: 9 | M87: 10 | N87: 11 | O87: 12 | P87: 13 | Q87: 14 | R87: 15 | S87: 16 | T87: 17 | U87: 18 | V87: 19 | W87: 20
B88: =title236 -> Depreciation method | C88: =title239 -> Straight-line
B89: =title237 -> Total depreciation (USD) | D89: =COST_RES3!H67 ->  | E89: =D89 ->  | F89: =E89 -> 
A92: =title242 -> Base case project
A93: =title243 -> Summary of this project - before tax
B94: =title193 -> Operating Year | C94: =title238 -> Appraisal | D94: 1 | E94: 2 | F94: 3 | G94: 4 | H94: 5 | I94: 6 | J94: 7 | K94: 8 | L94: 9 | M94: 10 | N94: 11 | O94: 12 | P94: 13 | Q94: 14 | R94: 15 | S94: 16 | T94: 17 | U94: 18 | V94: 19 | W94: 20
B95: =title244 -> Total revenue (USD) | D95: =D23 -> 0 | E95: =E23 -> 0 | F95: 0 | G95: 0 | H95: 0 | I95: 0 | J95: 0 | K95: 0 | L95: 0 | M95: 0 | N95: 0 | O95: 0 | P95: 0 | Q95: 0 | R95: 0 | S95: 0 | T95: 0 | U95: 0 | V95: 0 | W95: 0
B96: =title208 -> Total capital cost (USD) | C96: =-(C40-C78) -> 
B97: =title245 -> Total operating and maintenance cost (USD) | D97: =-D69+D65 -> 
B98: =title246 -> Loan payment (USD) | D98: =D82 -> 0 | E98: =E82 -> 0 | F98: 0 | G98: 0 | H98: 0 | I98: 0 | J98: 0 | K98: 0 | L98: 0 | M98: 0 | N98: 0 | O98: 0 | P98: 0 | Q98: 0 | R98: 0 | S98: 0 | T98: 0 | U98: 0 | V98: 0 | W98: 0
B99: =title247 -> Cash flow - before tax (USD) | C99: =SUM(C95:C98) ->  | D99: =SUM(D95:D98) -> 
A101: =title248 -> Financial analysis result
B103: =title249 -> Net Present Value (NPV) (USD) - before tax | C103: =NPV(C74,D99:W99)+C99 -> 
B104: =title250 -> Internal Rate of Return (IRR) (%) - before tax | C104: =IF(C103<0,title392,IRR(C99:W99,0.001)) -> 
B105: =title251 -> Payback period (years) | C105: =title252 -> Please see Figure of the cumulative value of Net Profit - before tax

Sheet FA40kW_RES3 (hidden)
B1: =title190 -> FINANCIAL EVALUATION OF COMBUSTION FOR POWER GENERATION 40 kW
A4: =title192 -> Revenues
B6: =title193 -> Operating Year | C6: 0 | D6: 1 | E6: 2 | F6: 3 | G6: 4 | H6: 5 | I6: 6 | J6: 7 | K6: 8 | L6: 9 | M6: 10 | N6: 11 | O6: 12 | P6: 13 | Q6: 14 | R6: 15 | S6: 16 | T6: 17 | U6: 18 | V6: 19 | W6: 20
B8: =title194 -> Power generation capacity (kW) | C8: 40 | D8: =C8 -> 40 | E8: =D8 -> 40 | F8: 40 | G8: 40 | H8: 40 | I8: 40 | J8: 40 | K8: 40 | L8: 40 | M8: 40 | N8: 40 | O8: 40 | P8: 40 | Q8: 40 | R8: 40 | S8: 40 | T8: 40 | U8: 40 | V8: 40 | W8: 40
B10: =title195 -> Turbine type | C10: =+COST_RES3!$I$11 -> Backpressure steam turbine
B12: =title125 -> Power loss in distribution network (%) | C12: =+COST_RES3!$I$17 -> 0 | D12: =+C12 -> 0 | E12: =+D12 -> 0 | F12: 0 | G12: 0 | H12: 0 | I12: 0 | J12: 0 | K12: 0 | L12: 0 | M12: 0 | N12: 0 | O12: 0 | P12: 0 | Q12: 0 | R12: 0 | S12: 0 | T12: 0 | U12: 0 | V12: 0 | W12: 0
B14: =title187 -> Operating hours per year | C14: =+COST_RES3!$J$34 -> 0 | D14: =C14 -> 0 | E14: =D14 -> 0 | F14: 0 | G14: 0 | H14: 0 | I14: 0 | J14: 0 | K14: 0 | L14: 0 | M14: 0 | N14: 0 | O14: 0 | P14: 0 | Q14: 0 | R14: 0 | S14: 0 | T14: 0 | U14: 0 | V14: 0 | W14: 0
B15: =title119 -> Capacity utilization factor | C15: =C14/8760 -> 0 | D15: =D14/8760 -> 0 | E15: 0 | F15: 0 | G15: 0 | H15: 0 | I15: 0 | J15: 0 | K15: 0 | L15: 0 | M15: 0 | N15: 0 | O15: 0 | P15: 0 | Q15: 0 | R15: 0 | S15: 0 | T15: 0 | U15: 0 | V15: 0 | W15: 0
B17: =title196 -> Electricity generation (kWh per year) | C17: =C8*C14*(1-C12) -> 0 | D17: =D8*D14*(1-D12) -> 0 | E17: 0 | F17: 0 | G17: 0 | H17: 0 | I17: 0 | J17: 0 | K17: 0 | L17: 0 | M17: 0 | N17: 0 | O17: 0 | P17: 0 | Q17: 0 | R17: 0 | S17: 0 | T17: 0 | U17: 0 | V17: 0 | W17: 0
B18: =title197 -> Electricity - self use (kWh per year) | C18: =C17*10% -> 0 | D18: =D17*10% -> 0 | E18: 0 | F18: 0 | G18: 0 | H18: 0 | I18: 0 | J18: 0 | K18: 0 | L18: 0 | M18: 0 | N18: 0 | O18: 0 | P18: 0 | Q18: 0 | R18: 0 | S18: 0 | T18: 0 | U18: 0 | V18: 0 | W18: 0
B19: =title198 -> Power loss in distribution network (kWh per year) | C19: =C17*COST_RES3!$I$19 -> 0 | D19: =C19 -> 0 | E19: =D19 -> 0 | F19: 0 | G19: 0 | H19: 0 | I19: 0 | J19: 0 | K19: 0 | L19: 0 | M19: 0 | N19: 0 | O19: 0 | P19: 0 | Q19: 0 | R19: 0 | S19: 0 | T19: 0 | U19: 0 | V19: 0 | W19: 0
B20: =title199 -> Total power sold to the customers (kWh per year) | C20: =C17-C18-C19 -> 0 | D20: =D17-D18-D19 -> 0 | E20: 0 | F20: 0 | G20: 0 | H20: 0 | I20: 0 | J20: 0 | K20: 0 | L20: 0 | M20: 0 | N20: 0 | O20: 0 | P20: 0 | Q20: 0 | R20: 0 | S20: 0 | T20: 0 | U20: 0 | V20: 0 | W20: 0
B22: =title128 -> Price of electricity (USD/kWh) | C22: =+COST_RES3!$N$15 -> 0 | D22: =+COST_RES3!$N$15 -> 0 | E22: =+COST_RES3!$N$15 -> 0 | F22: =+COST_RES3!$N$15 -> 0 | G22: =+COST_RES3!$N$15 -> 0 | H22: =+COST_RES3!$N$15 -> 0 | I22: =+COST_RES3!$N$15 -> 0 | J22: =+COST_RES3!$N$15 -> 0 | K22: =+COST_RES3!$N$15 -> 0 | L22: =+COST_RES3!$N$15 -> 0 | M22: =+COST_RES3!$N$15 -> 0 | N22: =+COST_RES3!$N$15 -> 0 | O22: =+COST_RES3!$N$15 -> 0 | P22: =+COST_RES3!$N$15 -> 0 | Q22: =+COST_RES3!$N$15 -> 0 | R22: =+COST_RES3!$N$15 -> 0 | S22: =+COST_RES3!$N$15 -> 0 | T22: =+COST_RES3!$N$15 -> 0 | U22: =+COST_RES3!$N$15 -> 0 | V22: =+COST_RES3!$N$15 -> 0 | W22: =+COST_RES3!$N$15 -> 0
B23: =title200 -> Total income (USD/year) | C23: =C20*C22 -> 0 | D23: =D20*D22 -> 0 | E23: 0 | F23: 0 | G23: 0 | H23: 0 | I23: 0 | J23: 0 | K23: 0 | L23: 0 | M23: 0 | N23: 0 | O23: 0 | P23: 0 | Q23: 0 | R23: 0 | S23: 0 | T23: 0 | U23: 0 | V23: 0 | W23: 0
B25: =title201 -> Project lifetime (years) | C25: =+COST_RES3!$N$16 -> 20
B26: =title202 -> Lifespan of civil work (years) | C26: =20 -> 20
B27: =title203 -> Lifespan of combustion system (years) | C27: =20 -> 20
B28: =title204 -> Lifespan of engine generator system (years) | C28: =20 -> 20
B29: =title205 -> Lifespan of electrical distribution system (years) | C29: =20 -> 20
A32: =title206 -> Capital and operating cost
B34: =title193 -> Operating Year | C34: =title238 -> Appraisal | D34: 1 | E34: 2 | F34: 3 | G34: 4 | H34: 5 | I34: 6 | J34: 7 | K34: 8 | L34: 9 | M34: 10 | N34: 11 | O34: 12 | P34: 13 | Q34: 14 | R34: 15 | S34: 16 | T34: 17 | U34: 18 | V34: 19 | W34: 20
B35: =title207 -> Direct capital cost (USD)
B36: =title149 -> Equipments | C36: =COST_RES3!I62 -> 
B37: =title150 -> Building | C37: =COST_RES3!I63 -> 2499.64
B38: =title151 -> Installation | C38: =COST_RES3!I64 -> 1085.714286
B39: =title152 -> Distribution network | C39: =COST_RES3!I65 -> 
B40: =title208 -> Total capital cost (USD) | C40: =SUM(C36:C39) ->  | D40: =D36+D37+D38 -> 0 | E40: 0 | F40: 0 | G40: 0 | H40: 0 | I40: 0 | J40: 0 | K40: 0 | L40: 0 | M40: 0 | N40: 0 | O40: 0 | P40: 0 | Q40: 0 | R40: 0 | S40: 0 | T40: 0 | U40: 0 | V40: 0 | W40: 0
B41: =title209 -> Capital cost (USD/kW) | C41: =C40/C8 -> 
B44: =title193 -> Operating Year | C44: =title238 -> Appraisal | D44: 1 | E44: 2 | F44: 3 | G44: 4 | H44: 5 | I44: 6 | J44: 7 | K44: 8 | L44: 9 | M44: 10 | N44: 11 | O44: 12 | P44: 13 | Q44: 14 | R44: 15 | S44: 16 | T44: 17 | U44: 18 | V44: 19 | W44: 20
B45: =title210 -> Annual operating and maintenance cost
B46: =title211 -> Sub-total material cost (USD) | C46: =C47+C55 ->  | D46: =D47+D55 -> 
B47: =title212 -> Biomass cost (USD/year) | C47: =C48*C49 ->  | D47: =D48*D49 ->  | E47: =E48*E49 -> 
B48: =title213 -> Biomass consumption (tne per year) | C48: =+COST_RES3!$I$39 ->  | D48: =+C48 ->  | E48: =+D48 -> 
B49: =title214 -> Biomass total price (USD/t) | C49: =SUM(C50:C51) -> 0 | D49: =SUM(D50:D51) -> 0 | E49: 0 | F49: 0 | G49: 0 | H49: 0 | I49: 0 | J49: 0 | K49: 0 | L49: 0 | M49: 0 | N49: 0 | O49: 0 | P49: 0 | Q49: 0 | R49: 0 | S49: 0 | T49: 0 | U49: 0 | V49: 0 | W49: 0
B50: =title215 -> Biomass price (USD/t) | C50: =+COST_RES3!$F$39 -> 0 | D50: =C50 -> 0 | E50: =D50 -> 0 | F50: 0 | G50: 0 | H50: 0 | I50: 0 | J50: 0 | K50: 0 | L50: 0 | M50: 0 | N50: 0 | O50: 0 | P50: 0 | Q50: 0 | R50: 0 | S50: 0 | T50: 0 | U50: 0 | V50: 0 | W50: 0
B51: =title216 -> Biomass transportation cost (USD/t) | C51: =+C52*C53 -> 0 | D51: =+C51 -> 0 | E51: =+D51 -> 0 | F51: 0 | G51: 0 | H51: 0 | I51: 0 | J51: 0 | K51: 0 | L51: 0 | M51: 0 | N51: 0 | O51: 0 | P51: 0 | Q51: 0 | R51: 0 | S51: 0 | T51: 0 | U51: 0 | V51: 0 | W51: 0
B52: =title217 -> Biomass from farm to plant (USD/t/km) | C52: =+COST_RES3!$F$52 -> 0
B53: =title218 -> Transportation distant (km) | C53: =+COST_RES3!$I$52 -> 0
B55: =title219 -> Water cost (USD/year) | C55: =C56*C57 ->  | D55: =D56*D57 -> 
B56: =title220 -> Water consumption (m3 per year) | C56: =+COST_RES3!$I$40 ->  | D56: =+C56 ->  | E56: =+D56 -> 
B57: =title221 -> Water + chemical additives cost (USD/m3) | C57: =+COST_RES3!$F$40 -> 0.4385964912 | D57: =C57 -> 0.4385964912 | E57: =D57 -> 0.4385964912 | F57: 0.4385964912 | G57: 0.4385964912 | H57: 0.4385964912 | I57: 0.4385964912 | J57: 0.4385964912 | K57: 0.4385964912 | L57: 0.4385964912 | M57: 0.4385964912 | N57: 0.4385964912 | O57: 0.4385964912 | P57: 0.4385964912 | Q57: 0.4385964912 | R57: 0.4385964912 | S57: 0.4385964912 | T57: 0.4385964912 | U57: 0.4385964912 | V57: 0.4385964912 | W57: 0.4385964912
B59: =title222 -> Sub-total operating cost (USD) | C59: =C60+C61+C62 -> 
B60: =title223 -> Labour cost (USD) | C60: =COST_RES3!J48 -> 0 | D60: =C60 -> 0 | E60: =D60 -> 0 | F60: 0 | G60: 0 | H60: 0 | I60: 0 | J60: 0 | K60: 0 | L60: 0 | M60: 0 | N60: 0 | O60: 0 | P60: 0 | Q60: 0 | R60: 0 | S60: 0 | T60: 0 | U60: 0 | V60: 0 | W60: 0
B61: =title154 -> Plant overhead | C61: =COST_RES3!J73 ->  | D61: =C61 -> 
B62: =title155 -> General and administrative cost | C62: =COST_RES3!J74 ->  | D62: =C62 -> 
B63: =title224 -> Sub-total maintenance cost (USD) | C63: =COST_RES3!J68 ->  | D63: =C63 -> 
B65: =title225 -> Sub-total of annual fixed cost | C65: =COST_RES3!J67 ->  | D65: =C65 ->  | E65: =D65 -> 
B67: =title226 -> Sub-total of storage capacity | C67: =+COST_RES3!J58 ->  | D67: =C67 ->  | E67: =D67 -> 
B69: =title227 -> Total operation and maintenance cost (USD) | C69: =C46+C59+C63+C65+C67 -> 
B70: =title228 -> Operation and maintenance cost (USD/kWh) without loan interest | C70: =C69/C20 -> 
A72: =title95 -> Financial parameters
B73: =title193 -> Operating Year | C73: =title238 -> Appraisal | D73: 1 | E73: 2 | F73: 3 | G73: 4 | H73: 5 | I73: 6 | J73: 7 | K73: 8 | L73: 9 | M73: 10 | N73: 11 | O73: 12 | P73: 13 | Q73: 14 | R73: 15 | S73: 16 | T73: 17 | U73: 18 | V73: 19 | W73: 20
B74: =title96&" (%)" -> Discount rate (%) | C74: =+COST_RES3!$N$13 -> 0
B75: =title97&" (%)" -> Loan ratio (%) | C75: =+COST_RES3!$N$11 -> 0
B77: =title229 -> Loans | D77: 1 | E77: 2 | F77: 3 | G77: 4 | H77: 5 | I77: 6 | J77: 7 | K77: 8 | L77: 9 | M77: 10 | N77: 11 | O77: 12 | P77: 13 | Q77: 14 | R77: 15 | S77: 16 | T77: 17 | U77: 18 | V77: 19 | W77: 20
B78: =title230 -> Loan amount (USD ) | C78: =C75*C40 -> 
B79: =title231 -> Loan interest rate (%) | C79: =+COST_RES3!$N$10 -> 0
B80: =title126 -> Loan term (years) | C80: =+COST_RES3!$N$12 -> 0
B81: =title232 -> Loan payment (USD/month) | C81: =(PMT(C79/12,(12*C80),C78)) -> 
B82: =title233 -> Loan payment (USD/year) | D82: =IF(D73<=$C$80,$C$81*12,0) -> 0 | E82: =IF(E73<=$C$80,$C$81*12,0) -> 0 | F82: 0 | G82: 0 | H82: 0 | I82: 0 | J82: 0 | K82: 0 | L82: 0 | M82: 0 | N82: 0 | O82: 0 | P82: 0 | Q82: 0 | R82: 0 | S82: 0 | T82: 0 | U82: 0 | V82: 0 | W82: 0
B83: =title234 -> Total loan payment (USD) | C83: =SUM(D82:W82) -> 0
B84: =title235 -> Loan interest payment (USD) | C84: =C83+C78 ->  | D84: =title240 -> Average loan interest payment for project lifetime | G84: =C84/C25 ->  | H84: =title241 -> USD per year
A86: =title167 -> Depreciation
B87: =title193 -> Operating Year | C87: =title238 -> Appraisal | D87: 1 | E87: 2 | F87: 3 | G87: 4 | H87: 5 | I87: 6 | J87: 7 | K87: 8 | L87: 9 | M87: 10 | N87: 11 | O87: 12 | P87: 13 | Q87: 14 | R87: 15 | S87: 16 | T87: 17 | U87: 18 | V87: 19 | W87: 20
B88: =title236 -> Depreciation method | C88: =title239 -> Straight-line
B89: =title237 -> Total depreciation (USD) | D89: =COST_RES3!H67 ->  | E89: =D89 ->  | F89: =E89 -> 
A92: =title242 -> Base case project
A93: =title243 -> Summary of this project - before tax
B94: =title193 -> Operating Year | C94: =title238 -> Appraisal | D94: 1 | E94: 2 | F94: 3 | G94: 4 | H94: 5 | I94: 6 | J94: 7 | K94: 8 | L94: 9 | M94: 10 | N94: 11 | O94: 12 | P94: 13 | Q94: 14 | R94: 15 | S94: 16 | T94: 17 | U94: 18 | V94: 19 | W94: 20
B95: =title244 -> Total revenue (USD) | D95: =D23 -> 0 | E95: =E23 -> 0 | F95: 0 | G95: 0 | H95: 0 | I95: 0 | J95: 0 | K95: 0 | L95: 0 | M95: 0 | N95: 0 | O95: 0 | P95: 0 | Q95: 0 | R95: 0 | S95: 0 | T95: 0 | U95: 0 | V95: 0 | W95: 0
B96: =title208 -> Total capital cost (USD) | C96: =-(C40-C78) -> 
B97: =title245 -> Total operating and maintenance cost (USD) | D97: =-D69+D65 -> 
B98: =title246 -> Loan payment (USD) | D98: =D82 -> 0 | E98: =E82 -> 0 | F98: 0 | G98: 0 | H98: 0 | I98: 0 | J98: 0 | K98: 0 | L98: 0 | M98: 0 | N98: 0 | O98: 0 | P98: 0 | Q98: 0 | R98: 0 | S98: 0 | T98: 0 | U98: 0 | V98: 0 | W98: 0
B99: =title247 -> Cash flow - before tax (USD) | C99: =SUM(C95:C98) ->  | D99: =SUM(D95:D98) -> 
A101: =title248 -> Financial analysis result
B103: =title249 -> Net Present Value (NPV) (USD) - before tax | C103: =NPV(C74,D99:W99)+C99 -> 
B104: =title250 -> Internal Rate of Return (IRR) (%) - before tax | C104: =IF(C103<0,title392,IRR(C99:W99,0.001)) -> 
B105: =title251 -> Payback period (years) | C105: =title252 -> Please see Figure of the cumulative value of Net Profit - before tax

Sheet FA100kW_RES3 (hidden)
B1: =title191 -> FINANCIAL EVALUATION OF COMBUSTION FOR POWER GENERATION 100 kW
A4: =title192 -> Revenues
B6: =title193 -> Operating Year | C6: 0 | D6: 1 | E6: 2 | F6: 3 | G6: 4 | H6: 5 | I6: 6 | J6: 7 | K6: 8 | L6: 9 | M6: 10 | N6: 11 | O6: 12 | P6: 13 | Q6: 14 | R6: 15 | S6: 16 | T6: 17 | U6: 18 | V6: 19 | W6: 20
B8: =title194 -> Power generation capacity (kW) | C8: 100 | D8: =C8 -> 100 | E8: =D8 -> 100 | F8: 100 | G8: 100 | H8: 100 | I8: 100 | J8: 100 | K8: 100 | L8: 100 | M8: 100 | N8: 100 | O8: 100 | P8: 100 | Q8: 100 | R8: 100 | S8: 100 | T8: 100 | U8: 100 | V8: 100 | W8: 100
B10: =title195 -> Turbine type | C10: =+COST_RES3!$I$11 -> Backpressure steam turbine
B12: =title125 -> Power loss in distribution network (%) | C12: =+COST_RES3!$I$17 -> 0 | D12: =+C12 -> 0 | E12: =+D12 -> 0 | F12: 0 | G12: 0 | H12: 0 | I12: 0 | J12: 0 | K12: 0 | L12: 0 | M12: 0 | N12: 0 | O12: 0 | P12: 0 | Q12: 0 | R12: 0 | S12: 0 | T12: 0 | U12: 0 | V12: 0 | W12: 0
B14: =title187 -> Operating hours per year | C14: =+COST_RES3!$L$34 -> 0 | D14: =C14 -> 0 | E14: =D14 -> 0 | F14: 0 | G14: 0 | H14: 0 | I14: 0 | J14: 0 | K14: 0 | L14: 0 | M14: 0 | N14: 0 | O14: 0 | P14: 0 | Q14: 0 | R14: 0 | S14: 0 | T14: 0 | U14: 0 | V14: 0 | W14: 0
B15: =title119 -> Capacity utilization factor | C15: =C14/8760 -> 0 | D15: =D14/8760 -> 0 | E15: 0 | F15: 0 | G15: 0 | H15: 0 | I15: 0 | J15: 0 | K15: 0 | L15: 0 | M15: 0 | N15: 0 | O15: 0 | P15: 0 | Q15: 0 | R15: 0 | S15: 0 | T15: 0 | U15: 0 | V15: 0 | W15: 0
B17: =title196 -> Electricity generation (kWh per year) | C17: =C8*C14*(1-C12) -> 0 | D17: =D8*D14*(1-D12) -> 0 | E17: 0 | F17: 0 | G17: 0 | H17: 0 | I17: 0 | J17: 0 | K17: 0 | L17: 0 | M17: 0 | N17: 0 | O17: 0 | P17: 0 | Q17: 0 | R17: 0 | S17: 0 | T17: 0 | U17: 0 | V17: 0 | W17: 0
B18: =title197 -> Electricity - self use (kWh per year) | C18: =C17*10% -> 0 | D18: =D17*10% -> 0 | E18: 0 | F18: 0 | G18: 0 | H18: 0 | I18: 0 | J18: 0 | K18: 0 | L18: 0 | M18: 0 | N18: 0 | O18: 0 | P18: 0 | Q18: 0 | R18: 0 | S18: 0 | T18: 0 | U18: 0 | V18: 0 | W18: 0
B19: =title198 -> Power loss in distribution network (kWh per year) | C19: =C17*COST_RES3!$I$19 -> 0 | D19: =C19 -> 0 | E19: =D19 -> 0 | F19: 0 | G19: 0 | H19: 0 | I19: 0 | J19: 0 | K19: 0 | L19: 0 | M19: 0 | N19: 0 | O19: 0 | P19: 0 | Q19: 0 | R19: 0 | S19: 0 | T19: 0 | U19: 0 | V19: 0 | W19: 0
B20: =title199 -> Total power sold to the customers (kWh per year) | C20: =C17-C18-C19 -> 0 | D20: =D17-D18-D19 -> 0 | E20: 0 | F20: 0 | G20: 0 | H20: 0 | I20: 0 | J20: 0 | K20: 0 | L20: 0 | M20: 0 | N20: 0 | O20: 0 | P20: 0 | Q20: 0 | R20: 0 | S20: 0 | T20: 0 | U20: 0 | V20: 0 | W20: 0
B22: =title128 -> Price of electricity (USD/kWh) | C22: =+COST_RES3!$N$15 -> 0 | D22: =+COST_RES3!$N$15 -> 0 | E22: =+COST_RES3!$N$15 -> 0 | F22: =+COST_RES3!$N$15 -> 0 | G22: =+COST_RES3!$N$15 -> 0 | H22: =+COST_RES3!$N$15 -> 0 | I22: =+COST_RES3!$N$15 -> 0 | J22: =+COST_RES3!$N$15 -> 0 | K22: =+COST_RES3!$N$15 -> 0 | L22: =+COST_RES3!$N$15 -> 0 | M22: =+COST_RES3!$N$15 -> 0 | N22: =+COST_RES3!$N$15 -> 0 | O22: =+COST_RES3!$N$15 -> 0 | P22: =+COST_RES3!$N$15 -> 0 | Q22: =+COST_RES3!$N$15 -> 0 | R22: =+COST_RES3!$N$15 -> 0 | S22: =+COST_RES3!$N$15 -> 0 | T22: =+COST_RES3!$N$15 -> 0 | U22: =+COST_RES3!$N$15 -> 0 | V22: =+COST_RES3!$N$15 -> 0 | W22: =+COST_RES3!$N$15 -> 0
B23: =title200 -> Total income (USD/year) | C23: =C20*C22 -> 0 | D23: =D20*D22 -> 0 | E23: 0 | F23: 0 | G23: 0 | H23: 0 | I23: 0 | J23: 0 | K23: 0 | L23: 0 | M23: 0 | N23: 0 | O23: 0 | P23: 0 | Q23: 0 | R23: 0 | S23: 0 | T23: 0 | U23: 0 | V23: 0 | W23: 0
B25: =title201 -> Project lifetime (years) | C25: =+COST_RES3!$N$16 -> 20
B26: =title202 -> Lifespan of civil work (years) | C26: =20 -> 20
B27: =title203 -> Lifespan of combustion system (years) | C27: =20 -> 20
B28: =title204 -> Lifespan of engine generator system (years) | C28: =20 -> 20
B29: =title205 -> Lifespan of electrical distribution system (years) | C29: =20 -> 20
A32: =title206 -> Capital and operating cost
B34: =title193 -> Operating Year | C34: =title238 -> Appraisal | D34: 1 | E34: 2 | F34: 3 | G34: 4 | H34: 5 | I34: 6 | J34: 7 | K34: 8 | L34: 9 | M34: 10 | N34: 11 | O34: 12 | P34: 13 | Q34: 14 | R34: 15 | S34: 16 | T34: 17 | U34: 18 | V34: 19 | W34: 20
B35: =title207 -> Direct capital cost (USD)
B36: =title149 -> Equipments | C36: =COST_RES3!K62 -> 
B37: =title150 -> Building | C37: =COST_RES3!K63 -> 3679
B38: =title151 -> Installation | C38: =COST_RES3!K64 -> 2714.285714
B39: =title152 -> Distribution network | C39: =COST_RES3!K65 -> 
B40: =title208 -> Total capital cost (USD) | C40: =SUM(C36:C39) ->  | D40: =D36+D37+D38 -> 0 | E40: 0 | F40: 0 | G40: 0 | H40: 0 | I40: 0 | J40: 0 | K40: 0 | L40: 0 | M40: 0 | N40: 0 | O40: 0 | P40: 0 | Q40: 0 | R40: 0 | S40: 0 | T40: 0 | U40: 0 | V40: 0 | W40: 0
B41: =title209 -> Capital cost (USD/kW) | C41: =C40/C8 -> 
B44: =title193 -> Operating Year | C44: =title238 -> Appraisal | D44: 1 | E44: 2 | F44: 3 | G44: 4 | H44: 5 | I44: 6 | J44: 7 | K44: 8 | L44: 9 | M44: 10 | N44: 11 | O44: 12 | P44: 13 | Q44: 14 | R44: 15 | S44: 16 | T44: 17 | U44: 18 | V44: 19 | W44: 20
B45: =title210 -> Annual operating and maintenance cost
B46: =title211 -> Sub-total material cost (USD) | C46: =C47+C55 ->  | D46: =D47+D55 -> 
B47: =title212 -> Biomass cost (USD/year) | C47: =C48*C49 ->  | D47: =D48*D49 ->  | E47: =E48*E49 -> 
B48: =title213 -> Biomass consumption (tne per year) | C48: =+COST_RES3!$K$39 ->  | D48: =+C48 ->  | E48: =+D48 -> 
B49: =title214 -> Biomass total price (USD/t) | C49: =SUM(C50:C51) -> 0 | D49: =SUM(D50:D51) -> 0 | E49: =SUM(E50:E51) -> 0 | F49: 0 | G49: 0 | H49: 0 | I49: 0 | J49: 0 | K49: 0 | L49: 0 | M49: 0 | N49: 0 | O49: 0 | P49: 0 | Q49: 0 | R49: 0 | S49: 0 | T49: 0 | U49: 0 | V49: 0 | W49: 0
B50: =title215 -> Biomass price (USD/t) | C50: =+COST_RES3!$F$39 -> 0 | D50: =C50 -> 0 | E50: =D50 -> 0 | F50: 0 | G50: 0 | H50: 0 | I50: 0 | J50: 0 | K50: 0 | L50: 0 | M50: 0 | N50: 0 | O50: 0 | P50: 0 | Q50: 0 | R50: 0 | S50: 0 | T50: 0 | U50: 0 | V50: 0 | W50: 0
B51: =title216 -> Biomass transportation cost (USD/t) | C51: =+C52*C53 -> 0 | D51: =+C51 -> 0 | E51: =+D51 -> 0 | F51: 0 | G51: 0 | H51: 0 | I51: 0 | J51: 0 | K51: 0 | L51: 0 | M51: 0 | N51: 0 | O51: 0 | P51: 0 | Q51: 0 | R51: 0 | S51: 0 | T51: 0 | U51: 0 | V51: 0 | W51: 0
B52: =title217 -> Biomass from farm to plant (USD/t/km) | C52: =+COST_RES3!$F$52 -> 0
B53: =title218 -> Transportation distant (km) | C53: =+COST_RES3!$K$52 -> 0
B55: =title219 -> Water cost (USD/year) | C55: =C56*C57 ->  | D55: =D56*D57 -> 
B56: =title220 -> Water consumption (m3 per year) | C56: =+COST_RES3!$K$40 ->  | D56: =+C56 ->  | E56: =+D56 -> 
B57: =title221 -> Water + chemical additives cost (USD/m3) | C57: =+COST_RES3!$F$40 -> 0.4385964912 | D57: =C57 -> 0.4385964912 | E57: =D57 -> 0.4385964912 | F57: 0.4385964912 | G57: 0.4385964912 | H57: 0.4385964912 | I57: 0.4385964912 | J57: 0.4385964912 | K57: 0.4385964912 | L57: 0.4385964912 | M57: 0.4385964912 | N57: 0.4385964912 | O57: 0.4385964912 | P57: 0.4385964912 | Q57: 0.4385964912 | R57: 0.4385964912 | S57: 0.4385964912 | T57: 0.4385964912 | U57: 0.4385964912 | V57: 0.4385964912 | W57: 0.4385964912
B59: =title222 -> Sub-total operating cost (USD) | C59: =C60+C61+C62 -> 
B60: =title223 -> Labour cost (USD) | C60: =COST_RES3!L48 -> 0 | D60: =C60 -> 0 | E60: =D60 -> 0 | F60: 0 | G60: 0 | H60: 0 | I60: 0 | J60: 0 | K60: 0 | L60: 0 | M60: 0 | N60: 0 | O60: 0 | P60: 0 | Q60: 0 | R60: 0 | S60: 0 | T60: 0 | U60: 0 | V60: 0 | W60: 0
B61: =title154 -> Plant overhead | C61: =COST_RES3!L73 ->  | D61: =C61 -> 
B62: =title155 -> General and administrative cost | C62: =COST_RES3!L74 ->  | D62: =C62 -> 
B63: =title224 -> Sub-total maintenance cost (USD) | C63: =COST_RES3!L68 ->  | D63: =C63 -> 
B65: =title225 -> Sub-total of annual fixed cost | C65: =COST_RES3!L67 ->  | D65: =C65 ->  | E65: =D65 -> 
B67: =title226 -> Sub-total of storage capacity | C67: =+COST_RES3!L58 ->  | D67: =C67 ->  | E67: =D67 -> 
B69: =title227 -> Total operation and maintenance cost (USD) | C69: =C46+C59+C63+C65+C67 -> 
B70: =title228 -> Operation and maintenance cost (USD/kWh) without loan interest | C70: =C69/C20 -> 
A72: =title95 -> Financial parameters
B73: =title193 -> Operating Year | C73: =title238 -> Appraisal | D73: 1 | E73: 2 | F73: 3 | G73: 4 | H73: 5 | I73: 6 | J73: 7 | K73: 8 | L73: 9 | M73: 10 | N73: 11 | O73: 12 | P73: 13 | Q73: 14 | R73: 15 | S73: 16 | T73: 17 | U73: 18 | V73: 19 | W73: 20
B74: =title96&" (%)" -> Discount rate (%) | C74: =+COST_RES3!$N$13 -> 0
B75: Debt ratio (%) | C75: =+COST_RES3!$N$11 -> 0
B77: =title229 -> Loans | D77: 1 | E77: 2 | F77: 3 | G77: 4 | H77: 5 | I77: 6 | J77: 7 | K77: 8 | L77: 9 | M77: 10 | N77: 11 | O77: 12 | P77: 13 | Q77: 14 | R77: 15 | S77: 16 | T77: 17 | U77: 18 | V77: 19 | W77: 20
B78: =title230 -> Loan amount (USD ) | C78: =C75*C40 -> 
B79: =title231 -> Loan interest rate (%) | C79: =+COST_RES3!$N$10 -> 0
B80: =title126 -> Loan term (years) | C80: =+COST_RES3!$N$12 -> 0
B81: =title232 -> Loan payment (USD/month) | C81: =(PMT(C79/12,(12*C80),C78)) -> 
B82: =title233 -> Loan payment (USD/year) | D82: =IF(D73<=$C$80,$C$81*12,0) -> 0 | E82: =IF(E73<=$C$80,$C$81*12,0) -> 0 | F82: 0 | G82: 0 | H82: 0 | I82: 0 | J82: 0 | K82: 0 | L82: 0 | M82: 0 | N82: 0 | O82: 0 | P82: 0 | Q82: 0 | R82: 0 | S82: 0 | T82: 0 | U82: 0 | V82: 0 | W82: 0
B83: =title234 -> Total loan payment (USD) | C83: =SUM(D82:W82) -> 0
B84: =title235 -> Loan interest payment (USD) | C84: =C83+C78 ->  | D84: =title240 -> Average loan interest payment for project lifetime | G84: =C84/C25 ->  | H84: =title241 -> USD per year
A86: =title167 -> Depreciation
B87: =title193 -> Operating Year | C87: =title238 -> Appraisal | D87: 1 | E87: 2 | F87: 3 | G87: 4 | H87: 5 | I87: 6 | J87: 7 | K87: 8 | L87: 9 | M87: 10 | N87: 11 | O87: 12 | P87: 13 | Q87: 14 | R87: 15 | S87: 16 | T87: 17 | U87: 18 | V87: 19 | W87: 20
B88: =title236 -> Depreciation method | C88: =title239 -> Straight-line
B89: =title237 -> Total depreciation (USD) | D89: =COST_RES3!H67 ->  | E89: =D89 ->  | F89: =E89 -> 
A92: =title242 -> Base case project
A93: =title243 -> Summary of this project - before tax
B94: =title193 -> Operating Year | C94: =title238 -> Appraisal | D94: 1 | E94: 2 | F94: 3 | G94: 4 | H94: 5 | I94: 6 | J94: 7 | K94: 8 | L94: 9 | M94: 10 | N94: 11 | O94: 12 | P94: 13 | Q94: 14 | R94: 15 | S94: 16 | T94: 17 | U94: 18 | V94: 19 | W94: 20
B95: =title244 -> Total revenue (USD) | D95: =D23 -> 0 | E95: =E23 -> 0 | F95: 0 | G95: 0 | H95: 0 | I95: 0 | J95: 0 | K95: 0 | L95: 0 | M95: 0 | N95: 0 | O95: 0 | P95: 0 | Q95: 0 | R95: 0 | S95: 0 | T95: 0 | U95: 0 | V95: 0 | W95: 0
B96: =title208 -> Total capital cost (USD) | C96: =-(C40-C78) -> 
B97: =title245 -> Total operating and maintenance cost (USD) | D97: =-D69+D65 ->  | E97: =-E69+E65 -> 
B98: =title246 -> Loan payment (USD) | D98: =D82 -> 0 | E98: =E82 -> 0 | F98: 0 | G98: 0 | H98: 0 | I98: 0 | J98: 0 | K98: 0 | L98: 0 | M98: 0 | N98: 0 | O98: 0 | P98: 0 | Q98: 0 | R98: 0 | S98: 0 | T98: 0 | U98: 0 | V98: 0 | W98: 0
B99: =title247 -> Cash flow - before tax (USD) | C99: =SUM(C95:C98) ->  | D99: =SUM(D95:D98) -> 
A101: =title248 -> Financial analysis result
B103: =title249 -> Net Present Value (NPV) (USD) - before tax | C103: =NPV(C74,D99:W99)+C99 -> 
B104: =title250 -> Internal Rate of Return (IRR) (%) - before tax | C104: =IF(C103<0,title392,IRR(C99:W99,0.001)) -> 
B105: =title251 -> Payback period (years) | C105: =title252 -> Please see Figure of the cumulative value of Net Profit - before tax

Sheet COST_RES4
C3: =+UPPER(title112&'Data Entry Needs'!$G$11&" "&'Data Entry Needs'!$G$12) -> PROCESSING COSTS FOR POWER GENERATION FROM PLEASE SELECT PLEASE SELECT
C6: =title61 -> Use white cells to input data | E6: =title62 -> Grey cells are used for calculations
C8: =title113 -> Summary of Feedstock and Storage | G8: =title114 -> Summary of Operational Parameters | K8: =title95 -> Financial parameters
C10: =title115 -> Feedstock available (t/year) | E10: =+'Data Entry Needs'!$G$13 -> 0 | G10: =title117 -> Boiler | I10: =+"Stoker @"&Steam_Calculator!$C$3 -> Stoker @20 bar | K10: =title231 -> Loan interest rate (%) | N10: =+'Data Entry Needs'!$D$55 -> 0
C11: =title116 -> Feedstock yield (t/ha) | E11: =+'Data Entry Needs'!$G$14 -> 0 | G11: =title118 -> Turbine | I11: =+Steam_Calculator!$C$2 -> Backpressure steam turbine | K11: =title97&" (%)" -> Loan ratio (%) | N11: =+'Data Entry Needs'!$D$54 -> 0
C12: =title67 -> Moisture content (%) | E12: =+'Data Entry Needs'!$G$15 -> 0 | K12: =title126 -> Loan term (years) | N12: =+'Data Entry Needs'!$D$56 -> 0
C13: =title68 -> Size (mm) | E13: =+'Data Entry Needs'!$G$16 -> 0 | G13: =title119 -> Capacity utilization factor | I13: =H34/8760 -> 0 | K13: =title96&" (%)" -> Discount rate (%) | N13: =+'Data Entry Needs'!$D$53 -> 0
C14: =title72 -> Feedstock storage cost (USD/t) | E14: =+'Data Entry Needs'!$G$20 -> 0 | G14: =title120 -> Power conversion (kWh/kg feedstock) | I14: =+VLOOKUP(IF('Data Entry Needs'!$G$11=title19,'Data Entry Needs'!$G$11,'Data Entry Needs'!$G$11&'Data Entry Needs'!$G$12),dummy_database!$C$1:$L$31,10,FALSE)/(3.6) ->  | K14: =+'Data Entry Needs'!F54 -> Plant Cost Index during 5/2017 | N14: =+'Data Entry Needs'!I54 -> 0
G15: =title121 -> Boiler efficiency (%) | I15: =+Steam_Calculator!$C$4 -> 0.63 | K15: =IF('Data Entry Needs'!$AK$125=0,title129,title130) -> Price of electricity (USD/kWh) - Calculated | N15: =+'Data Entry Needs'!$AL$125 -> 0
G16: =title122 -> Turbine efficiency (%) | I16: =+Steam_Calculator!$C$5 -> 0.17 | K16: =title127 -> Project lifetime | N16: 20
G17: =title123 -> Power loss due to operation (%)
G18: =title124 -> Operating hours per day
G19: =title125 -> Power loss in distribution network (%)
C23: =title131 -> Transport Distance of Feedstock | F23: =title132 -> Transport Quantity | I23: =title131 -> Transport Distance of Feedstock | L23: =title132 -> Transport Quantity
C25: =title133 -> Distance small scale production (km) | F25: =title135 -> Small scale (t/year) | H25: =+$G$39 ->  | I25: =title137 -> Distance large scale production (km) | L25: =title139 -> Large scale (t/year) | N25: =+$K$39 -> 
C26: =title134 -> Distance medium scale production (km) | F26: =title136 -> Medium scale (t/year) | H26: =+$I$39 ->  | I26: =title138 -> Transportation cost (USD/t/km) | N26: =+'Data Entry Needs'!$D$46 -> 0
C30: =title140 -> Production Cost Details
G32: =title183 -> Capacities (kW of power generation)
G33: 10 | I33: 40 | K33: 100
G34: =title187 -> Operating hours per year | H34: =$I$18*365 -> 0 | I34: =title187 -> Operating hours per year | J34: =$I$18*365 -> 0 | K34: =title187 -> Operating hours per year | L34: =$I$18*365 -> 0
D37: =title140 -> Production Cost Details | E37: =title80 -> Unit | F37: =title161 -> Unit Price | G37: =title163 -> Quantity | H37: Total | I37: =title163 -> Quantity | J37: Total | K37: =title163 -> Quantity | L37: Total
F38: =title162 -> (USD/unit) | G38: =title164 -> (Unit/year) | H38: =title165 -> (USD/year) | I38: =title164 -> (Unit/year) | J38: =title165 -> (USD/year) | K38: =title164 -> (Unit/year) | L38: =title165 -> (USD/year)
D39: =title64 -> Feedstock | E39: t | F39: =+IF('Data Entry Needs'!$C$18=FALSE,'Data Entry Needs'!G$18,'Data Entry Needs'!G$19) -> 0 | G39: =+Steam_Calculator!$C$8*'COST(ADJUSTED)_RES4'!F8*H34*Steam_Calculator!$F$2/(Steam_Calculator!$C$4*COST_RES4!$I$14*3.6*1000000)/(1-$I$17) ->  | H39: =+G39*$F39 ->  | I39: =+Steam_Calculator!$C$8*'COST(ADJUSTED)_RES4'!G8*J34*Steam_Calculator!$F$2/(Steam_Calculator!$C$4*COST_RES4!$I$14*3.6*1000000)/(1-$I$17) ->  | J39: =+I39*$F39 ->  | K39: =+Steam_Calculator!$C$8*'COST(ADJUSTED)_RES4'!H8*J34*Steam_Calculator!$F$2/(Steam_Calculator!$C$4*COST_RES4!$I$14*3.6*1000000)/(1-$I$17) ->  | L39: =+K39*$F39 -> 
D40: =title142 -> Water make-up + chemical additives | E40: m3 | F40: =+'Data Entry Needs'!$D$40+0.002*1000/4.56 -> 0.4385964912 | G40: =+Steam_Calculator!$C$9*'COST(ADJUSTED)_RES4'!F8*H34/1000 ->  | H40: =+G40*$F40 ->  | I40: =+Steam_Calculator!$C$9*'COST(ADJUSTED)_RES4'!G8*J34/1000 ->  | J40: =+I40*$F40 ->  | K40: =+Steam_Calculator!$C$9*'COST(ADJUSTED)_RES4'!H8*L34/1000 ->  | L40: =+K40*$F40 -> 
D41: =title143 -> Subtotal | H41: =SUM(H39:H40) ->  | J41: =SUM(J39:J40) ->  | L41: =SUM(L39:L40) -> 
D43: =title144 -> Labour and miscellaneous costs | E43: =title80 -> Unit | F43: =title161 -> Unit Price | G43: =title163 -> Quantity | H43: Total | I43: =title163 -> Quantity | J43: Total | K43: =title163 -> Quantity | L43: Total
F44: ="("&title390&")" -> (USD/person-hour) | G44: ="("&title80&")" -> (Unit) | H44: =title165 -> (USD/year) | I44: ="("&title80&")" -> (Unit) | J44: =title165 -> (USD/year) | K44: ="("&title80&")" -> (Unit) | L44: =title165 -> (USD/year)
D45: =title85 -> Unskilled worker | E45: =title166 -> # employee | F45: =+'Data Entry Needs'!$D$37 -> 0 | G45: 1 | H45: =+F45*G45*H34 -> 0 | I45: 3 | J45: =+$F45*I45*$H$34 -> 0 | K45: 6 | L45: =+$F45*K45*$H$34 -> 0
D46: =title103 -> Skilled worker | E46: =title166 -> # employee | F46: =+'Data Entry Needs'!I$37 -> 0 | G46: 1 | H46: =+F46*G46*H34 -> 0 | I46: =+ROUND(I45/4,0) -> 1 | J46: =+$F46*I46*$H$34 -> 0 | K46: =+ROUND(K45/3,0) -> 2 | L46: =+$F46*K46*$H$34 -> 0
D47: =title107 -> Miscellaneous costs | G47: =+'Data Entry Needs'!$I$50 -> 0 | H47: =+G47*SUM(H45:H46) -> 0 | I47: =+G47 -> 0 | J47: =+I47*SUM(J45:J46) -> 0 | K47: =+G47 -> 0 | L47: =+K47*SUM(L45:L46) -> 0
D48: =title143 -> Subtotal | H48: =+H45+H46+H47 -> 0 | J48: =+J45+J46+J47 -> 0 | L48: =+L45+L46+L47 -> 0
G49: =+SUM(G45:G46) -> 2 | I49: =+SUM(I45:I46) -> 4 | K49: =+SUM(K45:K46) -> 8
D50: =title145 -> Transport of feedstock | E50: =title80 -> Unit | F50: =title161 -> Unit Price | G50: =title163 -> Quantity | H50: Total | I50: =title163 -> Quantity | J50: Total | K50: =title163 -> Quantity | L50: Total
F51: (USD/t/km) | G51: ="("&title80&")" -> (Unit) | H51: =title165 -> (USD/year) | I51: ="("&title80&")" -> (Unit) | J51: =title165 -> (USD/year) | K51: ="("&title80&")" -> (Unit) | L51: =title165 -> (USD/year)
D52: =title146 -> Feedstock (farm to plant) | E52: km | F52: =+'Data Entry Needs'!$D$46 -> 0 | G52: =+$E$25 -> 0 | H52: =+G52*F52*G39 ->  | I52: =+$E$26 -> 0 | J52: =+I52*$F52*I$39 ->  | K52: =+$K$25 -> 0 | L52: =+K52*$F52*K$39 -> 
D53: =title143 -> Subtotal | H53: =+H52 ->  | J53: =+J52 ->  | L53: =+L52 -> 
D55: =title147 -> Storage | E55: =title80 -> Unit | F55: =title161 -> Unit Price | G55: =title163 -> Quantity | H55: Total | I55: =title163 -> Quantity | J55: Total | K55: =title163 -> Quantity | L55: Total
F56: (USD/t/year) | G56: ="("&title80&")" -> (Unit) | H56: =title165 -> (USD/year) | I56: ="("&title80&")" -> (Unit) | J56: =title165 -> (USD/year) | K56: ="("&title80&")" -> (Unit) | L56: =title165 -> (USD/year)
D57: =title64 -> Feedstock | E57: t | F57: =+$E$14 -> 0 | G57: =+STORAGE_RES2!$F$38 ->  | H57: =+F57*G57 ->  | I57: =+STORAGE_RES2!$I$38 ->  | J57: =I57*F57 ->  | K57: =+STORAGE_RES2!$L$38 ->  | L57: =F57*K57 -> 
D58: =title143 -> Subtotal | H58: =SUM(H57) ->  | J58: =SUM(J57) ->  | L58: =SUM(L57) -> 
D60: =title148 -> Investment | E60: =title80 -> Unit | F60: =title184 -> Years | G60: Total | H60: =title167 -> Depreciation | I60: Total | J60: =title167 -> Depreciation | K60: Total | L60: =title167 -> Depreciation
G61: (USD) | H61: =title165 -> (USD/year) | I61: (USD) | J61: =title165 -> (USD/year) | K61: (USD) | L61: =title165 -> (USD/year)
D62: =title149 -> Equipments | E62: USD | F62: =+$N$16 -> 20 | G62: =('COST(ADJUSTED)_RES4'!$F$22)*('Data Entry Needs'!$I$54/141) ->  | H62: =+G62/F62 ->  | I62: =('COST(ADJUSTED)_RES4'!$G$22)*('Data Entry Needs'!$I$54/141) ->  | J62: =+I62/F62 ->  | K62: =('COST(ADJUSTED)_RES4'!$H$22)*('Data Entry Needs'!$I$54/141) ->  | L62: =+K62/F62 -> 
D63: =title150 -> Building | E63: USD | F63: =+$N$16 -> 20 | G63: =+'COST(ADJUSTED)_RES4'!$F$25 -> 1909.96 | H63: =+G63/F63 -> 95.498 | I63: =+'COST(ADJUSTED)_RES4'!$G$25 -> 2499.64 | J63: =+I63/F63 -> 124.982 | K63: =+'COST(ADJUSTED)_RES4'!$H$25 -> 3679 | L63: =+K63/F63 -> 183.95
D64: =title151 -> Installation | E64: USD | F64: =+$N$16 -> 20 | G64: =+'COST(ADJUSTED)_RES4'!$F$28 -> 271.4285714 | H64: =+G64/F64 -> 13.57142857 | I64: =+'COST(ADJUSTED)_RES4'!$G$28 -> 1085.714286 | J64: =+I64/F64 -> 54.28571429 | K64: =+'COST(ADJUSTED)_RES4'!$H$28 -> 2714.285714 | L64: =+K64/F64 -> 135.7142857
D65: =title152 -> Distribution network | E65: USD | F65: =+$N$16 -> 20 | G65: =('COST(ADJUSTED)_RES4'!$F$32)*('Data Entry Needs'!$I$54/141) ->  | H65: =+G65/F65 ->  | I65: =('COST(ADJUSTED)_RES4'!$G32)*('Data Entry Needs'!$I$54/141) ->  | J65: =+I65/F65 ->  | K65: =('COST(ADJUSTED)_RES4'!$H32)*('Data Entry Needs'!$I$54/141) ->  | L65: =+K65/F65 -> 
D66: =title153 -> Total Investment | G66: =SUM(G62:G65) ->  | I66: =SUM(I62:I65) ->  | K66: =SUM(K62:K65) -> 
G67: =title168 -> Total depreciation | H67: =SUM(H62:H66) ->  | I67: =title168 -> Total depreciation | J67: =SUM(J62:J66) ->  | K67: =title168 -> Total depreciation | L67: =SUM(L62:L66) -> 
D68: =title106 -> Maintenance cost | F68: =+'Data Entry Needs'!$I$49 -> 0 | H68: =+F68*H67 ->  | J68: =+F68*$J$67 ->  | L68: =+$F$68*L67 -> 
D69: =title143 -> Subtotal | H69: =SUM(H67:H68) ->  | J69: =SUM(J67:J68) ->  | L69: =SUM(L67:L68) -> 
D71: =title92 -> Other costs | E71: =title80 -> Unit | F71: Rate (%) | H71: Total | J71: Total | L71: Total
H72: =title165 -> (USD/year) | J72: =title165 -> (USD/year) | L72: =title165 -> (USD/year)
D73: =title154 -> Plant overhead | E73: USD | F73: =+'Data Entry Needs'!$D$50 -> 0 | H73: =+(H45+H46+H68)*$F$73 ->  | J73: =+(J45+J46+J68)*$F$73 ->  | L73: =+(L45+L46+L68)*$F$73 -> 
D74: =title155 -> General and administrative cost | E74: USD | F74: =+'Data Entry Needs'!$D$49 -> 0 | H74: =+(H41+H48+H73+H68)*$F$74 ->  | J74: =+(J41+J48+J73+J68)*$F$74 ->  | L74: =+(L41+L48+L73+L68)*$F$74 -> 
D75: =title156 -> Loan interest | E75: USD | F75: =+'Data Entry Needs'!$D$55 -> 0 | H75: =-FA10kW_RES4!G84 ->  | J75: =-FA40kW_RES4!G84 ->  | L75: =-FA100kW_RES4!G84 -> 
D77: =title143 -> Subtotal | H77: =SUM(H73:H75) ->  | J77: =SUM(J73:J75) ->  | L77: =SUM(L73:L75) -> 
G79: Total | H79: =title169 -> Share (%) | I79: Total | J79: =title169 -> Share (%) | K79: Total | L79: =title169 -> Share (%)
G80: =title165 -> (USD/year) | I80: =title165 -> (USD/year) | K80: =title165 -> (USD/year)
D81: =title157 -> Total operating costs | G81: =+H41+H48+H53+H58 ->  | H81: =+G81/$G$84 ->  | I81: =+J41+J48+J53+J58 ->  | J81: =+I81/$I$84 ->  | K81: =+L41+L48+L53+L58 ->  | L81: =+K81/$K$84 -> 
D82: =title158 -> Total fixed costs | G82: =+H69 ->  | H82: =+G82/$G$84 ->  | I82: =+J69 ->  | J82: =+I82/$I$84 ->  | K82: =+L69 ->  | L82: =+K82/$K$84 -> 
D83: =title159 -> Total other costs | G83: =+H77 ->  | H83: =+G83/$G$84 ->  | I83: =+J77 ->  | J83: =+I83/$I$84 ->  | K83: =+L77 ->  | L83: =+K83/$K$84 -> 
D84: =title160 -> Total production costs | G84: =SUM(G81:G83) ->  | I84: =SUM(I81:I83) ->  | K84: =SUM(K81:K83) -> 
C86: =title170 -> Power generation
